Workbook

Sheet Introduction
A3: . . . . . . . . . . . . . . . . . . . . . . . . . . . . . . . . . . . . . . . . . . . . . . . . .
A5: Guidelines For Estimating
A6: ="Crop Production Costs - "&I11 -> Crop Production Costs - 2025
H11: Date: January, | I11: 2025
B17: The following budgets are estimates of the cost of producing the most commonly grown field crops in Manitoba. General Manitoba Agriculture recommendations are assumed in using fertilizers and chemical inputs. These figures provide an economic evaluation of the crops and estimated yields required to cover all costs. Costs include labour, investment and depreciation, but do not include management costs, nor do they necessarily represent the average cost of production in Manitoba.
B25: These budgets may be adjusted by putting in your own figures. As a producer you are encouraged to calculate your own costs of production for various crops. On each farm, costs and yields differ due to soil type, climate and agronomic practices.
B30: This tool is available as an Excel worksheet at:
B37: is also available to help
B38: determine machinery costs.
B40: The | G40: is also available for producers to
B41: estimate the cash cost of producing field crops on their farm on an annual basis. CropPlan calculates marginal returns, breakeven yields, breakeven crop prices on total production and remaining unsold inventory, land and machinery cost analysis and cash based financial ratios.
B53: Note: This budget is only a guide and is not intended as an in depth study of the cost of production of this industry. Interpretation and use of this information is the responsibility of the user. If you need help with a budget, contact a Farm Management Specialist.

Sheet Summary
A1: =IF('Data (HIDE)'!B13="Manitoba","Crop Production Costs "&Introduction!I11&" Guidelines (Dollars Per Acre)","Crop Production Costs "&Introduction!I11&" Guidelines "&'Data (HIDE)'!B13&" (Dollars Per Acre)") -> Crop Production Costs 2025 Guidelines (Dollars Per Acre) | K1: =IF('Data (HIDE)'!L13="Manitoba","Crop Production Costs "&Introduction!S11&" Guidelines (Dollars Per Acre)","Crop Production Costs "&Introduction!S11&" Guidelines "&'Data (HIDE)'!L13&" (Dollars Per Acre)") -> Crop Production Costs Guidelines (Dollars Per Acre)
C2: ='Data (HIDE)'!$B$16 -> Wheat - Hard Red Spring | D2: ='Data (HIDE)'!$B$17 -> Wheat - Northern Hard Red | E2: ='Data (HIDE)'!$B$18 -> Wheat - Prairie Spring | F2: ='Data (HIDE)'!$B$19 -> Wheat - Winter | G2: ='Data (HIDE)'!$B$20 -> Oats | H2: ='Data (HIDE)'!$B$21 -> Barley | I2: ='Data (HIDE)'!$B$22 -> Hybrid Fall Rye | J2: ='Data (HIDE)'!$B$23 -> Corn | M2: ='Data (HIDE)'!$B$24 -> Canola | N2: ='Data (HIDE)'!$B$25 -> Soybeans | O2: ='Data (HIDE)'!$B$26 -> Sunflower - Oilseed | P2: ='Data (HIDE)'!$B$27 -> Flaxseed | Q2: ='Data (HIDE)'!$B$28 -> Peas | R2: ='Data (HIDE)'!$B$29 -> Beans - Pinto | S2: ='Data (HIDE)'!$B$30 -> Beans - White | T2: ='Data (HIDE)'!$B$31 -> Beans - Black
A3: A. Operating Costs | K3: A. Operating Costs
B4: Seed & Treatment | C4: ='Data (HIDE)'!$L$16 -> 34 | D4: ='Data (HIDE)'!$L$17 -> 34 | E4: ='Data (HIDE)'!$L$18 -> 34 | F4: ='Data (HIDE)'!$L$19 -> 32 | G4: ='Data (HIDE)'!$L$20 -> 25 | H4: ='Data (HIDE)'!$L$21 -> 20 | I4: ='Data (HIDE)'!$L$22 -> 78.4 | J4: ='Data (HIDE)'!$L$23 -> 100 | L4: Seed & Treatment | M4: ='Data (HIDE)'!$L$24 -> 82.5 | N4: ='Data (HIDE)'!$L$25 -> 90 | O4: ='Data (HIDE)'!$L$26 -> 50 | P4: ='Data (HIDE)'!$L$27 -> 56 | Q4: ='Data (HIDE)'!$L$28 -> 85 | R4: ='Data (HIDE)'!$L$29 -> 105 | S4: ='Data (HIDE)'!$L$30 -> 110 | T4: ='Data (HIDE)'!$L$31 -> 115
B5: Fertilizer | C5: ='Data (HIDE)'!$M$16 -> 113.0697759 | D5: ='Data (HIDE)'!$M$17 -> 122.9852963 | E5: ='Data (HIDE)'!$M$18 -> 116.3749494 | F5: ='Data (HIDE)'!$M$19 -> 113.0697759 | G5: ='Data (HIDE)'!$M$20 -> 87.78370097 | H5: ='Data (HIDE)'!$M$21 -> 84.7337911 | I5: ='Data (HIDE)'!$M$22 -> 136.20599 | J5: ='Data (HIDE)'!$M$23 -> 173.1764524 | L5: Fertilizer | M5: ='Data (HIDE)'!$M$24 -> 128.3647311 | N5: ='Data (HIDE)'!$M$25 -> 44.01054206 | O5: ='Data (HIDE)'!$M$26 -> 104.3190181 | P5: ='Data (HIDE)'!$M$27 -> 58.56656702 | Q5: ='Data (HIDE)'!$M$28 -> 29.83272737 | R5: ='Data (HIDE)'!$M$29 -> 71.78726078 | S5: ='Data (HIDE)'!$M$30 -> 78.39760766 | T5: ='Data (HIDE)'!$M$31 -> 78.39760766
B6: Crop Protection | C6: ='Data (HIDE)'!$N$16+'Data (HIDE)'!$O$16+'Data (HIDE)'!$P$16 -> 55.25 | D6: ='Data (HIDE)'!$N$17+'Data (HIDE)'!$O$17+'Data (HIDE)'!$P$17 -> 55.25 | E6: ='Data (HIDE)'!$N$18+'Data (HIDE)'!$O$18+'Data (HIDE)'!$P$18 -> 55.25 | F6: ='Data (HIDE)'!$N$19+'Data (HIDE)'!$O$19+'Data (HIDE)'!$P$19 -> 36 | G6: ='Data (HIDE)'!$N$20+'Data (HIDE)'!$O$20+'Data (HIDE)'!$P$20 -> 24.5 | H6: ='Data (HIDE)'!$N$21+'Data (HIDE)'!$O$21+'Data (HIDE)'!$P$21 -> 27.5 | I6: ='Data (HIDE)'!$N$22+'Data (HIDE)'!$O$22+'Data (HIDE)'!$P$22 -> 8.5 | J6: ='Data (HIDE)'!$N$23+'Data (HIDE)'!$O$23+'Data (HIDE)'!$P$23 -> 44 | L6: Crop Protection | M6: ='Data (HIDE)'!$N$24+'Data (HIDE)'!$O$24+'Data (HIDE)'!$P$24 -> 58.5 | N6: ='Data (HIDE)'!$N$25+'Data (HIDE)'!$O$25+'Data (HIDE)'!$P$25 -> 21.75 | O6: ='Data (HIDE)'!$N$26+'Data (HIDE)'!$O$26+'Data (HIDE)'!$P$26 -> 49 | P6: ='Data (HIDE)'!$N$27+'Data (HIDE)'!$O$27+'Data (HIDE)'!$P$27 -> 33.5 | Q6: ='Data (HIDE)'!$N$28+'Data (HIDE)'!$O$28+'Data (HIDE)'!$P$28 -> 42.75 | R6: ='Data (HIDE)'!$N$29+'Data (HIDE)'!$O$29+'Data (HIDE)'!$P$29 -> 128.5 | S6: ='Data (HIDE)'!$N$30+'Data (HIDE)'!$O$30+'Data (HIDE)'!$P$30 -> 128.5 | T6: ='Data (HIDE)'!$N$31+'Data (HIDE)'!$O$31+'Data (HIDE)'!$P$31 -> 128.5
B7: if delete it will affect crop rotation and fuel calcs | L7: if delete it will affect crop rotation and fuel calcs
B8: if delete it will affect crop rotation and fuel calcs | L8: if delete it will affect crop rotation and fuel calcs
B9: Fuel | C9: ='Data (HIDE)'!$Q$16 -> 29.96978484 | D9: ='Data (HIDE)'!$Q$17 -> 30.50669137 | E9: ='Data (HIDE)'!$Q$18 -> 30.50669137 | F9: ='Data (HIDE)'!$Q$19 -> 29.96978484 | G9: ='Data (HIDE)'!$Q$20 -> 35.87575663 | H9: ='Data (HIDE)'!$Q$21 -> 33.01050442 | I9: ='Data (HIDE)'!$Q$22 -> 30.48050442 | J9: ='Data (HIDE)'!$Q$23 -> 39.78338274 | L9: Fuel | M9: ='Data (HIDE)'!$Q$24 -> 29.80215874 | N9: ='Data (HIDE)'!$Q$25 -> 26.18525221 | O9: ='Data (HIDE)'!$Q$26 -> 30.70050442 | P9: ='Data (HIDE)'!$Q$27 -> 28.53453263 | Q9: ='Data (HIDE)'!$Q$28 -> 26.58597179 | R9: ='Data (HIDE)'!$Q$29 -> 25.620408 | S9: ='Data (HIDE)'!$Q$30 -> 25.26247032 | T9: ='Data (HIDE)'!$Q$31 -> 25.26247032
B10: Machinery Operating & Lease | C10: ='Data (HIDE)'!$R$16+'Data (HIDE)'!$S$16+'Data (HIDE)'!$T$16 -> 25 | D10: ='Data (HIDE)'!$R$17+'Data (HIDE)'!$S$17+'Data (HIDE)'!$T$17 -> 25 | E10: ='Data (HIDE)'!$R$18+'Data (HIDE)'!$S$18+'Data (HIDE)'!$T$18 -> 25 | F10: ='Data (HIDE)'!$R$19+'Data (HIDE)'!$S$19+'Data (HIDE)'!$T$19 -> 25 | G10: ='Data (HIDE)'!$R$20+'Data (HIDE)'!$S$20+'Data (HIDE)'!$T$20 -> 25 | H10: ='Data (HIDE)'!$R$21+'Data (HIDE)'!$S$21+'Data (HIDE)'!$T$21 -> 25 | I10: ='Data (HIDE)'!$R$22+'Data (HIDE)'!$S$22+'Data (HIDE)'!$T$22 -> 25 | J10: ='Data (HIDE)'!$R$23+'Data (HIDE)'!$S$23+'Data (HIDE)'!$T$23 -> 25 | L10: Machinery Operating & Lease | M10: ='Data (HIDE)'!$R$24+'Data (HIDE)'!$S$24+'Data (HIDE)'!$T$24 -> 25 | N10: ='Data (HIDE)'!$R$25+'Data (HIDE)'!$S$25+'Data (HIDE)'!$T$25 -> 25 | O10: ='Data (HIDE)'!$R$26+'Data (HIDE)'!$S$26+'Data (HIDE)'!$T$26 -> 38 | P10: ='Data (HIDE)'!$R$27+'Data (HIDE)'!$S$27+'Data (HIDE)'!$T$27 -> 25 | Q10: ='Data (HIDE)'!$R$28+'Data (HIDE)'!$S$28+'Data (HIDE)'!$T$28 -> 25 | R10: ='Data (HIDE)'!$R$29+'Data (HIDE)'!$S$29+'Data (HIDE)'!$T$29 -> 50 | S10: ='Data (HIDE)'!$R$30+'Data (HIDE)'!$S$30+'Data (HIDE)'!$T$30 -> 50 | T10: ='Data (HIDE)'!$R$31+'Data (HIDE)'!$S$31+'Data (HIDE)'!$T$31 -> 50
B11: if delete it will affect crop rotation and fuel calcs | L11: if delete it will affect crop rotation and fuel calcs
B12: if delete it will affect crop rotation and fuel calcs | L12: if delete it will affect crop rotation and fuel calcs
B13: Labour - Hired | C13: ='Data (HIDE)'!$U$16 -> 5.4 | D13: ='Data (HIDE)'!$U$17 -> 5.4 | E13: ='Data (HIDE)'!$U$18 -> 5.4 | F13: ='Data (HIDE)'!$U$19 -> 5.4 | G13: ='Data (HIDE)'!$U$20 -> 5.4 | H13: ='Data (HIDE)'!$U$21 -> 5.4 | I13: ='Data (HIDE)'!$U$22 -> 5.4 | J13: ='Data (HIDE)'!$U$23 -> 5.4 | L13: Labour - Hired | M13: ='Data (HIDE)'!$U$24 -> 5.4 | N13: ='Data (HIDE)'!$U$25 -> 5.4 | O13: ='Data (HIDE)'!$U$26 -> 5.4 | P13: ='Data (HIDE)'!$U$27 -> 5.4 | Q13: ='Data (HIDE)'!$U$28 -> 5.4 | R13: ='Data (HIDE)'!$U$29 -> 5.4 | S13: ='Data (HIDE)'!$U$30 -> 5.4 | T13: ='Data (HIDE)'!$U$31 -> 5.4
B14: Crop Insurance | C14: ='Data (HIDE)'!$V$16 -> 10.265 | D14: ='Data (HIDE)'!$V$17 -> 12.7725 | E14: ='Data (HIDE)'!$V$18 -> 10.32 | F14: ='Data (HIDE)'!$V$19 -> 10.2475 | G14: ='Data (HIDE)'!$V$20 -> 18.2425 | H14: ='Data (HIDE)'!$V$21 -> 14.35 | I14: ='Data (HIDE)'!$V$22 -> 14.865 | J14: ='Data (HIDE)'!$V$23 -> 40.095 | L14: Crop Insurance | M14: ='Data (HIDE)'!$V$24 -> 13.96 | N14: ='Data (HIDE)'!$V$25 -> 21.7725 | O14: ='Data (HIDE)'!$V$26 -> 16.845 | P14: ='Data (HIDE)'!$V$27 -> 13.99 | Q14: ='Data (HIDE)'!$V$28 -> 15.3875 | R14: ='Data (HIDE)'!$V$29 -> 38.445 | S14: ='Data (HIDE)'!$V$30 -> 36.7475 | T14: ='Data (HIDE)'!$V$31 -> 47.1625
B15: Hail Insurance | C15: ='Data (HIDE)'!$W$16 -> 10.8 | D15: ='Data (HIDE)'!$W$17 -> 10.8 | E15: ='Data (HIDE)'!$W$18 -> 10.8 | F15: ='Data (HIDE)'!$W$19 -> 10.8 | G15: ='Data (HIDE)'!$W$20 -> 10.8 | H15: ='Data (HIDE)'!$W$21 -> 10.8 | I15: ='Data (HIDE)'!$W$22 -> 10.8 | J15: ='Data (HIDE)'!$W$23 -> 10.8 | L15: Hail Insurance | M15: ='Data (HIDE)'!$W$24 -> 10.8 | N15: ='Data (HIDE)'!$W$25 -> 14.04 | O15: ='Data (HIDE)'!$W$26 -> 10.8 | P15: ='Data (HIDE)'!$W$27 -> 10.8 | Q15: ='Data (HIDE)'!$W$28 -> 21.6 | R15: ='Data (HIDE)'!$W$29 -> 18.9 | S15: ='Data (HIDE)'!$W$30 -> 18.9 | T15: ='Data (HIDE)'!$W$31 -> 18.9
B16: Drying & Other Costs | C16: ='Data (HIDE)'!$X$16+'Data (HIDE)'!$AA$16 -> 17.75 | D16: ='Data (HIDE)'!$X$17+'Data (HIDE)'!$AA$17 -> 17.75 | E16: ='Data (HIDE)'!$X$18+'Data (HIDE)'!$AA$18 -> 17.75 | F16: ='Data (HIDE)'!$X$19+'Data (HIDE)'!$AA$19 -> 17.75 | G16: ='Data (HIDE)'!$X$20+'Data (HIDE)'!$AA$20 -> 17.75 | H16: ='Data (HIDE)'!$X$21+'Data (HIDE)'!$AA$21 -> 17.75 | I16: ='Data (HIDE)'!$X$22+'Data (HIDE)'!$AA$22 -> 17.75 | J16: ='Data (HIDE)'!$X$23+'Data (HIDE)'!$AA$23 -> 87.75 | L16: Drying & Other Costs | M16: ='Data (HIDE)'!$X$24+'Data (HIDE)'!$AA$24 -> 17.75 | N16: ='Data (HIDE)'!$X$25+'Data (HIDE)'!$AA$25 -> 17.75 | O16: ='Data (HIDE)'!$X$26+'Data (HIDE)'!$AA$26 -> 27.75 | P16: ='Data (HIDE)'!$X$27+'Data (HIDE)'!$AA$27 -> 17.75 | Q16: ='Data (HIDE)'!$X$28+'Data (HIDE)'!$AA$28 -> 17.75 | R16: ='Data (HIDE)'!$X$29+'Data (HIDE)'!$AA$29 -> 17.75 | S16: ='Data (HIDE)'!$X$30+'Data (HIDE)'!$AA$30 -> 17.75 | T16: ='Data (HIDE)'!$X$31+'Data (HIDE)'!$AA$31 -> 17.75
B17: Land Taxes | C17: ='Data (HIDE)'!$Y$16 -> 20 | D17: ='Data (HIDE)'!$Y$17 -> 20 | E17: ='Data (HIDE)'!$Y$18 -> 20 | F17: ='Data (HIDE)'!$Y$19 -> 20 | G17: ='Data (HIDE)'!$Y$20 -> 20 | H17: ='Data (HIDE)'!$Y$21 -> 20 | I17: ='Data (HIDE)'!$Y$22 -> 20 | J17: ='Data (HIDE)'!$Y$23 -> 20 | L17: Land Taxes | M17: ='Data (HIDE)'!$Y$24 -> 20 | N17: ='Data (HIDE)'!$Y$25 -> 20 | O17: ='Data (HIDE)'!$Y$26 -> 20 | P17: ='Data (HIDE)'!$Y$27 -> 20 | Q17: ='Data (HIDE)'!$Y$28 -> 20 | R17: ='Data (HIDE)'!$Y$29 -> 20 | S17: ='Data (HIDE)'!$Y$30 -> 20 | T17: ='Data (HIDE)'!$Y$31 -> 20
B18: Storage Costs | C18: ='Data (HIDE)'!$Z$16 -> 15.92774739 | D18: ='Data (HIDE)'!$Z$17 -> 17.15295872 | E18: ='Data (HIDE)'!$Z$18 -> 17.15295872 | F18: ='Data (HIDE)'!$Z$19 -> 15.92774739 | G18: ='Data (HIDE)'!$Z$20 -> 29.4050721 | H18: ='Data (HIDE)'!$Z$21 -> 19.6033814 | I18: ='Data (HIDE)'!$Z$22 -> 19.6033814 | J18: ='Data (HIDE)'!$Z$23 -> 34.30591745 | L18: Storage Costs | M18: ='Data (HIDE)'!$Z$24 -> 11.02690204 | N18: ='Data (HIDE)'!$Z$25 -> 9.801690699 | O18: ='Data (HIDE)'!$Z$26 -> 19.6033814 | P18: ='Data (HIDE)'!$Z$27 -> 6.126056687 | Q18: ='Data (HIDE)'!$Z$28 -> 13.47732471 | R18: ='Data (HIDE)'!$Z$29 -> 7.759671803 | S18: ='Data (HIDE)'!$Z$30 -> 6.942864245 | T18: ='Data (HIDE)'!$Z$31 -> 6.942864245
B19: if delete it will affect crop rotation and fuel calcs | L19: if delete it will affect crop rotation and fuel calcs
B20: Interest on Operating | C20: ='Data (HIDE)'!$AB$16 -> 12.65 | D20: ='Data (HIDE)'!$AB$17 -> 13.19 | E20: ='Data (HIDE)'!$AB$18 -> 12.85 | F20: ='Data (HIDE)'!$AB$19 -> 11.86 | G20: ='Data (HIDE)'!$AB$20 -> 11.24 | H20: ='Data (HIDE)'!$AB$21 -> 10.43 | I20: ='Data (HIDE)'!$AB$22 -> 13.76 | J20: ='Data (HIDE)'!$AB$23 -> 21.76 | L20: Interest on Operating | M20: ='Data (HIDE)'!$AB$24 -> 15.12 | N20: ='Data (HIDE)'!$AB$25 -> 11.09 | O20: ='Data (HIDE)'!$AB$26 -> 13.97 | P20: ='Data (HIDE)'!$AB$27 -> 10.34 | Q20: ='Data (HIDE)'!$AB$28 -> 11.35 | R20: ='Data (HIDE)'!$AB$29 -> 18.34 | S20: ='Data (HIDE)'!$AB$30 -> 18.67 | T20: ='Data (HIDE)'!$AB$31 -> 19.25
B21: Total Operating | C21: =SUM(C4:C20) -> 350.0823082 | D21: 364.8074464 | E21: 355.4045995 | F21: 328.0248082 | G21: 310.9970297 | H21: 288.5776769 | I21: 380.7648758 | J21: 602.0707526 | L21: Total Operating | M21: 418.2237919 | N21: 306.799985 | O21: 386.3879039 | P21: 286.0071563 | Q21: 314.1335239 | R21: 507.5023406 | S21: 516.5704422 | T21: 532.5654422
A23: B. Fixed Costs | K23: B. Fixed Costs
B24: Land Costs | C24: ='Fixed Cost Input'!$D$14 -> 103.6699998 | D24: ='Fixed Cost Input'!$D$14 -> 103.6699998 | E24: ='Fixed Cost Input'!$D$14 -> 103.6699998 | F24: ='Fixed Cost Input'!$D$14 -> 103.6699998 | G24: ='Fixed Cost Input'!$D$14 -> 103.6699998 | H24: ='Fixed Cost Input'!$D$14 -> 103.6699998 | I24: ='Fixed Cost Input'!$D$14 -> 103.6699998 | J24: ='Fixed Cost Input'!$D$14 -> 103.6699998 | L24: Land Costs | M24: ='Fixed Cost Input'!$D$14 -> 103.6699998 | N24: ='Fixed Cost Input'!$D$14 -> 103.6699998 | O24: ='Fixed Cost Input'!$D$14 -> 103.6699998 | P24: ='Fixed Cost Input'!$D$14 -> 103.6699998 | Q24: ='Fixed Cost Input'!$D$14 -> 103.6699998 | R24: ='Fixed Cost Input'!$D$14 -> 103.6699998 | S24: ='Fixed Cost Input'!$D$14 -> 103.6699998 | T24: ='Fixed Cost Input'!$D$14 -> 103.6699998
B25: Machinery Costs | C25: ='Data (HIDE)'!$AE$16 -> 86.5938371 | D25: ='Data (HIDE)'!$AE$17 -> 86.5938371 | E25: ='Data (HIDE)'!$AE$18 -> 86.5938371 | F25: ='Data (HIDE)'!$AE$19 -> 86.5938371 | G25: ='Data (HIDE)'!$AE$20 -> 86.5938371 | H25: ='Data (HIDE)'!$AE$21 -> 86.5938371 | I25: ='Data (HIDE)'!$AE$22 -> 86.5938371 | J25: ='Data (HIDE)'!$AE$23 -> 105.9109238 | L25: Machinery Costs | M25: ='Data (HIDE)'!$AE$24 -> 86.5938371 | N25: ='Data (HIDE)'!$AE25 -> 86.5938371 | O25: ='Data (HIDE)'!$AE$26 -> 105.9109238 | P25: ='Data (HIDE)'!$AE$27 -> 86.5938371 | Q25: ='Data (HIDE)'!$AE$28 -> 86.5938371 | R25: ='Data (HIDE)'!$AE$29 -> 105.9109238 | S25: ='Data (HIDE)'!$AE$30 -> 105.9109238 | T25: ='Data (HIDE)'!$AE$31 -> 105.9109238
B26: Total Fixed | C26: =SUM(C24:C25) -> 190.2638369 | D26: 190.2638369 | E26: 190.2638369 | F26: 190.2638369 | G26: 190.2638369 | H26: 190.2638369 | I26: 190.2638369 | J26: 209.5809236 | L26: Total Fixed | M26: 190.2638369 | N26: 190.2638369 | O26: 209.5809236 | P26: 190.2638369 | Q26: 190.2638369 | R26: 209.5809236 | S26: 209.5809236 | T26: 209.5809236
A28: C. Owners - Labour & Living | C28: ='Data (HIDE)'!$AH$16 -> 27 | D28: ='Data (HIDE)'!$AH$17 -> 27 | E28: ='Data (HIDE)'!$AH$18 -> 27 | F28: ='Data (HIDE)'!$AH$19 -> 27 | G28: ='Data (HIDE)'!$AH$20 -> 27 | H28: ='Data (HIDE)'!$AH$21 -> 27 | I28: ='Data (HIDE)'!$AH$22 -> 27 | J28: ='Data (HIDE)'!$AH$23 -> 27 | K28: C. Owners - Labour & Living | M28: ='Data (HIDE)'!$AH$24 -> 27 | N28: ='Data (HIDE)'!$AH28 -> 27 | O28: ='Data (HIDE)'!$AH$26 -> 27 | P28: ='Data (HIDE)'!$AH$27 -> 27 | Q28: ='Data (HIDE)'!$AH$28 -> 27 | R28: ='Data (HIDE)'!$AH$29 -> 27 | S28: ='Data (HIDE)'!$AH$30 -> 27 | T28: ='Data (HIDE)'!$AH$31 -> 27
A30: Total Costs | C30: =C26+C28+C21 -> 567.3461451 | D30: =D26+D28+D21 -> 582.0712832 | E30: 572.6684364 | F30: 545.2886451 | G30: 528.2608666 | H30: 505.8415138 | I30: 598.0287127 | J30: 838.6516762 | K30: Total Costs | M30: 635.4876288 | N30: 524.0638219 | O30: 622.9688276 | P30: 503.2709932 | Q30: 531.3973608 | R30: 744.0832642 | S30: 753.1513659 | T30: 769.1463659
A32: Profitability Analysis | K32: Profitability Analysis
A33: Estimated Farmgate | K33: Estimated Farmgate
B34: Target Price $ per unit | C34: ='Data (HIDE)'!$E$16 -> 8 | D34: ='Data (HIDE)'!$E$17 -> 7.5 | E34: ='Data (HIDE)'!$E$18 -> 7.5 | F34: ='Data (HIDE)'!$E$19 -> 7 | G34: ='Data (HIDE)'!$E$20 -> 4.1 | H34: ='Data (HIDE)'!$E$21 -> 4.5 | I34: ='Data (HIDE)'!$E$22 -> 5.5 | J34: ='Data (HIDE)'!$E$23 -> 5.75 | L34: Target Price $ per unit | M34: ='Data (HIDE)'!$E$24 -> 13.25 | N34: ='Data (HIDE)'!$E$25 -> 12 | O34: ='Data (HIDE)'!$E$26 -> 0.26 | P34: ='Data (HIDE)'!$E$27 -> 16 | Q34: ='Data (HIDE)'!$E$28 -> 8.75 | R34: ='Data (HIDE)'!$E$29 -> 0.4 | S34: ='Data (HIDE)'!$E$30 -> 0.41 | T34: ='Data (HIDE)'!$E$31 -> 0.4 | Z34: ='Data (HIDE)'!$E$16 -> 8 | AA34: ='Data (HIDE)'!$E$17 -> 7.5 | AB34: ='Data (HIDE)'!$E$18 -> 7.5 | AC34: ='Data (HIDE)'!$E$19 -> 7 | AD34: ='Data (HIDE)'!$E$20 -> 4.1 | AE34: ='Data (HIDE)'!$E$21 -> 4.5 | AF34: ='Data (HIDE)'!$E$22 -> 5.5 | AG34: ='Data (HIDE)'!$E$23 -> 5.75 | AI34: ='Data (HIDE)'!$E$24 -> 13.25 | AJ34: ='Data (HIDE)'!$E$25 -> 12 | AK34: ='Data (HIDE)'!$E$26 -> 0.26 | AL34: ='Data (HIDE)'!$E$27 -> 16 | AM34: ='Data (HIDE)'!$E$28 -> 8.75 | AN34: ='Data (HIDE)'!$E$29 -> 0.4 | AO34: ='Data (HIDE)'!$E$30 -> 0.41 | AP34: ='Data (HIDE)'!$E$31 -> 0.4
B35: Premium $ per unit | C35: 0 | D35: 0 | E35: 0 | F35: 0 | G35: 0 | H35: 0 | I35: 0 | J35: 0 | L35: Premium $ per unit | M35: 0 | N35: 0 | O35: 0 | P35: 0 | Q35: 0 | R35: 0 | S35: 0 | T35: 0 | Z35: 0 | AA35: 0 | AB35: 0 | AC35: 0 | AD35: 0 | AE35: 0 | AF35: 0 | AG35: 0 | AI35: 0 | AJ35: 0 | AK35: 0 | AL35: 0 | AM35: 0 | AN35: 0 | AO35: 0 | AP35: 0
B36: Target Yield per acre | C36: ='Data (HIDE)'!$C$16 -> 65 | D36: ='Data (HIDE)'!$C$17 -> 70 | E36: ='Data (HIDE)'!$C$18 -> 70 | F36: ='Data (HIDE)'!$C$19 -> 65 | G36: ='Data (HIDE)'!$C$20 -> 120 | H36: ='Data (HIDE)'!$C$21 -> 80 | I36: ='Data (HIDE)'!$C$22 -> 80 | J36: ='Data (HIDE)'!$C$23 -> 140 | L36: Target Yield per acre | M36: ='Data (HIDE)'!$C$24 -> 45 | N36: ='Data (HIDE)'!$C$25 -> 40 | O36: ='Data (HIDE)'!$C$26 -> 2000 | P36: ='Data (HIDE)'!$C$27 -> 25 | Q36: ='Data (HIDE)'!$C$28 -> 55 | R36: ='Data (HIDE)'!$C$29 -> 1900 | S36: ='Data (HIDE)'!$C$30 -> 1700 | T36: ='Data (HIDE)'!$C$31 -> 1700 | Z36: ='Data (HIDE)'!$C$16 -> 65 | AA36: ='Data (HIDE)'!$C$17 -> 70 | AB36: ='Data (HIDE)'!$C$18 -> 70 | AC36: ='Data (HIDE)'!$C$19 -> 65 | AD36: ='Data (HIDE)'!$C$20 -> 120 | AE36: ='Data (HIDE)'!$C$21 -> 80 | AF36: ='Data (HIDE)'!$C$22 -> 80 | AG36: ='Data (HIDE)'!$C$23 -> 140 | AI36: ='Data (HIDE)'!$C$24 -> 45 | AJ36: ='Data (HIDE)'!$C$25 -> 40 | AK36: ='Data (HIDE)'!$C$26 -> 2000 | AL36: ='Data (HIDE)'!$C$27 -> 25 | AM36: ='Data (HIDE)'!$C$28 -> 55 | AN36: ='Data (HIDE)'!$C$29 -> 1900 | AO36: ='Data (HIDE)'!$C$30 -> 1700 | AP36: ='Data (HIDE)'!$C$31 -> 1700
B37: Unit type (bu. or lb.) | C37: ='Data (HIDE)'!$D$16 -> bu | D37: ='Data (HIDE)'!$D$17 -> bu | E37: ='Data (HIDE)'!$D$18 -> bu | F37: ='Data (HIDE)'!$D$19 -> bu | G37: ='Data (HIDE)'!$D$20 -> bu | H37: ='Data (HIDE)'!$D$21 -> bu | I37: ='Data (HIDE)'!$D$22 -> bu | J37: ='Data (HIDE)'!$D$23 -> bu | L37: Unit type (bu. or lb.) | M37: ='Data (HIDE)'!$D$24 -> bu | N37: ='Data (HIDE)'!$D$25 -> bu | O37: ='Data (HIDE)'!$D$26 -> lb | P37: ='Data (HIDE)'!$D$27 -> bu | Q37: ='Data (HIDE)'!$D$28 -> bu | R37: ='Data (HIDE)'!$D$29 -> lb | S37: ='Data (HIDE)'!$D$30 -> lb | T37: ='Data (HIDE)'!$D$31 -> lb
B38: Gross Revenue / acre | C38: =ROUND(((C34+C35)*C36),2) -> 520 | D38: 525 | E38: 525 | F38: 455 | G38: 492 | H38: 360 | I38: 440 | J38: 805 | L38: Gross Revenue / acre | M38: 596.25 | N38: 480 | O38: 520 | P38: 400 | Q38: 481.25 | R38: 760 | S38: 697 | T38: 680
B39: Revenue Ranking | C39: =RANK(C38,C38:T38) -> 8 | D39: =RANK(D38,C38:T38) -> 6 | E39: =RANK(E38,C38:T38) -> 6 | F39: =RANK(F38,C38:T38) -> 13 | G39: =RANK(G38,C38:T38) -> 10 | H39: =RANK(H38,C38:T38) -> 16 | I39: =RANK(I38,C38:T38) -> 14 | J39: =RANK(J38,C38:T38) -> 1 | L39: Revenue Ranking | M39: =RANK(M38,C38:T38) -> 5 | N39: =RANK(N38,C38:T38) -> 12 | O39: =RANK(O38,C38:T38) -> 8 | P39: =RANK(P38,C38:T38) -> 15 | Q39: =RANK(Q38,C38:T38) -> 11 | R39: =RANK(R38,C38:T38) -> 2 | S39: =RANK(S38,C38:T38) -> 3 | T39: =RANK(T38,C38:T38) -> 4
B41: Operating Expense Ratio | C41: =SUM(C21/C38) -> 0.673235208 | D41: 0.6948713264 | E41: 0.6769611419 | F41: 0.7209336443 | G41: 0.6321077839 | H41: 0.8016046581 | I41: 0.8653747178 | J41: 0.7479139783 | L41: Operating Expense Ratio | M41: 0.7014235503 | N41: 0.6391666354 | O41: 0.7430536614 | P41: 0.7150178909 | Q41: 0.6527449847 | R41: 0.6677662376 | S41: 0.7411340634 | T41: 0.7831844739
B42: Land Expense Ratio | C42: =SUM(C24/C38) -> 0.1993653842 | D42: 0.1974666663 | E42: 0.1974666663 | F42: 0.2278461534 | G42: 0.2107113817 | H42: 0.2879722216 | I42: 0.2356136359 | J42: 0.1287826084 | L42: Land Expense Ratio | M42: 0.1738700206 | N42: 0.2159791662 | O42: 0.1993653842 | P42: 0.2591749995 | Q42: 0.2154181814 | R42: 0.1364078945 | S42: 0.1487374459 | T42: 0.152455882
B43: Machinery Expense Ratio | C43: =SUM(C25/C38) -> 0.1665266098 | D43: 0.1649406421 | E43: 0.1649406421 | F43: 0.1903161255 | G43: 0.176003734 | H43: 0.2405384364 | I43: 0.1968041752 | J43: 0.131566365 | L43: Machinery Expense Ratio | M43: 0.1452307541 | N43: 0.1804038273 | O43: 0.2036748535 | P43: 0.2164845928 | Q43: 0.1799352459 | R43: 0.1393564787 | S43: 0.151952545 | T43: 0.1557513586
A45: Marginal Returns | K45: Marginal Returns
B46: Over Operating Costs | C46: =SUM(C38-C21) -> 169.9176918 | D46: 160.1925536 | E46: 169.5954005 | F46: 126.9751918 | G46: 181.0029703 | H46: 71.42232308 | I46: 59.23512416 | J46: 202.9292474 | L46: Over Operating Costs | M46: 178.0262081 | N46: 173.200015 | O46: 133.6120961 | P46: 113.9928437 | Q46: 167.1164761 | R46: 252.4976594 | S46: 180.4295578 | T46: 147.4345578
B47: Over Operating & Fixed | C47: =SUM(C38-C26-C21) -> -20.34614506 | D47: =SUM(D38-D26-D21) -> -30.07128325 | E47: -20.66843637 | F47: -63.28864506 | G47: -9.260866585 | H47: -118.8415138 | I47: -131.0287127 | J47: -6.651676187 | L47: Over Operating & Fixed | M47: =SUM(M38-M26-M21) -> -12.23762876 | N47: -17.06382186 | O47: -75.96882755 | P47: -76.27099323 | Q47: -23.14736076 | R47: 42.91673579 | S47: -29.15136585 | T47: -62.14636585
B48: Over Total Costs (Net Profit) | C48: =SUM(C38-C30) -> -47.34614506 | D48: -57.07128325 | E48: -47.66843637 | F48: -90.28864506 | G48: -36.26086659 | H48: -145.8415138 | I48: -158.0287127 | J48: -33.65167619 | L48: Over Total Costs (Net Profit) | M48: -39.23762876 | N48: -44.06382186 | O48: -102.9688276 | P48: -103.2709932 | Q48: -50.14736076 | R48: 15.91673579 | S48: -56.15136585 | T48: -89.14636585
B49: Profitability Ranking | C49: =RANK(C48,C48:T48) -> 6 | D49: =RANK(D48,C48:T48) -> 10 | E49: =RANK(E48,C48:T48) -> 7 | F49: =RANK(F48,C48:T48) -> 12 | G49: =RANK(G48,C48:T48) -> 3 | H49: =RANK(H48,C48:T48) -> 15 | I49: =RANK(I48,C48:T48) -> 16 | J49: =RANK(J48,C48:T48) -> 2 | L49: Profitability Ranking | M49: =RANK(M48,C48:T48) -> 4 | N49: =RANK(N48,C48:T48) -> 5 | O49: =RANK(O48,C48:T48) -> 13 | P49: =RANK(P48,C48:T48) -> 14 | Q49: =RANK(Q48,C48:T48) -> 8 | R49: =RANK(R48,C48:T48) -> 1 | S49: =RANK(S48,C48:T48) -> 9 | T49: =RANK(T48,C48:T48) -> 11
A51: Return on Investment (ROI) | C51: =SUM((C38-C30)/C30) -> -0.08345195517 | D51: -0.09804861516 | E51: -0.08323915435 | F51: -0.1655795438 | G51: -0.06864197005 | H51: -0.2883146397 | I51: -0.2642493736 | J51: -0.0401259273 | K51: Return on Investment (ROI) | M51: -0.06174412685 | N51: -0.08408102224 | O51: -0.1652872873 | P51: -0.2051995736 | Q51: -0.09436885552 | R51: 0.02139106811 | S51: -0.0745552201 | T51: -0.115902993
A52: Return on Operating (ROO) | C52: =C46/C21 -> 0.4853649781 | D52: =D46/D21 -> 0.4391153614 | E52: 0.4771896615 | F52: 0.3870902098 | G52: 0.5820086786 | H52: 0.2474977408 | I52: 0.155568772 | J52: 0.3370521597 | K52: Return on Operating (ROO) | M52: =M46/M21 -> 0.42567212 | N52: 0.5645372344 | O52: 0.3457978232 | P52: 0.3985664034 | Q52: 0.5319918551 | R52: 0.4975300392 | S52: 0.3492835498 | T52: 0.2768383866
A53: Return on Asset (ROA) | C53: ='Data (HIDE)'!$AZ$16 -> 0.02085319959 | D53: ='Data (HIDE)'!$AZ$17 -> 0.01901653515 | E53: ='Data (HIDE)'!$AZ$18 -> 0.02079233249 | F53: ='Data (HIDE)'!$AZ$19 -> 0.01274319015 | G53: ='Data (HIDE)'!$AZ$20 -> 0.0229467366 | H53: ='Data (HIDE)'!$AZ$21 -> 0.00225161909 | I53: ='Data (HIDE)'!$AZ$22 -> -5.002376652e-05 | J53: ='Data (HIDE)'!$AZ$23 -> 0.02708767657 | K53: Return on Asset (ROA) | M53: ='Data (HIDE)'!$AZ$24 -> 0.022384553 | N53: ='Data (HIDE)'!$AZ$25 -> 0.02147309066 | O53: ='Data (HIDE)'!$AZ$26 -> 0.01399661871 | P53: ='Data (HIDE)'!$AZ$27 -> 0.01029137746 | Q53: ='Data (HIDE)'!$AZ$28 -> 0.02032416924 | R53: ='Data (HIDE)'!$AZ$29 -> 0.03644903861 | S53: ='Data (HIDE)'!$AZ$30 -> 0.02283844339 | T53: ='Data (HIDE)'!$AZ$31 -> 0.01660709306
A55: Breakeven Analysis | K55: Breakeven Analysis
A56: Breakeven Price Per Unit | K56: Breakeven Price Per Unit
B57: Over Operating Costs | C57: =SUM(Summary!C21/Summary!C36) -> 5.385881664 | D57: =SUM(Summary!D21/Summary!D36) -> 5.211534948 | E57: =SUM(Summary!E21/Summary!E36) -> 5.077208564 | F57: =SUM(Summary!F21/Summary!F36) -> 5.04653551 | G57: =SUM(Summary!G21/Summary!G36) -> 2.591641914 | H57: =SUM(Summary!H21/Summary!H36) -> 3.607220961 | I57: =SUM(Summary!I21/Summary!I36) -> 4.759560948 | J57: =SUM(Summary!J21/Summary!J36) -> 4.300505375 | L57: Over Operating Costs | M57: =SUM(Summary!M21/Summary!M36) -> 9.293862042 | N57: =SUM(Summary!N21/Summary!N36) -> 7.669999624 | O57: =SUM(Summary!O21/Summary!O36) -> 0.193193952 | P57: =SUM(Summary!P21/Summary!P36) -> 11.44028625 | Q57: =SUM(Summary!Q21/Summary!Q36) -> 5.711518616 | R57: =SUM(Summary!R21/Summary!R36) -> 0.267106495 | S57: =SUM(Summary!S21/Summary!S36) -> 0.303864966 | T57: =SUM(Summary!T21/Summary!T36) -> 0.3132737895
B58: Over Land Costs | C58: =SUM(Summary!C24/Summary!C36) -> 1.594923074 | D58: =SUM(Summary!D24/Summary!D36) -> 1.480999997 | E58: =SUM(Summary!E24/Summary!E36) -> 1.480999997 | F58: =SUM(Summary!F24/Summary!F36) -> 1.594923074 | G58: =SUM(Summary!G24/Summary!G36) -> 0.8639166649 | H58: =SUM(Summary!H24/Summary!H36) -> 1.295874997 | I58: =SUM(Summary!I24/Summary!I36) -> 1.295874997 | J58: =SUM(Summary!J24/Summary!J36) -> 0.7404999985 | L58: Over Land Costs | M58: =SUM(Summary!M24/Summary!M36) -> 2.303777773 | N58: =SUM(Summary!N24/Summary!N36) -> 2.591749995 | O58: =SUM(Summary!O24/Summary!O36) -> 0.05183499989 | P58: =SUM(Summary!P24/Summary!P36) -> 4.146799991 | Q58: =SUM(Summary!Q24/Summary!Q36) -> 1.884909087 | R58: =SUM(Summary!R24/Summary!R36) -> 0.05456315778 | S58: =SUM(Summary!S24/Summary!S36) -> 0.06098235281 | T58: =SUM(Summary!T24/Summary!T36) -> 0.06098235281
B59: Over Machinery Costs | C59: =SUM(Summary!C25/Summary!C36) -> 1.332212879 | D59: =SUM(Summary!D25/Summary!D36) -> 1.237054816 | E59: =SUM(Summary!E25/Summary!E36) -> 1.237054816 | F59: =SUM(Summary!F25/Summary!F36) -> 1.332212879 | G59: =SUM(Summary!G25/Summary!G36) -> 0.7216153092 | H59: =SUM(Summary!H25/Summary!H36) -> 1.082422964 | I59: =SUM(Summary!I25/Summary!I36) -> 1.082422964 | J59: =SUM(Summary!J25/Summary!J36) -> 0.7565065989 | L59: Over Machinery Costs | M59: =SUM(Summary!M25/Summary!M36) -> 1.924307491 | N59: =SUM(Summary!N25/Summary!N36) -> 2.164845928 | O59: =SUM(Summary!O25/Summary!O36) -> 0.05295546192 | P59: =SUM(Summary!P25/Summary!P36) -> 3.463753484 | Q59: =SUM(Summary!Q25/Summary!Q36) -> 1.574433402 | R59: =SUM(Summary!R25/Summary!R36) -> 0.0557425915 | S59: =SUM(Summary!S25/Summary!S36) -> 0.06230054344 | T59: =SUM(Summary!T25/Summary!T36) -> 0.06230054344
B60: Over Owners Labour & Lliving | C60: =SUM(Summary!C28/Summary!C36) -> 0.4153846154 | D60: =SUM(Summary!D28/Summary!D36) -> 0.3857142857 | E60: =SUM(Summary!E28/Summary!E36) -> 0.3857142857 | F60: =SUM(Summary!F28/Summary!F36) -> 0.4153846154 | G60: =SUM(Summary!G28/Summary!G36) -> 0.225 | H60: =SUM(Summary!H28/Summary!H36) -> 0.3375 | I60: =SUM(Summary!I28/Summary!I36) -> 0.3375 | J60: =SUM(Summary!J28/Summary!J36) -> 0.1928571429 | L60: Over Owners Labour & Lliving | M60: =SUM(Summary!M28/Summary!M36) -> 0.6 | N60: =SUM(Summary!N28/Summary!N36) -> 0.675 | O60: =SUM(Summary!O28/Summary!O36) -> 0.0135 | P60: =SUM(Summary!P28/Summary!P36) -> 1.08 | Q60: =SUM(Summary!Q28/Summary!Q36) -> 0.4909090909 | R60: =SUM(Summary!R28/Summary!R36) -> 0.01421052632 | S60: =SUM(Summary!S28/Summary!S36) -> 0.01588235294 | T60: =SUM(Summary!T28/Summary!T36) -> 0.01588235294
B61: Over Total Costs | C61: =SUM(C57:C60) -> 8.728402232 | D61: =SUM(D57:D60) -> 8.315304046 | E61: 8.180977662 | F61: 8.389056078 | G61: 4.402173888 | H61: 6.323018923 | I61: 7.475358909 | J61: 5.990369116 | L61: Over Total Costs | M61: 14.12194731 | N61: 13.10159555 | O61: 0.3114844138 | P61: 20.13083973 | Q61: 9.661770196 | R61: 0.3916227706 | S61: 0.4430302152 | T61: 0.4524390387
A63: Breakeven Storage Carrying Cost Per Unit | K63: Breakeven Storage Carrying Cost Per Unit
B64: ="Per month @ "&TEXT('Op. Cost Input'!$D$3,"0.00"&"%") -> Per month @ 7.50% | C64: =(C34*'Op. Cost Input'!$D$3)/12 -> 0.05 | D64: =(D34*'Op. Cost Input'!$D$3)/12 -> 0.046875 | E64: =(E34*'Op. Cost Input'!$D$3)/12 -> 0.046875 | F64: =(F34*'Op. Cost Input'!$D$3)/12 -> 0.04375 | G64: =(G34*'Op. Cost Input'!$D$3)/12 -> 0.025625 | H64: =(H34*'Op. Cost Input'!$D$3)/12 -> 0.028125 | I64: =(I34*'Op. Cost Input'!$D$3)/12 -> 0.034375 | J64: =(J34*'Op. Cost Input'!$D$3)/12 -> 0.0359375 | L64: ="Per month @ "&TEXT('Op. Cost Input'!$D$3,"0.00"&"%") -> Per month @ 7.50% | M64: =(M34*'Op. Cost Input'!$D$3)/12 -> 0.0828125 | N64: =(N34*'Op. Cost Input'!$D$3)/12 -> 0.075 | O64: =(O34*'Op. Cost Input'!$D$3)/12 -> 0.001625 | P64: =(P34*'Op. Cost Input'!$D$3)/12 -> 0.1 | Q64: =(Q34*'Op. Cost Input'!$D$3)/12 -> 0.0546875 | R64: =(R34*'Op. Cost Input'!$D$3)/12 -> 0.0025 | S64: =(S34*'Op. Cost Input'!$D$3)/12 -> 0.0025625 | T64: =(T34*'Op. Cost Input'!$D$3)/12 -> 0.0025
A66: Breakeven Yield (Bu or lb.) | K66: Breakeven Yield (Bu or lb.)
B67: Over Operating Costs | C67: =ROUND(Summary!C21/Summary!C34,1) -> 43.8 | D67: =ROUND(Summary!D21/Summary!D34,1) -> 48.6 | E67: =ROUND(Summary!E21/Summary!E34,1) -> 47.4 | F67: =ROUND(Summary!F21/Summary!F34,1) -> 46.9 | G67: =ROUND(Summary!G21/Summary!G34,1) -> 75.9 | H67: =ROUND(Summary!H21/Summary!H34,1) -> 64.1 | I67: =ROUND(Summary!I21/Summary!I34,1) -> 69.2 | J67: =ROUND(Summary!J21/Summary!J34,0) -> 105 | L67: Over Operating Costs | M67: =ROUND(Summary!M21/Summary!M34,1) -> 31.6 | N67: =ROUND(Summary!N21/Summary!N34,0) -> 26 | O67: =ROUND(Summary!O21/Summary!O34,0) -> 1486 | P67: =ROUND(Summary!P21/Summary!P34,1) -> 17.9 | Q67: =ROUND(Summary!Q21/Summary!Q34,1) -> 35.9 | R67: =ROUND(Summary!R21/Summary!R34,0) -> 1269 | S67: =ROUND(Summary!S21/Summary!S34,0) -> 1260 | T67: =ROUND(Summary!T21/Summary!T34,1) -> 1331.4
B68: Over Land Costs | C68: =ROUND(Summary!C24/Summary!C34,1) -> 13 | D68: =ROUND(Summary!D24/Summary!D34,1) -> 13.8 | E68: =ROUND(Summary!E24/Summary!E34,1) -> 13.8 | F68: =ROUND(Summary!F24/Summary!F34,1) -> 14.8 | G68: =ROUND(Summary!G24/Summary!G34,1) -> 25.3 | H68: =ROUND(Summary!H24/Summary!H34,1) -> 23 | I68: =ROUND(Summary!I24/Summary!I34,1) -> 18.8 | J68: =ROUND(Summary!J24/Summary!J34,1) -> 18 | L68: Over Land Costs | M68: =ROUND(Summary!M24/Summary!M34,1) -> 7.8 | N68: =ROUND(Summary!N24/Summary!N34,1) -> 8.6 | O68: =ROUND(Summary!O24/Summary!O34,1) -> 398.7 | P68: =ROUND(Summary!P24/Summary!P34,1) -> 6.5 | Q68: =ROUND(Summary!Q24/Summary!Q34,1) -> 11.8 | R68: =ROUND(Summary!R24/Summary!R34,1) -> 259.2 | S68: =ROUND(Summary!S24/Summary!S34,1) -> 252.9 | T68: =ROUND(Summary!T24/Summary!T34,1) -> 259.2
B69: Over Machinery Costs | C69: =ROUND(Summary!C25/Summary!C34,1) -> 10.8 | D69: =ROUND(Summary!D25/Summary!D34,1) -> 11.5 | E69: =ROUND(Summary!E25/Summary!E34,1) -> 11.5 | F69: =ROUND(Summary!F25/Summary!F34,1) -> 12.4 | G69: =ROUND(Summary!G25/Summary!G34,1) -> 21.1 | H69: =ROUND(Summary!H25/Summary!H34,1) -> 19.2 | I69: =ROUND(Summary!I25/Summary!I34,1) -> 15.7 | J69: =ROUND(Summary!J25/Summary!J34,1) -> 18.4 | L69: Over Machinery Costs | M69: =ROUND(Summary!M25/Summary!M34,1) -> 6.5 | N69: =ROUND(Summary!N25/Summary!N34,1) -> 7.2 | O69: =ROUND(Summary!O25/Summary!O34,1) -> 407.3 | P69: =ROUND(Summary!P25/Summary!P34,1) -> 5.4 | Q69: =ROUND(Summary!Q25/Summary!Q34,1) -> 9.9 | R69: =ROUND(Summary!R25/Summary!R34,1) -> 264.8 | S69: =ROUND(Summary!S25/Summary!S34,1) -> 258.3 | T69: =ROUND(Summary!T25/Summary!T34,1) -> 264.8
B70: Over Owners Labour & Lliving | C70: =ROUND(Summary!C28/Summary!C34,1) -> 3.4 | D70: =ROUND(Summary!D28/Summary!D34,1) -> 3.6 | E70: =ROUND(Summary!E28/Summary!E34,1) -> 3.6 | F70: =ROUND(Summary!F28/Summary!F34,1) -> 3.9 | G70: =ROUND(Summary!G28/Summary!G34,1) -> 6.6 | H70: =ROUND(Summary!H28/Summary!H34,1) -> 6 | I70: =ROUND(Summary!I28/Summary!I34,1) -> 4.9 | J70: =ROUND(Summary!J28/Summary!J34,1) -> 4.7 | L70: Over Owners Labour & Lliving | M70: =ROUND(Summary!M28/Summary!M34,1) -> 2 | N70: =ROUND(Summary!N28/Summary!N34,1) -> 2.3 | O70: =ROUND(Summary!O28/Summary!O34,1) -> 103.8 | P70: =ROUND(Summary!P28/Summary!P34,1) -> 1.7 | Q70: =ROUND(Summary!Q28/Summary!Q34,1) -> 3.1 | R70: =ROUND(Summary!R28/Summary!R34,1) -> 67.5 | S70: =ROUND(Summary!S28/Summary!S34,1) -> 65.9 | T70: =ROUND(Summary!T28/Summary!T34,1) -> 67.5
B71: Over Total Costs | C71: =SUM(C67:C70) -> 71 | D71: =SUM(D67:D70) -> 77.5 | E71: 76.3 | F71: 78 | G71: 128.9 | H71: 112.3 | I71: 108.6 | J71: 146.1 | L71: Over Total Costs | M71: 47.9 | N71: 44.1 | O71: 2395.8 | P71: 31.5 | Q71: 60.7 | R71: 1860.5 | S71: 1837.1 | T71: 1922.9
A73: Breakeven Yield Risk Ratio | C73: =SUM(Summary!C36/C71) -> 0.9154929577 | D73: =SUM(Summary!D36/D71) -> 0.9032258065 | E73: =SUM(Summary!E36/E71) -> 0.9174311927 | F73: =SUM(Summary!F36/F71) -> 0.8333333333 | G73: =SUM(Summary!G36/G71) -> 0.9309542281 | H73: =SUM(Summary!H36/H71) -> 0.7123775601 | I73: =SUM(Summary!I36/I71) -> 0.7366482505 | J73: =SUM(Summary!J36/J71) -> 0.9582477755 | K73: Breakeven Yield Risk Ratio | M73: =SUM(Summary!M36/M71) -> 0.9394572025 | N73: =SUM(Summary!N36/N71) -> 0.9070294785 | O73: =SUM(Summary!O36/O71) -> 0.8347942232 | P73: =SUM(Summary!P36/P71) -> 0.7936507937 | Q73: =SUM(Summary!Q36/Q71) -> 0.9060955519 | R73: =SUM(Summary!R36/R71) -> 1.021230852 | S73: =SUM(Summary!S36/S71) -> 0.9253715094 | T73: =SUM(Summary!T36/T71) -> 0.8840813355
B74: (Target Yield per Acre / BE Yield) | L74: (Target Yield per Acre / BE Yield)
B76: Note: This budget is only a guide and is not intended as an in depth study of the cost of production of this industry. Interpretation and utilization of this information is the responsibility of the user. | L76: Note: This budget is only a guide and is not intended as an in depth study of the cost of production of this industry. Interpretation and utilization of this information is the responsibility of the user.

Sheet S.O.S.
A1: ="Crop Production Standardized Operating Statement "&Introduction!I11&" (Dollars Per Acre)" -> Crop Production Standardized Operating Statement 2025 (Dollars Per Acre) | M1: ="Crop Production Standardized Operating Statement "&Introduction!I11&" (Dollars Per Acre)" -> Crop Production Standardized Operating Statement 2025 (Dollars Per Acre) | AB1: HIDE
C2: ="Estimated Manitoba "&Introduction!I11&" Benchmark" -> Estimated Manitoba 2025 Benchmark | E2: ='Data (HIDE)'!$B$16 -> Wheat - Hard Red Spring | F2: ='Data (HIDE)'!$B$17 -> Wheat - Northern Hard Red | G2: ='Data (HIDE)'!$B$18 -> Wheat - Prairie Spring | H2: ='Data (HIDE)'!$B$19 -> Wheat - Winter | I2: ='Data (HIDE)'!$B$20 -> Oats | J2: ='Data (HIDE)'!$B$21 -> Barley | K2: ='Data (HIDE)'!$B$22 -> Hybrid Fall Rye | L2: ='Data (HIDE)'!$B$23 -> Corn | O2: ="Estimated Manitoba "&Introduction!U11&" Benchmark" -> Estimated Manitoba Benchmark | Q2: ='Data (HIDE)'!$B$24 -> Canola | R2: ='Data (HIDE)'!$B$25 -> Soybeans | S2: ='Data (HIDE)'!$B$26 -> Sunflower - Oilseed | T2: ='Data (HIDE)'!$B$27 -> Flaxseed | U2: ='Data (HIDE)'!$B$28 -> Peas | V2: ='Data (HIDE)'!$B$29 -> Beans - Pinto | W2: ='Data (HIDE)'!$B$30 -> Beans - White | X2: ='Data (HIDE)'!$B$31 -> Beans - Black | AB2: Estimated Manitoba Benchmark | AF2: ="Estimated Manitoba 2024 Benchmark" -> Estimated Manitoba 2024 Benchmark | AW2: 2021
A3: = | B3: Revenue | C3: 550 | D3: =SUM(C3/C3) -> 1 | E3: =Summary!C38 -> 520 | F3: =Summary!D38 -> 525 | G3: =Summary!E38 -> 525 | H3: =Summary!F38 -> 455 | I3: =Summary!G38 -> 492 | J3: =Summary!H38 -> 360 | K3: =Summary!I38 -> 440 | L3: =Summary!J38 -> 805 | M3: = | N3: Revenue | O3: =C3 -> 550 | P3: =D3 -> 1 | Q3: =Summary!M38 -> 596.25 | R3: =Summary!N38 -> 480 | S3: =Summary!O38 -> 520 | T3: =Summary!P38 -> 400 | U3: =Summary!Q38 -> 481.25 | V3: =Summary!R38 -> 760 | W3: =Summary!S38 -> 697 | X3: =Summary!T38 -> 680 | AB3: =SUM((E3*('Data (HIDE)'!$H$16/SUM('Data (HIDE)'!$H$16+'Data (HIDE)'!$H$24+'Data (HIDE)'!$H$25)))+(Q3*('Data (HIDE)'!$H$24/SUM('Data (HIDE)'!$H$16+'Data (HIDE)'!$H$24+'Data (HIDE)'!$H$25)))+(R3*('Data (HIDE)'!$H$25/SUM('Data (HIDE)'!$H$16+'Data (HIDE)'!$H$24+'Data (HIDE)'!$H$25)))) -> 548.0193777 | AC3: =SUM(AB3/AB3) -> 1 | AF3: 645 | AG3: 1 | AW3: 451.484787 | AX3: =SUM(AW3/AW3) -> 1
A5: =" -" -> - | B5: Cost of Goods Sold (CoGS) | M5: =" -" -> - | N5: Cost of Goods Sold (CoGS) | AB5: ***copy nnum to left | AW5: ***need to hard type the benchmark, from right ***
B6: Seed & Treatment | C6: 65 | D6: =SUM(C6/$C$3) -> 0.1181818182 | E6: ='Data (HIDE)'!$L$16 -> 34 | F6: ='Data (HIDE)'!$L$17 -> 34 | G6: ='Data (HIDE)'!$L$18 -> 34 | H6: ='Data (HIDE)'!$L$19 -> 32 | I6: ='Data (HIDE)'!$L$20 -> 25 | J6: ='Data (HIDE)'!$L$21 -> 20 | K6: ='Data (HIDE)'!$L$22 -> 78.4 | L6: ='Data (HIDE)'!$L$23 -> 100 | N6: Seed & Treatment | O6: =C6 -> 65 | P6: =D6 -> 0.1181818182 | Q6: ='Data (HIDE)'!$L$24 -> 82.5 | R6: ='Data (HIDE)'!$L$25 -> 90 | S6: ='Data (HIDE)'!$L$26 -> 50 | T6: ='Data (HIDE)'!$L$27 -> 56 | U6: ='Data (HIDE)'!$L$28 -> 85 | V6: ='Data (HIDE)'!$L$29 -> 105 | W6: ='Data (HIDE)'!$L$30 -> 110 | X6: ='Data (HIDE)'!$L$31 -> 115 | AB6: =SUM((E6*('Data (HIDE)'!$H$16/SUM('Data (HIDE)'!$H$16+'Data (HIDE)'!$H$24+'Data (HIDE)'!$H$25)))+(Q6*('Data (HIDE)'!$H$24/SUM('Data (HIDE)'!$H$16+'Data (HIDE)'!$H$24+'Data (HIDE)'!$H$25)))+(R6*('Data (HIDE)'!$H$25/SUM('Data (HIDE)'!$H$16+'Data (HIDE)'!$H$24+'Data (HIDE)'!$H$25)))) -> 65.65930955 | AC6: =SUM(AB6/$AB$3) -> 0.1198120217 | AF6: 65 | AG6: 0.1007751938 | AW6: 57.60012173 | AX6: =SUM(AW6/$AB$3) -> 0.1051059945
B7: Fertilizer | C7: 110 | D7: 0.2 | E7: ='Data (HIDE)'!$M$16 -> 113.0697759 | F7: ='Data (HIDE)'!$M$17 -> 122.9852963 | G7: ='Data (HIDE)'!$M$18 -> 116.3749494 | H7: ='Data (HIDE)'!$M$19 -> 113.0697759 | I7: ='Data (HIDE)'!$M$20 -> 87.78370097 | J7: ='Data (HIDE)'!$M$21 -> 84.7337911 | K7: ='Data (HIDE)'!$M$22 -> 136.20599 | L7: ='Data (HIDE)'!$M$23 -> 173.1764524 | N7: Fertilizer | O7: =C7 -> 110 | P7: =D7 -> 0.2 | Q7: ='Data (HIDE)'!$M$24 -> 128.3647311 | R7: ='Data (HIDE)'!$M$25 -> 44.01054206 | S7: ='Data (HIDE)'!$M$26 -> 104.3190181 | T7: ='Data (HIDE)'!$M$27 -> 58.56656702 | U7: ='Data (HIDE)'!$M$28 -> 29.83272737 | V7: ='Data (HIDE)'!$M$29 -> 71.78726078 | W7: ='Data (HIDE)'!$M$30 -> 78.39760766 | X7: ='Data (HIDE)'!$M$31 -> 78.39760766 | AB7: =SUM((E7*('Data (HIDE)'!$H$16/SUM('Data (HIDE)'!$H$16+'Data (HIDE)'!$H$24+'Data (HIDE)'!$H$25)))+(Q7*('Data (HIDE)'!$H$24/SUM('Data (HIDE)'!$H$16+'Data (HIDE)'!$H$24+'Data (HIDE)'!$H$25)))+(R7*('Data (HIDE)'!$H$25/SUM('Data (HIDE)'!$H$16+'Data (HIDE)'!$H$24+'Data (HIDE)'!$H$25)))) -> 108.3201792 | AC7: 0.1976575713 | AF7: 120 | AG7: 0.1860465116 | AW7: 69.56998408 | AX7: 0.1269480367
B8: Crop Protection | C8: 50 | D8: 0.09090909091 | E8: ='Data (HIDE)'!$N$16+'Data (HIDE)'!$O$16+'Data (HIDE)'!$P$16 -> 55.25 | F8: ='Data (HIDE)'!$N$17+'Data (HIDE)'!$O$17+'Data (HIDE)'!$P$17 -> 55.25 | G8: ='Data (HIDE)'!$N$18+'Data (HIDE)'!$O$18+'Data (HIDE)'!$P$18 -> 55.25 | H8: ='Data (HIDE)'!$N$19+'Data (HIDE)'!$O$19+'Data (HIDE)'!$P$19 -> 36 | I8: ='Data (HIDE)'!$N$20+'Data (HIDE)'!$O$20+'Data (HIDE)'!$P$20 -> 24.5 | J8: ='Data (HIDE)'!$N$21+'Data (HIDE)'!$O$21+'Data (HIDE)'!$P$21 -> 27.5 | K8: ='Data (HIDE)'!$N$22+'Data (HIDE)'!$O$22+'Data (HIDE)'!$P$22 -> 8.5 | L8: ='Data (HIDE)'!$N$23+'Data (HIDE)'!$O$23+'Data (HIDE)'!$P$23 -> 44 | N8: Crop Protection | O8: 50 | P8: 0.09090909091 | Q8: ='Data (HIDE)'!$N$24+'Data (HIDE)'!$O$24+'Data (HIDE)'!$P$24 -> 58.5 | R8: ='Data (HIDE)'!$N$25+'Data (HIDE)'!$O$25+'Data (HIDE)'!$P$25 -> 21.75 | S8: ='Data (HIDE)'!$N$26+'Data (HIDE)'!$O$26+'Data (HIDE)'!$P$26 -> 49 | T8: ='Data (HIDE)'!$N$27+'Data (HIDE)'!$O$27+'Data (HIDE)'!$P$27 -> 33.5 | U8: ='Data (HIDE)'!$N$28+'Data (HIDE)'!$O$28+'Data (HIDE)'!$P$28 -> 42.75 | V8: ='Data (HIDE)'!$N$29+'Data (HIDE)'!$O$29+'Data (HIDE)'!$P$29 -> 128.5 | W8: ='Data (HIDE)'!$N$30+'Data (HIDE)'!$O$30+'Data (HIDE)'!$P$30 -> 128.5 | X8: ='Data (HIDE)'!$N$31+'Data (HIDE)'!$O$31+'Data (HIDE)'!$P$31 -> 128.5 | AB8: =SUM((E8*('Data (HIDE)'!$H$16/SUM('Data (HIDE)'!$H$16+'Data (HIDE)'!$H$24+'Data (HIDE)'!$H$25)))+(Q8*('Data (HIDE)'!$H$24/SUM('Data (HIDE)'!$H$16+'Data (HIDE)'!$H$24+'Data (HIDE)'!$H$25)))+(R8*('Data (HIDE)'!$H$25/SUM('Data (HIDE)'!$H$16+'Data (HIDE)'!$H$24+'Data (HIDE)'!$H$25)))) -> 51.04226604 | AC8: 0.09313952775 | AF8: 55 | AG8: 0.08527131783 | AW8: 31.05370428 | AX8: 0.05666533985
B9: Crop Insurance | C9: 15 | D9: 0.02727272727 | E9: ='Data (HIDE)'!$V$16 -> 10.265 | F9: ='Data (HIDE)'!$V$17 -> 12.7725 | G9: ='Data (HIDE)'!$V$18 -> 10.32 | H9: ='Data (HIDE)'!$V$19 -> 10.2475 | I9: ='Data (HIDE)'!$V$20 -> 18.2425 | J9: ='Data (HIDE)'!$V$21 -> 14.35 | K9: ='Data (HIDE)'!$V$22 -> 14.865 | L9: ='Data (HIDE)'!$V$23 -> 40.095 | N9: Crop Insurance | O9: 15 | P9: 0.02727272727 | Q9: ='Data (HIDE)'!$V$24 -> 13.96 | R9: ='Data (HIDE)'!$V$25 -> 21.7725 | S9: ='Data (HIDE)'!$V$26 -> 16.845 | T9: ='Data (HIDE)'!$V$27 -> 13.99 | U9: ='Data (HIDE)'!$V$28 -> 15.3875 | V9: ='Data (HIDE)'!$V$29 -> 38.445 | W9: ='Data (HIDE)'!$V$30 -> 36.7475 | X9: ='Data (HIDE)'!$V$31 -> 47.1625 | AB9: =SUM((E9*('Data (HIDE)'!$H$16/SUM('Data (HIDE)'!$H$16+'Data (HIDE)'!$H$24+'Data (HIDE)'!$H$25)))+(Q9*('Data (HIDE)'!$H$24/SUM('Data (HIDE)'!$H$16+'Data (HIDE)'!$H$24+'Data (HIDE)'!$H$25)))+(R9*('Data (HIDE)'!$H$25/SUM('Data (HIDE)'!$H$16+'Data (HIDE)'!$H$24+'Data (HIDE)'!$H$25)))) -> 13.90725086 | AC9: 0.02537729764 | AF9: 15 | AG9: 0.02325581395 | AW9: 8.960931142 | AX9: 0.01635148593
B10: Hail Insurance | C10: 10 | D10: 0.01818181818 | E10: ='Data (HIDE)'!$W$16 -> 10.8 | F10: ='Data (HIDE)'!$W$17 -> 10.8 | G10: ='Data (HIDE)'!$W$18 -> 10.8 | H10: ='Data (HIDE)'!$W$19 -> 10.8 | I10: ='Data (HIDE)'!$W$20 -> 10.8 | J10: ='Data (HIDE)'!$W$21 -> 10.8 | K10: ='Data (HIDE)'!$W$22 -> 10.8 | L10: ='Data (HIDE)'!$W$23 -> 10.8 | N10: Hail Insurance | O10: 10 | P10: 0.01818181818 | Q10: ='Data (HIDE)'!$W$24 -> 10.8 | R10: ='Data (HIDE)'!$W$25 -> 14.04 | S10: ='Data (HIDE)'!$W$26 -> 10.8 | T10: ='Data (HIDE)'!$W$27 -> 10.8 | U10: ='Data (HIDE)'!$W$28 -> 21.6 | V10: ='Data (HIDE)'!$W$29 -> 18.9 | W10: ='Data (HIDE)'!$W$30 -> 18.9 | X10: ='Data (HIDE)'!$W$31 -> 18.9 | AB10: =SUM((E10*('Data (HIDE)'!$H$16/SUM('Data (HIDE)'!$H$16+'Data (HIDE)'!$H$24+'Data (HIDE)'!$H$25)))+(Q10*('Data (HIDE)'!$H$24/SUM('Data (HIDE)'!$H$16+'Data (HIDE)'!$H$24+'Data (HIDE)'!$H$25)))+(R10*('Data (HIDE)'!$H$25/SUM('Data (HIDE)'!$H$16+'Data (HIDE)'!$H$24+'Data (HIDE)'!$H$25)))) -> 11.35047784 | AC10: 0.02071181842 | AF10: 12 | AG10: 0.01860465116 | AW10: 6.708812669 | AX10: 0.012241926
C11: =SUM(C6:C10) -> 250 | D11: 0.4545454545 | E11: =SUM(E6:E10) -> 223.3847759 | F11: =SUM(F6:F10) -> 235.8077963 | G11: 226.7449494 | H11: 202.1172759 | I11: 166.326201 | J11: 157.3837911 | K11: 248.77099 | L11: 368.0714524 | O11: =C11 -> 250 | P11: =D11 -> 0.4545454545 | Q11: 294.1247311 | R11: 191.5730421 | S11: 230.9640181 | T11: 172.856567 | U11: 194.5702274 | V11: 362.6322608 | W11: 372.5451077 | X11: 387.9601077 | AB11: =SUM(AB6:AB10) -> 250.2794835 | AC11: 0.4566982368 | AF11: 267 | AG11: 0.4139534884 | AW11: 173.8935539 | AX11: 0.317312783
A13: = | B13: Gross Margin (GM) | C13: =SUM(C3-C11) -> 300 | D13: =SUM(C13/$C$3) -> 0.5454545455 | E13: =SUM(E3-E11) -> 296.6152241 | F13: =SUM(F3-F11) -> 289.1922037 | G13: 298.2550506 | H13: 252.8827241 | I13: 325.673799 | J13: 202.6162089 | K13: 191.22901 | L13: 436.9285476 | M13: = | N13: Gross Margin (GM) | O13: =C13 -> 300 | P13: =D13 -> 0.5454545455 | Q13: 302.1252689 | R13: 288.4269579 | S13: 289.0359819 | T13: 227.143433 | U13: 286.6797726 | V13: 397.3677392 | W13: 324.4548923 | X13: 292.0398923 | AB13: =SUM(AB3-AB11) -> 297.7398942 | AC13: =SUM(AB13/$AB$3) -> 0.5433017632 | AF13: 378 | AG13: 0.5860465116 | AW13: 277.5912331 | AX13: =SUM(AW13/$AB$3) -> 0.5065354336
A15: =" -" -> - | B15: Direct Operating Expenses (DOE) | M15: =" -" -> - | N15: Direct Operating Expenses (DOE)
B16: Labour - Hired | C16: 5 | D16: =SUM(C16/$C$3) -> 0.009090909091 | E16: ='Data (HIDE)'!$U$16 -> 5.4 | F16: ='Data (HIDE)'!$U$17 -> 5.4 | G16: ='Data (HIDE)'!$U$18 -> 5.4 | H16: ='Data (HIDE)'!$U$19 -> 5.4 | I16: ='Data (HIDE)'!$U$20 -> 5.4 | J16: ='Data (HIDE)'!$U$21 -> 5.4 | K16: ='Data (HIDE)'!$U$22 -> 5.4 | L16: ='Data (HIDE)'!$U$23 -> 5.4 | N16: Labour - Hired | O16: =C16 -> 5 | P16: =D16 -> 0.009090909091 | Q16: ='Data (HIDE)'!$U$24 -> 5.4 | R16: ='Data (HIDE)'!$U$25 -> 5.4 | S16: ='Data (HIDE)'!$U$26 -> 5.4 | T16: ='Data (HIDE)'!$U$27 -> 5.4 | U16: ='Data (HIDE)'!$U$28 -> 5.4 | V16: ='Data (HIDE)'!$U$29 -> 5.4 | W16: ='Data (HIDE)'!$U$30 -> 5.4 | X16: ='Data (HIDE)'!$U$31 -> 5.4 | AB16: =SUM((E16*('Data (HIDE)'!$H$16/SUM('Data (HIDE)'!$H$16+'Data (HIDE)'!$H$24+'Data (HIDE)'!$H$25)))+(Q16*('Data (HIDE)'!$H$24/SUM('Data (HIDE)'!$H$16+'Data (HIDE)'!$H$24+'Data (HIDE)'!$H$25)))+(R16*('Data (HIDE)'!$H$25/SUM('Data (HIDE)'!$H$16+'Data (HIDE)'!$H$24+'Data (HIDE)'!$H$25)))) -> 5.4 | AC16: =SUM(AB16/$AB$3) -> 0.009853666165 | AF16: 5 | AG16: 0.007751937984 | AW16: 5 | AX16: =SUM(AW16/$AB$3) -> 0.009123764967
B17: Owners - Labour & Living | C17: 25 | D17: 0.04545454545 | E17: ='Data (HIDE)'!$AH$16 -> 27 | F17: ='Data (HIDE)'!$AH$17 -> 27 | G17: ='Data (HIDE)'!$AH$18 -> 27 | H17: ='Data (HIDE)'!$AH$19 -> 27 | I17: ='Data (HIDE)'!$AH$20 -> 27 | J17: ='Data (HIDE)'!$AH$21 -> 27 | K17: ='Data (HIDE)'!$AH$22 -> 27 | L17: ='Data (HIDE)'!$AH$23 -> 27 | N17: Owners - Labour & Living | O17: 25 | P17: 0.04545454545 | Q17: ='Data (HIDE)'!$AH$24 -> 27 | R17: ='Data (HIDE)'!$AH28 -> 27 | S17: ='Data (HIDE)'!$AH$26 -> 27 | T17: ='Data (HIDE)'!$AH$27 -> 27 | U17: ='Data (HIDE)'!$AH$28 -> 27 | V17: ='Data (HIDE)'!$AH$29 -> 27 | W17: ='Data (HIDE)'!$AH$30 -> 27 | X17: ='Data (HIDE)'!$AH$31 -> 27 | AB17: =SUM((E17*('Data (HIDE)'!$H$16/SUM('Data (HIDE)'!$H$16+'Data (HIDE)'!$H$24+'Data (HIDE)'!$H$25)))+(Q17*('Data (HIDE)'!$H$24/SUM('Data (HIDE)'!$H$16+'Data (HIDE)'!$H$24+'Data (HIDE)'!$H$25)))+(R17*('Data (HIDE)'!$H$25/SUM('Data (HIDE)'!$H$16+'Data (HIDE)'!$H$24+'Data (HIDE)'!$H$25)))) -> 27 | AC17: 0.04926833082 | AF17: 25 | AG17: 0.03875968992 | AW17: 25 | AX17: 0.04561882484
B18: Fuel | C18: 29 | D18: 0.05272727273 | E18: ='Data (HIDE)'!$Q$16 -> 29.96978484 | F18: ='Data (HIDE)'!$Q$17 -> 30.50669137 | G18: ='Data (HIDE)'!$Q$18 -> 30.50669137 | H18: ='Data (HIDE)'!$Q$19 -> 29.96978484 | I18: ='Data (HIDE)'!$Q$20 -> 35.87575663 | J18: ='Data (HIDE)'!$Q$21 -> 33.01050442 | K18: ='Data (HIDE)'!$Q$22 -> 30.48050442 | L18: ='Data (HIDE)'!$Q$23 -> 39.78338274 | N18: Fuel | O18: 29 | P18: 0.05272727273 | Q18: ='Data (HIDE)'!$Q$24 -> 29.80215874 | R18: ='Data (HIDE)'!$Q$25 -> 26.18525221 | S18: ='Data (HIDE)'!$Q$26 -> 30.70050442 | T18: ='Data (HIDE)'!$Q$27 -> 28.53453263 | U18: ='Data (HIDE)'!$Q$28 -> 26.58597179 | V18: ='Data (HIDE)'!$Q$29 -> 25.620408 | W18: ='Data (HIDE)'!$Q$30 -> 25.26247032 | X18: ='Data (HIDE)'!$Q$31 -> 25.26247032 | AB18: =SUM((E18*('Data (HIDE)'!$H$16/SUM('Data (HIDE)'!$H$16+'Data (HIDE)'!$H$24+'Data (HIDE)'!$H$25)))+(Q18*('Data (HIDE)'!$H$24/SUM('Data (HIDE)'!$H$16+'Data (HIDE)'!$H$24+'Data (HIDE)'!$H$25)))+(R18*('Data (HIDE)'!$H$25/SUM('Data (HIDE)'!$H$16+'Data (HIDE)'!$H$24+'Data (HIDE)'!$H$25)))) -> 29.25025328 | AC18: 0.05337448724 | AF18: 38 | AG18: 0.05891472868 | AW18: 24.63724152 | AX18: 0.04495688022
B19: Drying Costs | C19: 0 | D19: 0 | E19: ='Data (HIDE)'!$AA$16 -> 0 | F19: ='Data (HIDE)'!$AA$17 -> 0 | G19: ='Data (HIDE)'!$AA$18 -> 0 | H19: ='Data (HIDE)'!$AA$19 -> 0 | I19: ='Data (HIDE)'!$AA$20 -> 0 | J19: ='Data (HIDE)'!$AA$21 -> 0 | K19: ='Data (HIDE)'!$AA$22 -> 0 | L19: ='Data (HIDE)'!$AA$23 -> 70 | N19: Drying Costs | O19: 0 | P19: 0 | Q19: ='Data (HIDE)'!$AA$24 -> 0 | R19: ='Data (HIDE)'!$AA$25 -> 0 | S19: ='Data (HIDE)'!$AA$26 -> 10 | T19: ='Data (HIDE)'!$AA$27 -> 0 | U19: ='Data (HIDE)'!$AA$28 -> 0 | V19: ='Data (HIDE)'!$AA$29 -> 0 | W19: ='Data (HIDE)'!$AA$30 -> 0 | X19: ='Data (HIDE)'!$AA$31 -> 0 | AB19: =SUM((E19*('Data (HIDE)'!$H$16/SUM('Data (HIDE)'!$H$16+'Data (HIDE)'!$H$24+'Data (HIDE)'!$H$25)))+(Q19*('Data (HIDE)'!$H$24/SUM('Data (HIDE)'!$H$16+'Data (HIDE)'!$H$24+'Data (HIDE)'!$H$25)))+(R19*('Data (HIDE)'!$H$25/SUM('Data (HIDE)'!$H$16+'Data (HIDE)'!$H$24+'Data (HIDE)'!$H$25)))) -> 0 | AC19: 0 | AF19: 0 | AG19: 0 | AW19: 0 | AX19: 0
B20: Storage Costs | C20: 15 | D20: 0.02727272727 | E20: ='Data (HIDE)'!$Z$16 -> 15.92774739 | F20: ='Data (HIDE)'!$Z$17 -> 17.15295872 | G20: ='Data (HIDE)'!$Z$18 -> 17.15295872 | H20: ='Data (HIDE)'!$Z$19 -> 15.92774739 | I20: ='Data (HIDE)'!$Z$20 -> 29.4050721 | J20: ='Data (HIDE)'!$Z$21 -> 19.6033814 | K20: ='Data (HIDE)'!$Z$22 -> 19.6033814 | L20: ='Data (HIDE)'!$Z$23 -> 34.30591745 | N20: Storage Costs | O20: 15 | P20: 0.02727272727 | Q20: ='Data (HIDE)'!$Z$24 -> 11.02690204 | R20: ='Data (HIDE)'!$Z$25 -> 9.801690699 | S20: ='Data (HIDE)'!$Z$26 -> 19.6033814 | T20: ='Data (HIDE)'!$Z$27 -> 6.126056687 | U20: ='Data (HIDE)'!$Z$28 -> 13.47732471 | V20: ='Data (HIDE)'!$Z$29 -> 7.759671803 | W20: ='Data (HIDE)'!$Z$30 -> 6.942864245 | X20: ='Data (HIDE)'!$Z$31 -> 6.942864245 | AB20: =SUM((E20*('Data (HIDE)'!$H$16/SUM('Data (HIDE)'!$H$16+'Data (HIDE)'!$H$24+'Data (HIDE)'!$H$25)))+(Q20*('Data (HIDE)'!$H$24/SUM('Data (HIDE)'!$H$16+'Data (HIDE)'!$H$24+'Data (HIDE)'!$H$25)))+(R20*('Data (HIDE)'!$H$25/SUM('Data (HIDE)'!$H$16+'Data (HIDE)'!$H$24+'Data (HIDE)'!$H$25)))) -> 12.64922335 | AC20: 0.02308170817 | AF20: 15 | AG20: 0.02325581395 | AW20: 6.102064195 | AX20: 0.01113475991
B21: Machinery Operating | C21: 25 | D21: 0.04545454545 | E21: ='Data (HIDE)'!$R$16 -> 25 | F21: ='Data (HIDE)'!$R$17 -> 25 | G21: ='Data (HIDE)'!$R$18 -> 25 | H21: ='Data (HIDE)'!$R$19 -> 25 | I21: ='Data (HIDE)'!$R$20 -> 25 | J21: ='Data (HIDE)'!$R$21 -> 25 | K21: ='Data (HIDE)'!$R$22 -> 25 | L21: ='Data (HIDE)'!$R$23 -> 25 | N21: Machinery Operating | O21: 25 | P21: 0.04545454545 | Q21: ='Data (HIDE)'!$R$24 -> 25 | R21: ='Data (HIDE)'!$R$25 -> 25 | S21: ='Data (HIDE)'!$R$26 -> 25 | T21: ='Data (HIDE)'!$R$27 -> 25 | U21: ='Data (HIDE)'!$R$28 -> 25 | V21: ='Data (HIDE)'!$R$29 -> 25 | W21: ='Data (HIDE)'!$R$30 -> 25 | X21: ='Data (HIDE)'!$R$31 -> 25 | AB21: =SUM((E21*('Data (HIDE)'!$H$16/SUM('Data (HIDE)'!$H$16+'Data (HIDE)'!$H$24+'Data (HIDE)'!$H$25)))+(Q21*('Data (HIDE)'!$H$24/SUM('Data (HIDE)'!$H$16+'Data (HIDE)'!$H$24+'Data (HIDE)'!$H$25)))+(R21*('Data (HIDE)'!$H$25/SUM('Data (HIDE)'!$H$16+'Data (HIDE)'!$H$24+'Data (HIDE)'!$H$25)))) -> 25 | AC21: 0.04561882484 | AF21: 25 | AG21: 0.03875968992 | AW21: 20 | AX21: 0.03649505987
B22: Machinery Custom | C22: 0 | D22: 0 | E22: ='Data (HIDE)'!$T$16 -> 0 | F22: ='Data (HIDE)'!$T$17 -> 0 | G22: ='Data (HIDE)'!$T$18 -> 0 | H22: ='Data (HIDE)'!$T$19 -> 0 | I22: ='Data (HIDE)'!$T$20 -> 0 | J22: ='Data (HIDE)'!$T$21 -> 0 | K22: ='Data (HIDE)'!$T$22 -> 0 | L22: ='Data (HIDE)'!$T$23 -> 0 | N22: Machinery Custom | O22: =C22 -> 0 | P22: =D22 -> 0 | Q22: ='Data (HIDE)'!$T$24 -> 0 | R22: ='Data (HIDE)'!$T$25 -> 0 | S22: ='Data (HIDE)'!$T$26 -> 13 | T22: ='Data (HIDE)'!$T$27 -> 0 | U22: ='Data (HIDE)'!$T$28 -> 0 | V22: ='Data (HIDE)'!$T$29 -> 25 | W22: ='Data (HIDE)'!$T$30 -> 25 | X22: ='Data (HIDE)'!$T$31 -> 25 | AB22: =SUM((E22*('Data (HIDE)'!$H$16/SUM('Data (HIDE)'!$H$16+'Data (HIDE)'!$H$24+'Data (HIDE)'!$H$25)))+(Q22*('Data (HIDE)'!$H$24/SUM('Data (HIDE)'!$H$16+'Data (HIDE)'!$H$24+'Data (HIDE)'!$H$25)))+(R22*('Data (HIDE)'!$H$25/SUM('Data (HIDE)'!$H$16+'Data (HIDE)'!$H$24+'Data (HIDE)'!$H$25)))) -> 0 | AC22: 0 | AF22: 0 | AG22: 0 | AW22: 0 | AX22: 0
C23: =SUM(C16:C22) -> 99 | D23: =SUM(C23/$C$3) -> 0.18 | E23: =SUM(E16:E22) -> 103.2975322 | F23: =SUM(F16:F22) -> 105.0596501 | G23: 105.0596501 | H23: 103.2975322 | I23: 122.6808287 | J23: 110.0138858 | K23: 107.4838858 | L23: 201.4893002 | O23: =C23 -> 99 | P23: =D23 -> 0.18 | Q23: 98.22906077 | R23: 93.38694291 | S23: 130.7038858 | T23: 92.06058932 | U23: 97.4632965 | V23: 115.7800798 | W23: 114.6053346 | X23: 114.6053346 | AB23: =SUM(AB16:AB22) -> 99.29947663 | AC23: 0.1811970172 | AF23: 108 | AG23: 0.1674418605 | AW23: 80.73930572 | AX23: 0.1473292898
A25: = | B25: Contribution Margin (CM) | C25: =SUM(C13-C23) -> 201 | D25: =SUM(C25/$C$3) -> 0.3654545455 | E25: =SUM(E13-E23) -> 193.3176918 | F25: =SUM(F13-F23) -> 184.1325536 | G25: 193.1954005 | H25: 149.5851918 | I25: 202.9929703 | J25: 92.60232308 | K25: 83.74512416 | L25: 235.4392474 | M25: = | N25: Contribution Margin (CM) | O25: =C25 -> 201 | P25: =D25 -> 0.3654545455 | Q25: 203.8962081 | R25: 195.040015 | S25: 158.3320961 | T25: 135.0828437 | U25: 189.2164761 | V25: 281.5876594 | W25: 209.8495578 | X25: 177.4345578 | AB25: =SUM(AB13-AB23) -> 198.4404176 | AC25: =SUM(AB25/$AB$3) -> 0.362104746 | AF25: 270 | AG25: 0.4186046512 | AW25: 196.8519274 | AX25: =SUM(AW25/$AB$3) -> 0.3592061438
A27: =" -" -> - | B27: Operating Overheads (OH) | M27: =" -" -> - | N27: Operating Overheads (OH)
B28: Other Costs | C28: 20 | D28: =SUM(C28/$C$3) -> 0.03636363636 | E28: ='Data (HIDE)'!$X$16 -> 17.75 | F28: ='Data (HIDE)'!$X$17 -> 17.75 | G28: ='Data (HIDE)'!$X$18 -> 17.75 | H28: ='Data (HIDE)'!$X$19 -> 17.75 | I28: ='Data (HIDE)'!$X$20 -> 17.75 | J28: ='Data (HIDE)'!$X$21 -> 17.75 | K28: ='Data (HIDE)'!$X$22 -> 17.75 | L28: ='Data (HIDE)'!$X$23 -> 17.75 | N28: Other Costs | O28: =C28 -> 20 | P28: =D28 -> 0.03636363636 | Q28: ='Data (HIDE)'!$X$24 -> 17.75 | R28: ='Data (HIDE)'!$X$25 -> 17.75 | S28: ='Data (HIDE)'!$X$26 -> 17.75 | T28: ='Data (HIDE)'!$X$27 -> 17.75 | U28: ='Data (HIDE)'!$X$28 -> 17.75 | V28: ='Data (HIDE)'!$X$29 -> 17.75 | W28: ='Data (HIDE)'!$X$30 -> 17.75 | X28: ='Data (HIDE)'!$X$31 -> 17.75 | AB28: =SUM((E28*('Data (HIDE)'!$H$16/SUM('Data (HIDE)'!$H$16+'Data (HIDE)'!$H$24+'Data (HIDE)'!$H$25)))+(Q28*('Data (HIDE)'!$H$24/SUM('Data (HIDE)'!$H$16+'Data (HIDE)'!$H$24+'Data (HIDE)'!$H$25)))+(R28*('Data (HIDE)'!$H$25/SUM('Data (HIDE)'!$H$16+'Data (HIDE)'!$H$24+'Data (HIDE)'!$H$25)))) -> 17.75 | AC28: =SUM(AB28/$AB$3) -> 0.03238936563 | AF28: 20 | AG28: 0.03100775194 | AW28: 17.75 | AX28: =SUM(AW28/$AB$3) -> 0.03238936563
A30: = | B30: Earnings Before Interest Taxes Depreciation Amortization Rent (EBITDAR) or Operating Income | M30: = | N30: Earnings Before Interest Taxes Depreciation Amortization Rent (EBITDAR) or Operating Income
B31: EBITDAR | C31: =SUM(C25-C28) -> 181 | D31: =SUM(C31/$C$3) -> 0.3290909091 | E31: =SUM(E25-E28) -> 175.5676918 | F31: =SUM(F25-F28) -> 166.3825536 | G31: 175.4454005 | H31: 131.8351918 | I31: 185.2429703 | J31: 74.85232308 | K31: 65.99512416 | L31: 217.6892474 | N31: EBITDAR | O31: =C31 -> 181 | P31: =D31 -> 0.3290909091 | Q31: 186.1462081 | R31: 177.290015 | S31: 140.5820961 | T31: 117.3328437 | U31: 171.4664761 | V31: 263.8376594 | W31: 192.0995578 | X31: 159.6845578 | AB31: =SUM(AB25-AB28) -> 180.6904176 | AC31: =SUM(AB31/$AB$3) -> 0.3297153804 | AF31: 250 | AG31: 0.3875968992 | AW31: 179.1019274 | AX31: =SUM(AW31/$AB$3) -> 0.3268167782
A33: =" -" -> - | B33: Cost of Capital (CoC) or Depreciation/Amortization/Lease/Rent | M33: =" -" -> - | N33: Cost of Capital (CoC) or Depreciation/Amortization/Lease/Rent
B34: Machinery Depreciation Costs | C34: 33 | D34: =SUM(C34/$C$3) -> 0.06 | E34: ='Data (HIDE)'!$AL$16 -> 32.5 | F34: ='Data (HIDE)'!$AL$17 -> 32.5 | G34: ='Data (HIDE)'!$AL$18 -> 32.5 | H34: ='Data (HIDE)'!$AL$19 -> 32.5 | I34: ='Data (HIDE)'!$AL$20 -> 32.5 | J34: ='Data (HIDE)'!$AL$21 -> 32.5 | K34: ='Data (HIDE)'!$AL$22 -> 32.5 | L34: ='Data (HIDE)'!$AL$23 -> 39.75 | N34: Machinery Depreciation Costs | O34: =C34 -> 33 | P34: =D34 -> 0.06 | Q34: ='Data (HIDE)'!$AL$24 -> 32.5 | R34: ='Data (HIDE)'!$AL$25 -> 32.5 | S34: ='Data (HIDE)'!$AL$26 -> 39.75 | T34: ='Data (HIDE)'!$AL$27 -> 32.5 | U34: ='Data (HIDE)'!$AL$28 -> 32.5 | V34: ='Data (HIDE)'!$AL$29 -> 39.75 | W34: ='Data (HIDE)'!$AL$30 -> 39.75 | X34: ='Data (HIDE)'!$AL$31 -> 39.75 | AB34: =SUM((E34*('Data (HIDE)'!$H$16/SUM('Data (HIDE)'!$H$16+'Data (HIDE)'!$H$24+'Data (HIDE)'!$H$25)))+(Q34*('Data (HIDE)'!$H$24/SUM('Data (HIDE)'!$H$16+'Data (HIDE)'!$H$24+'Data (HIDE)'!$H$25)))+(R34*('Data (HIDE)'!$H$25/SUM('Data (HIDE)'!$H$16+'Data (HIDE)'!$H$24+'Data (HIDE)'!$H$25)))) -> 32.5 | AC34: =SUM(AB34/$AB$3) -> 0.05930447229 | AF34: 33 | AG34: 0.0511627907 | AW34: 25 | AX34: =SUM(AW34/$AB$3) -> 0.04561882484
B35: Machinery Amortization Costs | C35: 37 | D35: 0.06727272727 | E35: ='Data (HIDE)'!$AJ$16 -> 37.14285714 | F35: ='Data (HIDE)'!$AJ$17 -> 37.14285714 | G35: ='Data (HIDE)'!$AJ$18 -> 37.14285714 | H35: ='Data (HIDE)'!$AJ$19 -> 37.14285714 | I35: ='Data (HIDE)'!$AJ$20 -> 37.14285714 | J35: ='Data (HIDE)'!$AJ$21 -> 37.14285714 | K35: ='Data (HIDE)'!$AJ$22 -> 37.14285714 | L35: ='Data (HIDE)'!$AJ$23 -> 45.42857143 | N35: Machinery Amortization Costs | O35: 37 | P35: 0.06727272727 | Q35: ='Data (HIDE)'!$AJ$24 -> 37.14285714 | R35: ='Data (HIDE)'!$AJ$25 -> 37.14285714 | S35: ='Data (HIDE)'!$AJ$26 -> 45.42857143 | T35: ='Data (HIDE)'!$AJ$27 -> 37.14285714 | U35: ='Data (HIDE)'!$AJ$28 -> 37.14285714 | V35: ='Data (HIDE)'!$AJ$29 -> 45.42857143 | W35: ='Data (HIDE)'!$AJ$30 -> 45.42857143 | X35: ='Data (HIDE)'!$AJ$31 -> 45.42857143 | AB35: =SUM((E35*('Data (HIDE)'!$H$16/SUM('Data (HIDE)'!$H$16+'Data (HIDE)'!$H$24+'Data (HIDE)'!$H$25)))+(Q35*('Data (HIDE)'!$H$24/SUM('Data (HIDE)'!$H$16+'Data (HIDE)'!$H$24+'Data (HIDE)'!$H$25)))+(R35*('Data (HIDE)'!$H$25/SUM('Data (HIDE)'!$H$16+'Data (HIDE)'!$H$24+'Data (HIDE)'!$H$25)))) -> 37.14285714 | AC35: 0.06777653976 | AF35: 37 | AG35: 0.05736434109 | AW35: 32.14285714 | AX35: 0.05865277479
B36: Machinery Opportunity Costs | C36: 5 | D36: 0.009090909091 | E36: ='Data (HIDE)'!$AM$16 -> 5.85 | F36: ='Data (HIDE)'!$AM$17 -> 5.85 | G36: ='Data (HIDE)'!$AM$18 -> 5.85 | H36: ='Data (HIDE)'!$AM$19 -> 5.85 | I36: ='Data (HIDE)'!$AM$20 -> 5.85 | J36: ='Data (HIDE)'!$AM$21 -> 5.85 | K36: ='Data (HIDE)'!$AM$22 -> 5.85 | L36: ='Data (HIDE)'!$AM$23 -> 7.155 | N36: Machinery Opportunity Costs | O36: 5 | P36: 0.009090909091 | Q36: ='Data (HIDE)'!$AM$24 -> 5.85 | R36: ='Data (HIDE)'!$AM$25 -> 5.85 | S36: ='Data (HIDE)'!$AM$26 -> 7.155 | T36: ='Data (HIDE)'!$AM$27 -> 5.85 | U36: ='Data (HIDE)'!$AM$28 -> 5.85 | V36: ='Data (HIDE)'!$AM$29 -> 7.155 | W36: ='Data (HIDE)'!$AM$30 -> 7.155 | X36: ='Data (HIDE)'!$AM$31 -> 7.155 | AB36: =SUM((E36*('Data (HIDE)'!$H$16/SUM('Data (HIDE)'!$H$16+'Data (HIDE)'!$H$24+'Data (HIDE)'!$H$25)))+(Q36*('Data (HIDE)'!$H$24/SUM('Data (HIDE)'!$H$16+'Data (HIDE)'!$H$24+'Data (HIDE)'!$H$25)))+(R36*('Data (HIDE)'!$H$25/SUM('Data (HIDE)'!$H$16+'Data (HIDE)'!$H$24+'Data (HIDE)'!$H$25)))) -> 5.85 | AC36: 0.01067480501 | AF36: 5 | AG36: 0.007751937984 | AW36: 4.125 | AX36: 0.007527106098
B37: Land Amortization Costs | C37: 20 | D37: 0.03636363636 | E37: =-CUMPRINC('Fixed Cost Input'!$C$11,'Fixed Cost Input'!$D$11,'Fixed Cost Input'!$D$4*'Fixed Cost Input'!$D$8,1,'Fixed Cost Input'!$D$11,0)/'Fixed Cost Input'!$D$11 -> 21.6 | F37: =-CUMPRINC('Fixed Cost Input'!$C$11,'Fixed Cost Input'!$D$11,'Fixed Cost Input'!$D$4*'Fixed Cost Input'!$D$8,1,'Fixed Cost Input'!$D$11,0)/'Fixed Cost Input'!$D$11 -> 21.6 | G37: =-CUMPRINC('Fixed Cost Input'!$C$11,'Fixed Cost Input'!$D$11,'Fixed Cost Input'!$D$4*'Fixed Cost Input'!$D$8,1,'Fixed Cost Input'!$D$11,0)/'Fixed Cost Input'!$D$11 -> 21.6 | H37: =-CUMPRINC('Fixed Cost Input'!$C$11,'Fixed Cost Input'!$D$11,'Fixed Cost Input'!$D$4*'Fixed Cost Input'!$D$8,1,'Fixed Cost Input'!$D$11,0)/'Fixed Cost Input'!$D$11 -> 21.6 | I37: =-CUMPRINC('Fixed Cost Input'!$C$11,'Fixed Cost Input'!$D$11,'Fixed Cost Input'!$D$4*'Fixed Cost Input'!$D$8,1,'Fixed Cost Input'!$D$11,0)/'Fixed Cost Input'!$D$11 -> 21.6 | J37: =-CUMPRINC('Fixed Cost Input'!$C$11,'Fixed Cost Input'!$D$11,'Fixed Cost Input'!$D$4*'Fixed Cost Input'!$D$8,1,'Fixed Cost Input'!$D$11,0)/'Fixed Cost Input'!$D$11 -> 21.6 | K37: =-CUMPRINC('Fixed Cost Input'!$C$11,'Fixed Cost Input'!$D$11,'Fixed Cost Input'!$D$4*'Fixed Cost Input'!$D$8,1,'Fixed Cost Input'!$D$11,0)/'Fixed Cost Input'!$D$11 -> 21.6 | L37: =-CUMPRINC('Fixed Cost Input'!$C$11,'Fixed Cost Input'!$D$11,'Fixed Cost Input'!$D$4*'Fixed Cost Input'!$D$8,1,'Fixed Cost Input'!$D$11,0)/'Fixed Cost Input'!$D$11 -> 21.6 | N37: Land Amortization Costs | O37: 20 | P37: 0.03636363636 | Q37: =-CUMPRINC('Fixed Cost Input'!$C$11,'Fixed Cost Input'!$D$11,'Fixed Cost Input'!$D$4*'Fixed Cost Input'!$D$8,1,'Fixed Cost Input'!$D$11,0)/'Fixed Cost Input'!$D$11 -> 21.6 | R37: =-CUMPRINC('Fixed Cost Input'!$C$11,'Fixed Cost Input'!$D$11,'Fixed Cost Input'!$D$4*'Fixed Cost Input'!$D$8,1,'Fixed Cost Input'!$D$11,0)/'Fixed Cost Input'!$D$11 -> 21.6 | S37: =-CUMPRINC('Fixed Cost Input'!$C$11,'Fixed Cost Input'!$D$11,'Fixed Cost Input'!$D$4*'Fixed Cost Input'!$D$8,1,'Fixed Cost Input'!$D$11,0)/'Fixed Cost Input'!$D$11 -> 21.6 | T37: =-CUMPRINC('Fixed Cost Input'!$C$11,'Fixed Cost Input'!$D$11,'Fixed Cost Input'!$D$4*'Fixed Cost Input'!$D$8,1,'Fixed Cost Input'!$D$11,0)/'Fixed Cost Input'!$D$11 -> 21.6 | U37: =-CUMPRINC('Fixed Cost Input'!$C$11,'Fixed Cost Input'!$D$11,'Fixed Cost Input'!$D$4*'Fixed Cost Input'!$D$8,1,'Fixed Cost Input'!$D$11,0)/'Fixed Cost Input'!$D$11 -> 21.6 | V37: =-CUMPRINC('Fixed Cost Input'!$C$11,'Fixed Cost Input'!$D$11,'Fixed Cost Input'!$D$4*'Fixed Cost Input'!$D$8,1,'Fixed Cost Input'!$D$11,0)/'Fixed Cost Input'!$D$11 -> 21.6 | W37: =-CUMPRINC('Fixed Cost Input'!$C$11,'Fixed Cost Input'!$D$11,'Fixed Cost Input'!$D$4*'Fixed Cost Input'!$D$8,1,'Fixed Cost Input'!$D$11,0)/'Fixed Cost Input'!$D$11 -> 21.6 | X37: =-CUMPRINC('Fixed Cost Input'!$C$11,'Fixed Cost Input'!$D$11,'Fixed Cost Input'!$D$4*'Fixed Cost Input'!$D$8,1,'Fixed Cost Input'!$D$11,0)/'Fixed Cost Input'!$D$11 -> 21.6 | AB37: =SUM((E37*('Data (HIDE)'!$H$16/SUM('Data (HIDE)'!$H$16+'Data (HIDE)'!$H$24+'Data (HIDE)'!$H$25)))+(Q37*('Data (HIDE)'!$H$24/SUM('Data (HIDE)'!$H$16+'Data (HIDE)'!$H$24+'Data (HIDE)'!$H$25)))+(R37*('Data (HIDE)'!$H$25/SUM('Data (HIDE)'!$H$16+'Data (HIDE)'!$H$24+'Data (HIDE)'!$H$25)))) -> 21.6 | AC37: 0.03941466466 | AF37: 20 | AG37: 0.03100775194 | AW37: 20.4 | AX37: 0.03722496107
B38: Land Opportunity Costs | C38: 55 | D38: 0.1 | E38: ='Fixed Cost Input'!$D$13 -> 59.4 | F38: ='Fixed Cost Input'!$D$13 -> 59.4 | G38: ='Fixed Cost Input'!$D$13 -> 59.4 | H38: ='Fixed Cost Input'!$D$13 -> 59.4 | I38: ='Fixed Cost Input'!$D$13 -> 59.4 | J38: ='Fixed Cost Input'!$D$13 -> 59.4 | K38: ='Fixed Cost Input'!$D$13 -> 59.4 | L38: ='Fixed Cost Input'!$D$13 -> 59.4 | N38: Land Opportunity Costs | O38: 55 | P38: 0.1 | Q38: ='Fixed Cost Input'!$D$13 -> 59.4 | R38: ='Fixed Cost Input'!$D$13 -> 59.4 | S38: ='Fixed Cost Input'!$D$13 -> 59.4 | T38: ='Fixed Cost Input'!$D$13 -> 59.4 | U38: ='Fixed Cost Input'!$D$13 -> 59.4 | V38: ='Fixed Cost Input'!$D$13 -> 59.4 | W38: ='Fixed Cost Input'!$D$13 -> 59.4 | X38: ='Fixed Cost Input'!$D$13 -> 59.4 | AB38: =SUM((E38*('Data (HIDE)'!$H$16/SUM('Data (HIDE)'!$H$16+'Data (HIDE)'!$H$24+'Data (HIDE)'!$H$25)))+(Q38*('Data (HIDE)'!$H$24/SUM('Data (HIDE)'!$H$16+'Data (HIDE)'!$H$24+'Data (HIDE)'!$H$25)))+(R38*('Data (HIDE)'!$H$25/SUM('Data (HIDE)'!$H$16+'Data (HIDE)'!$H$24+'Data (HIDE)'!$H$25)))) -> 59.4 | AC38: 0.1083903278 | AF38: 55 | AG38: 0.08527131783 | AW38: 43.35 | AX38: 0.07910304227
B39: Machinery Lease | C39: 0 | D39: 0 | E39: ='Data (HIDE)'!$S$16 -> 0 | F39: ='Data (HIDE)'!$S$17 -> 0 | G39: ='Data (HIDE)'!$S$18 -> 0 | H39: ='Data (HIDE)'!$S$19 -> 0 | I39: ='Data (HIDE)'!$S$20 -> 0 | J39: ='Data (HIDE)'!$S$21 -> 0 | K39: ='Data (HIDE)'!$S$22 -> 0 | L39: ='Data (HIDE)'!$S$23 -> 0 | N39: Machinery Lease | O39: 0 | P39: 0 | Q39: ='Data (HIDE)'!$S$24 -> 0 | R39: ='Data (HIDE)'!$S$25 -> 0 | S39: ='Data (HIDE)'!$S$26 -> 0 | T39: ='Data (HIDE)'!$S$27 -> 0 | U39: ='Data (HIDE)'!$S$28 -> 0 | V39: ='Data (HIDE)'!$S$29 -> 0 | W39: ='Data (HIDE)'!$S$30 -> 0 | X39: ='Data (HIDE)'!$S$31 -> 0 | AB39: =SUM((E39*('Data (HIDE)'!$H$16/SUM('Data (HIDE)'!$H$16+'Data (HIDE)'!$H$24+'Data (HIDE)'!$H$25)))+(Q39*('Data (HIDE)'!$H$24/SUM('Data (HIDE)'!$H$16+'Data (HIDE)'!$H$24+'Data (HIDE)'!$H$25)))+(R39*('Data (HIDE)'!$H$25/SUM('Data (HIDE)'!$H$16+'Data (HIDE)'!$H$24+'Data (HIDE)'!$H$25)))) -> 0 | AC39: 0 | AF39: 0 | AG39: 0 | AW39: 2.88 | AX39: 0.005255288621
B40: Land Taxes | C40: 20 | D40: 0.03636363636 | E40: ='Data (HIDE)'!$Y$16 -> 20 | F40: ='Data (HIDE)'!$Y$17 -> 20 | G40: ='Data (HIDE)'!$Y$18 -> 20 | H40: ='Data (HIDE)'!$Y$19 -> 20 | I40: ='Data (HIDE)'!$Y$20 -> 20 | J40: ='Data (HIDE)'!$Y$21 -> 20 | K40: ='Data (HIDE)'!$Y$22 -> 20 | L40: ='Data (HIDE)'!$Y$23 -> 20 | N40: Land Taxes | O40: 20 | P40: 0.03636363636 | Q40: ='Data (HIDE)'!$Y$24 -> 20 | R40: ='Data (HIDE)'!$Y$25 -> 20 | S40: ='Data (HIDE)'!$Y$26 -> 20 | T40: ='Data (HIDE)'!$Y$27 -> 20 | U40: ='Data (HIDE)'!$Y$28 -> 20 | V40: ='Data (HIDE)'!$Y$29 -> 20 | W40: ='Data (HIDE)'!$Y$30 -> 20 | X40: ='Data (HIDE)'!$Y$31 -> 20 | AB40: =SUM((E40*('Data (HIDE)'!$H$16/SUM('Data (HIDE)'!$H$16+'Data (HIDE)'!$H$24+'Data (HIDE)'!$H$25)))+(Q40*('Data (HIDE)'!$H$24/SUM('Data (HIDE)'!$H$16+'Data (HIDE)'!$H$24+'Data (HIDE)'!$H$25)))+(R40*('Data (HIDE)'!$H$25/SUM('Data (HIDE)'!$H$16+'Data (HIDE)'!$H$24+'Data (HIDE)'!$H$25)))) -> 20 | AC40: 0.03649505987 | AF40: 20 | AG40: 0.03100775194 | AW40: 15 | AX40: 0.0273712949
C41: =SUM(C34:C40) -> 170 | D41: =SUM(C41/$C$3) -> 0.3090909091 | E41: =SUM(E34:E40) -> 176.4928571 | F41: 176.4928571 | G41: 176.4928571 | H41: 176.4928571 | I41: 176.4928571 | J41: 176.4928571 | K41: 176.4928571 | L41: 193.3335714 | O41: =C41 -> 170 | P41: =D41 -> 0.3090909091 | Q41: 176.4928571 | R41: 176.4928571 | S41: 193.3335714 | T41: 176.4928571 | U41: 176.4928571 | V41: 193.3335714 | W41: 193.3335714 | X41: 193.3335714 | AB41: =SUM(AB34:AB40) -> 176.4928571 | AC41: 0.3220558694 | AF41: 170 | AG41: 0.2635658915 | AW41: 142.8978571 | AX41: 0.2607532926
A43: = | B43: Earnings Before Interest Taxes (EBIT) | M43: = | N43: Earnings Before Interest Taxes (EBIT)
C44: =SUM(C31-C41) -> 11 | D44: =SUM(C44/$AB$3) -> 0.02007228293 | E44: =SUM(E31-E41) -> -0.9251653155 | F44: -10.1103035 | G44: -1.047456619 | H44: -44.65766532 | I44: 8.750113161 | J44: -101.6405341 | K44: -110.497733 | L44: 24.35567601 | O44: =C44 -> 11 | P44: =D44 -> 0.02007228293 | Q44: 9.653350986 | R44: 0.7971578878 | S44: -52.75147535 | T44: -59.16001348 | U44: -5.026381017 | V44: 70.50408799 | W44: -1.234013652 | X44: -33.64901365 | AB44: =SUM(AB31-AB41) -> 4.197560431 | AC44: =SUM(AB44/$AB$3) -> 0.007659510962 | AF44: 80 | AG44: 0.1488042137 | AW44: 36.20407026 | AX44: =SUM(AW44/$AB$3) -> 0.06606348558
A46: =" -" -> - | B46: Interest Expenses | M46: =" -" -> - | N46: Interest Expenses
B47: Interest on Operating | C47: 13 | D47: =SUM(C47/$C$3) -> 0.02363636364 | E47: ='Data (HIDE)'!$AB$16 -> 12.65 | F47: ='Data (HIDE)'!$AB$17 -> 13.19 | G47: ='Data (HIDE)'!$AB$18 -> 12.85 | H47: ='Data (HIDE)'!$AB$19 -> 11.86 | I47: ='Data (HIDE)'!$AB$20 -> 11.24 | J47: ='Data (HIDE)'!$AB$21 -> 10.43 | K47: ='Data (HIDE)'!$AB$22 -> 13.76 | L47: ='Data (HIDE)'!$AB$23 -> 21.76 | N47: Interest on Operating | O47: =C47 -> 13 | P47: =D47 -> 0.02363636364 | Q47: ='Data (HIDE)'!$AB$24 -> 15.12 | R47: ='Data (HIDE)'!$AB$25 -> 11.09 | S47: ='Data (HIDE)'!$AB$26 -> 13.97 | T47: ='Data (HIDE)'!$AB$27 -> 10.34 | U47: ='Data (HIDE)'!$AB$28 -> 11.35 | V47: ='Data (HIDE)'!$AB$29 -> 18.34 | W47: ='Data (HIDE)'!$AB$30 -> 18.67 | X47: ='Data (HIDE)'!$AB$31 -> 19.25 | AB47: =SUM((E47*('Data (HIDE)'!$H$16/SUM('Data (HIDE)'!$H$16+'Data (HIDE)'!$H$24+'Data (HIDE)'!$H$25)))+(Q47*('Data (HIDE)'!$H$24/SUM('Data (HIDE)'!$H$16+'Data (HIDE)'!$H$24+'Data (HIDE)'!$H$25)))+(R47*('Data (HIDE)'!$H$25/SUM('Data (HIDE)'!$H$16+'Data (HIDE)'!$H$24+'Data (HIDE)'!$H$25)))) -> 13.51274579 | AC47: =SUM(AB47/$AB$3) -> 0.02465742333 | AF47: 18 | AG47: 0.02790697674 | AW47: 5.968754545 | AX47: =SUM(AW47/$AB$3) -> 0.01089150272
B48: Land Interest Costs | C48: 23 | D48: =SUM(C48/$C$3) -> 0.04181818182 | E48: =-CUMIPMT('Fixed Cost Input'!$C$11,'Fixed Cost Input'!$D$11,'Fixed Cost Input'!$D$4*'Fixed Cost Input'!$D$8,1,'Fixed Cost Input'!$D$11,0)/'Fixed Cost Input'!$D$11 -> 22.66999979 | F48: =-CUMIPMT('Fixed Cost Input'!$C$11,'Fixed Cost Input'!$D$11,'Fixed Cost Input'!$D$4*'Fixed Cost Input'!$D$8,1,'Fixed Cost Input'!$D$11,0)/'Fixed Cost Input'!$D$11 -> 22.66999979 | G48: =-CUMIPMT('Fixed Cost Input'!$C$11,'Fixed Cost Input'!$D$11,'Fixed Cost Input'!$D$4*'Fixed Cost Input'!$D$8,1,'Fixed Cost Input'!$D$11,0)/'Fixed Cost Input'!$D$11 -> 22.66999979 | H48: =-CUMIPMT('Fixed Cost Input'!$C$11,'Fixed Cost Input'!$D$11,'Fixed Cost Input'!$D$4*'Fixed Cost Input'!$D$8,1,'Fixed Cost Input'!$D$11,0)/'Fixed Cost Input'!$D$11 -> 22.66999979 | I48: =-CUMIPMT('Fixed Cost Input'!$C$11,'Fixed Cost Input'!$D$11,'Fixed Cost Input'!$D$4*'Fixed Cost Input'!$D$8,1,'Fixed Cost Input'!$D$11,0)/'Fixed Cost Input'!$D$11 -> 22.66999979 | J48: =-CUMIPMT('Fixed Cost Input'!$C$11,'Fixed Cost Input'!$D$11,'Fixed Cost Input'!$D$4*'Fixed Cost Input'!$D$8,1,'Fixed Cost Input'!$D$11,0)/'Fixed Cost Input'!$D$11 -> 22.66999979 | K48: =-CUMIPMT('Fixed Cost Input'!$C$11,'Fixed Cost Input'!$D$11,'Fixed Cost Input'!$D$4*'Fixed Cost Input'!$D$8,1,'Fixed Cost Input'!$D$11,0)/'Fixed Cost Input'!$D$11 -> 22.66999979 | L48: =-CUMIPMT('Fixed Cost Input'!$C$11,'Fixed Cost Input'!$D$11,'Fixed Cost Input'!$D$4*'Fixed Cost Input'!$D$8,1,'Fixed Cost Input'!$D$11,0)/'Fixed Cost Input'!$D$11 -> 22.66999979 | N48: Land Interest Costs | O48: 23 | P48: 0.04181818182 | Q48: =-CUMIPMT('Fixed Cost Input'!$C$11,'Fixed Cost Input'!$D$11,'Fixed Cost Input'!$D$4*'Fixed Cost Input'!$D$8,1,'Fixed Cost Input'!$D$11,0)/'Fixed Cost Input'!$D$11 -> 22.66999979 | R48: =-CUMIPMT('Fixed Cost Input'!$C$11,'Fixed Cost Input'!$D$11,'Fixed Cost Input'!$D$4*'Fixed Cost Input'!$D$8,1,'Fixed Cost Input'!$D$11,0)/'Fixed Cost Input'!$D$11 -> 22.66999979 | S48: =-CUMIPMT('Fixed Cost Input'!$C$11,'Fixed Cost Input'!$D$11,'Fixed Cost Input'!$D$4*'Fixed Cost Input'!$D$8,1,'Fixed Cost Input'!$D$11,0)/'Fixed Cost Input'!$D$11 -> 22.66999979 | T48: =-CUMIPMT('Fixed Cost Input'!$C$11,'Fixed Cost Input'!$D$11,'Fixed Cost Input'!$D$4*'Fixed Cost Input'!$D$8,1,'Fixed Cost Input'!$D$11,0)/'Fixed Cost Input'!$D$11 -> 22.66999979 | U48: =-CUMIPMT('Fixed Cost Input'!$C$11,'Fixed Cost Input'!$D$11,'Fixed Cost Input'!$D$4*'Fixed Cost Input'!$D$8,1,'Fixed Cost Input'!$D$11,0)/'Fixed Cost Input'!$D$11 -> 22.66999979 | V48: =-CUMIPMT('Fixed Cost Input'!$C$11,'Fixed Cost Input'!$D$11,'Fixed Cost Input'!$D$4*'Fixed Cost Input'!$D$8,1,'Fixed Cost Input'!$D$11,0)/'Fixed Cost Input'!$D$11 -> 22.66999979 | W48: =-CUMIPMT('Fixed Cost Input'!$C$11,'Fixed Cost Input'!$D$11,'Fixed Cost Input'!$D$4*'Fixed Cost Input'!$D$8,1,'Fixed Cost Input'!$D$11,0)/'Fixed Cost Input'!$D$11 -> 22.66999979 | X48: =-CUMIPMT('Fixed Cost Input'!$C$11,'Fixed Cost Input'!$D$11,'Fixed Cost Input'!$D$4*'Fixed Cost Input'!$D$8,1,'Fixed Cost Input'!$D$11,0)/'Fixed Cost Input'!$D$11 -> 22.66999979 | AB48: =SUM((E48*('Data (HIDE)'!$H$16/SUM('Data (HIDE)'!$H$16+'Data (HIDE)'!$H$24+'Data (HIDE)'!$H$25)))+(Q48*('Data (HIDE)'!$H$24/SUM('Data (HIDE)'!$H$16+'Data (HIDE)'!$H$24+'Data (HIDE)'!$H$25)))+(R48*('Data (HIDE)'!$H$25/SUM('Data (HIDE)'!$H$16+'Data (HIDE)'!$H$24+'Data (HIDE)'!$H$25)))) -> 22.66999979 | AC48: =SUM(AB48/$AB$3) -> 0.04136714997 | AF48: 27 | AG48: 0.04186046512 | AW48: 13.11440691 | AX48: =SUM(AW48/$AB$3) -> 0.02393055327
B49: Machinery Interest Costs | C49: 11 | D49: =SUM(C49/$C$3) -> 0.02 | E49: ='Data (HIDE)'!$AK$16 -> 11.10097996 | F49: ='Data (HIDE)'!$AK$17 -> 11.10097996 | G49: ='Data (HIDE)'!$AK$18 -> 11.10097996 | H49: ='Data (HIDE)'!$AK$19 -> 11.10097996 | I49: ='Data (HIDE)'!$AK$20 -> 11.10097996 | J49: ='Data (HIDE)'!$AK$21 -> 11.10097996 | K49: ='Data (HIDE)'!$AK$22 -> 11.10097996 | L49: ='Data (HIDE)'!$AK$23 -> 13.57735241 | N49: Machinery Interest Costs | O49: 11 | P49: 0.02 | Q49: ='Data (HIDE)'!$AK$24 -> 11.10097996 | R49: ='Data (HIDE)'!$AK$25 -> 11.10097996 | S49: ='Data (HIDE)'!$AK$26 -> 13.57735241 | T49: ='Data (HIDE)'!$AK$27 -> 11.10097996 | U49: ='Data (HIDE)'!$AK$28 -> 11.10097996 | V49: ='Data (HIDE)'!$AK$29 -> 13.57735241 | W49: ='Data (HIDE)'!$AK$30 -> 13.57735241 | X49: ='Data (HIDE)'!$AK$31 -> 13.57735241 | AB49: =SUM((E49*('Data (HIDE)'!$H$16/SUM('Data (HIDE)'!$H$16+'Data (HIDE)'!$H$24+'Data (HIDE)'!$H$25)))+(Q49*('Data (HIDE)'!$H$24/SUM('Data (HIDE)'!$H$16+'Data (HIDE)'!$H$24+'Data (HIDE)'!$H$25)))+(R49*('Data (HIDE)'!$H$25/SUM('Data (HIDE)'!$H$16+'Data (HIDE)'!$H$24+'Data (HIDE)'!$H$25)))) -> 11.10097996 | AC49: =SUM(AB49/$AB$3) -> 0.02025654641 | AF49: 15 | AG49: 0.02325581395 | AW49: 6.741602008 | AX49: =SUM(AW49/$AB$3) -> 0.01230175844
C50: =SUM(C47:C49) -> 47 | D50: =SUM(C50/$C$3) -> 0.08545454545 | E50: =SUM(E47:E49) -> 46.42097975 | F50: =SUM(F47:F49) -> 46.96097975 | G50: 46.62097975 | H50: 45.63097975 | I50: 45.01097975 | J50: 44.20097975 | K50: 47.53097975 | L50: 58.0073522 | O50: =C50 -> 47 | P50: =D50 -> 0.08545454545 | Q50: 48.89097975 | R50: 44.86097975 | S50: 50.2173522 | T50: 44.11097975 | U50: 45.12097975 | V50: 54.5873522 | W50: 54.9173522 | X50: 55.4973522 | AB50: =SUM(AB47:AB49) -> 47.28372554 | AC50: =SUM(AB50/$AB$3) -> 0.08628111972 | AF50: 60 | AG50: 0.09302325581 | AW50: 25.82476346 | AX50: =SUM(AW50/$AB$3) -> 0.04712381443
A52: = | B52: Earnings Before Taxes (EBT) | C52: =SUM(C44-C50) -> -36 | D52: =SUM(C52/$C$3) -> -0.06545454545 | E52: =SUM(E44-E50) -> -47.34614506 | F52: =SUM(F44-F50) -> -57.07128325 | G52: -47.66843637 | H52: -90.28864506 | I52: -36.26086659 | J52: -145.8415138 | K52: -158.0287127 | L52: -33.65167619 | M52: = | N52: Earnings Before Taxes (EBT) | O52: =C52 -> -36 | P52: =D52 -> -0.06545454545 | Q52: -39.23762876 | R52: -44.06382186 | S52: -102.9688276 | T52: -103.2709932 | U52: -50.14736076 | V52: 15.91673579 | W52: -56.15136585 | X52: -89.14636585 | AB52: =SUM(AB44-AB50) -> -43.08616511 | AC52: =SUM(AB52/$AB$3) -> -0.07862160876 | AF52: 20 | AG52: 0.03100775194 | AW52: 10.3793068 | AX52: =SUM(AW52/$AB$3) -> 0.01893967115
E73: Benchmark Analysis (Ratios) | L73: Benchmark Analysis (Ratios)
C74: =C2 -> Estimated Manitoba 2025 Benchmark | E74: ='Data (HIDE)'!$B$16 -> Wheat - Hard Red Spring | F74: ='Data (HIDE)'!$B$17 -> Wheat - Northern Hard Red | G74: ='Data (HIDE)'!$B$18 -> Wheat - Prairie Spring | H74: ='Data (HIDE)'!$B$19 -> Wheat - Winter | I74: ='Data (HIDE)'!$B$20 -> Oats | J74: ='Data (HIDE)'!$B$21 -> Barley | K74: ='Data (HIDE)'!$B$22 -> Hybrid Fall Rye | L74: ='Data (HIDE)'!$B$23 -> Corn | Q74: ='Data (HIDE)'!$B$24 -> Canola | R74: ='Data (HIDE)'!$B$25 -> Soybeans | S74: ='Data (HIDE)'!$B$26 -> Sunflower - Oilseed | T74: ='Data (HIDE)'!$B$27 -> Flaxseed | U74: ='Data (HIDE)'!$B$28 -> Peas | V74: ='Data (HIDE)'!$B$29 -> Beans - Pinto | W74: ='Data (HIDE)'!$B$30 -> Beans - White | X74: ='Data (HIDE)'!$B$31 -> Beans - Black
A75: Revenue | C75: =SUM(C3/C3) -> 1 | E75: =SUM(E3/E3) -> 1 | F75: 1 | G75: 1 | H75: 1 | I75: 1 | J75: 1 | K75: 1 | L75: 1 | Q75: 1 | R75: 1 | S75: 1 | T75: 1 | U75: 1 | V75: 1 | W75: 1 | X75: 1
B76: CoGS | D76: =SUM(C11/C3) -> 0.4545454545 | E76: =SUM(E11/E3) -> 0.4295861076 | F76: 0.4491577072 | G76: 0.4318951417 | H76: 0.4442137933 | I76: 0.3380613841 | J76: 0.4371771975 | K76: 0.5653886137 | L76: 0.4572316179 | Q76: 0.4932909536 | R76: 0.3991105043 | S76: 0.4441615733 | T76: 0.4321414176 | U76: 0.4043017712 | V76: 0.4771477116 | W76: 0.5344980024 | X76: 0.5705295701
A77: Gross Margin ratio (%GM) | C77: =SUM(C13/C3) -> 0.5454545455 | E77: =SUM(E13/E3) -> 0.5704138924 | F77: 0.5508422928 | G77: 0.5681048583 | H77: 0.5557862067 | I77: 0.6619386159 | J77: 0.5628228025 | K77: 0.4346113863 | L77: 0.5427683821 | Q77: 0.5067090464 | R77: 0.6008894957 | S77: 0.5558384267 | T77: 0.5678585824 | U77: 0.5956982288 | V77: 0.5228522884 | W77: 0.4655019976 | X77: 0.4294704299
B78: DOE | D78: =SUM(C23/C3) -> 0.18 | E78: =SUM(E23/E3) -> 0.1986491004 | F78: 0.2001136192 | G78: 0.2001136192 | H78: 0.2270275434 | I78: 0.2493512779 | J78: 0.3055941273 | K78: 0.2442815587 | L78: 0.2502972673 | Q78: 0.164744756 | R78: 0.1945561311 | S78: 0.2513536266 | T78: 0.2301514733 | U78: 0.2025211356 | V78: 0.1523422103 | W78: 0.1644265919 | X78: 0.1685372567
A79: Contribution Margin ratio (%CM) | C79: =SUM(C25/C3) -> 0.3654545455 | E79: =SUM(E25/E3) -> 0.371764792 | F79: 0.3507286736 | G79: 0.3679912391 | H79: 0.3287586634 | I79: 0.412587338 | J79: 0.2572286752 | K79: 0.1903298276 | L79: 0.2924711148 | Q79: 0.3419642904 | R79: 0.4063333646 | S79: 0.3044848001 | T79: 0.3377071091 | U79: 0.3931770932 | V79: 0.3705100782 | W79: 0.3010754057 | X79: 0.2609331732
B80: OH | D80: =SUM(AB28/C3) -> 0.03227272727 | E80: =SUM(E28/E3) -> 0.03413461538 | F80: 0.03380952381 | G80: 0.03380952381 | H80: 0.03901098901 | I80: 0.03607723577 | J80: 0.04930555556 | K80: 0.04034090909 | L80: 0.02204968944 | Q80: 0.02976939203 | R80: 0.03697916667 | S80: 0.03413461538 | T80: 0.044375 | U80: 0.03688311688 | V80: 0.02335526316 | W80: 0.02546628407 | X80: 0.02610294118
A81: Operating Efficiency ratio (%EBITDAR) | C81: =SUM(C31/C3) -> 0.3290909091 | E81: =SUM(E31/E3) -> 0.3376301766 | F81: 0.3169191498 | G81: 0.3341817153 | H81: 0.2897476743 | I81: 0.3765101022 | J81: 0.2079231197 | K81: 0.1499889185 | L81: 0.2704214254 | Q81: 0.3121948983 | R81: 0.369354198 | S81: 0.2703501848 | T81: 0.2933321091 | U81: 0.3562939764 | V81: 0.347154815 | W81: 0.2756091216 | X81: 0.234830232
B82: CoC | D82: =SUM(C41/C3) -> 0.3090909091 | E82: =SUM(E41/E3) -> 0.3394093407 | F82: 0.3361768707 | G82: 0.3361768707 | H82: 0.3878963893 | I82: 0.3587253194 | J82: 0.4902579365 | K82: 0.4011201299 | L82: 0.2401659272 | Q82: 0.2960047919 | R82: 0.3676934524 | S82: 0.3717953297 | T82: 0.4412321429 | U82: 0.3667384045 | V82: 0.2543862782 | W82: 0.277379586 | X82: 0.2843140756
A83: EBIT ratio (%EBIT) | C83: =SUM(C44/C3) -> 0.02 | E83: =SUM(E44/E3) -> -0.001779164068 | F83: -0.01925772095 | G83: -0.001995155465 | H83: -0.09814871498 | I83: 0.01778478285 | J83: -0.2823348168 | K83: -0.2511312113 | L83: 0.03025549815 | Q83: 0.01619010648 | R83: 0.0016607456 | S83: -0.1014451449 | T83: -0.1479000337 | U83: -0.01044442809 | V83: 0.09276853682 | W83: -0.00177046435 | X83: -0.04948384361
B84: Interest | D84: =SUM(C50/C3) -> 0.08545454545 | E84: =SUM(E50/E3) -> 0.0892711149 | F84: 0.08944948523 | G84: 0.08880186618 | H84: 0.1002878676 | I84: 0.09148573119 | J84: 0.1227804993 | K84: 0.108024954 | L84: 0.07205882261 | Q84: 0.08199745031 | R84: 0.09346037447 | S84: 0.09657183115 | T84: 0.1102774494 | U84: 0.09375787999 | V84: 0.07182546342 | W84: 0.07879103615 | X84: 0.08161375323
A85: EBT ratio (%EBT) | C85: =SUM(C52/C3) -> -0.06545454545 | E85: =SUM(E52/E3) -> -0.09105027897 | F85: -0.1087072062 | G85: -0.09079702165 | H85: -0.1984365826 | I85: -0.07370094834 | J85: -0.4051153161 | K85: -0.3591561653 | L85: -0.04180332446 | Q85: -0.06580734383 | R85: -0.09179962887 | S85: -0.1980169761 | T85: -0.2581774831 | U85: -0.1042023081 | V85: 0.0209430734 | W85: -0.0805615005 | X85: -0.1310975968
E87: Benchmark Analysis (Dollars Per Acre) | L87: Benchmark Analysis (Dollars Per Acre)
C88: =C2 -> Estimated Manitoba 2025 Benchmark | E88: ='Data (HIDE)'!$B$16 -> Wheat - Hard Red Spring | F88: ='Data (HIDE)'!$B$17 -> Wheat - Northern Hard Red | G88: ='Data (HIDE)'!$B$18 -> Wheat - Prairie Spring | H88: ='Data (HIDE)'!$B$19 -> Wheat - Winter | I88: ='Data (HIDE)'!$B$20 -> Oats | J88: ='Data (HIDE)'!$B$21 -> Barley | K88: ='Data (HIDE)'!$B$22 -> Hybrid Fall Rye | L88: ='Data (HIDE)'!$B$23 -> Corn | Q88: ='Data (HIDE)'!$B$24 -> Canola | R88: ='Data (HIDE)'!$B$25 -> Soybeans | S88: ='Data (HIDE)'!$B$26 -> Sunflower - Oilseed | T88: ='Data (HIDE)'!$B$27 -> Flaxseed | U88: ='Data (HIDE)'!$B$28 -> Peas | V88: ='Data (HIDE)'!$B$29 -> Beans - Pinto | W88: ='Data (HIDE)'!$B$30 -> Beans - White | X88: ='Data (HIDE)'!$B$31 -> Beans - Black
A89: Revenue | C89: =C3 -> 550 | E89: =E3 -> 520 | F89: 525 | G89: 525 | H89: 455 | I89: 492 | J89: 360 | K89: 440 | L89: 805 | Q89: 596.25 | R89: 480 | S89: 520 | T89: 400 | U89: 481.25 | V89: 760 | W89: 697 | X89: 680
B90: CoGS | D90: =C11 -> 250 | E90: =E11 -> 223.3847759 | F90: 235.8077963 | G90: 226.7449494 | H90: 202.1172759 | I90: 166.326201 | J90: 157.3837911 | K90: 248.77099 | L90: 368.0714524 | Q90: 294.1247311 | R90: 191.5730421 | S90: 230.9640181 | T90: 172.856567 | U90: 194.5702274 | V90: 362.6322608 | W90: 372.5451077 | X90: 387.9601077
A91: Gross Margin (GM) | C91: =C13 -> 300 | E91: =E13 -> 296.6152241 | F91: 289.1922037 | G91: 298.2550506 | H91: 252.8827241 | I91: 325.673799 | J91: 202.6162089 | K91: 191.22901 | L91: 436.9285476 | Q91: 302.1252689 | R91: 288.4269579 | S91: 289.0359819 | T91: 227.143433 | U91: 286.6797726 | V91: 397.3677392 | W91: 324.4548923 | X91: 292.0398923
B92: DOE | D92: =C23 -> 99 | E92: =E23 -> 103.2975322 | F92: 105.0596501 | G92: 105.0596501 | H92: 103.2975322 | I92: 122.6808287 | J92: 110.0138858 | K92: 107.4838858 | L92: 201.4893002 | Q92: 98.22906077 | R92: 93.38694291 | S92: 130.7038858 | T92: 92.06058932 | U92: 97.4632965 | V92: 115.7800798 | W92: 114.6053346 | X92: 114.6053346
A93: Contribution Margin (CM) | C93: =C25 -> 201 | E93: =E25 -> 193.3176918 | F93: 184.1325536 | G93: 193.1954005 | H93: 149.5851918 | I93: 202.9929703 | J93: 92.60232308 | K93: 83.74512416 | L93: 235.4392474 | Q93: 203.8962081 | R93: 195.040015 | S93: 158.3320961 | T93: 135.0828437 | U93: 189.2164761 | V93: 281.5876594 | W93: 209.8495578 | X93: 177.4345578
B94: OH | D94: =C28 -> 20 | E94: =E28 -> 17.75 | F94: 17.75 | G94: 17.75 | H94: 17.75 | I94: 17.75 | J94: 17.75 | K94: 17.75 | L94: 17.75 | Q94: 17.75 | R94: 17.75 | S94: 17.75 | T94: 17.75 | U94: 17.75 | V94: 17.75 | W94: 17.75 | X94: 17.75
A95: Operating Income (EBITDAR) | C95: =C31 -> 181 | E95: =E31 -> 175.5676918 | F95: 166.3825536 | G95: 175.4454005 | H95: 131.8351918 | I95: 185.2429703 | J95: 74.85232308 | K95: 65.99512416 | L95: 217.6892474 | Q95: 186.1462081 | R95: 177.290015 | S95: 140.5820961 | T95: 117.3328437 | U95: 171.4664761 | V95: 263.8376594 | W95: 192.0995578 | X95: 159.6845578
B96: CoC | D96: =C41 -> 170 | E96: =E41 -> 176.4928571 | F96: =F41 -> 176.4928571 | G96: 176.4928571 | H96: 176.4928571 | I96: 176.4928571 | J96: 176.4928571 | K96: 176.4928571 | L96: 193.3335714 | Q96: 176.4928571 | R96: 176.4928571 | S96: 193.3335714 | T96: 176.4928571 | U96: 176.4928571 | V96: 193.3335714 | W96: 193.3335714 | X96: 193.3335714
A97: EBIT | C97: =C44 -> 11 | E97: =E44 -> -0.9251653155 | F97: =F44 -> -10.1103035 | G97: -1.047456619 | H97: -44.65766532 | I97: 8.750113161 | J97: -101.6405341 | K97: -110.497733 | L97: 24.35567601 | Q97: 9.653350986 | R97: 0.7971578878 | S97: -52.75147535 | T97: -59.16001348 | U97: -5.026381017 | V97: 70.50408799 | W97: -1.234013652 | X97: -33.64901365
B98: Interest | D98: =C50 -> 47 | E98: =E50 -> 46.42097975 | F98: =F50 -> 46.96097975 | G98: 46.62097975 | H98: 45.63097975 | I98: 45.01097975 | J98: 44.20097975 | K98: 47.53097975 | L98: 58.0073522 | Q98: 48.89097975 | R98: 44.86097975 | S98: 50.2173522 | T98: 44.11097975 | U98: 45.12097975 | V98: 54.5873522 | W98: 54.9173522 | X98: 55.4973522
A99: EBT | C99: =C52 -> -36 | E99: =E52 -> -47.34614506 | F99: =F52 -> -57.07128325 | G99: -47.66843637 | H99: -90.28864506 | I99: -36.26086659 | J99: -145.8415138 | K99: -158.0287127 | L99: -33.65167619 | Q99: -39.23762876 | R99: -44.06382186 | S99: -102.9688276 | T99: -103.2709932 | U99: -50.14736076 | V99: 15.91673579 | W99: -56.15136585 | X99: -89.14636585
B102: Note: This budget is only a guide and is not intended as an in depth study of the cost of production of this industry. Interpretation and utilization of this information is the responsibility of the user. | Q102: Note: This budget is only a guide and is not intended as an in depth study of the cost of production of this industry. Interpretation and utilization of this information is the responsibility of the user.
C107: =C2 -> Estimated Manitoba 2025 Benchmark
A108: Revenue | C108: =C75 -> 1 | E108: =C89 -> 550 | G108: * Crop Yield & Market Price
B109: Cost of Goods Sold (CoGS) | D109: =D76 -> 0.4545454545 | F109: =D90 -> 250 | G109: * Input Costs & Quantities | K109: (35-45%)
A110: Gross Margin ratio (%GM) | C110: =C77 -> 0.5454545455 | E110: =C91 -> 300 | K110: (55-65%)
B111: Direct Operating Expense (DOE) | D111: =D78 -> 0.18 | F111: =D92 -> 99 | G111: * Labour, Fuel, Machinery Operating
A112: Contribution Margin ratio (%CM) | C112: =C79 -> 0.3654545455 | E112: =C93 -> 201 | K112: (40-50%)
B113: Overhead (OH) | D113: =D80 -> 0.03227272727 | F113: =D94 -> 20 | G113: * Other Costs, Accounting, Hydro
A114: Operating Efficiency ratio (%EBITDAR) | C114: =C81 -> 0.3290909091 | E114: =C95 -> 181 | K114: (35-40%)
B115: Cost of Capital (CoC) | D115: =D82 -> 0.3090909091 | F115: =D96 -> 170 | G115: * Land, Machinery, Depreciation
A116: EBIT ratio (%EBIT) | C116: =C83 -> 0.02 | E116: =C97 -> 11 | K116: (10-15%)
B117: Interest | D117: =D84 -> 0.08545454545 | F117: =D98 -> 47
A118: EBT ratio (%EBT) | C118: =C85 -> -0.06545454545 | E118: =C99 -> -36 | K118: (5-10%)
B188: thoughts
B189: our input costs are bang on
B190: our direct op expenses are likely $20 low
B191: our 'other' op overhead are likely $10 low
B192: our capital costs are likely $40 low (opp costs)
B194: weighted avg for yields

Sheet Risk Analysis
A1: =IF('Data (HIDE)'!B13="Manitoba","AgriInsurance Analysis","AgriInsurance Analysis - "&'Data (HIDE)'!B13) -> AgriInsurance Analysis | K1: =IF('Data (HIDE)'!B13="Manitoba","AgriInsurance Analysis","AgriInsurance Analysis - "&'Data (HIDE)'!B13) -> AgriInsurance Analysis
B3: ="*Based on "&'Data (HIDE)'!B123&"*" -> *Based on 2024 MASC data* | C3: ='Data (HIDE)'!$B$16 -> Wheat - Hard Red Spring | D3: ='Data (HIDE)'!$B$17 -> Wheat - Northern Hard Red | E3: ='Data (HIDE)'!$B$18 -> Wheat - Prairie Spring | F3: ='Data (HIDE)'!$B$19 -> Wheat - Winter | G3: ='Data (HIDE)'!$B$20 -> Oats | H3: ='Data (HIDE)'!$B$21 -> Barley | I3: ='Data (HIDE)'!$B$22 -> Hybrid Fall Rye | J3: ='Data (HIDE)'!$B$23 -> Corn | N3: ='Data (HIDE)'!$B$24 -> Canola | O3: ='Data (HIDE)'!$B$25 -> Soybeans | P3: ='Data (HIDE)'!$B$26 -> Sunflower - Oilseed | Q3: ='Data (HIDE)'!$B$27 -> Flaxseed | R3: ='Data (HIDE)'!$B$28 -> Peas | S3: ='Data (HIDE)'!$B$29 -> Beans - Pinto | T3: ='Data (HIDE)'!$B$30 -> Beans - White | U3: ='Data (HIDE)'!$B$31 -> Beans - Black
A5: AgriInsurance | L5: AgriInsurance
B6: ='Data (HIDE)'!B14 -> 80% Insured Value | C6: ='Data (HIDE)'!$AO$16 -> 471.45 | D6: ='Data (HIDE)'!$AO$17 -> 453.8328 | E6: ='Data (HIDE)'!$AO$18 -> 455.067 | F6: ='Data (HIDE)'!$AO$19 -> 393.432 | G6: ='Data (HIDE)'!$AO$20 -> 420.904 | H6: ='Data (HIDE)'!$AO$21 -> 368.0106 | I6: ='Data (HIDE)'!$AO$22 -> 355.0976 | J6: ='Data (HIDE)'!$AO$23 -> 701.3664 | L6: ='Data (HIDE)'!B14 -> 80% Insured Value | N6: ='Data (HIDE)'!$AO$24 -> 604.6632 | O6: ='Data (HIDE)'!$AO$25 -> 421.064 | P6: ='Data (HIDE)'!$AO$26 -> 387.264 | Q6: ='Data (HIDE)'!$AO$27 -> 255.6738 | R6: ='Data (HIDE)'!$AO$28 -> 371.844 | S6: ='Data (HIDE)'!$AO$29 -> 737.2 | T6: ='Data (HIDE)'!$AO$30 -> 683.7 | U6: ='Data (HIDE)'!$AO$31 -> 697.268
B7: Premium Cost (% of Insured) | C7: ='Data (HIDE)'!$AP$16 -> 0.02177325273 | D7: ='Data (HIDE)'!$AP$17 -> 0.0281436247 | E7: ='Data (HIDE)'!$AP$18 -> 0.02267797929 | F7: ='Data (HIDE)'!$AP$19 -> 0.02604643242 | G7: ='Data (HIDE)'!$AP$20 -> 0.04334123696 | H7: ='Data (HIDE)'!$AP$21 -> 0.03899344204 | I7: ='Data (HIDE)'!$AP$22 -> 0.04186173041 | J7: ='Data (HIDE)'!$AP$23 -> 0.05716698148 | L7: Premium Cost (% of Insured) | N7: ='Data (HIDE)'!$AP$24 -> 0.02308723269 | O7: ='Data (HIDE)'!$AP$25 -> 0.05170829138 | P7: ='Data (HIDE)'!$AP$26 -> 0.0434974591 | Q7: ='Data (HIDE)'!$AP$27 -> 0.05471816041 | R7: ='Data (HIDE)'!$AP$28 -> 0.04138160089 | S7: ='Data (HIDE)'!$AP$29 -> 0.05215002713 | T7: ='Data (HIDE)'!$AP$30 -> 0.05374798888 | U7: ='Data (HIDE)'!$AP$31 -> 0.0676389853
A9: Costs Not Covered By AgriInsurance | L9: Costs Not Covered By AgriInsurance
B10: Operating Costs | C10: =IF(Summary!C21-C6<0,0,SUM(Summary!C21-C6)) -> 0 | D10: =IF(Summary!D21-D6<0,0,SUM(Summary!D21-D6)) -> 0 | E10: =IF(Summary!E21-E6<0,0,SUM(Summary!E21-E6)) -> 0 | F10: =IF(Summary!F21-F6<0,0,SUM(Summary!F21-F6)) -> 0 | G10: =IF(Summary!G21-G6<0,0,SUM(Summary!G21-G6)) -> 0 | H10: =IF(Summary!H21-H6<0,0,SUM(Summary!H21-H6)) -> 0 | I10: =IF(Summary!I21-I6<0,0,SUM(Summary!I21-I6)) -> 25.66727584 | J10: =IF(Summary!J21-J6<0,0,SUM(Summary!J21-J6)) -> 0 | L10: Operating Costs | N10: =IF(Summary!M21-N6<0,0,SUM(Summary!M21-N6)) -> 0 | O10: =IF(Summary!N21-O6<0,0,SUM(Summary!N21-O6)) -> 0 | P10: =IF(Summary!O21-P6<0,0,SUM(Summary!O21-P6)) -> 0 | Q10: =IF(Summary!P21-Q6<0,0,SUM(Summary!P21-Q6)) -> 30.33335634 | R10: =IF(Summary!Q21-R6<0,0,SUM(Summary!Q21-R6)) -> 0 | S10: =IF(Summary!R21-S6<0,0,SUM(Summary!R21-S6)) -> 0 | T10: =IF(Summary!S21-T6<0,0,SUM(Summary!S21-T6)) -> 0 | U10: =IF(Summary!T21-U6<0,0,SUM(Summary!T21-U6)) -> 0
B11: Operating & Fixed Costs | C11: =IF(Summary!C27-C6<0,0,SUM(Summary!C27-C6)) -> 0 | D11: =IF(Summary!D27-D6<0,0,SUM(Summary!D27-D6)) -> 0 | E11: =IF(Summary!E27-E6<0,0,SUM(Summary!E27-E6)) -> 0 | F11: =IF(Summary!F27-F6<0,0,SUM(Summary!F27-F6)) -> 0 | G11: =IF(Summary!G27-G6<0,0,SUM(Summary!G27-G6)) -> 0 | H11: =IF(Summary!H27-H6<0,0,SUM(Summary!H27-H6)) -> 0 | I11: =IF(Summary!I27-I6<0,0,SUM(Summary!I27-I6)) -> 0 | J11: =IF(Summary!J27-J6<0,0,SUM(Summary!J27-J6)) -> 0 | L11: Operating & Fixed Costs | N11: =IF(Summary!M27-N6<0,0,SUM(Summary!M27-N6)) -> 0 | O11: =IF(Summary!N27-O6<0,0,SUM(Summary!N27-O6)) -> 0 | P11: =IF(Summary!O27-P6<0,0,SUM(Summary!O27-P6)) -> 0 | Q11: =IF(Summary!P27-Q6<0,0,SUM(Summary!P27-Q6)) -> 0 | R11: =IF(Summary!Q27-R6<0,0,SUM(Summary!Q27-R6)) -> 0 | S11: =IF(Summary!R27-S6<0,0,SUM(Summary!R27-S6)) -> 0 | T11: =IF(Summary!S27-T6<0,0,SUM(Summary!S27-T6)) -> 0 | U11: =IF(Summary!T27-U6<0,0,SUM(Summary!T27-U6)) -> 0
B12: Total Costs | C12: =IF(Summary!C30-C6<0,0,SUM(Summary!C30-C6)) -> 95.89614506 | D12: =IF(Summary!D30-D6<0,0,SUM(Summary!D30-D6)) -> 128.2384832 | E12: =IF(Summary!E30-E6<0,0,SUM(Summary!E30-E6)) -> 117.6014364 | F12: =IF(Summary!F30-F6<0,0,SUM(Summary!F30-F6)) -> 151.8566451 | G12: =IF(Summary!G30-G6<0,0,SUM(Summary!G30-G6)) -> 107.3568666 | H12: =IF(Summary!H30-H6<0,0,SUM(Summary!H30-H6)) -> 137.8309138 | I12: =IF(Summary!I30-I6<0,0,SUM(Summary!I30-I6)) -> 242.9311127 | J12: =IF(Summary!J30-J6<0,0,SUM(Summary!J30-J6)) -> 137.2852762 | L12: Total Costs | N12: =IF(Summary!M30-N6<0,0,SUM(Summary!M30-N6)) -> 30.82442876 | O12: =IF(Summary!N30-O6<0,0,SUM(Summary!N30-O6)) -> 102.9998219 | P12: =IF(Summary!O30-P6<0,0,SUM(Summary!O30-P6)) -> 235.7048276 | Q12: =IF(Summary!P30-Q6<0,0,SUM(Summary!P30-Q6)) -> 247.5971932 | R12: =IF(Summary!Q30-R6<0,0,SUM(Summary!Q30-R6)) -> 159.5533608 | S12: =IF(Summary!R30-S6<0,0,SUM(Summary!R30-S6)) -> 6.883264214 | T12: =IF(Summary!S30-T6<0,0,SUM(Summary!S30-T6)) -> 69.45136585 | U12: =IF(Summary!T30-U6<0,0,SUM(Summary!T30-U6)) -> 71.87836585
A14: AgriInsurance Risk Ratio | C14: (AgriInsurance Coverage / Cost) | L14: AgriInsurance Risk Ratio
B15: Operating Costs | C15: =SUM(C6/Summary!C21) -> 1.346683306 | D15: =SUM(D6/Summary!D21) -> 1.244033817 | E15: =SUM(E6/Summary!E21) -> 1.280419558 | F15: =SUM(F6/Summary!F21) -> 1.199397089 | G15: =SUM(G6/Summary!G21) -> 1.353401994 | H15: =SUM(H6/Summary!H21) -> 1.275256645 | I15: =SUM(I6/Summary!I21) -> 0.9325902218 | J15: =SUM(J6/Summary!J21) -> 1.164923553 | L15: Operating Costs | N15: =SUM(N6/Summary!M21) -> 1.445788623 | O15: =SUM(O6/Summary!N21) -> 1.372438138 | P15: =SUM(P6/Summary!O21) -> 1.0022674 | Q15: =SUM(Q6/Summary!P21) -> 0.8939419673 | R15: =SUM(R6/Summary!Q21) -> 1.183713204 | S15: =SUM(S6/Summary!R21) -> 1.452604138 | T15: =SUM(T6/Summary!S21) -> 1.323536819 | U15: =SUM(U6/Summary!T21) -> 1.309262571
B16: Total Costs | C16: =SUM(C6/Summary!C30) -> 0.8309741841 | D16: =SUM(D6/Summary!D30) -> 0.7796859475 | E16: =SUM(E6/Summary!E30) -> 0.7946430624 | F16: =SUM(F6/Summary!F30) -> 0.7215114482 | G16: =SUM(G6/Summary!G30) -> 0.7967730086 | H16: =SUM(H6/Summary!H30) -> 0.7275215457 | I16: =SUM(I6/Summary!I30) -> 0.5937801855 | J16: =SUM(J6/Summary!J30) -> 0.8363023886 | L16: Total Costs | N16: =SUM(N6/Summary!M30) -> 0.9514948406 | O16: =SUM(O6/Summary!N30) -> 0.8034593926 | P16: =SUM(P6/Summary!O30) -> 0.6216426615 | Q16: =SUM(Q6/Summary!P30) -> 0.5080241131 | R16: =SUM(R6/Summary!Q30) -> 0.6997475476 | S16: =SUM(S6/Summary!R30) -> 0.9907493361 | T16: =SUM(T6/Summary!S30) -> 0.9077856471 | U16: =SUM(U6/Summary!T30) -> 0.9065478704
B18: Risk Ranking | C18: =RANK(C15,$C15:$U15,1) -> 12 | D18: 7 | E18: 9 | F18: 6 | G18: 13 | H18: 8 | I18: 2 | J18: 4 | L18: Risk Ranking | N18: =RANK(N15,$C15:$U15,1) -> 15 | O18: 14 | P18: 3 | Q18: 1 | R18: 5 | S18: 16 | T18: 11 | U18: 10
B19: (Lower number indicates increasing risk) | L19: (Lower number indicates increasing risk)
A21: =IF('Data (HIDE)'!B13="Manitoba","Risk & Sensitivity Analysis (Stress Test)","Risk & Sensitivity Analysis (Stress Test) - "&'Data (HIDE)'!B13) -> Risk & Sensitivity Analysis (Stress Test) | K21: =IF('Data (HIDE)'!B13="Manitoba","Risk & Sensitivity Analysis (Stress Test)","Risk & Sensitivity Analysis (Stress Test) - "&'Data (HIDE)'!B13) -> Risk & Sensitivity Analysis (Stress Test)
A24: =#REF! ->  | B24: Operating Cost | C24: =Summary!C21 -> 350.0823082 | D24: =Summary!D21 -> 364.8074464 | E24: =Summary!E21 -> 355.4045995 | F24: =Summary!F21 -> 328.0248082 | G24: =Summary!G21 -> 310.9970297 | H24: =Summary!H21 -> 288.5776769 | I24: =Summary!I21 -> 380.7648758 | J24: =Summary!J21 -> 602.0707526 | K24: =Summary!M21 -> 418.2237919 | L24: =Summary!N21 -> 306.799985 | M24: =Summary!O21 -> 386.3879039 | N24: =Summary!P21 -> 286.0071563 | O24: =Summary!Q21 -> 314.1335239 | P24: =Summary!R21 -> 507.5023406 | Q24: =Summary!S21 -> 516.5704422 | R24: =Summary!T21 -> 532.5654422 | S24: =Summary!#REF! -> 
B25: Land Cost | C25: =Summary!C24 -> 103.6699998 | D25: =Summary!D24 -> 103.6699998 | E25: =Summary!E24 -> 103.6699998 | F25: =Summary!F24 -> 103.6699998 | G25: =Summary!G24 -> 103.6699998 | H25: =Summary!H24 -> 103.6699998 | I25: =Summary!I24 -> 103.6699998 | J25: =Summary!J24 -> 103.6699998 | K25: =Summary!M24 -> 103.6699998 | L25: =Summary!N24 -> 103.6699998 | M25: =Summary!O24 -> 103.6699998 | N25: =Summary!P24 -> 103.6699998 | O25: =Summary!Q24 -> 103.6699998 | P25: =Summary!R24 -> 103.6699998 | Q25: =Summary!S24 -> 103.6699998 | R25: =Summary!T24 -> 103.6699998 | S25: =Summary!#REF! -> 
A26: =#REF! ->  | B26: Machinery Cost | C26: =Summary!C25 -> 86.5938371 | D26: =Summary!D25 -> 86.5938371 | E26: =Summary!E25 -> 86.5938371 | F26: =Summary!F25 -> 86.5938371 | G26: =Summary!G25 -> 86.5938371 | H26: =Summary!H25 -> 86.5938371 | I26: =Summary!I25 -> 86.5938371 | J26: =Summary!J25 -> 105.9109238 | K26: =Summary!M25 -> 86.5938371 | L26: =Summary!N25 -> 86.5938371 | M26: =Summary!O25 -> 105.9109238 | N26: =Summary!P25 -> 86.5938371 | O26: =Summary!Q25 -> 86.5938371 | P26: =Summary!R25 -> 105.9109238 | Q26: =Summary!S25 -> 105.9109238 | R26: =Summary!T25 -> 105.9109238 | S26: =Summary!#REF! -> 
B27: Labour - Owner Living | C27: =Summary!C28 -> 27 | D27: =Summary!D28 -> 27 | E27: =Summary!E28 -> 27 | F27: =Summary!F28 -> 27 | G27: =Summary!G28 -> 27 | H27: =Summary!H28 -> 27 | I27: =Summary!I28 -> 27 | J27: =Summary!J28 -> 27 | K27: =Summary!M28 -> 27 | L27: =Summary!N28 -> 27 | M27: =Summary!O28 -> 27 | N27: =Summary!P28 -> 27 | O27: =Summary!Q28 -> 27 | P27: =Summary!R28 -> 27 | Q27: =Summary!S28 -> 27 | R27: =Summary!T28 -> 27 | S27: =Summary!#REF! -> 
A28: =#REF! ->  | C28: =SUM(C24:C27) -> 567.3461451 | D28: =SUM(D24:D27) -> 582.0712832 | E28: 572.6684364 | F28: 545.2886451 | G28: 528.2608666 | H28: 505.8415138 | I28: 598.0287127 | J28: 838.6516762 | K28: 635.4876288 | L28: 524.0638219 | M28: 622.9688276 | N28: 503.2709932 | O28: 531.3973608 | P28: 744.0832642 | Q28: 753.1513659 | R28: 769.1463659
A30: Estimated Farmgate
B31: Price $ per unit | C31: =Summary!C34 -> 8 | D31: =Summary!D34 -> 7.5 | E31: =Summary!E34 -> 7.5 | F31: =Summary!F34 -> 7 | G31: =Summary!G34 -> 4.1 | H31: =Summary!H34 -> 4.5 | I31: =Summary!I34 -> 5.5 | J31: =Summary!J34 -> 5.75 | K31: =Summary!M34 -> 13.25 | L31: =Summary!N34 -> 12 | M31: =Summary!O34 -> 0.26 | N31: =Summary!P34 -> 16 | O31: =Summary!Q34 -> 8.75 | P31: =Summary!R34 -> 0.4 | Q31: =Summary!S34 -> 0.41 | R31: =Summary!T34 -> 0.4 | S31: =Summary!#REF! -> 
B32: Yield per acre (bu or lb.) | C32: =Summary!C36 -> 65 | D32: =Summary!D36 -> 70 | E32: =Summary!E36 -> 70 | F32: =Summary!F36 -> 65 | G32: =Summary!G36 -> 120 | H32: =Summary!H36 -> 80 | I32: =Summary!I36 -> 80 | J32: =Summary!J36 -> 140 | K32: =Summary!M36 -> 45 | L32: =Summary!N36 -> 40 | M32: =Summary!O36 -> 2000 | N32: =Summary!P36 -> 25 | O32: =Summary!Q36 -> 55 | P32: =Summary!R36 -> 1900 | Q32: =Summary!S36 -> 1700 | R32: =Summary!T36 -> 1700 | S32: =Summary!#REF! -> 
B33: Unit type | C33: =Summary!C37 -> bu | D33: =Summary!D37 -> bu | E33: =Summary!E37 -> bu | F33: =Summary!F37 -> bu | G33: =Summary!G37 -> bu | H33: =Summary!H37 -> bu | I33: =Summary!I37 -> bu | J33: =Summary!J37 -> bu | K33: =Summary!M37 -> bu | L33: =Summary!N37 -> bu | M33: =Summary!O37 -> lb | N33: =Summary!P37 -> bu | O33: =Summary!Q37 -> bu | P33: =Summary!R37 -> lb | Q33: =Summary!S37 -> lb | R33: =Summary!T37 -> lb | S33: =Summary!#REF! -> 
C34: =Summary!C38 -> 520 | D34: =Summary!D38 -> 525 | E34: =Summary!E38 -> 525 | F34: =Summary!F38 -> 455 | G34: =Summary!G38 -> 492 | H34: =Summary!H38 -> 360 | I34: =Summary!I38 -> 440 | J34: =Summary!J38 -> 805 | K34: =Summary!M38 -> 596.25 | L34: =Summary!N38 -> 480 | M34: =Summary!O38 -> 520 | N34: =Summary!P38 -> 400 | O34: =Summary!Q38 -> 481.25 | P34: =Summary!R38 -> 760 | Q34: =Summary!S38 -> 697 | R34: =Summary!T38 -> 680 | S34: =Summary!#REF! -> 
B37: Percent Crop Yield Change | C37: -0.1 | G37: Percent Fertilizer Cost Change | H37: 0 | P37: Change in Equipment Investment ($/Acre) | Q37: 0 | R37: =" = "&TEXT(ABS(J142-E142),"$0.00")&" "&IF(J142-E142<0,"decreased ","increased ")&"equipment cost /acre" -> = $0.00 increased equipment cost /acre
B38: Percent Market Price Change | C38: -0.05 | G38: Percent Seed Cost Change | H38: 0 | P38: ="Change in Owned Acres (Purchase or Sale @ $"&TEXT('Fixed Cost Input'!D4,"#,###")&"/acre)" -> Change in Owned Acres (Purchase or Sale @ $4,500/acre) | Q38: 0 | R38: =" = "&TEXT(ABS(I154-D154),"$0.00")&" "&IF(I154-D154<0,"decreased ","increased ")&"land cost /acre" -> = $0.00 increased land cost /acre
B39: Percent Fuel Cost Change | C39: 0 | G39: Percent Pesticide Cost Change | H39: 0
C42: ='Data (HIDE)'!$B$16 -> Wheat - Hard Red Spring | D42: ='Data (HIDE)'!$B$17 -> Wheat - Northern Hard Red | E42: ='Data (HIDE)'!$B$18 -> Wheat - Prairie Spring | F42: ='Data (HIDE)'!$B$19 -> Wheat - Winter | G42: ='Data (HIDE)'!$B$20 -> Oats | H42: ='Data (HIDE)'!$B$21 -> Barley | I42: ='Data (HIDE)'!$B$22 -> Hybrid Fall Rye | J42: ='Data (HIDE)'!$B$23 -> Corn | N42: ='Data (HIDE)'!$B$24 -> Canola | O42: ='Data (HIDE)'!$B$25 -> Soybeans | P42: ='Data (HIDE)'!$B$26 -> Sunflower - Oilseed | Q42: ='Data (HIDE)'!$B$27 -> Flaxseed | R42: ='Data (HIDE)'!$B$28 -> Peas | S42: ='Data (HIDE)'!$B$29 -> Beans - Pinto | T42: ='Data (HIDE)'!$B$30 -> Beans - White | U42: ='Data (HIDE)'!$B$31 -> Beans - Black
B44: Percent Crop Yield Change | C44: =$C$37 -> -0.1 | D44: -0.1 | E44: -0.1 | F44: -0.1 | G44: -0.1 | H44: -0.1 | I44: -0.1 | J44: -0.1 | L44: Percent Crop Yield Change | N44: =$C$37 -> -0.1 | O44: -0.1 | P44: -0.1 | Q44: -0.1 | R44: -0.1 | S44: -0.1 | T44: -0.1 | U44: -0.1 | AG44: =$C$37 -> -0.1
B45: Yield (units/acre) | C45: =C49 -> 58.5 | D45: =D49 -> 63 | E45: 63 | F45: 58.5 | G45: 108 | H45: 72 | I45: 72 | J45: 126 | L45: Yield (units/acre) | N45: =N49 -> 40.5 | O45: 36 | P45: 1800 | Q45: 22.5 | R45: 49.5 | S45: 1710 | T45: 1530 | U45: 1530
B46: Percent Market Price Change | C46: =$C$38 -> -0.05 | D46: -0.05 | E46: -0.05 | F46: -0.05 | G46: -0.05 | H46: -0.05 | I46: -0.05 | J46: -0.05 | L46: Percent Market Price Change | N46: =$C$38 -> -0.05 | O46: -0.05 | P46: -0.05 | Q46: -0.05 | R46: -0.05 | S46: -0.05 | T46: -0.05 | U46: -0.05 | AG46: =$C$38 -> -0.05
B47: Price ($/unit) | C47: =C48 -> 7.6 | D47: =D48 -> 7.125 | E47: 7.125 | F47: 6.65 | G47: 3.895 | H47: 4.275 | I47: 5.225 | J47: 5.4625 | L47: Price ($/unit) | N47: =N48 -> 12.5875 | O47: 11.4 | P47: 0.247 | Q47: 15.2 | R47: 8.3125 | S47: 0.38 | T47: 0.3895 | U47: 0.38
B48: Market Price ($ per unit) | C48: =SUM(C31*(1+C46)) -> 7.6 | D48: =SUM(D31*(1+D46)) -> 7.125 | E48: 7.125 | F48: 6.65 | G48: 3.895 | H48: 4.275 | I48: 5.225 | J48: 5.4625 | L48: Market Price ($ per unit) | N48: =SUM(K31*(1+N46)) -> 12.5875 | O48: 11.4 | P48: 0.247 | Q48: 15.2 | R48: 8.3125 | S48: 0.38 | T48: 0.3895 | U48: 0.38
B49: Yield (per acre) | C49: =ROUND(C32*(1+C44),1) -> 58.5 | D49: =ROUND(D32*(1+D44),1) -> 63 | E49: 63 | F49: 58.5 | G49: 108 | H49: 72 | I49: 72 | J49: 126 | L49: Yield (per acre) | N49: =ROUND(K32*(1+N44),1) -> 40.5 | O49: 36 | P49: 1800 | Q49: 22.5 | R49: 49.5 | S49: 1710 | T49: 1530 | U49: 1530
B50: Gross Revenue / acre | C50: =C48*C49 -> 444.6 | D50: 448.875 | E50: 448.875 | F50: 389.025 | G50: 420.66 | H50: 307.8 | I50: 376.2 | J50: 688.275 | L50: Gross Revenue / acre | N50: =N48*N49 -> 509.79375 | O50: 410.4 | P50: 444.6 | Q50: 342 | R50: 411.46875 | S50: 649.8 | T50: 595.935 | U50: 581.4
A51: Stress Test Change in Value
B52: Market Price ($ per unit) | C52: =SUM(C48-C31) -> -0.4 | D52: =SUM(D48-D31) -> -0.375 | E52: -0.375 | F52: -0.35 | G52: -0.205 | H52: -0.225 | I52: -0.275 | J52: -0.2875 | L52: Market Price ($ per unit) | N52: =SUM(N48-K31) -> -0.6625 | O52: -0.6 | P52: -0.013 | Q52: -0.8 | R52: -0.4375 | S52: -0.02 | T52: -0.0205 | U52: -0.02
B53: Yield (per acre) | C53: =SUM(C49-C32) -> -6.5 | D53: =SUM(D49-D32) -> -7 | E53: -7 | F53: -6.5 | G53: -12 | H53: -8 | I53: -8 | J53: -14 | L53: Yield (per acre) | N53: -4.5 | O53: -4 | P53: -200 | Q53: -2.5 | R53: -5.5 | S53: -190 | T53: -170 | U53: -170
B54: Equipment Cost ($ per acre) | C54: =$J$142-$E$142 -> 0 | D54: 0 | E54: 0 | F54: 0 | G54: 0 | H54: 0 | I54: 0 | J54: 0 | L54: Equipment Cost ($ per acre) | N54: =$J$142-$E$142 -> 0 | O54: 0 | P54: 0 | Q54: 0 | R54: 0 | S54: 0 | T54: 0 | U54: 0
B55: Land Cost ($ per acre) | C55: =$I$154-$D$154 -> 0 | D55: 0 | E55: 0 | F55: 0 | G55: 0 | H55: 0 | I55: 0 | J55: 0 | L55: Land Cost ($ per acre) | N55: =$I$154-$D$154 -> 0 | O55: 0 | P55: 0 | Q55: 0 | R55: 0 | S55: 0 | T55: 0 | U55: 0
B56: Fertilizer Cost ($ per acre) | C56: =Summary!C5*$H$37 -> 0 | D56: =Summary!D5*$H$37 -> 0 | E56: =Summary!E5*$H$37 -> 0 | F56: =Summary!F5*$H$37 -> 0 | G56: =Summary!G5*$H$37 -> 0 | H56: =Summary!H5*$H$37 -> 0 | I56: =Summary!I5*$H$37 -> 0 | J56: =Summary!J5*$H$37 -> 0 | L56: Fertilizer Cost ($ per acre) | N56: =Summary!M5*$H$37 -> 0 | O56: =Summary!N5*$H$37 -> 0 | P56: =Summary!O5*$H$37 -> 0 | Q56: =Summary!P5*$H$37 -> 0 | R56: =Summary!Q5*$H$37 -> 0 | S56: =Summary!R5*$H$37 -> 0 | T56: =Summary!S5*$H$37 -> 0 | U56: =Summary!T5*$H$37 -> 0
B57: Fuel Cost ($ per acre) | C57: =Summary!C9*$C$39 -> 0 | D57: =Summary!D9*$C$39 -> 0 | E57: =Summary!E9*$C$39 -> 0 | F57: =Summary!F9*$C$39 -> 0 | G57: =Summary!G9*$C$39 -> 0 | H57: =Summary!H9*$C$39 -> 0 | I57: =Summary!I9*$C$39 -> 0 | J57: =Summary!J9*$C$39 -> 0 | L57: Fuel Cost ($ per acre) | N57: =Summary!M9*$C$39 -> 0 | O57: =Summary!N9*$C$39 -> 0 | P57: =Summary!O9*$C$39 -> 0 | Q57: =Summary!P9*$C$39 -> 0 | R57: =Summary!Q9*$C$39 -> 0 | S57: =Summary!R9*$C$39 -> 0 | T57: =Summary!S9*$C$39 -> 0 | U57: =Summary!T9*$C$39 -> 0
B58: Seed Cost ($ per acre) | C58: =Summary!C4*$H$38 -> 0 | D58: =Summary!D4*$H$38 -> 0 | E58: =Summary!E4*$H$38 -> 0 | F58: =Summary!F4*$H$38 -> 0 | G58: =Summary!G4*$H$38 -> 0 | H58: =Summary!H4*$H$38 -> 0 | I58: =Summary!I4*$H$38 -> 0 | J58: =Summary!J4*$H$38 -> 0 | L58: Seed Cost ($ per acre) | N58: =Summary!M4*$H$38 -> 0 | O58: =Summary!N4*$H$38 -> 0 | P58: =Summary!O4*$H$38 -> 0 | Q58: =Summary!P4*$H$38 -> 0 | R58: =Summary!Q4*$H$38 -> 0 | S58: =Summary!R4*$H$38 -> 0 | T58: =Summary!S4*$H$38 -> 0 | U58: =Summary!T4*$H$38 -> 0
B59: Chemical Cost ($ per acre) | C59: =Summary!C6*$H$39 -> 0 | D59: =Summary!D6*$H$39 -> 0 | E59: =Summary!E6*$H$39 -> 0 | F59: =Summary!F6*$H$39 -> 0 | G59: =Summary!G6*$H$39 -> 0 | H59: =Summary!H6*$H$39 -> 0 | I59: =Summary!I6*$H$39 -> 0 | J59: =Summary!J6*$H$39 -> 0 | L59: Chemical Cost ($ per acre) | N59: =Summary!M6*$H$39 -> 0 | O59: =Summary!N6*$H$39 -> 0 | P59: =Summary!O6*$H$39 -> 0 | Q59: =Summary!P6*$H$39 -> 0 | R59: =Summary!Q6*$H$39 -> 0 | S59: =Summary!R6*$H$39 -> 0 | T59: =Summary!S6*$H$39 -> 0 | U59: =Summary!T6*$H$39 -> 0
A60: Change from Baseline Values
B61: Cost ($/acre) | C61: =SUM(C54:C59) -> 0 | D61: =SUM(D54:D59) -> 0 | E61: 0 | F61: 0 | G61: 0 | H61: 0 | I61: 0 | J61: 0 | L61: Cost ($/acre) | N61: =SUM(N54:N59) -> 0 | O61: 0 | P61: 0 | Q61: 0 | R61: 0 | S61: 0 | T61: 0 | U61: 0
B62: Revenue ($/acre) | C62: =-SUM(C34-C50) -> -75.4 | D62: -76.125 | E62: -76.125 | F62: -65.975 | G62: -71.34 | H62: -52.2 | I62: -63.8 | J62: -116.725 | L62: Revenue ($/acre) | N62: =-SUM(K34-N50) -> -86.45625 | O62: -69.6 | P62: -75.4 | Q62: -58 | R62: -69.78125 | S62: -110.2 | T62: -101.065 | U62: -98.6
A63: Change in Profit (Loss) % | C63: =IF(Summary!C48<0,-(C65/Summary!C48),C65/Summary!C48) -> -1.592526697 | D63: =IF(Summary!D48<0,-(D65/Summary!D48),D65/Summary!D48) -> -1.333858215 | E63: =IF(Summary!E48<0,-(E65/Summary!E48),E65/Summary!E48) -> -1.596968682 | F63: =IF(Summary!F48<0,-(F65/Summary!F48),F65/Summary!F48) -> -0.7307120398 | G63: =IF(Summary!G48<0,-(G65/Summary!G48),G65/Summary!G48) -> -1.967410234 | H63: =IF(Summary!H48<0,-(H65/Summary!H48),H65/Summary!H48) -> -0.3579227796 | I63: =IF(Summary!I48<0,-(I65/Summary!I48),I65/Summary!I48) -> -0.4037241011 | J63: =IF(Summary!J48<0,-(J65/Summary!J48),J65/Summary!J48) -> -3.468623653 | N63: =IF(Summary!M48<0,-(N65/Summary!M48),N65/Summary!M48) -> -2.203401498 | O63: =IF(Summary!N48<0,-(O65/Summary!N48),O65/Summary!N48) -> -1.579527083 | P63: =IF(Summary!O48<0,-(P65/Summary!O48),P65/Summary!O48) -> -0.73226045 | Q63: =IF(Summary!P48<0,-(Q65/Summary!P48),Q65/Summary!P48) -> -0.5616291486 | R63: =IF(Summary!Q48<0,-(R65/Summary!Q48),R65/Summary!Q48) -> -1.39152388 | S63: =IF(Summary!R48<0,-(S65/Summary!R48),S65/Summary!R48) -> -6.923530144 | T63: =IF(Summary!S48<0,-(T65/Summary!S48),T65/Summary!S48) -> -1.799867171 | U63: =IF(Summary!T48<0,-(U65/Summary!T48),U65/Summary!T48) -> -1.106046209
A65: Change in Profit (Loss) $/acre | C65: =C62-C61 -> -75.4 | D65: -76.125 | E65: -76.125 | F65: -65.975 | G65: -71.34 | H65: -52.2 | I65: -63.8 | J65: -116.725 | L65: Change in Profit (Loss) $/acre | N65: =N62-N61 -> -86.45625 | O65: -69.6 | P65: -75.4 | Q65: -58 | R65: -69.78125 | S65: -110.2 | T65: -101.065 | U65: -98.6
A67: ="Stress Test Scenario = Market Price "&IF(#REF!<0,"Down","Up")&" "&ABS(#REF!*100)&"%, and Crop Yield "&IF(C37<0,"Down","Up")&" "&ABS(C37*100)&"%" ->  | L67: ="Stress Test Scenario = Market Price "&IF(#REF!<0,"Down","Up")&" "&ABS(#REF!*100)&"%, and Crop Yield "&IF(M37<0,"Down","Up")&" "&ABS(M37*100)&"%" -> 
A68: Adjusted Net Profit (Loss) $/acre | C68: =SUM(C50-C28-C54-C55-C56-C57-C58-C59) -> -122.7461451 | D68: =SUM(D50-D28-D54-D55-D56-D57-D58-D59) -> -133.1962832 | E68: -123.7934364 | F68: -156.2636451 | G68: -107.6008666 | H68: -198.0415138 | I68: -221.8287127 | J68: -150.3766762 | L68: Adjusted Net Profit (Loss) $/acre | N68: =SUM(N50-K28-N54-N55-N56-N57-N58-N59) -> -125.6938788 | O68: -113.6638219 | P68: -178.3688276 | Q68: -161.2709932 | R68: -119.9286108 | S68: -94.28326421 | T68: -157.2163659 | U68: -187.7463659
A69: Adjusted Profitability Ranking | C69: =RANK(C68,$C$68:$U$68) -> 5 | D69: 8 | E69: 6 | F69: 10 | G69: 2 | H69: 15 | I69: 16 | J69: 9 | L69: Adjusted Profitability Ranking | N69: =RANK(N68,$C$68:$U$68) -> 7 | O69: 3 | P69: 13 | Q69: 12 | R69: 4 | S69: 1 | T69: 11 | U69: 14
A71: ="Stress Test - Total Farm Debt ($/acre) = $"&TEXT(L133+L148,"#,###")&" (land debt of $"&TEXT(L148,"#,###")&"/acre + machinery debt of $"&TEXT(L133,"#,###")&"/acre, farm equity = "&ROUND(L156*100,1)&"%)" -> Stress Test - Total Farm Debt ($/acre) = $858 (land debt of $540/acre + machinery debt of $318/acre, farm equity = 83.8%)
A72: ="(compared to baseline - Total Farm Debt ($/acre) = $"&TEXT(G133+G148,"#,###")&" land debt of $"&TEXT(G148,"#,###")&"/acre + machinery debt of $"&TEXT(G133,"#,###")&"/acre, farm equity = "&ROUND(G156*100,1)&"%)" -> (compared to baseline - Total Farm Debt ($/acre) = $858 land debt of $540/acre + machinery debt of $318/acre, farm equity = 83.8%)
A74: Rotation Economic Analysis | K74: Rotation Economic Analysis
A76: ='Data (HIDE)'!B211 -> Data Source – MASC Harvest Production Reports (2011-2020)
C77: Year 1 | D77: Year 2 | E77: Year 3 | F77: Year 4 | G77: Year 5 | H77: Year 6 | N77: Year 1 | O77: Year 2 | P77: Year 3 | Q77: Year 4 | R77: Year 5 | S77: Year 6
A78: Example Rotation #1 | C78: Wheat - Hard Red Spring | D78: Canola | E78: Wheat - Hard Red Spring | F78: Canola | G78: Wheat - Hard Red Spring | H78: Canola | I78: Rotation Total Marginal Return | L78: Example Rotation #3 | N78: Wheat - Hard Red Spring | O78: Canola | P78: Oats | Q78: Soybeans | R78: Corn | S78: Sunflower - Oilseed | T78: Rotation Total Marginal Return
A79: Rotation Yield Premium | C79: 1 | D79: =HLOOKUP(D78,'Data (HIDE)'!$D$213:$Q$227,VLOOKUP(C78,'Data (HIDE)'!$B$214:$C$227,2,FALSE),FALSE)/100 -> 1.01 | E79: =HLOOKUP(E78,'Data (HIDE)'!$D$213:$Q$227,VLOOKUP(D78,'Data (HIDE)'!$B$214:$C$227,2,FALSE),FALSE)/100 -> 1 | F79: =HLOOKUP(F78,'Data (HIDE)'!$D$213:$Q$227,VLOOKUP(E78,'Data (HIDE)'!$B$214:$C$227,2,FALSE),FALSE)/100 -> 1.01 | G79: =HLOOKUP(G78,'Data (HIDE)'!$D$213:$Q$227,VLOOKUP(F78,'Data (HIDE)'!$B$214:$C$227,2,FALSE),FALSE)/100 -> 1 | H79: =HLOOKUP(H78,'Data (HIDE)'!$D$213:$Q$227,VLOOKUP(G78,'Data (HIDE)'!$B$214:$C$227,2,FALSE),FALSE)/100 -> 1.01 | I79: - | L79: Rotation Yield Premium | N79: 1 | O79: =HLOOKUP(O78,'Data (HIDE)'!$D$213:$Q$227,VLOOKUP(N78,'Data (HIDE)'!$B$214:$C$227,2,FALSE),FALSE)/100 -> 1.01 | P79: =HLOOKUP(P78,'Data (HIDE)'!$D$213:$Q$227,VLOOKUP(O78,'Data (HIDE)'!$B$214:$C$227,2,FALSE),FALSE)/100 -> 1 | Q79: =HLOOKUP(Q78,'Data (HIDE)'!$D$213:$Q$227,VLOOKUP(P78,'Data (HIDE)'!$B$214:$C$227,2,FALSE),FALSE)/100 -> 0.99 | R79: =HLOOKUP(R78,'Data (HIDE)'!$D$213:$Q$227,VLOOKUP(Q78,'Data (HIDE)'!$B$214:$C$227,2,FALSE),FALSE)/100 -> 1.02 | S79: =HLOOKUP(S78,'Data (HIDE)'!$D$213:$Q$227,VLOOKUP(R78,'Data (HIDE)'!$B$214:$C$227,2,FALSE),FALSE)/100 -> 1.12 | T79: -
A80: Net Profit (Loss) | C80: =(HLOOKUP(C78,Summary!$C$2:$T$73,35,FALSE)*HLOOKUP(C78,Summary!$C$2:$T$73,33,FALSE))-HLOOKUP(C78,Summary!$C$2:$T$73,29,FALSE) -> -47.34614506 | D80: =(HLOOKUP(D78,Summary!$C$2:$T$73,35,FALSE)*D79*HLOOKUP(D78,Summary!$C$2:$T$73,33,FALSE))-HLOOKUP(D78,Summary!$C$2:$T$73,29,FALSE) -> -33.27512876 | E80: =(HLOOKUP(E78,Summary!$C$2:$T$73,35,FALSE)*E79*HLOOKUP(E78,Summary!$C$2:$T$73,33,FALSE))-HLOOKUP(E78,Summary!$C$2:$T$73,29,FALSE) -> -47.34614506 | F80: =(HLOOKUP(F78,Summary!$C$2:$T$73,35,FALSE)*F79*HLOOKUP(F78,Summary!$C$2:$T$73,33,FALSE))-HLOOKUP(F78,Summary!$C$2:$T$73,29,FALSE) -> -33.27512876 | G80: =(HLOOKUP(G78,Summary!$C$2:$T$73,35,FALSE)*G79*HLOOKUP(G78,Summary!$C$2:$T$73,33,FALSE))-HLOOKUP(G78,Summary!$C$2:$T$73,29,FALSE) -> -47.34614506 | H80: =(HLOOKUP(H78,Summary!$C$2:$T$73,35,FALSE)*H79*HLOOKUP(H78,Summary!$C$2:$T$73,33,FALSE))-HLOOKUP(H78,Summary!$C$2:$T$73,29,FALSE) -> -33.27512876 | I80: =SUM(C80:H80) -> -241.8638215 | L80: Net Profit (Loss) | N80: =(HLOOKUP(N78,Summary!$C$2:$T$73,35,FALSE)*HLOOKUP(N78,Summary!$C$2:$T$73,33,FALSE))-HLOOKUP(N78,Summary!$C$2:$T$73,29,FALSE) -> -47.34614506 | O80: =(HLOOKUP(O78,Summary!$C$2:$T$73,35,FALSE)*O79*HLOOKUP(O78,Summary!$C$2:$T$73,33,FALSE))-HLOOKUP(O78,Summary!$C$2:$T$73,29,FALSE) -> -33.27512876 | P80: =(HLOOKUP(P78,Summary!$C$2:$T$73,35,FALSE)*P79*HLOOKUP(P78,Summary!$C$2:$T$73,33,FALSE))-HLOOKUP(P78,Summary!$C$2:$T$73,29,FALSE) -> -36.26086659 | Q80: =(HLOOKUP(Q78,Summary!$C$2:$T$73,35,FALSE)*Q79*HLOOKUP(Q78,Summary!$C$2:$T$73,33,FALSE))-HLOOKUP(Q78,Summary!$C$2:$T$73,29,FALSE) -> -48.86382186 | R80: =(HLOOKUP(R78,Summary!$C$2:$T$73,35,FALSE)*R79*HLOOKUP(R78,Summary!$C$2:$T$73,33,FALSE))-HLOOKUP(R78,Summary!$C$2:$T$73,29,FALSE) -> -17.55167619 | S80: =(HLOOKUP(S78,Summary!$C$2:$T$73,35,FALSE)*S79*HLOOKUP(S78,Summary!$C$2:$T$73,33,FALSE))-HLOOKUP(S78,Summary!$C$2:$T$73,29,FALSE) -> -40.56882755 | T80: =SUM(N80:S80) -> -223.866466
A82: Example Rotation #2 | C82: Corn | D82: Canola | E82: Wheat - Hard Red Spring | F82: Soybeans | G82: Corn | H82: Canola | I82: Rotation Total Marginal Return | L82: Your Farm Rotation | N82: Soybeans | O82: Wheat - Hard Red Spring | P82: Canola | Q82: Soybeans | R82: Wheat - Hard Red Spring | S82: Canola | T82: Rotation Total Marginal Return
A83: Rotation Yield Premium | C83: 1 | D83: =HLOOKUP(D82,'Data (HIDE)'!$D$213:$Q$227,VLOOKUP(C82,'Data (HIDE)'!$B$214:$C$227,2,FALSE),FALSE)/100 -> 1.08 | E83: =HLOOKUP(E82,'Data (HIDE)'!$D$213:$Q$227,VLOOKUP(D82,'Data (HIDE)'!$B$214:$C$227,2,FALSE),FALSE)/100 -> 1 | F83: =HLOOKUP(F82,'Data (HIDE)'!$D$213:$Q$227,VLOOKUP(E82,'Data (HIDE)'!$B$214:$C$227,2,FALSE),FALSE)/100 -> 1.01 | G83: =HLOOKUP(G82,'Data (HIDE)'!$D$213:$Q$227,VLOOKUP(F82,'Data (HIDE)'!$B$214:$C$227,2,FALSE),FALSE)/100 -> 1.02 | H83: =HLOOKUP(H82,'Data (HIDE)'!$D$213:$Q$227,VLOOKUP(G82,'Data (HIDE)'!$B$214:$C$227,2,FALSE),FALSE)/100 -> 1.08 | I83: - | L83: Rotation Yield Premium | N83: 1 | O83: =HLOOKUP(O82,'Data (HIDE)'!$D$213:$Q$227,VLOOKUP(N82,'Data (HIDE)'!$B$214:$C$227,2,FALSE),FALSE)/100 -> 1.07 | P83: =HLOOKUP(P82,'Data (HIDE)'!$D$213:$Q$227,VLOOKUP(O82,'Data (HIDE)'!$B$214:$C$227,2,FALSE),FALSE)/100 -> 1.01 | Q83: =HLOOKUP(Q82,'Data (HIDE)'!$D$213:$Q$227,VLOOKUP(P82,'Data (HIDE)'!$B$214:$C$227,2,FALSE),FALSE)/100 -> 1 | R83: =HLOOKUP(R82,'Data (HIDE)'!$D$213:$Q$227,VLOOKUP(Q82,'Data (HIDE)'!$B$214:$C$227,2,FALSE),FALSE)/100 -> 1.07 | S83: =HLOOKUP(S82,'Data (HIDE)'!$D$213:$Q$227,VLOOKUP(R82,'Data (HIDE)'!$B$214:$C$227,2,FALSE),FALSE)/100 -> 1.01 | T83: -
A84: Net Profit (Loss) | C84: =(HLOOKUP(C82,Summary!$C$2:$T$73,35,FALSE)*HLOOKUP(C82,Summary!$C$2:$T$73,33,FALSE))-HLOOKUP(C82,Summary!$C$2:$T$73,29,FALSE) -> -33.65167619 | D84: =(HLOOKUP(D82,Summary!$C$2:$T$73,35,FALSE)*D83*HLOOKUP(D82,Summary!$C$2:$T$73,33,FALSE))-HLOOKUP(D82,Summary!$C$2:$T$73,29,FALSE) -> 8.46237124 | E84: =(HLOOKUP(E82,Summary!$C$2:$T$73,35,FALSE)*E83*HLOOKUP(E82,Summary!$C$2:$T$73,33,FALSE))-HLOOKUP(E82,Summary!$C$2:$T$73,29,FALSE) -> -47.34614506 | F84: =(HLOOKUP(F82,Summary!$C$2:$T$73,35,FALSE)*F83*HLOOKUP(F82,Summary!$C$2:$T$73,33,FALSE))-HLOOKUP(F82,Summary!$C$2:$T$73,29,FALSE) -> -39.26382186 | G84: =(HLOOKUP(G82,Summary!$C$2:$T$73,35,FALSE)*G83*HLOOKUP(G82,Summary!$C$2:$T$73,33,FALSE))-HLOOKUP(G82,Summary!$C$2:$T$73,29,FALSE) -> -17.55167619 | H84: =(HLOOKUP(H82,Summary!$C$2:$T$73,35,FALSE)*H83*HLOOKUP(H82,Summary!$C$2:$T$73,33,FALSE))-HLOOKUP(H82,Summary!$C$2:$T$73,29,FALSE) -> 8.46237124 | I84: =SUM(C84:H84) -> -120.8885768 | L84: Net Profit (Loss) | N84: =(HLOOKUP(N82,Summary!$C$2:$T$73,35,FALSE)*HLOOKUP(N82,Summary!$C$2:$T$73,33,FALSE))-HLOOKUP(N82,Summary!$C$2:$T$73,29,FALSE) -> -44.06382186 | O84: =(HLOOKUP(O82,Summary!$C$2:$T$73,35,FALSE)*O83*HLOOKUP(O82,Summary!$C$2:$T$73,33,FALSE))-HLOOKUP(O82,Summary!$C$2:$T$73,29,FALSE) -> -10.94614506 | P84: =(HLOOKUP(P82,Summary!$C$2:$T$73,35,FALSE)*P83*HLOOKUP(P82,Summary!$C$2:$T$73,33,FALSE))-HLOOKUP(P82,Summary!$C$2:$T$73,29,FALSE) -> -33.27512876 | Q84: =(HLOOKUP(Q82,Summary!$C$2:$T$73,35,FALSE)*Q83*HLOOKUP(Q82,Summary!$C$2:$T$73,33,FALSE))-HLOOKUP(Q82,Summary!$C$2:$T$73,29,FALSE) -> -44.06382186 | R84: =(HLOOKUP(R82,Summary!$C$2:$T$73,35,FALSE)*R83*HLOOKUP(R82,Summary!$C$2:$T$73,33,FALSE))-HLOOKUP(R82,Summary!$C$2:$T$73,29,FALSE) -> -10.94614506 | S84: =(HLOOKUP(S82,Summary!$C$2:$T$73,35,FALSE)*S83*HLOOKUP(S82,Summary!$C$2:$T$73,33,FALSE))-HLOOKUP(S82,Summary!$C$2:$T$73,29,FALSE) -> -33.27512876 | T84: =SUM(N84:S84) -> -176.5701914
A86: Note: This budget is only a guide and is not intended as an in depth study of the cost of production of this industry. Interpretation and utilization of this information is the responsibility of the user. | L86: Note: This budget is only a guide and is not intended as an in depth study of the cost of production of this industry. Interpretation and utilization of this information is the responsibility of the user.
J90: Acreage Analysis
J92: ='Data (HIDE)'!$B$23 -> Corn | K92: ='Data (HIDE)'!$B$24 -> Canola | L92: ='Data (HIDE)'!$B$25 -> Soybeans | M92: ='Data (HIDE)'!$B$26 -> Sunflower - Oilseed | N92: ='Data (HIDE)'!$B$27 -> Flaxseed | O92: ='Data (HIDE)'!$B$28 -> Peas | P92: ='Data (HIDE)'!$B$29 -> Beans - Pinto | Q92: ='Data (HIDE)'!$B$30 -> Beans - White | R92: ='Data (HIDE)'!$B$31 -> Beans - Black | S92: ='Data (HIDE)'!#REF! ->  | U92: Your Farm
A94: MASC Seeded Acreage
J95: ='Data (HIDE)'!$H$23 -> 403556 | K95: ='Data (HIDE)'!$H$24 -> 3292975 | L95: ='Data (HIDE)'!$H$25 -> 1225326.2 | M95: ='Data (HIDE)'!$H$26 -> 72887.2 | N95: ='Data (HIDE)'!$H$27 -> 42754.4 | O95: ='Data (HIDE)'!$H$28 -> 182530.6 | P95: ='Data (HIDE)'!$H$29 -> 87786.4 | Q95: ='Data (HIDE)'!$H$30 -> 26760.2 | R95: ='Data (HIDE)'!$H$31 -> 29704.2 | S95: ='Data (HIDE)'!#REF! -> 
J96: =RANK(J95,C95:S95) ->  | K96: =RANK(K95,C95:S95) ->  | L96: =RANK(L95,C95:S95) ->  | M96: =RANK(M95,C95:S95) ->  | N96: =RANK(N95,C95:S95) ->  | O96: =RANK(O95,C95:S95) ->  | P96: =RANK(P95,C95:S95) ->  | Q96: =RANK(Q95,C95:S95) ->  | R96: =RANK(R95,C95:S95) ->  | S96: =RANK(S95,C95:S95) -> 
J98: ='Data (HIDE)'!$J$23 -> 516551 | K98: ='Data (HIDE)'!$J$24 -> 3264557 | L98: ='Data (HIDE)'!$J$25 -> 1308262 | M98: ='Data (HIDE)'!$J$26 -> 33441 | N98: ='Data (HIDE)'!$J$27 -> 18312 | O98: ='Data (HIDE)'!$J$28 -> 178117 | P98: ='Data (HIDE)'!$J$29 -> 111111 | Q98: ='Data (HIDE)'!$J$30 -> 11173 | R98: ='Data (HIDE)'!$J$31 -> 48185 | S98: ='Data (HIDE)'!#REF! -> 
J99: =RANK(J98,C98:S98) ->  | K99: =RANK(K98,C98:S98) ->  | L99: =RANK(L98,C98:S98) ->  | M99: =RANK(M98,C98:S98) ->  | N99: =RANK(N98,C98:S98) ->  | O99: =RANK(O98,C98:S98) ->  | P99: =RANK(P98,C98:S98) ->  | Q99: =RANK(Q98,C98:S98) ->  | R99: =RANK(R98,C98:S98) ->  | S99: =RANK(S98,C98:S98) -> 
A101: Example Rotation #3 | C101: Wheat - Hard Red Spring | D101: Canola | E101: Oats | F101: Soybeans | G101: Corn | H101: Sunflower Confection | I101: Rotation Total Marginal Return
A102: Rotation Yield Premium | C102: 1 | D102: =HLOOKUP(D101,'Data (HIDE)'!$D$213:$Q$227,VLOOKUP(C101,'Data (HIDE)'!$B$214:$C$227,2,FALSE),FALSE)/100 -> 1.01 | E102: =HLOOKUP(E101,'Data (HIDE)'!$D$213:$Q$227,VLOOKUP(D101,'Data (HIDE)'!$B$214:$C$227,2,FALSE),FALSE)/100 -> 1 | F102: =HLOOKUP(F101,'Data (HIDE)'!$D$213:$Q$227,VLOOKUP(E101,'Data (HIDE)'!$B$214:$C$227,2,FALSE),FALSE)/100 -> 0.99 | G102: =HLOOKUP(G101,'Data (HIDE)'!$D$213:$Q$227,VLOOKUP(F101,'Data (HIDE)'!$B$214:$C$227,2,FALSE),FALSE)/100 -> 1.02 | H102: =HLOOKUP(H101,'Data (HIDE)'!$D$213:$Q$227,VLOOKUP(G101,'Data (HIDE)'!$B$214:$C$227,2,FALSE),FALSE)/100 ->  | I102: -
A103: Net Profit (Loss) | C103: =(HLOOKUP(C101,Summary!$C$2:$T$73,36,FALSE)*HLOOKUP(C101,Summary!$C$2:$T$73,34,FALSE))-HLOOKUP(C101,Summary!$C$2:$T$73,30,FALSE) ->  | D103: =(HLOOKUP(D101,Summary!$C$2:$T$73,36,FALSE)*D102*HLOOKUP(D101,Summary!$C$2:$T$73,34,FALSE))-HLOOKUP(D101,Summary!$C$2:$T$73,30,FALSE) ->  | E103: =(HLOOKUP(E101,Summary!$C$2:$T$73,36,FALSE)*E102*HLOOKUP(E101,Summary!$C$2:$T$73,34,FALSE))-HLOOKUP(E101,Summary!$C$2:$T$73,30,FALSE) ->  | F103: =(HLOOKUP(F101,Summary!$C$2:$T$73,36,FALSE)*F102*HLOOKUP(F101,Summary!$C$2:$T$73,34,FALSE))-HLOOKUP(F101,Summary!$C$2:$T$73,30,FALSE) ->  | G103: =(HLOOKUP(G101,Summary!$C$2:$T$73,36,FALSE)*G102*HLOOKUP(G101,Summary!$C$2:$T$73,34,FALSE))-HLOOKUP(G101,Summary!$C$2:$T$73,30,FALSE) ->  | H103: =(HLOOKUP(H101,Summary!$C$2:$T$73,36,FALSE)*H102*HLOOKUP(H101,Summary!$C$2:$T$73,34,FALSE))-HLOOKUP(H101,Summary!$C$2:$T$73,30,FALSE) ->  | I103: =SUM(C103:H103) -> 
A105: Example Rotation #4 | C105: Soybeans | D105: Wheat - Hard Red Spring | E105: Canola | F105: Soybeans | G105: Wheat - Hard Red Spring | H105: Canola | I105: Rotation Total Marginal Return
A106: Rotation Yield Premium | C106: 1 | D106: =HLOOKUP(D105,'Data (HIDE)'!$D$213:$Q$227,VLOOKUP(C105,'Data (HIDE)'!$B$214:$C$227,2,FALSE),FALSE)/100 -> 1.07 | E106: =HLOOKUP(E105,'Data (HIDE)'!$D$213:$Q$227,VLOOKUP(D105,'Data (HIDE)'!$B$214:$C$227,2,FALSE),FALSE)/100 -> 1.01 | F106: =HLOOKUP(F105,'Data (HIDE)'!$D$213:$Q$227,VLOOKUP(E105,'Data (HIDE)'!$B$214:$C$227,2,FALSE),FALSE)/100 -> 1 | G106: =HLOOKUP(G105,'Data (HIDE)'!$D$213:$Q$227,VLOOKUP(F105,'Data (HIDE)'!$B$214:$C$227,2,FALSE),FALSE)/100 -> 1.07 | H106: =HLOOKUP(H105,'Data (HIDE)'!$D$213:$Q$227,VLOOKUP(G105,'Data (HIDE)'!$B$214:$C$227,2,FALSE),FALSE)/100 -> 1.01 | I106: -
A107: Net Profit (Loss) | C107: =(HLOOKUP(C105,Summary!$C$2:$T$73,36,FALSE)*HLOOKUP(C105,Summary!$C$2:$T$73,34,FALSE))-HLOOKUP(C105,Summary!$C$2:$T$73,30,FALSE) ->  | D107: =(HLOOKUP(D105,Summary!$C$2:$T$73,36,FALSE)*D106*HLOOKUP(D105,Summary!$C$2:$T$73,34,FALSE))-HLOOKUP(D105,Summary!$C$2:$T$73,30,FALSE) ->  | E107: =(HLOOKUP(E105,Summary!$C$2:$T$73,36,FALSE)*E106*HLOOKUP(E105,Summary!$C$2:$T$73,34,FALSE))-HLOOKUP(E105,Summary!$C$2:$T$73,30,FALSE) ->  | F107: =(HLOOKUP(F105,Summary!$C$2:$T$73,36,FALSE)*F106*HLOOKUP(F105,Summary!$C$2:$T$73,34,FALSE))-HLOOKUP(F105,Summary!$C$2:$T$73,30,FALSE) ->  | G107: =(HLOOKUP(G105,Summary!$C$2:$T$73,36,FALSE)*G106*HLOOKUP(G105,Summary!$C$2:$T$73,34,FALSE))-HLOOKUP(G105,Summary!$C$2:$T$73,30,FALSE) ->  | H107: =(HLOOKUP(H105,Summary!$C$2:$T$73,36,FALSE)*H106*HLOOKUP(H105,Summary!$C$2:$T$73,34,FALSE))-HLOOKUP(H105,Summary!$C$2:$T$73,30,FALSE) ->  | I107: =SUM(C107:H107) -> 
B108: Wheat - Hard Red Spring
B109: Wheat - Northern Hard Red
B110: Wheat - Special Purpose
B111: Wheat - Prairie Spring
B112: Wheat - Winter
B113: Oats
B114: Barley
B115: Canola
B116: Flaxseed
B117: Peas
B118: Soybeans
B119: Beans - White
B120: Sunflower - Oilseed
B121: Corn
I124: CHANGE
D126: Conventional | E126: Special | I126: Conventional | J126: Special
B127: Machinery | D127: Crop | E127: Crop | I127: Crop | J127: Crop
B128: Total Investment ($/acre) | D128: ='Fixed Cost Input'!I5 -> 650 | E128: ='Fixed Cost Input'!J5 -> 145 | I128: =SUM(D129+I129)/I145 -> 650 | J128: =SUM(E129+J129)/I145 -> 145
D129: =SUM(D128*(D145+D146)) -> 1625000 | E129: =SUM(E128*(D145+D146)) -> 362500 | I129: =SUM(I145*Q37) -> 0 | J129: 0
B130: Residual Value (End of Useful Life) | D130: ='Fixed Cost Input'!I6 -> 0.25
B131: Useful Life (years) | D131: ='Fixed Cost Input'!I7 -> 15
B132: Owned Equipment Equity | D132: ='Fixed Cost Input'!I8 -> 0.6 | F132: =SUM(($E$128+$D$128)*D132)*($D$145+$D$146) -> 1192500 | I132: =SUM(F132/(I129+D129+E129)) -> 0.6 | J132: =SUM(($J$128+$I$128)*I132)*(I145) -> 1192500
B133: Equipment Financed | D133: =SUM(1-D132) -> 0.4 | F133: =SUM(($E$128+$D$128)*D133)*($D$145+$D$146) -> 795000 | G133: =F133/(D145+D146) -> 318 | H133: debt/acre | I133: =SUM(1-I132) -> 0.4 | J133: =SUM(($J$128+$I$128)*I133)*(I145) -> 795000 | L133: =SUM(J133/I145) -> 318 | M133: debt/acre
B134: Machinery Opportunity Cost (Investment Rate) | D134: ='Fixed Cost Input'!I10 -> 0.015 | F134: =SUM(F132:F133) -> 1987500 | J134: =SUM(J132:J133) -> 1987500 | L134: =SUM(L133-G133) -> 0 | M134: change
B136: Machinery Cost ($/acre)
B137: Finance Rate & Term | C137: ='Fixed Cost Input'!H13 -> 0.07 | D137: ='Fixed Cost Input'!I13 -> 7 | E137: Years
B138: Principle & Interest Cost | D138: =-PMT(C137,D137,D128*D133,0) -> 48.2438371 | E138: =-PMT(C137,D137,E128*D133,0) -> 10.76208674 | I138: =-PMT(C137,D137,I128*I133,0) -> 48.2438371 | J138: =-PMT(C137,D137,J128*I133,0) -> 10.76208674
B139: Machinery Depreciation Cost | D139: =(D128-(D128*D130))/D131 -> 32.5 | E139: =(E128-(E128*D130))/D131 -> 7.25 | I139: =(I128-(I128*D130))/D131 -> 32.5 | J139: =(J128-(E128*D130))/D131 -> 7.25
B140: Owned Machinery Opportunity Cost | D140: =SUM(D128*D132)*(D134) -> 5.85 | E140: =SUM(E128*D132)*(D134) -> 1.305 | I140: =SUM(I128*I132)*(D134) -> 5.85 | J140: =SUM(J128*I132)*(D134) -> 1.305
D141: =SUM(D138:D140) -> 86.5938371 | E141: =SUM(E138:E140) -> 19.31708674 | I141: =SUM(I138:I140) -> 86.5938371 | J141: =SUM(J138:J140) -> 19.31708674
E142: =SUM(D141:E141) -> 105.9109238 | J142: =SUM(I141:J141) -> 105.9109238
B143: Land
B144: Average Land value ($/acre) | D144: ='Fixed Cost Input'!D4 -> 4500
B145: Conventional Crop acres | D145: ='Fixed Cost Input'!D5 -> 2000 | I145: =SUM(D145+D146+Q38) -> 2500
B146: Special Crop acres | D146: ='Fixed Cost Input'!D6 -> 500
B147: Owned Land Equity | D147: ='Fixed Cost Input'!D7 -> 0.88 | E147: =SUM(D144*(D145+D146)*D147) -> 9900000 | I147: =SUM(E147/(I145*D144)) -> 0.88 | J147: =SUM(I145*D144*I147) -> 9900000
B148: Land Financed | D148: =SUM(1-D147) -> 0.12 | E148: =SUM(D144*(D145+D146)*D148) -> 1350000 | G148: =SUM(D144*D148) -> 540 | H148: debt/acre | I148: =SUM(1-I147) -> 0.12 | J148: =SUM(I145*D144*I148) -> 1350000 | L148: =SUM(I148*D144) -> 540 | M148: debt/acre
B149: Land Opportunity Cost (Investment Rate) | D149: ='Fixed Cost Input'!D9 -> 0.015 | E149: =SUM(E147:F148) -> 11250000 | J149: =SUM(J147:K148) -> 11250000 | L149: =SUM(L148-G148) -> 0 | M149: change
B150: Land cost ($/acre)
B151: Finance Rate & Term | C151: ='Fixed Cost Input'!C11 -> 0.065 | D151: ='Fixed Cost Input'!D11 -> 25 | E151: Years
B152: Principle & Interest Cost | D152: =-PMT(C151,D151,D144*D148,0) -> 44.26999979 | I152: =-PMT(C151,D151,D144*I148,0) -> 44.26999979
B153: Owned Land Opportunity Cost | D153: =SUM(D144*D147)*(D149) -> 59.4 | I153: =SUM(D144*I147)*(D149) -> 59.4
B154: Total Cost | D154: =SUM(D152:D153) -> 103.6699998 | I154: =SUM(I152:I153) -> 103.6699998
C156: Equity % | E156: =SUM(E147+F132) -> 11092500 | G156: =SUM(E156/E158) -> 0.8379603399 | J156: =SUM(J147+J132) -> 11092500 | L156: =SUM(J156/J158) -> 0.8379603399
C157: Financed % | E157: =SUM(E148+F133) -> 2145000 | G157: =SUM(E157/E158) -> 0.1620396601 | J157: =SUM(J148+J133) -> 2145000 | L157: =SUM(J157/J158) -> 0.1620396601
E158: =SUM(E156:F157) -> 13237500 | J158: =SUM(J156:K157) -> 13237500

Sheet Charts

Sheet Seed, Fertilizer & Chemical
A1: Seed & Treatment
D2: Seeding Rate | G2: Price | J2: Cost
A3: Crop | D3: per Acre | G3: per Unit | J3: per Acre
B4: Wheat - Hard Red Spring | D4: 2 | E4: bu | G4: 17 | H4: /bu | J4: =ROUND(D4*G4,2) -> 34
B5: Wheat - Northern Hard Red | D5: 2 | E5: bu | G5: 17 | H5: /bu | J5: 34
B6: Wheat - Prairie Spring | D6: 2 | E6: bu | G6: 17 | H6: /bu | J6: 34
B7: Wheat - Winter | D7: 2 | E7: bu | G7: 16 | H7: /bu | J7: 32
B8: Oats | D8: 2.5 | E8: bu | G8: 10 | H8: /bu | J8: 25
B9: Barley | D9: 2 | E9: bu | G9: 10 | H9: /bu | J9: 20
B10: Hybrid Fall Rye | D10: 0.8 | E10: units | G10: 98 | H10: /unit | J10: 78.4
B11: Corn | D11: 32000 | E11: plants | G11: 0.003125 | H11: /plant | J11: 100
B12: Canola | D12: 5 | E12: lb | G12: 16.5 | H12: /lb | J12: 82.5
B13: Soybeans | D13: 1.43 | E13: units | G13: 62.94 | H13: /unit | J13: 90
B14: Sunflower - Oilseed | D14: 20000 | E14: plants | G14: 0.0025 | H14: /plant | J14: 50
B15: Flaxseed | D15: 56 | E15: lb | G15: 1 | H15: /lb | J15: 56
B16: Peas | D16: 3 | E16: bu | G16: 28.333 | H16: /bu | J16: 85
B17: Beans - Pinto | D17: 0.75 | E17: units | G17: 140 | H17: /unit | J17: 105
B18: Beans - White | D18: 1.1 | E18: units | G18: 100 | H18: /unit | J18: 110
B19: Beans - Black | D19: 1.25 | E19: units | G19: 92 | H19: /unit | J19: 115
B22: * If row cropping, change seeding rate to 1.3 units/acre which reduces seed cost by 10%
A24: Fertilizer
D25: Bulk Price | G25: Actual Nutrient | J25: Nitrogen | M25: Sulphur
A26: Fertilizer Type | D26: $/tonne | G26: $/lb | J26: Usage | M26: Usage
B27: Nitrogen: (urea) 46-0-0 | D27: 690 | G27: =SUM(D27/(2204.5855*0.46)) -> 0.6804000117 | J27: 0.75 | M27: -
B28: Nitrogen: (NH3) 82-0-0 | D28: 1090 | G28: =SUM(D28/(2204.5855*0.82)) -> 0.6029561079 | J28: 0.25 | M28: -
B29: Nitrogen: (liquid) 28-0-0 | D29: 440 | G29: =SUM(D29/(2204.5855*0.28)) -> 0.7128000123 | J29: 0 | M29: -
B30: Phosphorus: 11-52-0 | D30: 1140 | G30: =SUM((D30-(G27*(0.11*2204.5855)))/(2204.5855*0.52)) -> 0.8505000146 | J30: - | M30: -
B31: Potash: 0-0-60 | D31: 560 | G31: =SUM(D31/(2204.5855*0.6)) -> 0.4233600073 | J31: - | M31: -
B32: Sulphur: 20.5-0-0-24 | D32: 530 | G32: =SUM((D32-(G27*(0.205*2204.5855)))/(2204.5855*0.24)) -> 0.4205250072 | J32: - | M32: 1
B33: MES S15: 13-33-0-15 | D33: 1140 | G33: =SUM((D33-(G27*(0.13*2204.5855))-(G30*(0.33*2204.5855)))/(2204.5855*0.15)) -> 0.986580017 | H33: 0 | J33: - | M33: 0
S34: ***HIDE***
C35: Amount of Actual Pounds of Elements Applied Per Acre | T35: 82-0-0 | X35: 28-0-0 | AD35: 46-0-0 | AH35: 11-52-0 | AK35: 0-0-60 | AN35: 20.5-0-0-24 | AQ35: 13-33-0-15
C36: Nitrogen | F36: Phosphorus | I36: Potash | L36: Sulphur | O36: Total | S36: preseed | T36: preseed | U36: preseed | V36: preseed | W36: suppl | X36: suppl | Y36: suppl | Z36: suppl | AA36: blend | AB36: blend | AC36: blend | AD36: blend | AE36: blend | AF36: blend | AG36: blend | AH36: blend | AI36: blend | AJ36: blend | AK36: blend | AL36: blend | AM36: blend | AN36: blend | AO36: blend | AP36: blend | AQ36: blend | AR36: blend | AS36: blend | AT36: N phos
A37: Crop | C37: lbs | D37: $/acre | F37: lbs | G37: $/acre | I37: lbs | J37: $/acre | L37: lbs | M37: $/acre | O37: $/acre | S37: N actual | T37: N lbs | U37: N MT | V37: N cost | W37: N actual | X37: N lbs | Y37: N MT | Z37: N cost | AA37: N phos | AB37: N sul1 | AC37: N sul2 | AD37: N urea | AE37: N lbs | AF37: N MT | AG37: N cost | AH37: phos lbs | AI37: phos MT | AJ37: phos cost | AK37: potash | AL37: pot MT | AM37: pot cost | AN37: sul 1 lbs | AO37: sul 1 MT | AP37: sul 1 cost | AQ37: sul 2 lbs | AR37: sul 2 MT | AS37: sul 2 cost | AT37: lbs
B38: =B4 -> Wheat - Hard Red Spring | C38: 110 | D38: =IF(SUM($J$27:$J$29)<>100%,"ERROR",SUM(V38+Z38+AG38)) -> 64.05076674 | F38: 40 | G38: =AJ38 -> 39.77696983 | I38: 10 | J38: =AM38 -> 4.233572228 | L38: 5 | M38: =IF(SUM($M$32:$M$33)<>100%,"ERROR",AP38+AS38) -> 5.008467144 | O38: =D38+G38+J38+M38 -> 113.0697759 | S38: =SUM(C38*$J$28) -> 27.5 | T38: =MAXA(0,(S38)/(0.82)) -> 33.53658537 | U38: =(T38)/2204.6 -> 0.01521209533 | V38: =SUM(U38*$D$28) -> 16.58118391 | W38: =SUM(C38*$J$29) -> 0 | X38: =MAXA(0,(W38)/(0.28)) -> 0 | Y38: =(X38)/2204.6 -> 0 | Z38: =SUM(Y38*$D$29) -> 0 | AA38: =SUM(AH38*0.11) -> 8.461538462 | AB38: =SUM(AN38*0.205) -> 4.270833333 | AC38: =SUM(AQ38*0.13) -> 0 | AD38: =SUM(C38-(AA38+AB38+AC38+W38+S38)) -> 69.76762821 | AE38: =MAXA(0,(AD38)/(0.46)) -> 151.668757 | AF38: =(AE38)/2204.6 -> 0.06879649686 | AG38: =SUM(AF38*$D$27) -> 47.46958283 | AH38: =MAXA(0,(F38-(AQ38*0.33))/0.52) -> 76.92307692 | AI38: =(AH38)/2204.6 -> 0.0348920788 | AJ38: =SUM(AI38*$D$30) -> 39.77696983 | AK38: =SUM(I38/0.6) -> 16.66666667 | AL38: =(AK38)/2204.6 -> 0.007559950407 | AM38: =SUM(AL38*$D$31) -> 4.233572228 | AN38: =MAXA(0,SUM(L38*$M$32)/0.24) -> 20.83333333 | AO38: =(AN38)/2204.6 -> 0.009449938008 | AP38: =SUM(AO38*$D$32) -> 5.008467144 | AQ38: =MAXA(0,SUM(L38*$M$33)/0.15) -> 0 | AR38: =(AQ38)/2204.6 -> 0 | AS38: =SUM(AR38*$D$33) -> 0
B39: =B5 -> Wheat - Northern Hard Red | C39: 125 | D39: 73.96628706 | F39: 40 | G39: 39.77696983 | I39: 10 | J39: 4.233572228 | L39: 5 | M39: 5.008467144 | O39: 122.9852963 | S39: 31.25 | T39: 38.1097561 | U39: 0.01728647197 | V39: 18.84225444 | W39: 0 | X39: 0 | Y39: 0 | Z39: 0 | AA39: 8.461538462 | AB39: 4.270833333 | AC39: 0 | AD39: 81.01762821 | AE39: 176.1252787 | AF39: 0.07988990234 | AG39: 55.12403262 | AH39: 76.92307692 | AI39: 0.0348920788 | AJ39: 39.77696983 | AK39: 16.66666667 | AL39: 0.007559950407 | AM39: 4.233572228 | AN39: 20.83333333 | AO39: 0.009449938008 | AP39: 5.008467144 | AQ39: 0 | AR39: 0 | AS39: 0
B40: Wheat - Prairie Spring | C40: 115 | D40: 67.35594018 | F40: 40 | G40: 39.77696983 | I40: 10 | J40: 4.233572228 | L40: 5 | M40: 5.008467144 | O40: 116.3749494 | S40: 28.75 | T40: 35.06097561 | U40: 0.01590355421 | V40: 17.33487409 | W40: 0 | X40: 0 | Y40: 0 | Z40: 0 | AA40: 8.461538462 | AB40: 4.270833333 | AC40: 0 | AD40: 73.51762821 | AE40: 159.8209309 | AF40: 0.07249429868 | AG40: 50.02106609 | AH40: 76.92307692 | AI40: 0.0348920788 | AJ40: 39.77696983 | AK40: 16.66666667 | AL40: 0.007559950407 | AM40: 4.233572228 | AN40: 20.83333333 | AO40: 0.009449938008 | AP40: 5.008467144 | AQ40: 0 | AR40: 0 | AS40: 0
B41: Wheat - Winter | C41: 110 | D41: 64.05076674 | F41: 40 | G41: 39.77696983 | I41: 10 | J41: 4.233572228 | L41: 5 | M41: 5.008467144 | O41: 113.0697759 | S41: 27.5 | T41: 33.53658537 | U41: 0.01521209533 | V41: 16.58118391 | W41: 0 | X41: 0 | Y41: 0 | Z41: 0 | AA41: 8.461538462 | AB41: 4.270833333 | AC41: 0 | AD41: 69.76762821 | AE41: 151.668757 | AF41: 0.06879649686 | AG41: 47.46958283 | AH41: 76.92307692 | AI41: 0.0348920788 | AJ41: 39.77696983 | AK41: 16.66666667 | AL41: 0.007559950407 | AM41: 4.233572228 | AN41: 20.83333333 | AO41: 0.009449938008 | AP41: 5.008467144 | AQ41: 0 | AR41: 0 | AS41: 0
B42: Oats | C42: 75 | D42: 38.72834585 | F42: 35 | G42: 34.8048486 | I42: 10 | J42: 4.233572228 | L42: 10 | M42: 10.01693429 | O42: 87.78370097 | S42: 18.75 | T42: 22.86585366 | U42: 0.01037188318 | V42: 11.30535267 | W42: 0 | X42: 0 | Y42: 0 | Z42: 0 | AA42: 7.403846154 | AB42: 8.541666667 | AC42: 0 | AD42: 40.30448718 | AE42: 87.61845039 | AF42: 0.03974346838 | AG42: 27.42299318 | AH42: 67.30769231 | AI42: 0.03053056895 | AJ42: 34.8048486 | AK42: 16.66666667 | AL42: 0.007559950407 | AM42: 4.233572228 | AN42: 41.66666667 | AO42: 0.01889987602 | AP42: 10.01693429 | AQ42: 0 | AR42: 0 | AS42: 0
B43: Barley | C43: 80 | D43: 45.65902435 | F43: 30 | G43: 29.83272737 | I43: 10 | J43: 4.233572228 | L43: 5 | M43: 5.008467144 | O43: 84.7337911 | S43: 20 | T43: 24.3902439 | U43: 0.01106334206 | V43: 12.05904284 | W43: 0 | X43: 0 | Y43: 0 | Z43: 0 | AA43: 6.346153846 | AB43: 4.270833333 | AC43: 0 | AD43: 49.38301282 | AE43: 107.3543757 | AF43: 0.04869562537 | AG43: 33.59998151 | AH43: 57.69230769 | AI43: 0.0261690591 | AJ43: 29.83272737 | AK43: 16.66666667 | AL43: 0.007559950407 | AM43: 4.233572228 | AN43: 20.83333333 | AO43: 0.009449938008 | AP43: 5.008467144 | AQ43: 0 | AR43: 0 | AS43: 0
B44: Hybrid Fall Rye | C44: 145 | D44: 87.18698082 | F44: 40 | G44: 39.77696983 | I44: 10 | J44: 4.233572228 | L44: 5 | M44: 5.008467144 | O44: 136.20599 | S44: 36.25 | T44: 44.20731707 | U44: 0.02005230748 | V44: 21.85701515 | W44: 0 | X44: 0 | Y44: 0 | Z44: 0 | AA44: 8.461538462 | AB44: 4.270833333 | AC44: 0 | AD44: 96.01762821 | AE44: 208.7339744 | AF44: 0.09468110966 | AG44: 65.32996567 | AH44: 76.92307692 | AI44: 0.0348920788 | AJ44: 39.77696983 | AK44: 16.66666667 | AL44: 0.007559950407 | AM44: 4.233572228 | AN44: 20.83333333 | AO44: 0.009449938008 | AP44: 5.008467144 | AQ44: 0 | AR44: 0 | AS44: 0
B45: Corn | C45: 140 | D45: 67.94048888 | F45: 70 | G45: 69.60969721 | I45: 25 | J45: 10.58393057 | L45: 25 | M45: 25.04233572 | O45: 173.1764524 | S45: 35 | T45: 42.68292683 | U45: 0.0193608486 | V45: 21.10332498 | W45: 0 | X45: 0 | Y45: 0 | Z45: 0 | AA45: 14.80769231 | AB45: 21.35416667 | AC45: 0 | AD45: 68.83814103 | AE45: 149.6481327 | AF45: 0.06787994768 | AG45: 46.8371639 | AH45: 134.6153846 | AI45: 0.0610611379 | AJ45: 69.60969721 | AK45: 41.66666667 | AL45: 0.01889987602 | AM45: 10.58393057 | AN45: 104.1666667 | AO45: 0.04724969004 | AP45: 25.04233572 | AQ45: 0 | AR45: 0 | AS45: 0
B46: Canola | C46: 130 | D46: 68.55389269 | F46: 40 | G46: 39.77696983 | I46: 0 | J46: 0 | L46: 20 | M46: 20.03386858 | O46: 128.3647311 | S46: 32.5 | T46: 39.63414634 | U46: 0.01797793085 | V46: 19.59594462 | W46: 0 | X46: 0 | Y46: 0 | Z46: 0 | AA46: 8.461538462 | AB46: 17.08333333 | AC46: 0 | AD46: 71.95512821 | AE46: 156.4241918 | AF46: 0.07095354792 | AG46: 48.95794807 | AH46: 76.92307692 | AI46: 0.0348920788 | AJ46: 39.77696983 | AK46: 0 | AL46: 0 | AM46: 0 | AN46: 83.33333333 | AO46: 0.03779975203 | AP46: 20.03386858 | AQ46: 0 | AR46: 0 | AS46: 0
B47: Soybeans | C47: 0 | D47: 0 | F47: 40 | G47: 39.77696983 | I47: 10 | J47: 4.233572228 | L47: 0 | M47: 0 | O47: 44.01054206 | S47: 0 | T47: 0 | U47: 0 | V47: 0 | W47: 0 | X47: 0 | Y47: 0 | Z47: 0 | AA47: 8.461538462 | AB47: 0 | AC47: 0 | AD47: -8.461538462 | AE47: 0 | AF47: 0 | AG47: 0 | AH47: 76.92307692 | AI47: 0.0348920788 | AJ47: 39.77696983 | AK47: 16.66666667 | AL47: 0.007559950407 | AM47: 4.233572228 | AN47: 0 | AO47: 0 | AP47: 0 | AQ47: 0 | AR47: 0 | AS47: 0
B48: Sunflower - Oilseed | C48: 100 | D48: 61.78557405 | F48: 30 | G48: 29.83272737 | I48: 30 | J48: 12.70071668 | L48: 0 | M48: 0 | O48: 104.3190181 | S48: 25 | T48: 30.48780488 | U48: 0.01382917757 | V48: 15.07380355 | W48: 0 | X48: 0 | Y48: 0 | Z48: 0 | AA48: 6.346153846 | AB48: 0 | AC48: 0 | AD48: 68.65384615 | AE48: 149.2474916 | AF48: 0.06769821811 | AG48: 46.71177049 | AH48: 57.69230769 | AI48: 0.0261690591 | AJ48: 29.83272737 | AK48: 50 | AL48: 0.02267985122 | AM48: 12.70071668 | AN48: 0 | AO48: 0 | AP48: 0 | AQ48: 0 | AR48: 0 | AS48: 0
B49: Flaxseed | C49: 50 | D49: 28.73383965 | F49: 30 | G49: 29.83272737 | I49: 0 | J49: 0 | L49: 0 | M49: 0 | O49: 58.56656702 | S49: 12.5 | T49: 15.24390244 | U49: 0.006914588787 | V49: 7.536901777 | W49: 0 | X49: 0 | Y49: 0 | Z49: 0 | AA49: 6.346153846 | AB49: 0 | AC49: 0 | AD49: 31.15384615 | AE49: 67.72575251 | AF49: 0.03072019981 | AG49: 21.19693787 | AH49: 57.69230769 | AI49: 0.0261690591 | AJ49: 29.83272737 | AK49: 0 | AL49: 0 | AM49: 0 | AN49: 0 | AO49: 0 | AP49: 0 | AQ49: 0 | AR49: 0 | AS49: 0
B50: Peas | C50: 0 | D50: 0 | F50: 30 | G50: 29.83272737 | I50: 0 | J50: 0 | L50: 0 | M50: 0 | O50: 29.83272737 | S50: 0 | T50: 0 | U50: 0 | V50: 0 | W50: 0 | X50: 0 | Y50: 0 | Z50: 0 | AA50: 6.346153846 | AB50: 0 | AC50: 0 | AD50: -6.346153846 | AE50: 0 | AF50: 0 | AG50: 0 | AH50: 57.69230769 | AI50: 0.0261690591 | AJ50: 29.83272737 | AK50: 0 | AL50: 0 | AM50: 0 | AN50: 0 | AO50: 0 | AP50: 0 | AQ50: 0 | AR50: 0 | AS50: 0
B51: Beans - Pinto | C51: 70 | D51: 41.95453341 | F51: 30 | G51: 29.83272737 | I51: 0 | J51: 0 | L51: 0 | M51: 0 | O51: 71.78726078 | S51: 17.5 | T51: 21.34146341 | U51: 0.009680424301 | V51: 10.55166249 | W51: 0 | X51: 0 | Y51: 0 | Z51: 0 | AA51: 6.346153846 | AB51: 0 | AC51: 0 | AD51: 46.15384615 | AE51: 100.3344482 | AF51: 0.04551140713 | AG51: 31.40287092 | AH51: 57.69230769 | AI51: 0.0261690591 | AJ51: 29.83272737 | AK51: 0 | AL51: 0 | AM51: 0 | AN51: 0 | AO51: 0 | AP51: 0 | AQ51: 0 | AR51: 0 | AS51: 0
B52: Beans - White | C52: 80 | D52: 48.56488029 | F52: 30 | G52: 29.83272737 | I52: 0 | J52: 0 | L52: 0 | M52: 0 | O52: 78.39760766 | S52: 20 | T52: 24.3902439 | U52: 0.01106334206 | V52: 12.05904284 | W52: 0 | X52: 0 | Y52: 0 | Z52: 0 | AA52: 6.346153846 | AB52: 0 | AC52: 0 | AD52: 53.65384615 | AE52: 116.638796 | AF52: 0.05290701079 | AG52: 36.50583744 | AH52: 57.69230769 | AI52: 0.0261690591 | AJ52: 29.83272737 | AK52: 0 | AL52: 0 | AM52: 0 | AN52: 0 | AO52: 0 | AP52: 0 | AQ52: 0 | AR52: 0 | AS52: 0
B53: Beans - Black | C53: 80 | D53: 48.56488029 | F53: 30 | G53: 29.83272737 | I53: 0 | J53: 0 | L53: 0 | M53: 0 | O53: 78.39760766 | S53: 20 | T53: 24.3902439 | U53: 0.01106334206 | V53: 12.05904284 | W53: 0 | X53: 0 | Y53: 0 | Z53: 0 | AA53: 6.346153846 | AB53: 0 | AC53: 0 | AD53: 53.65384615 | AE53: 116.638796 | AF53: 0.05290701079 | AG53: 36.50583744 | AH53: 57.69230769 | AI53: 0.0261690591 | AJ53: 29.83272737 | AK53: 0 | AL53: 0 | AM53: 0 | AN53: 0 | AO53: 0 | AP53: 0 | AQ53: 0 | AR53: 0 | AS53: 0
S54: =SUM(C54*$J$28) -> 0 | T54: =MAXA(0,(S54)/(0.82)) -> 0 | U54: =(T54)/2204.6 -> 0 | V54: =SUM(U54*$D$28) -> 0 | W54: =SUM(C54*$J$29) -> 0 | X54: =MAXA(0,(W54)/(0.28)) -> 0 | Y54: =(X54)/2204.6 -> 0 | Z54: =SUM(Y54*$D$29) -> 0 | AA54: =SUM(AH54*0.11) -> 0 | AB54: =SUM(AN54*0.205) -> 0 | AC54: =SUM(AQ54*0.13) -> 0 | AD54: =SUM(C54-(AA54+AB54+AC54+W54+S54)) -> 0 | AE54: =MAXA(0,(AD54)/(0.46)) -> 0 | AF54: =(AE54)/2204.6 -> 0 | AG54: =SUM(AF54*$D$27) -> 0 | AH54: =MAXA(0,(F54-(AQ54*0.33))/0.52) -> 0 | AI54: =(AH54)/2204.6 -> 0 | AJ54: =SUM(AI54*$D$30) -> 0 | AK54: =SUM(I54/0.6) -> 0 | AL54: =(AK54)/2204.6 -> 0 | AM54: =SUM(AL54*$D$31) -> 0 | AN54: =MAXA(0,SUM(L54*$M$32)/0.24) -> 0 | AO54: =(AN54)/2204.6 -> 0 | AP54: =SUM(AO54*$D$32) -> 0 | AQ54: =MAXA(0,SUM(L54*$M$33)/0.15) -> 0 | AR54: =(AQ54)/2204.6 -> 0 | AS54: =SUM(AR54*$D$33) -> 0
A56: * | B56: The fertilizer recommendation will vary depending on the soil type, climate and crop rotation. It is recommended that soil test sampling and analysis be conducted each year to produce a better baseline for fertility. It costs $1.00 to $2.00/acre for custom sampling and analysis.
A58: * | B58: For more information on fertilizer rates and recommendations -
A59: * | B59: Note: phosphorus amounts are allotted to each crop in the above examples. Sometimes this amount may not be practical or safe to apply with the seed of some crops like soybean or canola. Options for meeting these needs and phosphorus balance through the rotation are provided at:
A90: Crop Protection
D91: Weed | F91: Disease | G91: Insect | J91: Total
D92: Control | F92: Control | G92: Control | J92: Cost
A93: Crop | D93: $/acre | F93: $/acre | G93: $/acre | J93: $/acre
B94: =B4 -> Wheat - Hard Red Spring | D94: 35.75 | F94: 19.5 | G94: 0 | J94: =D94+F94+G94 -> 55.25
B95: Wheat - Northern Hard Red | D95: 35.75 | F95: 19.5 | G95: 0 | J95: 55.25
B96: Wheat - Prairie Spring | D96: 35.75 | F96: 19.5 | G96: 0 | J96: 55.25
B97: Wheat - Winter | D97: 16.5 | F97: 19.5 | G97: 0 | J97: 36
B98: Oats | D98: 10 | F98: 14.5 | G98: 0 | J98: 24.5
B99: Barley | D99: 22 | F99: 5.5 | G99: 0 | J99: 27.5
B100: Hybrid Fall Rye | D100: 8.5 | F100: 0 | G100: 0 | J100: 8.5
B101: Corn | D101: 44 | F101: 0 | G101: 0 | J101: 44
B102: Canola | D102: 30 | F102: 22.75 | G102: 5.75 | J102: 58.5
B103: Soybeans | D103: 21.75 | F103: 0 | G103: 0 | J103: 21.75
B104: Sunflower - Oilseed | D104: 49 | F104: 0 | G104: 0 | J104: 49
B105: Flaxseed | D105: 17 | F105: 16.5 | G105: 0 | J105: 33.5
B106: Peas | D106: 20.5 | F106: 22.25 | G106: 0 | J106: 42.75
B107: Beans - Pinto | D107: 83.5 | F107: 45 | G107: 0 | J107: 128.5
B108: Beans - White | D108: 83.5 | F108: 45 | G108: 0 | J108: 128.5
B109: Beans - Black | D109: 83.5 | F109: 45 | G109: 0 | J109: 128.5
B112: Note:
B113: Pre-emergent burn off and/or pre-harvest desiccation not included in weed control costs. (except for wheat, win. wheat and sunflowers).
B114: Chemical costs do not include year end rebates or bundling discounts.
B115: Disease Control costs (except for sunflowers listed on Operating Cost Page) do not include custom application costs.

Sheet Op. Cost Input
A1: Operating Costs
B3: Interest Rate on Operating | D3: 0.075 | G3: Grain Hauling | R3: # Hired | S3: # of | T3: Acres | U3: Hours
B4: Land Taxes ($/acre) | D4: 20 | G4: Distance to storage | I4: 6 | J4: miles roundtrip | R4: Staff | S4: Months | T4: Farmed | U4: Per Acre
B5: Labour rate ($/hour) | D5: 27 | G5: Distance to market | I5: 45 | J5: miles roundtrip | R5: 1 | S5: 12 | T5: ='Fixed Cost Input'!D5+'Fixed Cost Input'!D6 -> 2500 | U5: =SUM(R5*S5*4*40)/T5 -> 0.768
B6: Machinery Operating ($/acre) | D6: 25 | G6: Grain truck fuel use | I6: 5 | J6: Miles per Imp. Gallon | R6: 2 | S6: 4 | T6: =T5 -> 2500 | U6: =SUM(R6*S6*4*40)/T6 -> 0.512
B7: Other Costs ($/acre) | D7: 17.75 | G7: Grain truck size | I7: 475 | J7: bushels | R7: 0 | S7: 0 | T7: =T5 -> 2500 | U7: =SUM(R7*S7*4*40)/T7 -> 0
B8: Fuel Cost ($/litre) | D8: 1.1 | R8: 0 | S8: 0 | T8: =T5 -> 2500 | U8: =SUM(R8*S8*4*40)/T8 -> 0
B9: Owners - Labour & Living (hrs/acre) | D9: 1 | T9: Total | U9: =SUM(U5:U8) -> 1.28
E10: Operating Cost ($/Acre)
C11: Hired Labour | E11: Crop* | F11: Hail | G11: Drying | H11: Storage | I11: Rental and Custom Costs
A12: Crop | C12: (hrs/acre) | D12: Fuel | E12: Insurance | F12: Insurance | G12: Costs | H12: $/acre** | I12: Seeding | J12: Application | K12: Swathing | L12: Harvest | M12: General | N12: Total
B13: ='Seed, Fertilizer & Chemical'!B4 -> Wheat - Hard Red Spring | C13: 0.2 | D13: =SUM($D$8*D38) -> 29.96978484 | E13: ='Data (HIDE)'!C168+'Data (HIDE)'!$D$186 -> 10.265 | F13: ='Data (HIDE)'!D193 -> 10.8 | G13: - | H13: =-PMT('Fixed Cost Input'!$C$11,20,(HLOOKUP('Data (HIDE)'!$B$13,'Data (HIDE)'!$C$124:$G$141,2,FALSE)*(('Fixed Cost Input'!$C$17*'Fixed Cost Input'!$D$17)+('Fixed Cost Input'!$C$18*'Fixed Cost Input'!$D$18)+('Fixed Cost Input'!$C$19*'Fixed Cost Input'!$D$19))*'Fixed Cost Input'!$D$20),0) -> 15.92774739 | I13: - | J13: - | K13: - | L13: - | M13: - | N13: =SUM(I13:M13) -> 0 | AB13: =HLOOKUP('Data (HIDE)'!$V$14,'Data (HIDE)'!$C$167:$G$184,4,FALSE)+'Data (HIDE)'!$D$186 -> 10.32 | AC13: =HLOOKUP('Data (HIDE)'!$W$14,'Data (HIDE)'!$D$191:$H$208,5,FALSE) -> 10.8
B14: ='Seed, Fertilizer & Chemical'!B5 -> Wheat - Northern Hard Red | C14: 0.2 | D14: 30.50669137 | E14: ='Data (HIDE)'!C169+'Data (HIDE)'!$D$186 -> 12.7725 | F14: ='Data (HIDE)'!D194 -> 10.8 | G14: - | H14: =-PMT('Fixed Cost Input'!$C$11,20,(HLOOKUP('Data (HIDE)'!$B$13,'Data (HIDE)'!$C$124:$G$141,3,FALSE)*(('Fixed Cost Input'!$C$17*'Fixed Cost Input'!$D$17)+('Fixed Cost Input'!$C$18*'Fixed Cost Input'!$D$18)+('Fixed Cost Input'!$C$19*'Fixed Cost Input'!$D$19))*'Fixed Cost Input'!$D$20),0) -> 17.15295872 | I14: - | J14: - | K14: - | L14: - | M14: - | N14: 0 | AB14: =HLOOKUP('Data (HIDE)'!$V$14,'Data (HIDE)'!$C$167:$G$184,5,FALSE)+'Data (HIDE)'!$D$186 -> 10.2475 | AC14: =HLOOKUP('Data (HIDE)'!$W$14,'Data (HIDE)'!$D$191:$H$208,6,FALSE) -> 10.8
B15: ='Seed, Fertilizer & Chemical'!B6 -> Wheat - Prairie Spring | C15: 0.2 | D15: 30.50669137 | E15: ='Data (HIDE)'!C170+'Data (HIDE)'!$D$186 -> 10.32 | F15: ='Data (HIDE)'!D195 -> 10.8 | G15: - | H15: =-PMT('Fixed Cost Input'!$C$11,20,(HLOOKUP('Data (HIDE)'!$B$13,'Data (HIDE)'!$C$124:$G$141,4,FALSE)*(('Fixed Cost Input'!$C$17*'Fixed Cost Input'!$D$17)+('Fixed Cost Input'!$C$18*'Fixed Cost Input'!$D$18)+('Fixed Cost Input'!$C$19*'Fixed Cost Input'!$D$19))*'Fixed Cost Input'!$D$20),0) -> 17.15295872 | I15: - | J15: - | K15: - | L15: - | M15: - | N15: 0 | AB15: =HLOOKUP('Data (HIDE)'!$V$14,'Data (HIDE)'!$C$167:$G$184,7,FALSE)+'Data (HIDE)'!$D$186 -> 14.35 | AC15: =HLOOKUP('Data (HIDE)'!$W$14,'Data (HIDE)'!$D$191:$H$208,8,FALSE) -> 10.8
B16: ='Seed, Fertilizer & Chemical'!B7 -> Wheat - Winter | C16: 0.2 | D16: 29.96978484 | E16: ='Data (HIDE)'!C171+'Data (HIDE)'!$D$186 -> 10.2475 | F16: ='Data (HIDE)'!D196 -> 10.8 | G16: - | H16: =-PMT('Fixed Cost Input'!$C$11,20,(HLOOKUP('Data (HIDE)'!$B$13,'Data (HIDE)'!$C$124:$G$141,5,FALSE)*(('Fixed Cost Input'!$C$17*'Fixed Cost Input'!$D$17)+('Fixed Cost Input'!$C$18*'Fixed Cost Input'!$D$18)+('Fixed Cost Input'!$C$19*'Fixed Cost Input'!$D$19))*'Fixed Cost Input'!$D$20),0) -> 15.92774739 | I16: - | J16: - | K16: - | L16: - | M16: - | N16: 0 | AB16: =HLOOKUP('Data (HIDE)'!$V$14,'Data (HIDE)'!$C$167:$G$184,8,FALSE)+'Data (HIDE)'!$D$186 -> 14.865 | AC16: =HLOOKUP('Data (HIDE)'!$W$14,'Data (HIDE)'!$D$191:$H$208,9,FALSE) -> 10.8
B17: ='Seed, Fertilizer & Chemical'!B8 -> Oats | C17: 0.2 | D17: 35.87575663 | E17: ='Data (HIDE)'!C172+'Data (HIDE)'!$D$186 -> 18.2425 | F17: ='Data (HIDE)'!D197 -> 10.8 | G17: - | H17: =-PMT('Fixed Cost Input'!$C$11,20,(HLOOKUP('Data (HIDE)'!$B$13,'Data (HIDE)'!$C$124:$G$141,6,FALSE)*(('Fixed Cost Input'!$C$17*'Fixed Cost Input'!$D$17)+('Fixed Cost Input'!$C$18*'Fixed Cost Input'!$D$18)+('Fixed Cost Input'!$C$19*'Fixed Cost Input'!$D$19))*'Fixed Cost Input'!$D$20),0) -> 29.4050721 | I17: - | J17: - | K17: - | L17: - | M17: - | N17: 0 | AB17: =HLOOKUP('Data (HIDE)'!$V$14,'Data (HIDE)'!$C$167:$G$184,10,FALSE)+'Data (HIDE)'!$D$186 -> 13.96 | AC17: =HLOOKUP('Data (HIDE)'!$W$14,'Data (HIDE)'!$D$191:$H$208,11,FALSE) -> 10.8
B18: ='Seed, Fertilizer & Chemical'!B9 -> Barley | C18: 0.2 | D18: 33.01050442 | E18: ='Data (HIDE)'!C173+'Data (HIDE)'!$D$186 -> 14.35 | F18: ='Data (HIDE)'!D198 -> 10.8 | G18: - | H18: =-PMT('Fixed Cost Input'!$C$11,20,(HLOOKUP('Data (HIDE)'!$B$13,'Data (HIDE)'!$C$124:$G$141,7,FALSE)*(('Fixed Cost Input'!$C$17*'Fixed Cost Input'!$D$17)+('Fixed Cost Input'!$C$18*'Fixed Cost Input'!$D$18)+('Fixed Cost Input'!$C$19*'Fixed Cost Input'!$D$19))*'Fixed Cost Input'!$D$20),0) -> 19.6033814 | I18: - | J18: - | K18: - | L18: - | M18: - | N18: 0 | AB18: =HLOOKUP('Data (HIDE)'!$V$14,'Data (HIDE)'!$C$167:$G$184,9,FALSE)+'Data (HIDE)'!$D$186 -> 40.095 | AC18: =HLOOKUP('Data (HIDE)'!$W$14,'Data (HIDE)'!$D$191:$H$208,10,FALSE) -> 10.8
B19: ='Seed, Fertilizer & Chemical'!B10 -> Hybrid Fall Rye | C19: 0.2 | D19: 30.48050442 | E19: ='Data (HIDE)'!C174+'Data (HIDE)'!$D$186 -> 14.865 | F19: ='Data (HIDE)'!D199 -> 10.8 | G19: - | H19: =-PMT('Fixed Cost Input'!$C$11,20,(HLOOKUP('Data (HIDE)'!$B$13,'Data (HIDE)'!$C$124:$G$141,8,FALSE)*(('Fixed Cost Input'!$C$17*'Fixed Cost Input'!$D$17)+('Fixed Cost Input'!$C$18*'Fixed Cost Input'!$D$18)+('Fixed Cost Input'!$C$19*'Fixed Cost Input'!$D$19))*'Fixed Cost Input'!$D$20),0) -> 19.6033814 | I19: - | J19: - | K19: - | L19: - | M19: - | N19: 0 | AB19: =HLOOKUP('Data (HIDE)'!$V$14,'Data (HIDE)'!$C$167:$G$184,13,FALSE)+'Data (HIDE)'!$D$186 -> 13.99 | AC19: =HLOOKUP('Data (HIDE)'!$W$14,'Data (HIDE)'!$D$191:$H$208,14,FALSE) -> 10.8
B20: ='Seed, Fertilizer & Chemical'!B11 -> Corn | C20: 0.2 | D20: 39.78338274 | E20: ='Data (HIDE)'!C175+'Data (HIDE)'!$D$186 -> 40.095 | F20: ='Data (HIDE)'!D200 -> 10.8 | G20: 70 | H20: =-PMT('Fixed Cost Input'!$C$11,20,(HLOOKUP('Data (HIDE)'!$B$13,'Data (HIDE)'!$C$124:$G$141,9,FALSE)*(('Fixed Cost Input'!$C$17*'Fixed Cost Input'!$D$17)+('Fixed Cost Input'!$C$18*'Fixed Cost Input'!$D$18)+('Fixed Cost Input'!$C$19*'Fixed Cost Input'!$D$19))*'Fixed Cost Input'!$D$20),0) -> 34.30591745 | I20: - | J20: - | K20: - | L20: - | M20: - | N20: 0 | AB20: =HLOOKUP('Data (HIDE)'!$V$14,'Data (HIDE)'!$C$167:$G$184,11,FALSE)+'Data (HIDE)'!$D$186 -> 21.7725 | AC20: =HLOOKUP('Data (HIDE)'!$W$14,'Data (HIDE)'!$D$191:$H$208,12,FALSE) -> 14.04
B21: ='Seed, Fertilizer & Chemical'!B12 -> Canola | C21: 0.2 | D21: 29.80215874 | E21: ='Data (HIDE)'!C176+'Data (HIDE)'!$D$186 -> 13.96 | F21: ='Data (HIDE)'!D201 -> 10.8 | G21: - | H21: =-PMT('Fixed Cost Input'!$C$11,20,(HLOOKUP('Data (HIDE)'!$B$13,'Data (HIDE)'!$C$124:$G$141,10,FALSE)*(('Fixed Cost Input'!$C$17*'Fixed Cost Input'!$D$17)+('Fixed Cost Input'!$C$18*'Fixed Cost Input'!$D$18)+('Fixed Cost Input'!$C$19*'Fixed Cost Input'!$D$19))*'Fixed Cost Input'!$D$20),0) -> 11.02690204 | I21: - | J21: - | K21: - | L21: - | M21: - | N21: 0 | AB21: =HLOOKUP('Data (HIDE)'!$V$14,'Data (HIDE)'!$C$167:$G$184,2,FALSE)+'Data (HIDE)'!$D$186 -> 10.265 | AC21: =HLOOKUP('Data (HIDE)'!$W$14,'Data (HIDE)'!$D$191:$H$208,3,FALSE) -> 10.8
B22: ='Seed, Fertilizer & Chemical'!B13 -> Soybeans | C22: 0.2 | D22: 26.18525221 | E22: ='Data (HIDE)'!C177+'Data (HIDE)'!$D$186 -> 21.7725 | F22: ='Data (HIDE)'!D202 -> 14.04 | G22: - | H22: =-PMT('Fixed Cost Input'!$C$11,20,(HLOOKUP('Data (HIDE)'!$B$13,'Data (HIDE)'!$C$124:$G$141,11,FALSE)*(('Fixed Cost Input'!$C$17*'Fixed Cost Input'!$D$17)+('Fixed Cost Input'!$C$18*'Fixed Cost Input'!$D$18)+('Fixed Cost Input'!$C$19*'Fixed Cost Input'!$D$19))*'Fixed Cost Input'!$D$20),0) -> 9.801690699 | I22: - | J22: - | K22: - | L22: - | M22: - | N22: 0 | AB22: =HLOOKUP('Data (HIDE)'!$V$14,'Data (HIDE)'!$C$167:$G$184,3,FALSE)+'Data (HIDE)'!$D$186 -> 12.7725 | AC22: =HLOOKUP('Data (HIDE)'!$W$14,'Data (HIDE)'!$D$191:$H$208,4,FALSE) -> 10.8
B23: ='Seed, Fertilizer & Chemical'!B14 -> Sunflower - Oilseed | C23: 0.2 | D23: 30.70050442 | E23: ='Data (HIDE)'!C178+'Data (HIDE)'!$D$186 -> 16.845 | F23: ='Data (HIDE)'!D203 -> 10.8 | G23: 10 | H23: =-PMT('Fixed Cost Input'!$C$11,20,(HLOOKUP('Data (HIDE)'!$B$13,'Data (HIDE)'!$C$124:$G$141,12,FALSE)/25*(('Fixed Cost Input'!$C$17*'Fixed Cost Input'!$D$17)+('Fixed Cost Input'!$C$18*'Fixed Cost Input'!$D$18)+('Fixed Cost Input'!$C$19*'Fixed Cost Input'!$D$19))*'Fixed Cost Input'!$D$20),0) -> 19.6033814 | I23: - | J23: 13 | K23: - | L23: - | M23: - | N23: 13 | AB23: =HLOOKUP('Data (HIDE)'!$V$14,'Data (HIDE)'!$C$167:$G$184,17,FALSE)+'Data (HIDE)'!$D$186 -> 47.1625 | AC23: =HLOOKUP('Data (HIDE)'!$W$14,'Data (HIDE)'!$D$191:$H$208,18,FALSE) -> 18.9
B24: ='Seed, Fertilizer & Chemical'!B15 -> Flaxseed | C24: 0.2 | D24: 28.53453263 | E24: ='Data (HIDE)'!C179+'Data (HIDE)'!$D$186 -> 13.99 | F24: ='Data (HIDE)'!D204 -> 10.8 | G24: - | H24: =-PMT('Fixed Cost Input'!$C$11,20,(HLOOKUP('Data (HIDE)'!$B$13,'Data (HIDE)'!$C$124:$G$141,13,FALSE)*(('Fixed Cost Input'!$C$17*'Fixed Cost Input'!$D$17)+('Fixed Cost Input'!$C$18*'Fixed Cost Input'!$D$18)+('Fixed Cost Input'!$C$19*'Fixed Cost Input'!$D$19))*'Fixed Cost Input'!$D$20),0) -> 6.126056687 | I24: - | J24: - | K24: - | L24: - | M24: - | N24: 0 | AB24: =HLOOKUP('Data (HIDE)'!$V$14,'Data (HIDE)'!$C$167:$G$184,14,FALSE)+'Data (HIDE)'!$D$186 -> 15.3875 | AC24: =HLOOKUP('Data (HIDE)'!$W$14,'Data (HIDE)'!$D$191:$H$208,15,FALSE) -> 21.6
B25: ='Seed, Fertilizer & Chemical'!B16 -> Peas | C25: 0.2 | D25: 26.58597179 | E25: ='Data (HIDE)'!C180+'Data (HIDE)'!$D$186 -> 15.3875 | F25: ='Data (HIDE)'!D205 -> 21.6 | G25: - | H25: =-PMT('Fixed Cost Input'!$C$11,20,(HLOOKUP('Data (HIDE)'!$B$13,'Data (HIDE)'!$C$124:$G$141,14,FALSE)*(('Fixed Cost Input'!$C$17*'Fixed Cost Input'!$D$17)+('Fixed Cost Input'!$C$18*'Fixed Cost Input'!$D$18)+('Fixed Cost Input'!$C$19*'Fixed Cost Input'!$D$19))*'Fixed Cost Input'!$D$20),0) -> 13.47732471 | I25: - | J25: - | K25: - | L25: - | M25: - | N25: 0 | AB25: =HLOOKUP('Data (HIDE)'!$V$14,'Data (HIDE)'!$C$167:$G$184,12,FALSE)+'Data (HIDE)'!$D$186 -> 16.845 | AC25: =HLOOKUP('Data (HIDE)'!$W$14,'Data (HIDE)'!$D$191:$H$208,13,FALSE) -> 10.8
B26: ='Seed, Fertilizer & Chemical'!B17 -> Beans - Pinto | C26: 0.2 | D26: 25.620408 | E26: ='Data (HIDE)'!C181+'Data (HIDE)'!$D$186 -> 38.445 | F26: ='Data (HIDE)'!D206 -> 18.9 | G26: - | H26: =-PMT('Fixed Cost Input'!$C$11,20,(HLOOKUP('Data (HIDE)'!$B$13,'Data (HIDE)'!$C$124:$G$141,15,FALSE)/60*(('Fixed Cost Input'!$C$17*'Fixed Cost Input'!$D$17)+('Fixed Cost Input'!$C$18*'Fixed Cost Input'!$D$18)+('Fixed Cost Input'!$C$19*'Fixed Cost Input'!$D$19))*'Fixed Cost Input'!$D$20),0) -> 7.759671803 | I26: - | J26: - | K26: - | L26: - | M26: 25 | N26: 25 | AB26: =HLOOKUP('Data (HIDE)'!$V$14,'Data (HIDE)'!$C$167:$G$184,15,FALSE)+'Data (HIDE)'!$D$186 -> 38.445 | AC26: =HLOOKUP('Data (HIDE)'!$W$14,'Data (HIDE)'!$D$191:$H$208,16,FALSE) -> 18.9
B27: ='Seed, Fertilizer & Chemical'!B18 -> Beans - White | C27: 0.2 | D27: 25.26247032 | E27: ='Data (HIDE)'!C182+'Data (HIDE)'!$D$186 -> 36.7475 | F27: ='Data (HIDE)'!D207 -> 18.9 | G27: - | H27: =-PMT('Fixed Cost Input'!$C$11,20,(HLOOKUP('Data (HIDE)'!$B$13,'Data (HIDE)'!$C$124:$G$141,16,FALSE)/60*(('Fixed Cost Input'!$C$17*'Fixed Cost Input'!$D$17)+('Fixed Cost Input'!$C$18*'Fixed Cost Input'!$D$18)+('Fixed Cost Input'!$C$19*'Fixed Cost Input'!$D$19))*'Fixed Cost Input'!$D$20),0) -> 6.942864245 | I27: - | J27: - | K27: - | L27: - | M27: 25 | N27: 25 | AB27: =HLOOKUP('Data (HIDE)'!$V$14,'Data (HIDE)'!$C$167:$G$184,16,FALSE)+'Data (HIDE)'!$D$186 -> 36.7475 | AC27: =HLOOKUP('Data (HIDE)'!$W$14,'Data (HIDE)'!$D$191:$H$208,17,FALSE) -> 18.9
B28: ='Seed, Fertilizer & Chemical'!B19 -> Beans - Black | C28: 0.2 | D28: 25.26247032 | E28: ='Data (HIDE)'!C183+'Data (HIDE)'!$D$186 -> 47.1625 | F28: ='Data (HIDE)'!D208 -> 18.9 | G28: - | H28: =-PMT('Fixed Cost Input'!$C$11,20,(HLOOKUP('Data (HIDE)'!$B$13,'Data (HIDE)'!$C$124:$G$141,17,FALSE)/60*(('Fixed Cost Input'!$C$17*'Fixed Cost Input'!$D$17)+('Fixed Cost Input'!$C$18*'Fixed Cost Input'!$D$18)+('Fixed Cost Input'!$C$19*'Fixed Cost Input'!$D$19))*'Fixed Cost Input'!$D$20),0) -> 6.942864245 | I28: - | J28: - | K28: - | L28: - | M28: 25 | N28: 25 | AB28: =HLOOKUP('Data (HIDE)'!$V$14,'Data (HIDE)'!$C$167:$G$184,6,FALSE)+'Data (HIDE)'!$D$186 -> 18.2425 | AC28: =HLOOKUP('Data (HIDE)'!$W$14,'Data (HIDE)'!$D$191:$H$208,7,FALSE) -> 10.8
A30: =IF('Data (HIDE)'!B13="Manitoba","* "&'Data (HIDE)'!B14&" - Based on MASC Risk Areas 2, 5, 6, & 12","* "&'Data (HIDE)'!B14&" - Based on MASC "&'Data (HIDE)'!B13) -> * 80% Insured Value - Based on MASC Risk Areas 2, 5, 6, & 12 | H30: ** Storage costs are listed under Fixed Costs on the Summary Page.
A32: Field Fuel Usage
E34: Number of Field Operations & Litres Fuel Per Acre Per Operation | M34: Trucks L/acre
E35: cultivator or tandem disk | F35: high speed disk | G35: harrow or land roller | H35: air drill | I35: row planter | J35: SP sprayer | K35: swather | L35: combine & grain cart | M35: 3/4 ton pickup | N35: grain hauling
D36: Total
A37: Crop | D37: L/acre | E37: 2.9 | F37: 3.5 | G37: 1.3 | H37: 2.8 | I37: 1.9 | J37: 0.5 | K37: 1.8 | L37: 7 | M37: 2
B38: =B13 -> Wheat - Hard Red Spring | D38: =SUM(E38*$E$37)+(F38*$F$37)+(G38*$G$37)+(H38*$H$37)+(I38*$I$37)+(J38*$J$37)+(K38*$K$37)+(L38*$L$37)+M38+N38 -> 27.24525895 | E38: 2 | G38: 1 | H38: 1 | J38: 4 | L38: 1 | M38: =$M$37 -> 2 | N38: =SUM((($I$4/$I$6)*4.546)/('Op. Cost Input'!$I$7/HLOOKUP(B38,Summary!$C$2:$T$36,35,FALSE)))+((($I$5/$I$6)*4.546)/('Op. Cost Input'!$I$7/HLOOKUP(B38,Summary!$C$2:$T$36,35,FALSE))) -> 6.345258947
B39: Wheat - Northern Hard Red | D39: =SUM(E39*$E$37)+(F39*$F$37)+(G39*$G$37)+(H39*$H$37)+(I39*$I$37)+(J39*$J$37)+(K39*$K$37)+(L39*$L$37)+M39+N39 -> 27.73335579 | E39: 2 | G39: 1 | H39: 1 | J39: 4 | L39: 1 | M39: 2 | N39: =SUM((($I$4/$I$6)*4.546)/('Op. Cost Input'!$I$7/HLOOKUP(B39,Summary!$C$2:$T$36,35,FALSE)))+((($I$5/$I$6)*4.546)/('Op. Cost Input'!$I$7/HLOOKUP(B39,Summary!$C$2:$T$36,35,FALSE))) -> 6.833355789
B40: Wheat - Prairie Spring | D40: 27.73335579 | E40: 2 | G40: 1 | H40: 1 | J40: 4 | L40: 1 | M40: 2 | N40: =SUM((($I$4/$I$6)*4.546)/('Op. Cost Input'!$I$7/HLOOKUP(B40,Summary!$C$2:$T$36,35,FALSE)))+((($I$5/$I$6)*4.546)/('Op. Cost Input'!$I$7/HLOOKUP(B40,Summary!$C$2:$T$36,35,FALSE))) -> 6.833355789
B41: Wheat - Winter | D41: 27.24525895 | E41: 2 | G41: 1 | H41: 1 | J41: 4 | L41: 1 | M41: 2 | N41: =SUM((($I$4/$I$6)*4.546)/('Op. Cost Input'!$I$7/HLOOKUP(B41,Summary!$C$2:$T$36,35,FALSE)))+((($I$5/$I$6)*4.546)/('Op. Cost Input'!$I$7/HLOOKUP(B41,Summary!$C$2:$T$36,35,FALSE))) -> 6.345258947
B42: Oats | D42: 32.61432421 | E42: 2 | G42: 1 | H42: 1 | J42: 4 | L42: 1 | M42: 2 | N42: =SUM((($I$4/$I$6)*4.546)/('Op. Cost Input'!$I$7/HLOOKUP(B42,Summary!$C$2:$T$36,35,FALSE)))+((($I$5/$I$6)*4.546)/('Op. Cost Input'!$I$7/HLOOKUP(B42,Summary!$C$2:$T$36,35,FALSE))) -> 11.71432421
B43: Barley | D43: 30.00954947 | E43: 2 | G43: 1 | H43: 1 | J43: 3 | K43: 1 | L43: 1 | M43: 2 | N43: =SUM((($I$4/$I$6)*4.546)/('Op. Cost Input'!$I$7/HLOOKUP(B43,Summary!$C$2:$T$36,35,FALSE)))+((($I$5/$I$6)*4.546)/('Op. Cost Input'!$I$7/HLOOKUP(B43,Summary!$C$2:$T$36,35,FALSE))) -> 7.809549474
B44: Hybrid Fall Rye | D44: 27.70954947 | E44: 2 | G44: 1 | H44: 1 | J44: 2 | L44: 1 | M44: 2 | N44: =SUM((($I$4/$I$6)*4.546)/('Op. Cost Input'!$I$7/HLOOKUP(B44,Summary!$C$2:$T$36,35,FALSE)))+((($I$5/$I$6)*4.546)/('Op. Cost Input'!$I$7/HLOOKUP(B44,Summary!$C$2:$T$36,35,FALSE))) -> 7.809549474
B45: Corn | D45: 36.16671158 | E45: 2 | F45: 1 | G45: 1 | I45: 1 | J45: 2 | L45: 1 | M45: 2 | N45: =SUM((($I$4/$I$6)*4.546)/('Op. Cost Input'!$I$7/HLOOKUP(B45,Summary!$C$2:$T$36,35,FALSE)))+((($I$5/$I$6)*4.546)/('Op. Cost Input'!$I$7/HLOOKUP(B45,Summary!$C$2:$T$36,35,FALSE))) -> 13.66671158
B46: Canola | D46: 27.09287158 | E46: 2 | G46: 1 | H46: 1 | J46: 4 | K46: 1 | L46: 1 | M46: 2 | N46: =SUM((($I$4/$I$6)*4.546)/('Op. Cost Input'!$I$7/HLOOKUP(B46,Summary!$C$2:$T$36,35,FALSE)))+((($I$5/$I$6)*4.546)/('Op. Cost Input'!$I$7/HLOOKUP(B46,Summary!$C$2:$T$36,35,FALSE))) -> 4.392871579
B47: Soybeans | D47: 23.80477474 | E47: 2 | G47: 1 | H47: 1 | J47: 2 | L47: 1 | M47: 2 | N47: =SUM((($I$4/$I$6)*4.546)/('Op. Cost Input'!$I$7/HLOOKUP(B47,Summary!$C$2:$T$36,35,FALSE)))+((($I$5/$I$6)*4.546)/('Op. Cost Input'!$I$7/HLOOKUP(B47,Summary!$C$2:$T$36,35,FALSE))) -> 3.904774737
B48: Sunflower - Oilseed | D48: 27.90954947 | E48: 1 | F48: 1 | G48: 1 | I48: 1 | J48: 3 | L48: 1 | M48: 2 | N48: =SUM((($I$4/$I$6)*4.546)/('Op. Cost Input'!$I$7/(HLOOKUP(B48,Summary!$C$2:$T$36,35,FALSE)/25)))+((($I$5/$I$6)*4.546)/('Op. Cost Input'!$I$7/(HLOOKUP(B48,Summary!$C$2:$T$36,35,FALSE)/25))) -> 7.809549474
B49: Flaxseed | D49: 25.94048421 | E49: 2 | G49: 2 | H49: 1 | J49: 3 | K49: 1 | L49: 1 | M49: 2 | N49: =SUM((($I$4/$I$6)*4.546)/('Op. Cost Input'!$I$7/HLOOKUP(B49,Summary!$C$2:$T$36,35,FALSE)))+((($I$5/$I$6)*4.546)/('Op. Cost Input'!$I$7/HLOOKUP(B49,Summary!$C$2:$T$36,35,FALSE))) -> 2.440484211
B50: Peas | D50: 24.16906526 | E50: 1 | G50: 2 | H50: 1 | J50: 3 | L50: 1 | M50: 2 | N50: =SUM((($I$4/$I$6)*4.546)/('Op. Cost Input'!$I$7/HLOOKUP(B50,Summary!$C$2:$T$36,35,FALSE)))+((($I$5/$I$6)*4.546)/('Op. Cost Input'!$I$7/HLOOKUP(B50,Summary!$C$2:$T$36,35,FALSE))) -> 5.369065263
B51: Beans - Pinto | D51: 23.29128 | E51: 1 | G51: 2 | I51: 1 | J51: 4 | K51: 1 | L51: 1 | M51: 2 | N51: =SUM((($I$4/$I$6)*4.546)/('Op. Cost Input'!$I$7/(HLOOKUP(B51,Summary!$C$2:$T$36,35,FALSE)/60)))+((($I$5/$I$6)*4.546)/('Op. Cost Input'!$I$7/(HLOOKUP(B51,Summary!$C$2:$T$36,35,FALSE)/60))) -> 3.09128
B52: Beans - White | D52: 22.96588211 | E52: 1 | G52: 2 | I52: 1 | J52: 4 | K52: 1 | L52: 1 | M52: 2 | N52: =SUM((($I$4/$I$6)*4.546)/('Op. Cost Input'!$I$7/(HLOOKUP(B52,Summary!$C$2:$T$36,35,FALSE)/60)))+((($I$5/$I$6)*4.546)/('Op. Cost Input'!$I$7/(HLOOKUP(B52,Summary!$C$2:$T$36,35,FALSE)/60))) -> 2.765882105
B53: Beans - Black | D53: 22.96588211 | E53: 1 | G53: 2 | I53: 1 | J53: 4 | K53: 1 | L53: 1 | M53: 2 | N53: =SUM((($I$4/$I$6)*4.546)/('Op. Cost Input'!$I$7/(HLOOKUP(B53,Summary!$C$2:$T$36,35,FALSE)/60)))+((($I$5/$I$6)*4.546)/('Op. Cost Input'!$I$7/(HLOOKUP(B53,Summary!$C$2:$T$36,35,FALSE)/60))) -> 2.765882105

Sheet Fixed Cost Input
A1: Fixed Costs
B3: Land | I3: Conventional | J3: Special
B4: Average Land value ($/acre) | D4: 4500 | G4: Machinery | I4: Crop | J4: Crop | L4: *HIDE*
B5: Conventional Crop acres | D5: 2000 | G5: Total Investment ($/acre) | I5: =ROUND((C48)/(D5+D6),2) -> 650 | J5: =ROUND((C56)/(D6+D5),2) -> 145 | L5: =(C56-J55)/(D6+D5) -> 116
B6: Special Crop acres | D6: 500 | G6: Residual Value (End of Useful Life) | I6: 0.25
B7: Owned Land Equity | D7: 0.88 | G7: Useful Life (years) | I7: 15
B8: =" Land Financed ("&TEXT(D4*D8,"$#,###")&" per acre)" -> Land Financed ($540 per acre) | D8: =SUM(1-D7) -> 0.12 | G8: Owned Equipment Equity | I8: 0.6
B9: Land Opportunity Cost (Investment Rate) | D9: 0.015 | G9: =" Equipment Financed ("&TEXT((I5+J5)*I9,"$#,###")&" per acre)" -> Equipment Financed ($318 per acre) | I9: =SUM(1-I8) -> 0.4
B10: Land cost ($/acre) | G10: Machinery Opportunity Cost (Investment Rate) | I10: 0.015
B11: Finance Rate & Term | C11: 0.065 | D11: 25 | E11: Years
B12: Principle & Interest Cost | D12: =-PMT(C11,D11,D4*D8,0) -> 44.26999979 | G12: Machinery Cost ($/acre)
B13: Owned Land Opportunity Cost | D13: =SUM(D4*D7)*(D9) -> 59.4 | G13: Finance Rate & Term | H13: 0.07 | I13: 7 | J13: Years | L13: w/o harvest
B14: Total Cost | D14: =SUM(D12:D13) -> 103.6699998 | G14: Principle & Interest Cost | I14: =-PMT(H13,I13,I5*I9,0) -> 48.2438371 | J14: =-PMT($H$13,$I$13,J5*$I$9,0) -> 10.76208674 | L14: =-PMT($H$13,$I$13,L5*$I$9,0) -> 8.609669391
G15: Machinery Depreciation Cost | I15: =(I5-(I5*I6))/I7 -> 32.5 | J15: =(J5-(J5*$I$6))/$I$7 -> 7.25 | L15: =(L5-(L5*$I$6))/$I$7 -> 5.8
B16: Grain Storage | C16: Usage % | D16: Cost | G16: Owned Machinery Opportunity Cost | I16: =SUM(I5*I8)*(I10) -> 5.85 | J16: =SUM(J5*$I$8)*($I$10) -> 1.305 | L16: =SUM(L5*$I$8)*($I$10) -> 1.044
B17: Non-aeration bins | C17: 0.15 | D17: 3.5 | E17: /bu | I17: =SUM(I14:I16) -> 86.5938371 | J17: =SUM(J14:J16) -> 19.31708674 | L17: =SUM(L14:L16) -> 15.45366939
B18: Aeration bins | C18: 0.7 | D18: 4.5 | E18: /bu
B19: Hopper bins | C19: 0.15 | D19: 5.5 | E19: /bu | G19: Total Land & Machinery Debt ($/acre) | I19: =(D4*D8)+((I5+J5)*I9) -> 858
B20: Storage Financed | D20: 0.6 | G20: ="Total Debt / EDIBTAR benchmark ratio = "&ROUND(I19/'S.O.S.'!C31,2)&":1 " -> Total Debt / EDIBTAR benchmark ratio = 4.74:1
T21: 0.0275
A22: Conventional Crop Equipment Inventory and Current Values
C23: Market | D23: Grain | E23: Grain | H23: Market | I23: Grain | J23: Grain
A24: Power Equipment | C24: Value | D24: Usage % | E24: Allocation | G24: Harvest Equipment | H24: Value | I24: Usage % | J24: Allocation
B25: 4WD Tractor 475HP | C25: 325000 | D25: 1 | E25: =SUM(C25*D25) -> 325000 | G25: Combine | H25: 325000 | I25: 1 | J25: =SUM(H25*I25) -> 325000
B26: MFWD Tractor 150HP | C26: 120000 | D26: 1 | E26: =SUM(C26*D26) -> 120000 | G26: Swather 35 ft | H26: 51000 | I26: 1 | J26: =SUM(H26*I26) -> 51000
B27: 2WD Tractor 60HP | C27: 36000 | D27: 1 | E27: 36000 | G27: Harvest Header | H27: 60000 | I27: 1 | J27: 60000
B28: ATV Quad | C28: 6000 | D28: 1 | E28: 6000 | G28: Tandem grain truck | H28: 72000 | I28: 1 | J28: 72000
C29: 0 | D29: 0 | E29: 0 | G29: Grain cart | H29: 40000 | I29: 1 | J29: 40000
C30: 0 | D30: 0 | E30: =SUM(C30*D30) -> 0 | H30: 0 | I30: 0 | J30: 0
C31: 0 | D31: 0 | E31: 0 | H31: 0 | I31: 0 | J31: 0
E32: ="Total Inv. = $"&TEXT(SUM(E25:E31),"#,###")&" ($"&ROUND(SUM(E25:E31)/($D$5+$D$6),0)&"/acre or "&ROUND((SUM(E25:E31)/$C$48)*100,0)&"% of Total)" -> Total Inv. = $487,000 ($195/acre or 30% of Total) | J32: ="Total Inv. = $"&TEXT(SUM(J25:J31),"#,###")&" ($"&ROUND(SUM(J25:J31)/($D$5+$D$6),0)&"/acre or "&ROUND((SUM(J25:J31)/$C$48)*100,0)&"% of Total)" -> Total Inv. = $548,000 ($219/acre or 34% of Total)
B33: Power Equipment - Target $/acre | C33: 150 | D33: ="("&ROUND(C33/($C$33+$H$33+$C$45+$H$45)*100,0)&"%)" -> (30%) | G33: Harvest Equipment - Target $/acre | H33: 175 | I33: ="("&ROUND(H33/($C$33+$H$33+$C$45+$H$45)*100,0)&"%)" -> (35%)
B34: =IF(ROUND(SUM(E25:E31)/($D$5+$D$6),0)<C33,"(Under Invested by",IF(ROUND(SUM(E25:E31)/($D$5+$D$6),0)=C33,"(On Target","(Over Invested by")) -> (Over Invested by | C34: ="$"&TEXT(ABS((ROUND(SUM(E25:E31)/($D$5+$D$6),0)-C33)*($D$5+$D$6)),"#,###")&")" -> $112,500) | G34: =IF(ROUND(SUM(J25:J31)/($D$5+$D$6),0)<H33,"(Under Invested by",IF(ROUND(SUM(J25:J31)/($D$5+$D$6),0)=H33,"(On Target","(Over Invested by")) -> (Over Invested by | H34: ="$"&TEXT(ABS((ROUND(SUM(J25:J31)/($D$5+$D$6),0)-H33)*($D$5+$D$6)),"#,###")&")" -> $110,000)
C36: Market | D36: Grain | E36: Grain | H36: Market | I36: Grain | J36: Grain
A37: Seeding & Tillage | C37: Value | D37: Usage % | E37: Allocation | G37: Spraying & Misc. | H37: Value | I37: Usage % | J37: Allocation
B38: Cultivator | C38: 18000 | D38: 1 | E38: =SUM(C38*D38) -> 18000 | G38: SP sprayer | H38: 235000 | I38: 1 | J38: =SUM(H38*I38) -> 235000
B39: Harrow 80ft | C39: 32000 | D39: 1 | E39: 32000 | G39: Miscellaneous | H39: 20000 | I39: 1 | J39: 20000
B40: Air tank | C40: 70000 | D40: 1 | E40: 70000 | G40: PTO Auger 13x70 | H40: 15000 | I40: 1 | J40: 15000
B41: Air drill | C41: 175000 | D41: 1 | E41: 175000 | G41: Auger 8x35 | H41: 5000 | I41: 1 | J41: 5000
C42: 0 | D42: 0 | E42: 0 | G42: Farm pickup truck | H42: 40000 | I42: 0.5 | J42: 20000
C43: 0 | D43: 0 | E43: 0 | H43: 0 | I43: 0 | J43: 0
E44: ="Total Inv. = $"&TEXT(SUM(E38:E43),"#,###")&" ($"&ROUND(SUM(E38:E43)/($D$5+$D$6),0)&"/acre or "&ROUND((SUM(E38:E43)/$C$48)*100,0)&"% of Total)" -> Total Inv. = $295,000 ($118/acre or 18% of Total) | J44: ="Total Inv. = $"&TEXT(SUM(J38:J43),"#,###")&" ($"&ROUND(SUM(J38:J43)/($D$5+$D$6),0)&"/acre or "&ROUND((SUM(J38:J43)/$C$48)*100,0)&"% of Total)" -> Total Inv. = $295,000 ($118/acre or 18% of Total)
B45: Seeding & Tillage - Target $/acre | C45: 100 | D45: ="("&ROUND(C45/($C$33+$H$33+$C$45+$H$45)*100,0)&"%)" -> (20%) | G45: Spraying & Misc. - Target $/acre | H45: 75 | I45: ="("&ROUND(H45/($C$33+$H$33+$C$45+$H$45)*100,0)&"%)" -> (15%)
B46: =IF(ROUND(SUM(E38:E43)/($D$5+$D$6),0)<C45,"(Under Invested by",IF(ROUND(SUM(E38:E43)/($D$5+$D$6),0)=C45,"(On Target","(Over Invested by")) -> (Over Invested by | C46: ="$"&TEXT(ABS((ROUND(SUM(E38:E43)/($D$5+$D$6),0)-C45)*($D$5+$D$6)),"#,###")&")" -> $45,000) | G46: =IF(ROUND(SUM(J38:J43)/($D$5+$D$6),0)<H45,"(Under Invested by",IF(ROUND(SUM(J38:J43)/($D$5+$D$6),0)=H45,"(On Target","(Over Invested by")) -> (Over Invested by | H46: ="$"&TEXT(ABS((ROUND(SUM(J38:J43)/($D$5+$D$6),0)-H45)*($D$5+$D$6)),"#,###")&")" -> $107,500)
B48: Owned Equipment TOTAL | C48: =SUM(E25:E31)+SUM(J25:J31)+SUM(E38:E43)+SUM(J38:J43) -> 1625000
A50: Special Crop Equipment Inventory and Current Values
C51: Market | D51: Grain | E51: Grain | H51: Market | I51: Grain | J51: Grain
A52: Seeding, Tillage, Spraying | C52: Value | D52: Usage % | E52: Allocation | G52: Harvest Equipment | H52: Value | I52: Usage % | J52: Allocation
B53: Planter | C53: 140000 | D53: 1 | E53: =SUM(C53*D53) -> 140000 | G53: Harvest Header | H53: 72500 | I53: 1 | J53: =SUM(H53*I53) -> 72500
B54: High speed disc | C54: 150000 | D54: 1 | E54: =SUM(C54*D54) -> 150000 | H54: 0 | I54: 0 | J54: =SUM(H54*I54) -> 0
B55: Total | E55: =SUM(E53:E54) -> 290000 | G55: Total | J55: =SUM(J53:J54) -> 72500
B56: Special Equipment TOTAL | C56: =SUM(E55+J55) -> 362500
A58: Leased Equipment Inventory
C59: Annual | D59: Grain | E59: Grain | H59: Annual | I59: Grain | J59: Grain
A60: Seeding, Tillage, Spraying | C60: Lease | D60: Usage % | E60: Allocation | G60: Trucks & Trailers | H60: Lease | I60: Usage % | J60: Allocation
B61: enter equipment here | C61: 0 | D61: 0 | E61: =SUM(C61*D61) -> 0 | G61: enter equipment here | H61: 0 | I61: 0 | J61: =SUM(H61*I61) -> 0
C62: 0 | D62: 0 | E62: =SUM(C62*D62) -> 0 | H62: 0 | I62: 0 | J62: =SUM(H62*I62) -> 0
C63: 0 | D63: 0 | E63: =SUM(C63*D63) -> 0 | H63: 0 | I63: 0 | J63: =SUM(H63*I63) -> 0
B64: Total | C64: =SUM(C61:C63) -> 0 | E64: =SUM(E61:E63) -> 0 | G64: Total | J64: =SUM(J61:J63) -> 0
B66: Leased Equipment TOTAL | C66: =SUM(E64+J64) -> 0 | D66: =SUM(C66/(D5+D6)) -> 0 | E66: per acre
B67: * Leased equipment costs are listed under Operating Costs on the Summary Page.

Sheet Assumptions
A1: Other Assumptions
A3: Fuel Costs: Includes fuel used for field work, trucking in inputs and trucking out production.
A5: Machinery Operating Costs: Includes costs for maintenance, repairs, licenses and insurance, based on 4.2% of machinery investment cost.
A8: Crop Insurance: (2024 rates)
A9: =IF('Data (HIDE)'!B13="Manitoba",'Data (HIDE)'!B14&" coverage, $100/acre excess moisture Insurance, and additional hail insurance at $"&'Data (HIDE)'!W13&"/acre coverage for all crops. Coverage and costs based on MASC Risk Areas #2, 5, 6, and 12.",'Data (HIDE)'!B14&" coverage, $50/acre excess moisture Insurance, and additional hail insurance at $"&'Data (HIDE)'!W13&"/acre coverage for all crops. Coverage and costs based on MASC "&'Data (HIDE)'!B13) -> 80% Insured Value coverage, $100/acre excess moisture Insurance, and additional hail insurance at $400/acre coverage for all crops. Coverage and costs based on MASC Risk Areas #2, 5, 6, and 12.
A12: Other Costs: Includes overhead expenses - hydro, telephone, accounting, buildings, supplies and insurance, etc.
A14: Land Taxes: The average cost based on land tax assessment and mill rates of a sample of municipalities growing crops less provincial tax rebate.
A16: Drying Costs: Budget allocates costs only for corn and sunflowers. However, drying costs may be incurred in some years for the other crops.
A18: Interest On Operating: | D18: ="Interest charges on operating costs are calculated at "&'Op. Cost Input'!D3*100&"% for six months." -> Interest charges on operating costs are calculated at 7.5% for six months.
A20: Land Cost:
A21: ="Based on approximate average land values. Budget assumed "&'Fixed Cost Input'!D8*100&"% financed at "&'Fixed Cost Input'!C11*100&"% for "&'Fixed Cost Input'!D11&" years, plus "&'Fixed Cost Input'!D9*100&"% land equity opportunity cost. Budget can be used to estimate cashflow by removing investment cost." -> Based on approximate average land values. Budget assumed 12% financed at 6.5% for 25 years, plus 1.5% land equity opportunity cost. Budget can be used to estimate cashflow by removing investment cost.
A23: ="P&I Cost (based on "&TEXT('Fixed Cost Input'!D4*('Fixed Cost Input'!D5+'Fixed Cost Input'!D6)*'Fixed Cost Input'!D8,"$#,###")&" Mortgage) = $"&TEXT('Fixed Cost Input'!D12*('Fixed Cost Input'!D5+'Fixed Cost Input'!D6),"#,###")&" payments per year) / "&'Fixed Cost Input'!D5+'Fixed Cost Input'!D6&" acres = $"&TEXT('Fixed Cost Input'!D12,"0.00")&"/acre)" -> P&I Cost (based on $1,350,000 Mortgage) = $110,675 payments per year) / 2500 acres = $44.27/acre)
A24: ="Investment = (Total Investment x Owned Equity %) x Investment Rate % (eg. (($"&TEXT('Fixed Cost Input'!D4,"#,###")&" x "&'Fixed Cost Input'!D7*100&"%) x "&'Fixed Cost Input'!D9*100&"%) = $"&TEXT('Fixed Cost Input'!D13,"0.00")&"/acre)" -> Investment = (Total Investment x Owned Equity %) x Investment Rate % (eg. (($4,500 x 88%) x 1.5%) = $59.40/acre)
A26: Machinery Cost:
A27: ="Based on approximate average machinery values. Budget assumed "&'Fixed Cost Input'!I9*100&"% financed at "&'Fixed Cost Input'!H13*100&"% for "&'Fixed Cost Input'!I13&" years, depreciation costs over "&'Fixed Cost Input'!I7&" years with a "&'Fixed Cost Input'!I6*100&"% residual value, plus "&'Fixed Cost Input'!I10*100&"% machinery equity opportunity cost. Budget can be used to estimate cashflow by removing depreciation and investment cost. " -> Based on approximate average machinery values. Budget assumed 40% financed at 7% for 7 years, depreciation costs over 15 years with a 25% residual value, plus 1.5% machinery equity opportunity cost. Budget can be used to estimate cashflow by removing depreciation and investment cost.
A30: ="P&I Cost (based on "&TEXT('Fixed Cost Input'!C48*'Fixed Cost Input'!I9,"$#,###")&" + "&TEXT('Fixed Cost Input'!C56*'Fixed Cost Input'!I9,"$#,###")&" Loans) = $"&TEXT('Fixed Cost Input'!I14*('Fixed Cost Input'!D5+'Fixed Cost Input'!D6),"#,###")&" + $"&TEXT('Fixed Cost Input'!J14*('Fixed Cost Input'!D5+'Fixed Cost Input'!D6),"#,###")&" payments per year) / "&'Fixed Cost Input'!D5+'Fixed Cost Input'!D6&" acres = $"&TEXT('Fixed Cost Input'!I14,"0.00")&" and $"&TEXT('Fixed Cost Input'!J14,"0.00")&"/acre)" -> P&I Cost (based on $650,000 + $145,000 Loans) = $120,610 + $26,905 payments per year) / 2500 acres = $48.24 and $10.76/acre)
A31: ="Depreciation (Useage Cost) = (Total Investment - Residual Value) / Years Useful Life (eg. ($"&'Fixed Cost Input'!I5&" - ($"&'Fixed Cost Input'!I5&" x "&'Fixed Cost Input'!I6*100&"%)) / "&'Fixed Cost Input'!I7&" = $"&TEXT('Fixed Cost Input'!I15,"0.00")&"/acre)" -> Depreciation (Useage Cost) = (Total Investment - Residual Value) / Years Useful Life (eg. ($650 - ($650 x 25%)) / 15 = $32.50/acre)
A32: ="Investment = (Total Investment x Owned Equity %) x Investment Rate % (eg. ($"&'Fixed Cost Input'!I5&" x "&'Fixed Cost Input'!I8*100&"%) x "&'Fixed Cost Input'!I10*100&"%) = $"&TEXT('Fixed Cost Input'!I16,"0.00")&"/acre)" -> Investment = (Total Investment x Owned Equity %) x Investment Rate % (eg. ($650 x 60%) x 1.5%) = $5.85/acre)
A34: Depreciation Cost = Original Cost - Salvage Value
A35: =" Useful Life" -> Useful Life
A36: Investment Cost = Original Cost + Salvage Value x Investment Rate
A37: =" 2" -> 2
A38: Estimated Farmgate Values:
A39: Target crop prices are based on deferred delivery contract prices for fall 2025.
A40: Target yields are estimated based on 5 year MASC average yields.
A42: Storage Cost:
A43: Storage costs for each crop are based on estimated yields entered on the Summary page.
A44: ="Budget assumed "&'Fixed Cost Input'!D20*100&"% financed at "&'Fixed Cost Input'!C11*100&"% for 20 years." -> Budget assumed 60% financed at 6.5% for 20 years.
A45: ="Farm storage requirements were assumed to cost $"&TEXT('Fixed Cost Input'!D17,"0.00")&"/bushel for "&'Fixed Cost Input'!C17*100&"% of the storage, $"&TEXT('Fixed Cost Input'!D18,"0.00")&"/bushel for "&'Fixed Cost Input'!C18*100&"% aerated storage and $"&TEXT('Fixed Cost Input'!D19,"0.00")&"/bushel for "&'Fixed Cost Input'!C19*100&"% hopper storage." -> Farm storage requirements were assumed to cost $3.50/bushel for 15% of the storage, $4.50/bushel for 70% aerated storage and $5.50/bushel for 15% hopper storage.
A48: Profitability, Breakeven & Risk Analysis Formulas:
A49: ="Gross Revenue = Price per unit x Yield per acre (eg. wheat: $"&TEXT('Data (HIDE)'!E16,"0.00")&"/bu x "&'Data (HIDE)'!C16&"bu/ac = $"&TEXT('Data (HIDE)'!AQ16, "0.00")&"/ac)" -> Gross Revenue = Price per unit x Yield per acre (eg. wheat: $8.00/bu x 65bu/ac = $520.00/ac)
A50: ="Net Profit = Gross Revenue - Total Cost (eg. wheat: $"&TEXT('Data (HIDE)'!AQ16,"0.00")&" gross revenue - $"&ROUND('Data (HIDE)'!AI16,2)&" total cost = $"&ROUND('Data (HIDE)'!AS16,2)&" per acre)" -> Net Profit = Gross Revenue - Total Cost (eg. wheat: $520.00 gross revenue - $567.35 total cost = $-47.35 per acre)
A51: ="Operating Expense Ratio = (Operating Cost / Gross Revenue) x 100 (eg. wheat: $"&TEXT('Data (HIDE)'!AC16,"0.00")&" operating expense / $"&ROUND('Data (HIDE)'!AI16,2)&" total cost = "&TEXT('Data (HIDE)'!AT16*100,"0.0")&"%)" -> Operating Expense Ratio = (Operating Cost / Gross Revenue) x 100 (eg. wheat: $350.08 operating expense / $567.35 total cost = 67.3%)
A52: ="$ Revenue Per $ Cost = Gross Revenue / Total Cost (eg. wheat: $"&TEXT('Data (HIDE)'!AQ16,"0.00")&" gross revenue / $"&ROUND('Data (HIDE)'!AI16,2)&" total cost = $"&TEXT('Data (HIDE)'!AY16,"0.00")&")" -> $ Revenue Per $ Cost = Gross Revenue / Total Cost (eg. wheat: $520.00 gross revenue / $567.35 total cost = $0.92)
A53: ="Return on Investment (ROI) = (Gross Revenue - Total Cost) / Total Cost (eg. wheat: ($"&TEXT('Data (HIDE)'!AQ16,"0.00")&" gross revenue-$"&ROUND('Data (HIDE)'!AI16,2)&" total cost) /$"&ROUND('Data (HIDE)'!AI16,2)&" total cost = "&TEXT('Data (HIDE)'!BA16*100,"0.0")&"%)" -> Return on Investment (ROI) = (Gross Revenue - Total Cost) / Total Cost (eg. wheat: ($520.00 gross revenue-$567.35 total cost) /$567.35 total cost = -8.3%)
A54: ="Return on Operating (ROO) = (Gross Revenue - Op. Cost) / Op. Cost (eg. wheat: ($"&TEXT('Data (HIDE)'!AQ16,"0.00")&" gross revenue-$"&ROUND('Data (HIDE)'!AC16,2)&" op. cost) /$"&ROUND('Data (HIDE)'!AC16,2)&" op. cost = "&TEXT('Data (HIDE)'!BK16*100,"0")&"%)" -> Return on Operating (ROO) = (Gross Revenue - Op. Cost) / Op. Cost (eg. wheat: ($520.00 gross revenue-$350.08 op. cost) /$350.08 op. cost = 49%)
A55: Estimated Return on Asset (ROA) = (Margin Over Operating - Labour - Machinery Depreciation) / (Land Investment Cost + Machinery Investment Cost)
A56: =" (eg. wheat: ($"&TEXT('Data (HIDE)'!AQ16-'Data (HIDE)'!AC16,"0.00")&" margin - $"&TEXT('Data (HIDE)'!U16,"0.00")&" labour - $"&TEXT('Fixed Cost Input'!I15,"0.00")&" dep.) / ($"&'Fixed Cost Input'!D4&" land cost + $"&TEXT('Fixed Cost Input'!I5,"0.00")&" conv. machinery + $"&TEXT('Fixed Cost Input'!J5,"0.00")&" special crop. mach.) = "&TEXT('Data (HIDE)'!AZ16*100,".00")&"%) " -> (eg. wheat: ($169.92 margin - $5.40 labour - $32.50 dep.) / ($4500 land cost + $650.00 conv. machinery + $145.00 special crop. mach.) = 2.09%)
A57: ="Breakeven Price = Cost / Target Yield (eg. wheat cost $"&TEXT('Data (HIDE)'!AI16,"0.00")&" / "&'Data (HIDE)'!C16&" bu = $"&TEXT('Data (HIDE)'!AU16,"0.00")&" per bu)" -> Breakeven Price = Cost / Target Yield (eg. wheat cost $567.35 / 65 bu = $8.73 per bu)
A58: ="Breakeven Storage Carrying Cost = (Price per unit x Operating Interest Rate) / 12 (eg. (wheat price $"&TEXT('Data (HIDE)'!E16,"0.00")&" x "&'Op. Cost Input'!D3*100&"% int. rate) / 12 = $"&TEXT(('Data (HIDE)'!E16*'Op. Cost Input'!D3)/12,"0.00")&" per bu per month)" -> Breakeven Storage Carrying Cost = (Price per unit x Operating Interest Rate) / 12 (eg. (wheat price $8.00 x 7.5% int. rate) / 12 = $0.05 per bu per month)
A59: ="Breakeven Yield = Cost / Target Price per Unit (eg. wheat cost $"&TEXT('Data (HIDE)'!AI16,"0.00")&" / $"&TEXT('Data (HIDE)'!E16,"0.00")&" bu = "&TEXT('Data (HIDE)'!AV16,"0.0")&" bu)" -> Breakeven Yield = Cost / Target Price per Unit (eg. wheat cost $567.35 / $8.00 bu = 70.9 bu)
A60: ="Breakeven Yield Risk Ratio = (Target Yield per Acre / Breakeven Yield) x 100 (eg. wheat yield "&'Data (HIDE)'!C16&" bu/ac / "&TEXT('Data (HIDE)'!AV16,"0.0")&" bu BE = "&ROUND('Data (HIDE)'!AW16*100,0)&" %)" -> Breakeven Yield Risk Ratio = (Target Yield per Acre / Breakeven Yield) x 100 (eg. wheat yield 65 bu/ac / 70.9 bu BE = 92 %)
A61: ="AgriInsurance Risk Ratio = (AgriInsurance Coverage / Operating Cost) x 100 (eg. wheat coverage $"&TEXT('Data (HIDE)'!AO16,"0.00")&"/ac / $"&TEXT('Data (HIDE)'!AC16,"0.00")&" operating expense = "&ROUND('Data (HIDE)'!AX16*100,0)&" %)" -> AgriInsurance Risk Ratio = (AgriInsurance Coverage / Operating Cost) x 100 (eg. wheat coverage $471.45/ac / $350.08 operating expense = 135 %)

Sheet Data (HIDE) (hidden)
B1: Annual Update Steps: | L1: To Do List:
B2: copy & paste 'Green' data blocks below from annual MASC cost and coverage information spreadsheet.
B3: enter COP yields into 'yellow' data block below | BJ3: =V14&" Yield per Acre - "&Introduction!I11 -> Manitoba Yield per Acre - 2025
B4: enter MASC insured values & COP yields into 'yellow' data blocks below | BK4: Return on Investment (ROI) = (Gross Revenue - Total Cost) / Total Cost
B5: enter MASC SAR acres into data block below and change formula for 5 year average. | BK5: Return on Operating (ROO) = (Gross Revenue - Operating Cost) / Operating Cost
B6: select yellow rows and sort | BK6: Profit Efficiency Ratio = (Gross Revenue - Operating Cost) / Operating Cost
BK7: Margin Efficiency Ratio = (Gross Revenue - Operating Cost) / Operating Cost
BK10: Chart-two scale? | BV10: 1 minus logic | BX10: increase fert cost early and decrease fert cost later
B11: *****Re-sort Yellow rows based on column I for 5yr Avg Ac Ranking or column K for 2018 Ranking ****** *****SUMMARY will AUTO update!! ****** | O11: ****sort on column F to reset to original listing **** | BK11: - op cost (bar graph)
W12: Hail Ins. coverage / acre | BK12: - profit (line) or margin over operating costs | BV12: minus factor x fert. Cost
B13: Manitoba | W13: 400 | AJ13: =-CUMPRINC('Fixed Cost Input'!$H$13,'Fixed Cost Input'!$I$13,'Fixed Cost Input'!$L$5*'Fixed Cost Input'!$I$9,1,'Fixed Cost Input'!$I$13,0)/'Fixed Cost Input'!$I$13 -> 6.628571429 | AK13: =-CUMIPMT('Fixed Cost Input'!$H$13,'Fixed Cost Input'!$I$13,'Fixed Cost Input'!$L$5*'Fixed Cost Input'!$I$9,1,'Fixed Cost Input'!$I$13,0)/'Fixed Cost Input'!$I$13 -> 1.981097962
B14: 80% Insured Value | E14: **Change Mkt Prices Here*** | J14: **Change yr for Risk pg*** | V14: =B13 -> Manitoba | W14: =B13 -> Manitoba | AO14: =V14 -> Manitoba | BF14: AgriInsurance Insured Value | BM14: Estimated ROI | BV14: Margin Over Total Costs (Net Profit)
C15: Yield | D15: Unit | E15: Price | F15: Default RANK | G15: Manual Rank | H15: 5 yr Avg Acres | I15: 5 yr Avg Acres RANK | J15: 2024 Acres | K15: 2024 Acres RANK | L15: Seed & Treatment | M15: Fertilizer | N15: Herbicide | O15: Fungicide | P15: Insecticide | Q15: Fuel | R15: Machinery Operating | S15: Machinery Lease | T15: Rental and Custom | U15: Hired Labour | V15: Crop Insurance | W15: Hail Insurance | X15: Other Costs | Y15: Land Taxes | Z15: Storage Costs | AA15: Drying Costs | AB15: Interest on Operating | AC15: Total Operating | AD15: Land Investment Costs | AE15: Machinery Costs | AF15: Total Fixed | AG15: Total Operating & Fixed | AH15: Labour Owners Living | AI15: Total Costs | AJ15: Machinery amortization | AK15: Machinery interest | AL15: Machinery depreciation | AM15: Machinery opportunity | AN15: Total | AO15: Insured value | AP15: % Premium | AQ15: Gross Revenue | AR15: Margin Over Operating Costs | AS15: Margin Over Total Costs (Net Profit) | AT15: Operating Expense Ratio | AU15: B/E Price Over Total Costs | AV15: Breakeven Yield Over Total Costs | AW15: B/E Yield Risk Ratio | AX15: AgriInsurance Risk Ratio | AY15: $ Revenue Per $ Cost | AZ15: Estimated ROA (Reward) | BA15: Estimated ROI (Reward) | BB15: $/unit of cost covered by insurance | BC15: Risk | BD15: reward | BF15: % of Op Cost | BG15: % of Total Costs | BH15: Target or Average Yield as % of B/E Yield | BI15: Target Price as % of B/E Price | BJ15: ="MASC "&C144&" Insured Value" -> MASC 2024 Insured Value | BK15: Margin over operating / operating | BL15: Margin over total costs / operating | BM15: 4th week April | BN15: 1st week May | BO15: 2nd week May | BP15: 3rd week May | BQ15: 4th week May | BR15: 1st week June | BS15: 2nd week June | BT15: 3rd week June | BV15: 4th week April | BW15: 1st week May | BX15: 2nd week May | BY15: 3rd week May | BZ15: 4th week May | CA15: 1st week June | CB15: 2nd week June | CC15: 3rd week June | CF15: Maximum Available for Land Rent | CG15: 0.18 | CH15: 18% Profit | CI15: 18% ROI | CJ15: 0.22 | CK15: 22% Profit | CL15: 22% ROI
B16: Wheat - Hard Red Spring | C16: =HLOOKUP($B$13,$C$124:$G$141,2,FALSE) -> 65 | D16: bu | E16: 8 | F16: 1 | G16: 1 | H16: =$C$68 -> 2693718.2 | I16: =RANK(H16,$H$16:$H$31) -> 2 | J16: =$Q$68 -> 2710917 | K16: =RANK(J16,$J$16:$J$31) -> 2 | L16: ='Seed, Fertilizer & Chemical'!J4 -> 34 | M16: ='Seed, Fertilizer & Chemical'!O38 -> 113.0697759 | N16: ='Seed, Fertilizer & Chemical'!D94 -> 35.75 | O16: ='Seed, Fertilizer & Chemical'!F94 -> 19.5 | P16: ='Seed, Fertilizer & Chemical'!G94 -> 0 | Q16: ='Op. Cost Input'!D13 -> 29.96978484 | R16: ='Op. Cost Input'!$D$6 -> 25 | S16: ='Fixed Cost Input'!$D$66 -> 0 | T16: ='Op. Cost Input'!N13 -> 0 | U16: ='Op. Cost Input'!$D$5*'Op. Cost Input'!$C13 -> 5.4 | V16: ='Op. Cost Input'!E13 -> 10.265 | W16: ='Op. Cost Input'!F13 -> 10.8 | X16: ='Op. Cost Input'!$D$7 -> 17.75 | Y16: ='Op. Cost Input'!$D$4 -> 20 | Z16: ='Op. Cost Input'!H13 -> 15.92774739 | AA16: =IF('Op. Cost Input'!G13="-",0,'Op. Cost Input'!G13) -> 0 | AB16: =ROUND(SUM(L16:AA16)/2*('Op. Cost Input'!$D$3),2) -> 12.65 | AC16: =SUM(L16:AB16) -> 350.0823082 | AD16: ='Fixed Cost Input'!$D$14 -> 103.6699998 | AE16: ='Fixed Cost Input'!$I$17 -> 86.5938371 | AF16: =SUM(AD16:AE16) -> 190.2638369 | AG16: =SUM(AF16+AC16) -> 540.3461451 | AH16: ='Op. Cost Input'!$D$9*'Op. Cost Input'!$D$5 -> 27 | AI16: =SUM(AG16+AH16) -> 567.3461451 | AJ16: =-CUMPRINC('Fixed Cost Input'!$H$13,'Fixed Cost Input'!$I$13,'Fixed Cost Input'!$I$5*'Fixed Cost Input'!$I$9,1,'Fixed Cost Input'!$I$13,0)/'Fixed Cost Input'!$I$13 -> 37.14285714 | AK16: =-CUMIPMT('Fixed Cost Input'!$H$13,'Fixed Cost Input'!$I$13,'Fixed Cost Input'!$I$5*'Fixed Cost Input'!$I$9,1,'Fixed Cost Input'!$I$13,0)/'Fixed Cost Input'!$I$13 -> 11.10097996 | AL16: ='Fixed Cost Input'!$I$15 -> 32.5 | AM16: ='Fixed Cost Input'!$I$16 -> 5.85 | AN16: =SUM(AJ16:AM16) -> 86.5938371 | AO16: =D146 -> 471.45 | AP16: =SUM(V16/AO16) -> 0.02177325273 | AQ16: =SUM(C16*E16) -> 520 | AR16: =AQ16-AC16 -> 169.9176918 | AS16: =SUM(AQ16-AI16) -> -47.34614506 | AT16: =SUM(AC16/AQ16) -> 0.673235208 | AU16: =SUM(AI16/C16) -> 8.728402232 | AV16: =ROUND(AI16/E16,1) -> 70.9 | AW16: =SUM(C16/AV16) -> 0.9167842031 | AX16: =SUM(AO16/AC16) -> 1.346683306 | AY16: =AQ16/AI16 -> 0.9165480448 | AZ16: =SUM((AQ16-AC16-AH16-'Fixed Cost Input'!$I$15)/(('Fixed Cost Input'!$D$4)+'Fixed Cost Input'!$I$5+'Fixed Cost Input'!$J$5)) -> 0.02085319959 | BA16: =AS16/AI16 -> -0.08345195517 | BB16: =SUM(AO16/C16) -> 7.253076923 | BC16: =SUM(AU16-BB16) -> 1.475325309 | BD16: =SUM(E16-AU16) -> -0.7284022317 | BF16: =SUM(AO16/AC16) -> 1.346683306 | BG16: =SUM(AO16/AI16) -> 0.8309741841 | BH16: =C16/AV16 -> 0.9167842031 | BI16: =E16/AU16 -> 0.9165480448 | BJ16: =C146 -> 8.98 | BK16: =AR16/AC16 -> 0.4853649781 | BL16: =AS16/AC16 -> -0.1352428956 | BM16: =SUM((C16*E16*$D$247)-AI16)/AI$16 -> 0.05183053625 | BN16: =SUM((C16*E16*$E$247)-AI16)/AI16 -> -0.02057675929 | BO16: =SUM((C16*E16*$F$247)-AI16)/AI16 -> -0.08730145696 | BP16: =SUM((C16*E16*$G$247)-AI16)/AI16 -> -0.1692408522 | BQ16: =SUM((C16*E16*$H$247)-AI16)/AI16 -> -0.2454059947 | BR16: =SUM((C16*E16*$I$247)-AI16)/AI16 -> -0.3082811906 | BS16: =SUM((C16*E16*$J$247)-AI16)/AI16 -> -0.4055269381 | BT16: =SUM((C16*E16*$K$247)-AI16)/AI16 -> -0.4702352301 | BV16: =SUM(($C$16*$E$16*D$247)-$AI$16)-((D$247*M16)-M16) -> 12.71675601 | BW16: =SUM(($C$16*$E$16*E$247)-$AI$16)-((E$247*$M$16)-$M$16) -> -19.43073169 | BX16: -49.055252 | BY16: -85.43481403 | BZ16: -119.2507157 | CA16: -147.166129 | CB16: -190.3414258 | CC16: -219.0706996 | CF16: =SUM(AQ16-(AC16+U16+AE16+#REF!+Z16)) ->  | CG16: =SUM(0.18*AQ16) -> 93.6 | CH16: =SUM(CF16-CG16) ->  | CI16: =SUM(CH16/(AC16+U16+AE16+#REF!+Z16+CG16)) ->  | CJ16: =SUM(0.22*AQ16) -> 114.4 | CK16: =SUM(CF16-CJ16) ->  | CL16: =SUM(CK16/(AC16+U16+AE16+#REF!+Z16+CJ16)) -> 
B17: Wheat - Northern Hard Red | C17: =HLOOKUP($B$13,$C$124:$G$141,3,FALSE) -> 70 | D17: bu | E17: 7.5 | F17: 2 | G17: 2 | H17: =$C$74 -> 133158.8 | I17: 8 | J17: =$Q$74 -> 145731 | K17: 8 | L17: ='Seed, Fertilizer & Chemical'!J5 -> 34 | M17: ='Seed, Fertilizer & Chemical'!O39 -> 122.9852963 | N17: ='Seed, Fertilizer & Chemical'!D95 -> 35.75 | O17: ='Seed, Fertilizer & Chemical'!F95 -> 19.5 | P17: ='Seed, Fertilizer & Chemical'!G95 -> 0 | Q17: ='Op. Cost Input'!D14 -> 30.50669137 | R17: ='Op. Cost Input'!$D$6 -> 25 | S17: ='Fixed Cost Input'!$D$66 -> 0 | T17: ='Op. Cost Input'!N14 -> 0 | U17: ='Op. Cost Input'!$D$5*'Op. Cost Input'!$C14 -> 5.4 | V17: ='Op. Cost Input'!E14 -> 12.7725 | W17: ='Op. Cost Input'!F14 -> 10.8 | X17: ='Op. Cost Input'!$D$7 -> 17.75 | Y17: ='Op. Cost Input'!$D$4 -> 20 | Z17: ='Op. Cost Input'!H14 -> 17.15295872 | AA17: =IF('Op. Cost Input'!G14="-",0,'Op. Cost Input'!G14) -> 0 | AB17: =ROUND(SUM(L17:AA17)/2*('Op. Cost Input'!$D$3),2) -> 13.19 | AC17: 364.8074464 | AD17: ='Fixed Cost Input'!$D$14 -> 103.6699998 | AE17: ='Fixed Cost Input'!$I$17 -> 86.5938371 | AF17: =SUM(AD17:AE17) -> 190.2638369 | AG17: 555.0712832 | AH17: ='Op. Cost Input'!$D$9*'Op. Cost Input'!$D$5 -> 27 | AI17: 582.0712832 | AJ17: =-CUMPRINC('Fixed Cost Input'!$H$13,'Fixed Cost Input'!$I$13,'Fixed Cost Input'!$I$5*'Fixed Cost Input'!$I$9,1,'Fixed Cost Input'!$I$13,0)/'Fixed Cost Input'!$I$13 -> 37.14285714 | AK17: =-CUMIPMT('Fixed Cost Input'!$H$13,'Fixed Cost Input'!$I$13,'Fixed Cost Input'!$I$5*'Fixed Cost Input'!$I$9,1,'Fixed Cost Input'!$I$13,0)/'Fixed Cost Input'!$I$13 -> 11.10097996 | AL17: ='Fixed Cost Input'!$I$15 -> 32.5 | AM17: ='Fixed Cost Input'!$I$16 -> 5.85 | AN17: 86.5938371 | AO17: =D147 -> 453.8328 | AP17: 0.0281436247 | AQ17: 525 | AR17: =AQ17-AC17 -> 160.1925536 | AS17: -57.07128325 | AT17: 0.6948713264 | AU17: 8.315304046 | AV17: 77.6 | AW17: 0.9020618557 | AX17: 1.244033817 | AY17: 0.9019513848 | AZ17: =SUM((AQ17-AC17-AH17-'Fixed Cost Input'!$I$15)/(('Fixed Cost Input'!$D$4)+'Fixed Cost Input'!$I$5+'Fixed Cost Input'!$J$5)) -> 0.01901653515 | BA17: -0.09804861516 | BB17: 6.483325714 | BC17: 1.831978332 | BD17: -0.8153040464 | BF17: 1.244033817 | BG17: 0.7796859475 | BH17: 0.9020618557 | BI17: 0.9019513848 | BJ17: =C147 -> 7.89 | BK17: =AR17/AC17 -> 0.4391153614 | BL17: -0.1564422103 | CF17: =SUM(AQ17-(AC17+U17+AE17+#REF!+Z17)) ->  | CG17: 94.5 | CI17: =SUM(CH17/(AC17+U17+AE17+#REF!+Z17+CG17)) ->  | CJ17: 115.5 | CL17: =SUM(CK17/(AC17+U17+AE17+#REF!+Z17+CJ17)) -> 
B18: Wheat - Prairie Spring | C18: =HLOOKUP($B$13,$C$124:$G$141,4,FALSE) -> 70 | D18: bu | E18: 7.5 | F18: 3 | G18: 3 | H18: =$C$79 -> 46246.6 | I18: 12 | J18: =$Q$79 -> 49858 | K18: 11 | L18: ='Seed, Fertilizer & Chemical'!J6 -> 34 | M18: ='Seed, Fertilizer & Chemical'!O40 -> 116.3749494 | N18: ='Seed, Fertilizer & Chemical'!D96 -> 35.75 | O18: ='Seed, Fertilizer & Chemical'!F96 -> 19.5 | P18: ='Seed, Fertilizer & Chemical'!G96 -> 0 | Q18: ='Op. Cost Input'!D15 -> 30.50669137 | R18: ='Op. Cost Input'!$D$6 -> 25 | S18: ='Fixed Cost Input'!$D$66 -> 0 | T18: ='Op. Cost Input'!N15 -> 0 | U18: ='Op. Cost Input'!$D$5*'Op. Cost Input'!$C15 -> 5.4 | V18: ='Op. Cost Input'!E15 -> 10.32 | W18: ='Op. Cost Input'!F15 -> 10.8 | X18: ='Op. Cost Input'!$D$7 -> 17.75 | Y18: ='Op. Cost Input'!$D$4 -> 20 | Z18: ='Op. Cost Input'!H15 -> 17.15295872 | AA18: =IF('Op. Cost Input'!G15="-",0,'Op. Cost Input'!G15) -> 0 | AB18: =ROUND(SUM(L18:AA18)/2*('Op. Cost Input'!$D$3),2) -> 12.85 | AC18: 355.4045995 | AD18: ='Fixed Cost Input'!$D$14 -> 103.6699998 | AE18: ='Fixed Cost Input'!$I$17 -> 86.5938371 | AF18: 190.2638369 | AG18: 545.6684364 | AH18: ='Op. Cost Input'!$D$9*'Op. Cost Input'!$D$5 -> 27 | AI18: 572.6684364 | AJ18: =-CUMPRINC('Fixed Cost Input'!$H$13,'Fixed Cost Input'!$I$13,'Fixed Cost Input'!$I$5*'Fixed Cost Input'!$I$9,1,'Fixed Cost Input'!$I$13,0)/'Fixed Cost Input'!$I$13 -> 37.14285714 | AK18: =-CUMIPMT('Fixed Cost Input'!$H$13,'Fixed Cost Input'!$I$13,'Fixed Cost Input'!$I$5*'Fixed Cost Input'!$I$9,1,'Fixed Cost Input'!$I$13,0)/'Fixed Cost Input'!$I$13 -> 11.10097996 | AL18: ='Fixed Cost Input'!$I$15 -> 32.5 | AM18: ='Fixed Cost Input'!$I$16 -> 5.85 | AN18: 86.5938371 | AO18: 455.067 | AP18: 0.02267797929 | AQ18: 525 | AR18: 169.5954005 | AS18: -47.66843637 | AT18: 0.6769611419 | AU18: 8.180977662 | AV18: 76.4 | AW18: 0.9162303665 | AX18: 1.280419558 | AY18: 0.9167608457 | AZ18: =SUM((AQ18-AC18-AH18-'Fixed Cost Input'!$I$15)/(('Fixed Cost Input'!$D$4)+'Fixed Cost Input'!$I$5+'Fixed Cost Input'!$J$5)) -> 0.02079233249 | BA18: -0.08323915435 | BB18: 6.500957143 | BC18: 1.68002052 | BD18: -0.6809776624 | BF18: 1.280419558 | BG18: 0.7946430624 | BH18: 0.9162303665 | BI18: 0.9167608457 | BJ18: 8.57 | BK18: 0.4771896615 | BL18: -0.1341244217 | CF18: =SUM(AQ18-(AC18+U18+AE18+#REF!+Z18)) ->  | CG18: 94.5 | CI18: =SUM(CH18/(AC18+U18+AE18+#REF!+Z18+CG18)) ->  | CJ18: 115.5 | CL18: =SUM(CK18/(AC18+U18+AE18+#REF!+Z18+CJ18)) -> 
B19: Wheat - Winter | C19: =HLOOKUP($B$13,$C$124:$G$141,5,FALSE) -> 65 | D19: bu | E19: 7 | F19: 4 | G19: 4 | H19: =$C$80 -> 43117.8 | I19: 13 | J19: =$Q$80 -> 37315 | K19: 13 | L19: ='Seed, Fertilizer & Chemical'!J7 -> 32 | M19: ='Seed, Fertilizer & Chemical'!O41 -> 113.0697759 | N19: ='Seed, Fertilizer & Chemical'!D97 -> 16.5 | O19: ='Seed, Fertilizer & Chemical'!F97 -> 19.5 | P19: ='Seed, Fertilizer & Chemical'!G97 -> 0 | Q19: ='Op. Cost Input'!D16 -> 29.96978484 | R19: ='Op. Cost Input'!$D$6 -> 25 | S19: ='Fixed Cost Input'!$D$66 -> 0 | T19: ='Op. Cost Input'!N16 -> 0 | U19: ='Op. Cost Input'!$D$5*'Op. Cost Input'!$C16 -> 5.4 | V19: ='Op. Cost Input'!E16 -> 10.2475 | W19: ='Op. Cost Input'!F16 -> 10.8 | X19: ='Op. Cost Input'!$D$7 -> 17.75 | Y19: ='Op. Cost Input'!$D$4 -> 20 | Z19: ='Op. Cost Input'!H16 -> 15.92774739 | AA19: =IF('Op. Cost Input'!G16="-",0,'Op. Cost Input'!G16) -> 0 | AB19: =ROUND(SUM(L19:AA19)/2*('Op. Cost Input'!$D$3),2) -> 11.86 | AC19: 328.0248082 | AD19: ='Fixed Cost Input'!$D$14 -> 103.6699998 | AE19: ='Fixed Cost Input'!$I$17 -> 86.5938371 | AF19: 190.2638369 | AG19: 518.2886451 | AH19: ='Op. Cost Input'!$D$9*'Op. Cost Input'!$D$5 -> 27 | AI19: 545.2886451 | AJ19: =-CUMPRINC('Fixed Cost Input'!$H$13,'Fixed Cost Input'!$I$13,'Fixed Cost Input'!$I$5*'Fixed Cost Input'!$I$9,1,'Fixed Cost Input'!$I$13,0)/'Fixed Cost Input'!$I$13 -> 37.14285714 | AK19: =-CUMIPMT('Fixed Cost Input'!$H$13,'Fixed Cost Input'!$I$13,'Fixed Cost Input'!$I$5*'Fixed Cost Input'!$I$9,1,'Fixed Cost Input'!$I$13,0)/'Fixed Cost Input'!$I$13 -> 11.10097996 | AL19: ='Fixed Cost Input'!$I$15 -> 32.5 | AM19: ='Fixed Cost Input'!$I$16 -> 5.85 | AN19: 86.5938371 | AO19: 393.432 | AP19: 0.02604643242 | AQ19: 455 | AR19: 126.9751918 | AS19: -90.28864506 | AT19: 0.7209336443 | AU19: 8.389056078 | AV19: 77.9 | AW19: 0.8344030809 | AX19: 1.199397089 | AY19: 0.8344204562 | AZ19: =SUM((AQ19-AC19-AH19-'Fixed Cost Input'!$I$15)/(('Fixed Cost Input'!$D$4)+'Fixed Cost Input'!$I$5+'Fixed Cost Input'!$J$5)) -> 0.01274319015 | BA19: -0.1655795438 | BB19: 6.0528 | BC19: 2.336256078 | BD19: -1.389056078 | BF19: 1.199397089 | BG19: 0.7215114482 | BH19: 0.8344030809 | BI19: 0.8344204562 | BJ19: 7.76 | BK19: 0.3870902098 | BL19: -0.2752494409 | CF19: =SUM(AQ19-(AC19+U19+AE19+#REF!+Z19)) ->  | CG19: 81.9 | CI19: =SUM(CH19/(AC19+U19+AE19+#REF!+Z19+CG19)) ->  | CJ19: 100.1 | CL19: =SUM(CK19/(AC19+U19+AE19+#REF!+Z19+CJ19)) -> 
B20: Oats | C20: =HLOOKUP($B$13,$C$124:$G$141,6,FALSE) -> 120 | D20: bu | E20: 4.1 | F20: 5 | G20: 5 | H20: =$C$70 -> 545035.6 | I20: 4 | J20: =$Q$70 -> 447645 | K20: 5 | L20: ='Seed, Fertilizer & Chemical'!J8 -> 25 | M20: ='Seed, Fertilizer & Chemical'!O42 -> 87.78370097 | N20: ='Seed, Fertilizer & Chemical'!D98 -> 10 | O20: ='Seed, Fertilizer & Chemical'!F98 -> 14.5 | P20: ='Seed, Fertilizer & Chemical'!G98 -> 0 | Q20: ='Op. Cost Input'!D17 -> 35.87575663 | R20: ='Op. Cost Input'!$D$6 -> 25 | S20: ='Fixed Cost Input'!$D$66 -> 0 | T20: ='Op. Cost Input'!N17 -> 0 | U20: ='Op. Cost Input'!$D$5*'Op. Cost Input'!$C17 -> 5.4 | V20: ='Op. Cost Input'!E17 -> 18.2425 | W20: ='Op. Cost Input'!F17 -> 10.8 | X20: ='Op. Cost Input'!$D$7 -> 17.75 | Y20: ='Op. Cost Input'!$D$4 -> 20 | Z20: ='Op. Cost Input'!H17 -> 29.4050721 | AA20: =IF('Op. Cost Input'!G17="-",0,'Op. Cost Input'!G17) -> 0 | AB20: =ROUND(SUM(L20:AA20)/2*('Op. Cost Input'!$D$3),2) -> 11.24 | AC20: 310.9970297 | AD20: ='Fixed Cost Input'!$D$14 -> 103.6699998 | AE20: ='Fixed Cost Input'!$I$17 -> 86.5938371 | AF20: 190.2638369 | AG20: 501.2608666 | AH20: ='Op. Cost Input'!$D$9*'Op. Cost Input'!$D$5 -> 27 | AI20: 528.2608666 | AJ20: =-CUMPRINC('Fixed Cost Input'!$H$13,'Fixed Cost Input'!$I$13,'Fixed Cost Input'!$I$5*'Fixed Cost Input'!$I$9,1,'Fixed Cost Input'!$I$13,0)/'Fixed Cost Input'!$I$13 -> 37.14285714 | AK20: =-CUMIPMT('Fixed Cost Input'!$H$13,'Fixed Cost Input'!$I$13,'Fixed Cost Input'!$I$5*'Fixed Cost Input'!$I$9,1,'Fixed Cost Input'!$I$13,0)/'Fixed Cost Input'!$I$13 -> 11.10097996 | AL20: ='Fixed Cost Input'!$I$15 -> 32.5 | AM20: ='Fixed Cost Input'!$I$16 -> 5.85 | AN20: 86.5938371 | AO20: 420.904 | AP20: 0.04334123696 | AQ20: 492 | AR20: 181.0029703 | AS20: -36.26086659 | AT20: 0.6321077839 | AU20: 4.402173888 | AV20: 128.8 | AW20: 0.9316770186 | AX20: 1.353401994 | AY20: 0.9313580299 | AZ20: =SUM((AQ20-AC20-AH20-'Fixed Cost Input'!$I$15)/(('Fixed Cost Input'!$D$4)+'Fixed Cost Input'!$I$5+'Fixed Cost Input'!$J$5)) -> 0.0229467366 | BA20: -0.06864197005 | BB20: 3.507533333 | BC20: 0.8946405549 | BD20: -0.3021738882 | BF20: 1.353401994 | BG20: 0.7967730086 | BH20: 0.9316770186 | BI20: 0.9313580299 | BJ20: 4.4 | BK20: 0.5820086786 | BL20: -0.1165955399 | BM20: =SUM((C20*E20*$D$251)-AI20)/AI$16 -> 0.06434508057 | BN20: =SUM((C20*E20*$E$251)-AI20)/AI20 -> 0.06212069735 | BO20: =SUM((C20*E20*$F$251)-AI20)/AI20 -> -0.02077016732 | BP20: =SUM((C20*E20*$G$251)-AI20)/AI20 -> -0.1295527852 | BQ20: =SUM((C20*E20*$H$251)-AI20)/AI20 -> -0.203409477 | BR20: =SUM((C20*E20*$I$251)-AI20)/AI20 -> -0.2892806873 | BS20: =SUM((C20*E20*$J$251)-AI20)/AI20 -> -0.3950829596 | BT20: =SUM((C20*E20*$K$251)-AI20)/AI20 -> -0.4958558984 | BV20: =SUM(($C$20*$E$20*D$251)-$AI$20)-((D$251*$M$20)-$M$20) -> 23.52272404 | BW20: =SUM(($C$20*$E$20*E$251)-$AI$20)-((E$251*$M$20)-$M$20) -> 20.4911018 | BX20: -15.48414882 | BY20: -62.69661254 | BZ20: -94.75096506 | CA20: -132.0197078 | CB20: -177.9386794 | CC20: -221.674883 | CF20: =SUM(AQ20-(AC20+U20+AE20+#REF!+Z20)) ->  | CG20: 88.56 | CI20: =SUM(CH20/(AC20+U20+AE20+#REF!+Z20+CG20)) ->  | CJ20: 108.24 | CL20: =SUM(CK20/(AC20+U20+AE20+#REF!+Z20+CJ20)) -> 
B21: Barley | C21: =HLOOKUP($B$13,$C$124:$G$141,7,FALSE) -> 80 | D21: bu | E21: 4.5 | F21: 6 | G21: 6 | H21: =$C$71 -> 372559.6 | I21: 6 | J21: =$Q$71 -> 314403 | K21: 6 | L21: ='Seed, Fertilizer & Chemical'!J9 -> 20 | M21: ='Seed, Fertilizer & Chemical'!O43 -> 84.7337911 | N21: ='Seed, Fertilizer & Chemical'!D99 -> 22 | O21: ='Seed, Fertilizer & Chemical'!F99 -> 5.5 | P21: ='Seed, Fertilizer & Chemical'!G99 -> 0 | Q21: ='Op. Cost Input'!D18 -> 33.01050442 | R21: ='Op. Cost Input'!$D$6 -> 25 | S21: ='Fixed Cost Input'!$D$66 -> 0 | T21: ='Op. Cost Input'!N18 -> 0 | U21: ='Op. Cost Input'!$D$5*'Op. Cost Input'!$C18 -> 5.4 | V21: ='Op. Cost Input'!E18 -> 14.35 | W21: ='Op. Cost Input'!F18 -> 10.8 | X21: ='Op. Cost Input'!$D$7 -> 17.75 | Y21: ='Op. Cost Input'!$D$4 -> 20 | Z21: ='Op. Cost Input'!H18 -> 19.6033814 | AA21: =IF('Op. Cost Input'!G18="-",0,'Op. Cost Input'!G18) -> 0 | AB21: =ROUND(SUM(L21:AA21)/2*('Op. Cost Input'!$D$3),2) -> 10.43 | AC21: 288.5776769 | AD21: ='Fixed Cost Input'!$D$14 -> 103.6699998 | AE21: ='Fixed Cost Input'!$I$17 -> 86.5938371 | AF21: 190.2638369 | AG21: 478.8415138 | AH21: ='Op. Cost Input'!$D$9*'Op. Cost Input'!$D$5 -> 27 | AI21: 505.8415138 | AJ21: =-CUMPRINC('Fixed Cost Input'!$H$13,'Fixed Cost Input'!$I$13,'Fixed Cost Input'!$I$5*'Fixed Cost Input'!$I$9,1,'Fixed Cost Input'!$I$13,0)/'Fixed Cost Input'!$I$13 -> 37.14285714 | AK21: =-CUMIPMT('Fixed Cost Input'!$H$13,'Fixed Cost Input'!$I$13,'Fixed Cost Input'!$I$5*'Fixed Cost Input'!$I$9,1,'Fixed Cost Input'!$I$13,0)/'Fixed Cost Input'!$I$13 -> 11.10097996 | AL21: ='Fixed Cost Input'!$I$15 -> 32.5 | AM21: ='Fixed Cost Input'!$I$16 -> 5.85 | AN21: 86.5938371 | AO21: 368.0106 | AP21: 0.03899344204 | AQ21: 360 | AR21: 71.42232308 | AS21: -145.8415138 | AT21: 0.8016046581 | AU21: 6.323018923 | AV21: 112.4 | AW21: 0.7117437722 | AX21: 1.275256645 | AY21: 0.7116853603 | AZ21: =SUM((AQ21-AC21-AH21-'Fixed Cost Input'!$I$15)/(('Fixed Cost Input'!$D$4)+'Fixed Cost Input'!$I$5+'Fixed Cost Input'!$J$5)) -> 0.00225161909 | BA21: -0.2883146397 | BB21: 4.6001325 | BC21: 1.722886423 | BD21: -1.823018923 | BF21: 1.275256645 | BG21: 0.7275215457 | BH21: 0.7117437722 | BI21: 0.7116853603 | BJ21: 5.77 | BK21: 0.2474977408 | BL21: -0.5053804416 | BM21: =SUM((C21*E21*$D$250)-AI21)/AI$16 -> -0.2000146027 | BN21: =SUM((C21*E21*$E$250)-AI21)/AI21 -> -0.1877534983 | BO21: =SUM((C21*E21*$F$250)-AI21)/AI21 -> -0.2540114053 | BP21: =SUM((C21*E21*$G$250)-AI21)/AI21 -> -0.3226178741 | BQ21: =SUM((C21*E21*$H$250)-AI21)/AI21 -> -0.3853885229 | BR21: =SUM((C21*E21*$I$250)-AI21)/AI21 -> -0.4631045642 | BS21: =SUM((C21*E21*$J$250)-AI21)/AI21 -> -0.5339172575 | BT21: =SUM((C21*E21*$K$250)-AI21)/AI21 -> -0.591065592 | BV21: =SUM(($C$21*$E$21*D$250)-$AI$21)-((D$250*$M$21)-$M$21) -> -121.0950816 | BW21: =SUM(($C$21*$E$21*E$250)-$AI$21)-((E$250*$M$21)-$M$21) -> -106.9463985 | BX21: -132.5736825 | BY21: -159.1093451 | BZ21: -183.3878247 | CA21: -213.4468947 | CB21: -240.8358825 | CC21: -262.9397591 | CF21: =SUM(AQ21-(AC21+U21+AE21+#REF!+Z21)) ->  | CG21: 64.8 | CI21: =SUM(CH21/(AC21+U21+AE21+#REF!+Z21+CG21)) ->  | CJ21: 79.2 | CL21: =SUM(CK21/(AC21+U21+AE21+#REF!+Z21+CJ21)) -> 
B22: Hybrid Fall Rye | C22: =HLOOKUP($B$13,$C$124:$G$141,8,FALSE) -> 80 | D22: bu | E22: 5.5 | F22: 7 | G22: 7 | H22: =$C$75 -> 97527.4 | I22: 9 | J22: =$Q$75 -> 84713 | K22: 10 | L22: ='Seed, Fertilizer & Chemical'!J10 -> 78.4 | M22: ='Seed, Fertilizer & Chemical'!O44 -> 136.20599 | N22: ='Seed, Fertilizer & Chemical'!D100 -> 8.5 | O22: ='Seed, Fertilizer & Chemical'!F100 -> 0 | P22: ='Seed, Fertilizer & Chemical'!G100 -> 0 | Q22: ='Op. Cost Input'!D19 -> 30.48050442 | R22: ='Op. Cost Input'!$D$6 -> 25 | S22: ='Fixed Cost Input'!$D$66 -> 0 | T22: ='Op. Cost Input'!N19 -> 0 | U22: ='Op. Cost Input'!$D$5*'Op. Cost Input'!$C19 -> 5.4 | V22: ='Op. Cost Input'!E19 -> 14.865 | W22: ='Op. Cost Input'!F19 -> 10.8 | X22: ='Op. Cost Input'!$D$7 -> 17.75 | Y22: ='Op. Cost Input'!$D$4 -> 20 | Z22: ='Op. Cost Input'!H19 -> 19.6033814 | AA22: =IF('Op. Cost Input'!G19="-",0,'Op. Cost Input'!G19) -> 0 | AB22: =ROUND(SUM(L22:AA22)/2*('Op. Cost Input'!$D$3),2) -> 13.76 | AC22: 380.7648758 | AD22: ='Fixed Cost Input'!$D$14 -> 103.6699998 | AE22: ='Fixed Cost Input'!$I$17 -> 86.5938371 | AF22: 190.2638369 | AG22: 571.0287127 | AH22: ='Op. Cost Input'!$D$9*'Op. Cost Input'!$D$5 -> 27 | AI22: 598.0287127 | AJ22: =-CUMPRINC('Fixed Cost Input'!$H$13,'Fixed Cost Input'!$I$13,'Fixed Cost Input'!$I$5*'Fixed Cost Input'!$I$9,1,'Fixed Cost Input'!$I$13,0)/'Fixed Cost Input'!$I$13 -> 37.14285714 | AK22: =-CUMIPMT('Fixed Cost Input'!$H$13,'Fixed Cost Input'!$I$13,'Fixed Cost Input'!$I$5*'Fixed Cost Input'!$I$9,1,'Fixed Cost Input'!$I$13,0)/'Fixed Cost Input'!$I$13 -> 11.10097996 | AL22: ='Fixed Cost Input'!$I$15 -> 32.5 | AM22: ='Fixed Cost Input'!$I$16 -> 5.85 | AN22: 86.5938371 | AO22: 355.0976 | AP22: 0.04186173041 | AQ22: 440 | AR22: 59.23512416 | AS22: -158.0287127 | AT22: 0.8653747178 | AU22: 7.475358909 | AV22: 108.7 | AW22: 0.7359705612 | AX22: 0.9325902218 | AY22: 0.7357506264 | AZ22: =SUM((AQ22-AC22-AH22-'Fixed Cost Input'!$I$15)/(('Fixed Cost Input'!$D$4)+'Fixed Cost Input'!$I$5+'Fixed Cost Input'!$J$5)) -> -5.002376652e-05 | BA22: -0.2642493736 | BB22: 4.43872 | BC22: 3.036638909 | BD22: -1.975358909 | BF22: 0.9325902218 | BG22: 0.5937801855 | BH22: 0.7359705612 | BI22: 0.7357506264 | BJ22: 5.72 | BK22: 0.155568772 | BL22: -0.4150296489 | CF22: =SUM(AQ22-(AC22+U22+AE22+#REF!+Z22)) ->  | CG22: 79.2 | CI22: =SUM(CH22/(AC22+U22+AE22+#REF!+Z22+CG22)) ->  | CJ22: 96.8 | CL22: =SUM(CK22/(AC22+U22+AE22+#REF!+Z22+CJ22)) -> 
B23: Corn | C23: =HLOOKUP($B$13,$C$124:$G$141,9,FALSE) -> 140 | D23: bu | E23: 5.75 | F23: 8 | G23: 8 | H23: =$C$72 -> 403556 | I23: 5 | J23: =$Q$72 -> 516551 | K23: 4 | L23: ='Seed, Fertilizer & Chemical'!J11 -> 100 | M23: ='Seed, Fertilizer & Chemical'!O45 -> 173.1764524 | N23: ='Seed, Fertilizer & Chemical'!D101 -> 44 | O23: ='Seed, Fertilizer & Chemical'!F101 -> 0 | P23: ='Seed, Fertilizer & Chemical'!G101 -> 0 | Q23: ='Op. Cost Input'!D20 -> 39.78338274 | R23: ='Op. Cost Input'!$D$6 -> 25 | S23: ='Fixed Cost Input'!$D$66 -> 0 | T23: ='Op. Cost Input'!N20 -> 0 | U23: ='Op. Cost Input'!$D$5*'Op. Cost Input'!$C20 -> 5.4 | V23: ='Op. Cost Input'!E20 -> 40.095 | W23: ='Op. Cost Input'!F20 -> 10.8 | X23: ='Op. Cost Input'!$D$7 -> 17.75 | Y23: ='Op. Cost Input'!$D$4 -> 20 | Z23: ='Op. Cost Input'!H20 -> 34.30591745 | AA23: =IF('Op. Cost Input'!G20="-",0,'Op. Cost Input'!G20) -> 70 | AB23: =ROUND(SUM(L23:AA23)/2*('Op. Cost Input'!$D$3),2) -> 21.76 | AC23: 602.0707526 | AD23: ='Fixed Cost Input'!$D$14 -> 103.6699998 | AE23: ='Fixed Cost Input'!$I$17+'Fixed Cost Input'!$J$17 -> 105.9109238 | AF23: 209.5809236 | AG23: 811.6516762 | AH23: ='Op. Cost Input'!$D$9*'Op. Cost Input'!$D$5 -> 27 | AI23: 838.6516762 | AJ23: =(-CUMPRINC('Fixed Cost Input'!$H$13,'Fixed Cost Input'!$I$13,'Fixed Cost Input'!$I$5*'Fixed Cost Input'!$I$9,1,'Fixed Cost Input'!$I$13,0)/'Fixed Cost Input'!$I$13)+(-CUMPRINC('Fixed Cost Input'!$H$13,'Fixed Cost Input'!$I$13,'Fixed Cost Input'!$J$5*'Fixed Cost Input'!$I$9,1,'Fixed Cost Input'!$I$13,0)/'Fixed Cost Input'!$I$13) -> 45.42857143 | AK23: =(-CUMIPMT('Fixed Cost Input'!$H$13,'Fixed Cost Input'!$I$13,'Fixed Cost Input'!$I$5*'Fixed Cost Input'!$I$9,1,'Fixed Cost Input'!$I$13,0)/'Fixed Cost Input'!$I$13)+(-CUMIPMT('Fixed Cost Input'!$H$13,'Fixed Cost Input'!$I$13,'Fixed Cost Input'!$J$5*'Fixed Cost Input'!$I$9,1,'Fixed Cost Input'!$I$13,0)/'Fixed Cost Input'!$I$13) -> 13.57735241 | AL23: ='Fixed Cost Input'!$I$15+'Fixed Cost Input'!$J$15 -> 39.75 | AM23: ='Fixed Cost Input'!$I$16+'Fixed Cost Input'!$J$16 -> 7.155 | AN23: 105.9109238 | AO23: 701.3664 | AP23: 0.05716698148 | AQ23: 805 | AR23: 202.9292474 | AS23: -33.65167619 | AT23: 0.7479139783 | AU23: 5.990369116 | AV23: 145.9 | AW23: 0.9595613434 | AX23: 1.164923553 | AY23: 0.9598740727 | AZ23: =SUM((AQ23-AC23-AH23-'Fixed Cost Input'!$I$15)/(('Fixed Cost Input'!$D$4)+'Fixed Cost Input'!$I$5+'Fixed Cost Input'!$J$5)) -> 0.02708767657 | BA23: -0.0401259273 | BB23: 5.00976 | BC23: 0.9806091156 | BD23: -0.2403691156 | BF23: 1.164923553 | BG23: 0.8363023886 | BH23: 0.9595613434 | BI23: 0.9598740727 | BJ23: 6.86 | BK23: 0.3370521597 | BL23: -0.05589322525 | CF23: =SUM(AQ23-(AC23+U23+AE23+#REF!+Z23)) ->  | CG23: 144.9 | CI23: =SUM(CH23/(AC23+U23+AE23+#REF!+Z23+CG23)) ->  | CJ23: 177.1 | CL23: =SUM(CK23/(AC23+U23+AE23+#REF!+Z23+CJ23)) -> 
B24: Canola | C24: =HLOOKUP($B$13,$C$124:$G$141,10,FALSE) -> 45 | D24: bu | E24: 13.25 | F24: 9 | G24: 9 | H24: =$C$67 -> 3292975 | I24: 1 | J24: =$Q$67 -> 3264557 | K24: 1 | L24: ='Seed, Fertilizer & Chemical'!J12 -> 82.5 | M24: ='Seed, Fertilizer & Chemical'!O46 -> 128.3647311 | N24: ='Seed, Fertilizer & Chemical'!D102 -> 30 | O24: ='Seed, Fertilizer & Chemical'!F102 -> 22.75 | P24: ='Seed, Fertilizer & Chemical'!G102 -> 5.75 | Q24: ='Op. Cost Input'!D21 -> 29.80215874 | R24: ='Op. Cost Input'!$D$6 -> 25 | S24: ='Fixed Cost Input'!$D$66 -> 0 | T24: ='Op. Cost Input'!N21 -> 0 | U24: ='Op. Cost Input'!$D$5*'Op. Cost Input'!$C21 -> 5.4 | V24: ='Op. Cost Input'!E21 -> 13.96 | W24: ='Op. Cost Input'!F21 -> 10.8 | X24: ='Op. Cost Input'!$D$7 -> 17.75 | Y24: ='Op. Cost Input'!$D$4 -> 20 | Z24: ='Op. Cost Input'!H21 -> 11.02690204 | AA24: =IF('Op. Cost Input'!G21="-",0,'Op. Cost Input'!G21) -> 0 | AB24: =ROUND(SUM(L24:AA24)/2*('Op. Cost Input'!$D$3),2) -> 15.12 | AC24: 418.2237919 | AD24: ='Fixed Cost Input'!$D$14 -> 103.6699998 | AE24: ='Fixed Cost Input'!$I$17 -> 86.5938371 | AF24: 190.2638369 | AG24: 608.4876288 | AH24: ='Op. Cost Input'!$D$9*'Op. Cost Input'!$D$5 -> 27 | AI24: 635.4876288 | AJ24: =-CUMPRINC('Fixed Cost Input'!$H$13,'Fixed Cost Input'!$I$13,'Fixed Cost Input'!$I$5*'Fixed Cost Input'!$I$9,1,'Fixed Cost Input'!$I$13,0)/'Fixed Cost Input'!$I$13 -> 37.14285714 | AK24: =-CUMIPMT('Fixed Cost Input'!$H$13,'Fixed Cost Input'!$I$13,'Fixed Cost Input'!$I$5*'Fixed Cost Input'!$I$9,1,'Fixed Cost Input'!$I$13,0)/'Fixed Cost Input'!$I$13 -> 11.10097996 | AL24: ='Fixed Cost Input'!$I$15 -> 32.5 | AM24: ='Fixed Cost Input'!$I$16 -> 5.85 | AN24: 86.5938371 | AO24: 604.6632 | AP24: 0.02308723269 | AQ24: 596.25 | AR24: 178.0262081 | AS24: -39.23762876 | AT24: 0.7014235503 | AU24: 14.12194731 | AV24: 48 | AW24: 0.9375 | AX24: 1.445788623 | AY24: 0.9382558732 | AZ24: =SUM((AQ24-AC24-AH24-'Fixed Cost Input'!$I$15)/(('Fixed Cost Input'!$D$4)+'Fixed Cost Input'!$I$5+'Fixed Cost Input'!$J$5)) -> 0.022384553 | BA24: -0.06174412685 | BB24: 13.43696 | BC24: 0.6849873058 | BD24: -0.8719473058 | BF24: 1.445788623 | BG24: 0.9514948406 | BH24: 0.9375 | BI24: 0.9382558732 | BJ24: 16.44 | BK24: 0.42567212 | BL24: -0.0938196954 | BM24: =SUM((C24*E24*$D$246)-AI24)/AI$16 -> 0.02447931719 | BN24: =SUM((C24*E24*$E$246)-AI24)/AI24 -> 0.01143983126 | BO24: =SUM((C24*E24*$F$246)-AI24)/AI24 -> -0.0147375076 | BP24: =SUM((C24*E24*$G$246)-AI24)/AI24 -> -0.03040638068 | BQ24: =SUM((C24*E24*$H$246)-AI24)/AI24 -> -0.08529434926 | BR24: =SUM((C24*E24*$I$246)-AI24)/AI24 -> -0.1401823178 | BS24: =SUM((C24*E24*$J$246)-AI24)/AI24 -> -0.2158995668 | BT24: =SUM((C24*E24*$K$246)-AI24)/AI24 -> -0.2917106414 | BV24: =SUM(($C$24*$E$24*D$246)-$AI$24)-((D$246*$M$24)-$M$24) -> 2.450948699 | BW24: =SUM(($C$24*$E$24*E$246)-$AI$24)-((E$246*$M$24)-$M$24) -> -2.742577786 | BX24: -15.79657679 | BY24: -23.61026078 | BZ24: -50.98154901 | CA24: -78.35283724 | CB24: -116.1111784 | CC24: -153.9163082 | CF24: =SUM(AQ24-(AC24+U24+AE24+#REF!+Z24)) ->  | CG24: 107.325 | CI24: =SUM(CH24/(AC24+U24+AE24+#REF!+Z24+CG24)) ->  | CJ24: 131.175 | CL24: =SUM(CK24/(AC24+U24+AE24+#REF!+Z24+CJ24)) -> 
B25: Soybeans | C25: =HLOOKUP($B$13,$C$124:$G$141,11,FALSE) -> 40 | D25: bu | E25: 12 | F25: 10 | G25: 10 | H25: =$C$69 -> 1225326.2 | I25: 3 | J25: =$Q$69 -> 1308262 | K25: 3 | L25: ='Seed, Fertilizer & Chemical'!J13 -> 90 | M25: ='Seed, Fertilizer & Chemical'!O47 -> 44.01054206 | N25: ='Seed, Fertilizer & Chemical'!D103 -> 21.75 | O25: ='Seed, Fertilizer & Chemical'!F103 -> 0 | P25: ='Seed, Fertilizer & Chemical'!G103 -> 0 | Q25: ='Op. Cost Input'!D22 -> 26.18525221 | R25: ='Op. Cost Input'!$D$6 -> 25 | S25: ='Fixed Cost Input'!$D$66 -> 0 | T25: ='Op. Cost Input'!N22 -> 0 | U25: ='Op. Cost Input'!$D$5*'Op. Cost Input'!$C22 -> 5.4 | V25: ='Op. Cost Input'!E22 -> 21.7725 | W25: ='Op. Cost Input'!F22 -> 14.04 | X25: ='Op. Cost Input'!$D$7 -> 17.75 | Y25: ='Op. Cost Input'!$D$4 -> 20 | Z25: ='Op. Cost Input'!H22 -> 9.801690699 | AA25: =IF('Op. Cost Input'!G22="-",0,'Op. Cost Input'!G22) -> 0 | AB25: =ROUND(SUM(L25:AA25)/2*('Op. Cost Input'!$D$3),2) -> 11.09 | AC25: 306.799985 | AD25: ='Fixed Cost Input'!$D$14 -> 103.6699998 | AE25: ='Fixed Cost Input'!$I$17 -> 86.5938371 | AF25: 190.2638369 | AG25: 497.0638219 | AH25: ='Op. Cost Input'!$D$9*'Op. Cost Input'!$D$5 -> 27 | AI25: 524.0638219 | AJ25: =-CUMPRINC('Fixed Cost Input'!$H$13,'Fixed Cost Input'!$I$13,'Fixed Cost Input'!$I$5*'Fixed Cost Input'!$I$9,1,'Fixed Cost Input'!$I$13,0)/'Fixed Cost Input'!$I$13 -> 37.14285714 | AK25: =-CUMIPMT('Fixed Cost Input'!$H$13,'Fixed Cost Input'!$I$13,'Fixed Cost Input'!$I$5*'Fixed Cost Input'!$I$9,1,'Fixed Cost Input'!$I$13,0)/'Fixed Cost Input'!$I$13 -> 11.10097996 | AL25: ='Fixed Cost Input'!$I$15 -> 32.5 | AM25: ='Fixed Cost Input'!$I$16 -> 5.85 | AN25: 86.5938371 | AO25: 421.064 | AP25: 0.05170829138 | AQ25: 480 | AR25: 173.200015 | AS25: -44.06382186 | AT25: 0.6391666354 | AU25: 13.10159555 | AV25: 43.7 | AW25: 0.9153318078 | AX25: 1.372438138 | AY25: 0.9159189778 | AZ25: =SUM((AQ25-AC25-AH25-'Fixed Cost Input'!$I$15)/(('Fixed Cost Input'!$D$4)+'Fixed Cost Input'!$I$5+'Fixed Cost Input'!$J$5)) -> 0.02147309066 | BA25: -0.08408102224 | BB25: 10.5266 | BC25: 2.574995546 | BD25: -1.101595546 | BF25: 1.372438138 | BG25: 0.8034593926 | BH25: 0.9153318078 | BI25: 0.9159189778 | BJ25: 14.42 | BK25: 0.5645372344 | BL25: -0.1436239375 | BM25: =SUM((C25*E25*$D$252)-AI25)/AI$16 -> -0.07766655725 | BN25: =SUM((C25*E25*$E$252)-AI25)/AI25 -> -0.01996669379 | BO25: =SUM((C25*E25*$F$252)-AI25)/AI25 -> -0.01996669379 | BP25: =SUM((C25*E25*$G$252)-AI25)/AI25 -> -0.07876869216 | BQ25: =SUM((C25*E25*$H$252)-AI25)/AI25 -> -0.177504758 | BR25: =SUM((C25*E25*$I$252)-AI25)/AI25 -> -0.2095619222 | BS25: =SUM((C25*E25*$J$252)-AI25)/AI25 -> -1 | BT25: =SUM((C25*E25*$K$252)-AI25)/AI25 -> -1 | BV25: =SUM(($C$25*$E$25*D$252)-$AI$25)-((D$252*$M$25)-$M$25) -> -44.06382186 | BW25: =SUM(($C$25*$E$25*E$252)-$AI$25)-((E$252*$M$25)-$M$25) -> -13.5445598 | BX25: -13.5445598 | BY25: -41.535083 | BZ25: -88.53474657 | CA25: -103.7943776 | CF25: =SUM(AQ25-(AC25+U25+AE25+#REF!+Z25)) ->  | CG25: 86.4 | CI25: =SUM(CH25/(AC25+U25+AE25+#REF!+Z25+CG25)) ->  | CJ25: 105.6 | CL25: =SUM(CK25/(AC25+U25+AE25+#REF!+Z25+CJ25)) -> 
B26: Sunflower - Oilseed | C26: =HLOOKUP($B$13,$C$124:$G$141,12,FALSE) -> 2000 | D26: lb | E26: 0.26 | F26: 11 | G26: 11 | H26: =$C$76 -> 72887.2 | I26: 11 | J26: =$Q$76 -> 33441 | K26: 14 | L26: ='Seed, Fertilizer & Chemical'!J14 -> 50 | M26: ='Seed, Fertilizer & Chemical'!O48 -> 104.3190181 | N26: ='Seed, Fertilizer & Chemical'!D104 -> 49 | O26: ='Seed, Fertilizer & Chemical'!F104 -> 0 | P26: ='Seed, Fertilizer & Chemical'!G104 -> 0 | Q26: ='Op. Cost Input'!D23 -> 30.70050442 | R26: ='Op. Cost Input'!$D$6 -> 25 | S26: ='Fixed Cost Input'!$D$66 -> 0 | T26: ='Op. Cost Input'!N23 -> 13 | U26: ='Op. Cost Input'!$D$5*'Op. Cost Input'!$C23 -> 5.4 | V26: ='Op. Cost Input'!E23 -> 16.845 | W26: ='Op. Cost Input'!F23 -> 10.8 | X26: ='Op. Cost Input'!$D$7 -> 17.75 | Y26: ='Op. Cost Input'!$D$4 -> 20 | Z26: ='Op. Cost Input'!H23 -> 19.6033814 | AA26: =IF('Op. Cost Input'!G23="-",0,'Op. Cost Input'!G23) -> 10 | AB26: =ROUND(SUM(L26:AA26)/2*('Op. Cost Input'!$D$3),2) -> 13.97 | AC26: 386.3879039 | AD26: ='Fixed Cost Input'!$D$14 -> 103.6699998 | AE26: ='Fixed Cost Input'!$I$17+'Fixed Cost Input'!$J$17 -> 105.9109238 | AF26: 209.5809236 | AG26: 595.9688276 | AH26: ='Op. Cost Input'!$D$9*'Op. Cost Input'!$D$5 -> 27 | AI26: 622.9688276 | AJ26: =(-CUMPRINC('Fixed Cost Input'!$H$13,'Fixed Cost Input'!$I$13,'Fixed Cost Input'!$I$5*'Fixed Cost Input'!$I$9,1,'Fixed Cost Input'!$I$13,0)/'Fixed Cost Input'!$I$13)+(-CUMPRINC('Fixed Cost Input'!$H$13,'Fixed Cost Input'!$I$13,'Fixed Cost Input'!$J$5*'Fixed Cost Input'!$I$9,1,'Fixed Cost Input'!$I$13,0)/'Fixed Cost Input'!$I$13) -> 45.42857143 | AK26: =(-CUMIPMT('Fixed Cost Input'!$H$13,'Fixed Cost Input'!$I$13,'Fixed Cost Input'!$I$5*'Fixed Cost Input'!$I$9,1,'Fixed Cost Input'!$I$13,0)/'Fixed Cost Input'!$I$13)+(-CUMIPMT('Fixed Cost Input'!$H$13,'Fixed Cost Input'!$I$13,'Fixed Cost Input'!$J$5*'Fixed Cost Input'!$I$9,1,'Fixed Cost Input'!$I$13,0)/'Fixed Cost Input'!$I$13) -> 13.57735241 | AL26: ='Fixed Cost Input'!$I$15+'Fixed Cost Input'!$J$15 -> 39.75 | AM26: ='Fixed Cost Input'!$I$16+'Fixed Cost Input'!$J$16 -> 7.155 | AN26: 105.9109238 | AO26: 387.264 | AP26: 0.0434974591 | AQ26: 520 | AR26: 133.6120961 | AS26: -102.9688276 | AT26: 0.7430536614 | AU26: 0.3114844138 | AV26: 2396 | AW26: 0.8347245409 | AX26: 1.0022674 | AY26: 0.8347127127 | AZ26: =SUM((AQ26-AC26-AH26-'Fixed Cost Input'!$I$15)/(('Fixed Cost Input'!$D$4)+'Fixed Cost Input'!$I$5+'Fixed Cost Input'!$J$5)) -> 0.01399661871 | BA26: -0.1652872873 | BB26: 0.193632 | BC26: 0.1178524138 | BD26: -0.05148441378 | BF26: 1.0022674 | BG26: 0.6216426615 | BH26: 0.8347245409 | BI26: 0.8347127127 | BJ26: 0.24 | BK26: 0.3457978232 | BL26: -0.2664908153 | CF26: =SUM(AQ26-(AC26+U26+AE26+#REF!+Z26)) ->  | CG26: 93.6 | CI26: =SUM(CH26/(AC26+U26+AE26+#REF!+Z26+CG26)) ->  | CJ26: 114.4 | CL26: =SUM(CK26/(AC26+U26+AE26+#REF!+Z26+CJ26)) -> 
B27: Flaxseed | C27: =HLOOKUP($B$13,$C$124:$G$141,13,FALSE) -> 25 | D27: bu | E27: 16 | F27: 12 | G27: 12 | H27: =$C$78 -> 42754.4 | I27: 14 | J27: =$Q$78 -> 18312 | K27: 15 | L27: ='Seed, Fertilizer & Chemical'!J15 -> 56 | M27: ='Seed, Fertilizer & Chemical'!O49 -> 58.56656702 | N27: ='Seed, Fertilizer & Chemical'!D105 -> 17 | O27: ='Seed, Fertilizer & Chemical'!F105 -> 16.5 | P27: ='Seed, Fertilizer & Chemical'!G105 -> 0 | Q27: ='Op. Cost Input'!D24 -> 28.53453263 | R27: ='Op. Cost Input'!$D$6 -> 25 | S27: ='Fixed Cost Input'!$D$66 -> 0 | T27: ='Op. Cost Input'!N24 -> 0 | U27: ='Op. Cost Input'!$D$5*'Op. Cost Input'!$C24 -> 5.4 | V27: ='Op. Cost Input'!E24 -> 13.99 | W27: ='Op. Cost Input'!F24 -> 10.8 | X27: ='Op. Cost Input'!$D$7 -> 17.75 | Y27: ='Op. Cost Input'!$D$4 -> 20 | Z27: ='Op. Cost Input'!H24 -> 6.126056687 | AA27: =IF('Op. Cost Input'!G24="-",0,'Op. Cost Input'!G24) -> 0 | AB27: =ROUND(SUM(L27:AA27)/2*('Op. Cost Input'!$D$3),2) -> 10.34 | AC27: 286.0071563 | AD27: ='Fixed Cost Input'!$D$14 -> 103.6699998 | AE27: ='Fixed Cost Input'!$I$17 -> 86.5938371 | AF27: 190.2638369 | AG27: 476.2709932 | AH27: ='Op. Cost Input'!$D$9*'Op. Cost Input'!$D$5 -> 27 | AI27: 503.2709932 | AJ27: =-CUMPRINC('Fixed Cost Input'!$H$13,'Fixed Cost Input'!$I$13,'Fixed Cost Input'!$I$5*'Fixed Cost Input'!$I$9,1,'Fixed Cost Input'!$I$13,0)/'Fixed Cost Input'!$I$13 -> 37.14285714 | AK27: =-CUMIPMT('Fixed Cost Input'!$H$13,'Fixed Cost Input'!$I$13,'Fixed Cost Input'!$I$5*'Fixed Cost Input'!$I$9,1,'Fixed Cost Input'!$I$13,0)/'Fixed Cost Input'!$I$13 -> 11.10097996 | AL27: ='Fixed Cost Input'!$I$15 -> 32.5 | AM27: ='Fixed Cost Input'!$I$16 -> 5.85 | AN27: 86.5938371 | AO27: 255.6738 | AP27: 0.05471816041 | AQ27: 400 | AR27: 113.9928437 | AS27: -103.2709932 | AT27: 0.7150178909 | AU27: 20.13083973 | AV27: 31.5 | AW27: 0.7936507937 | AX27: 0.8939419673 | AY27: 0.7948004264 | AZ27: =SUM((AQ27-AC27-AH27-'Fixed Cost Input'!$I$15)/(('Fixed Cost Input'!$D$4)+'Fixed Cost Input'!$I$5+'Fixed Cost Input'!$J$5)) -> 0.01029137746 | BA27: -0.2051995736 | BB27: 10.226952 | BC27: 9.903887729 | BD27: -4.130839729 | BF27: 0.8939419673 | BG27: 0.5080241131 | BH27: 0.7936507937 | BI27: 0.7948004264 | BJ27: 12.57 | BK27: 0.3985664034 | BL27: -0.361078354 | CF27: =SUM(AQ27-(AC27+U27+AE27+#REF!+Z27)) ->  | CG27: 72 | CI27: =SUM(CH27/(AC27+U27+AE27+#REF!+Z27+CG27)) ->  | CJ27: 88 | CL27: =SUM(CK27/(AC27+U27+AE27+#REF!+Z27+CJ27)) -> 
B28: Peas | C28: =HLOOKUP($B$13,$C$124:$G$141,14,FALSE) -> 55 | D28: bu | E28: 8.75 | F28: 13 | G28: 13 | H28: =$C$73 -> 182530.6 | I28: 7 | J28: =$Q$73 -> 178117 | K28: 7 | L28: ='Seed, Fertilizer & Chemical'!J16 -> 85 | M28: ='Seed, Fertilizer & Chemical'!O50 -> 29.83272737 | N28: ='Seed, Fertilizer & Chemical'!D106 -> 20.5 | O28: ='Seed, Fertilizer & Chemical'!F106 -> 22.25 | P28: ='Seed, Fertilizer & Chemical'!G106 -> 0 | Q28: ='Op. Cost Input'!D25 -> 26.58597179 | R28: ='Op. Cost Input'!$D$6 -> 25 | S28: ='Fixed Cost Input'!$D$66 -> 0 | T28: ='Op. Cost Input'!N25 -> 0 | U28: ='Op. Cost Input'!$D$5*'Op. Cost Input'!$C25 -> 5.4 | V28: ='Op. Cost Input'!E25 -> 15.3875 | W28: ='Op. Cost Input'!F25 -> 21.6 | X28: ='Op. Cost Input'!$D$7 -> 17.75 | Y28: ='Op. Cost Input'!$D$4 -> 20 | Z28: ='Op. Cost Input'!H25 -> 13.47732471 | AA28: =IF('Op. Cost Input'!G25="-",0,'Op. Cost Input'!G25) -> 0 | AB28: =ROUND(SUM(L28:AA28)/2*('Op. Cost Input'!$D$3),2) -> 11.35 | AC28: 314.1335239 | AD28: ='Fixed Cost Input'!$D$14 -> 103.6699998 | AE28: ='Fixed Cost Input'!$I$17 -> 86.5938371 | AF28: 190.2638369 | AG28: 504.3973608 | AH28: ='Op. Cost Input'!$D$9*'Op. Cost Input'!$D$5 -> 27 | AI28: 531.3973608 | AJ28: =-CUMPRINC('Fixed Cost Input'!$H$13,'Fixed Cost Input'!$I$13,'Fixed Cost Input'!$I$5*'Fixed Cost Input'!$I$9,1,'Fixed Cost Input'!$I$13,0)/'Fixed Cost Input'!$I$13 -> 37.14285714 | AK28: =-CUMIPMT('Fixed Cost Input'!$H$13,'Fixed Cost Input'!$I$13,'Fixed Cost Input'!$I$5*'Fixed Cost Input'!$I$9,1,'Fixed Cost Input'!$I$13,0)/'Fixed Cost Input'!$I$13 -> 11.10097996 | AL28: ='Fixed Cost Input'!$I$15 -> 32.5 | AM28: ='Fixed Cost Input'!$I$16 -> 5.85 | AN28: 86.5938371 | AO28: 371.844 | AP28: 0.04138160089 | AQ28: 481.25 | AR28: 167.1164761 | AS28: -50.14736076 | AT28: 0.6527449847 | AU28: 9.661770196 | AV28: 60.7 | AW28: 0.9060955519 | AX28: 1.183713204 | AY28: 0.9056311445 | AZ28: =SUM((AQ28-AC28-AH28-'Fixed Cost Input'!$I$15)/(('Fixed Cost Input'!$D$4)+'Fixed Cost Input'!$I$5+'Fixed Cost Input'!$J$5)) -> 0.02032416924 | BA28: -0.09436885552 | BB28: 6.7608 | BC28: 2.900970196 | BD28: -0.9117701957 | BF28: 1.183713204 | BG28: 0.6997475476 | BH28: 0.9060955519 | BI28: 0.9056311445 | BJ28: 9.39 | BK28: 0.5319918551 | BL28: -0.1596370873 | CF28: =SUM(AQ28-(AC28+U28+AE28+#REF!+Z28)) ->  | CG28: 86.625 | CI28: =SUM(CH28/(AC28+U28+AE28+#REF!+Z28+CG28)) ->  | CJ28: 105.875 | CL28: =SUM(CK28/(AC28+U28+AE28+#REF!+Z28+CJ28)) -> 
B29: Beans - Pinto | C29: =HLOOKUP($B$13,$C$124:$G$141,15,FALSE) -> 1900 | D29: lb | E29: 0.4 | F29: 14 | G29: 14 | H29: =$C$77 -> 87786.4 | I29: 10 | J29: =$Q$77 -> 111111 | K29: 9 | L29: ='Seed, Fertilizer & Chemical'!J17 -> 105 | M29: ='Seed, Fertilizer & Chemical'!O51 -> 71.78726078 | N29: ='Seed, Fertilizer & Chemical'!D107 -> 83.5 | O29: ='Seed, Fertilizer & Chemical'!F107 -> 45 | P29: ='Seed, Fertilizer & Chemical'!G107 -> 0 | Q29: ='Op. Cost Input'!D26 -> 25.620408 | R29: ='Op. Cost Input'!$D$6 -> 25 | S29: ='Fixed Cost Input'!$D$66 -> 0 | T29: ='Op. Cost Input'!N26 -> 25 | U29: ='Op. Cost Input'!$D$5*'Op. Cost Input'!$C26 -> 5.4 | V29: ='Op. Cost Input'!E26 -> 38.445 | W29: ='Op. Cost Input'!F26 -> 18.9 | X29: ='Op. Cost Input'!$D$7 -> 17.75 | Y29: ='Op. Cost Input'!$D$4 -> 20 | Z29: ='Op. Cost Input'!H26 -> 7.759671803 | AA29: =IF('Op. Cost Input'!G26="-",0,'Op. Cost Input'!G26) -> 0 | AB29: =ROUND(SUM(L29:AA29)/2*('Op. Cost Input'!$D$3),2) -> 18.34 | AC29: 507.5023406 | AD29: ='Fixed Cost Input'!$D$14 -> 103.6699998 | AE29: ='Fixed Cost Input'!$I$17+'Fixed Cost Input'!$J$17 -> 105.9109238 | AF29: 209.5809236 | AG29: 717.0832642 | AH29: ='Op. Cost Input'!$D$9*'Op. Cost Input'!$D$5 -> 27 | AI29: 744.0832642 | AJ29: =(-CUMPRINC('Fixed Cost Input'!$H$13,'Fixed Cost Input'!$I$13,'Fixed Cost Input'!$I$5*'Fixed Cost Input'!$I$9,1,'Fixed Cost Input'!$I$13,0)/'Fixed Cost Input'!$I$13)+(-CUMPRINC('Fixed Cost Input'!$H$13,'Fixed Cost Input'!$I$13,'Fixed Cost Input'!$J$5*'Fixed Cost Input'!$I$9,1,'Fixed Cost Input'!$I$13,0)/'Fixed Cost Input'!$I$13) -> 45.42857143 | AK29: =(-CUMIPMT('Fixed Cost Input'!$H$13,'Fixed Cost Input'!$I$13,'Fixed Cost Input'!$I$5*'Fixed Cost Input'!$I$9,1,'Fixed Cost Input'!$I$13,0)/'Fixed Cost Input'!$I$13)+(-CUMIPMT('Fixed Cost Input'!$H$13,'Fixed Cost Input'!$I$13,'Fixed Cost Input'!$J$5*'Fixed Cost Input'!$I$9,1,'Fixed Cost Input'!$I$13,0)/'Fixed Cost Input'!$I$13) -> 13.57735241 | AL29: ='Fixed Cost Input'!$I$15+'Fixed Cost Input'!$J$15 -> 39.75 | AM29: ='Fixed Cost Input'!$I$16+'Fixed Cost Input'!$J$16 -> 7.155 | AN29: 105.9109238 | AO29: 737.2 | AP29: 0.05215002713 | AQ29: 760 | AR29: 252.4976594 | AS29: 15.91673579 | AT29: 0.6677662376 | AU29: 0.3916227706 | AV29: 1860.2 | AW29: 1.021395549 | AX29: 1.452604138 | AY29: 1.021391068 | AZ29: =SUM((AQ29-AC29-AH29-'Fixed Cost Input'!$I$15)/(('Fixed Cost Input'!$D$4)+'Fixed Cost Input'!$I$5+'Fixed Cost Input'!$J$5)) -> 0.03644903861 | BA29: 0.02139106811 | BB29: 0.388 | BC29: 0.003622770639 | BD29: 0.008377229361 | BF29: 1.452604138 | BG29: 0.9907493361 | BH29: 1.021395549 | BI29: 1.021391068 | BJ29: 0.5 | BK29: 0.4975300392 | BL29: 0.03136288153 | CF29: =SUM(AQ29-(AC29+U29+AE29+#REF!+Z29)) ->  | CG29: 136.8 | CI29: =SUM(CH29/(AC29+U29+AE29+#REF!+Z29+CG29)) ->  | CJ29: 167.2 | CL29: =SUM(CK29/(AC29+U29+AE29+#REF!+Z29+CJ29)) -> 
B30: Beans - White | C30: =HLOOKUP($B$13,$C$124:$G$141,16,FALSE) -> 1700 | D30: lb | E30: 0.41 | F30: 15 | G30: 15 | H30: =$C$81 -> 26760.2 | I30: 16 | J30: =$Q$81 -> 11173 | K30: 16 | L30: ='Seed, Fertilizer & Chemical'!J18 -> 110 | M30: ='Seed, Fertilizer & Chemical'!O52 -> 78.39760766 | N30: ='Seed, Fertilizer & Chemical'!D108 -> 83.5 | O30: ='Seed, Fertilizer & Chemical'!F108 -> 45 | P30: ='Seed, Fertilizer & Chemical'!G108 -> 0 | Q30: ='Op. Cost Input'!D27 -> 25.26247032 | R30: ='Op. Cost Input'!$D$6 -> 25 | S30: ='Fixed Cost Input'!$D$66 -> 0 | T30: ='Op. Cost Input'!N27 -> 25 | U30: ='Op. Cost Input'!$D$5*'Op. Cost Input'!$C27 -> 5.4 | V30: ='Op. Cost Input'!E27 -> 36.7475 | W30: ='Op. Cost Input'!F27 -> 18.9 | X30: ='Op. Cost Input'!$D$7 -> 17.75 | Y30: ='Op. Cost Input'!$D$4 -> 20 | Z30: ='Op. Cost Input'!H27 -> 6.942864245 | AA30: =IF('Op. Cost Input'!G27="-",0,'Op. Cost Input'!G27) -> 0 | AB30: =ROUND(SUM(L30:AA30)/2*('Op. Cost Input'!$D$3),2) -> 18.67 | AC30: 516.5704422 | AD30: ='Fixed Cost Input'!$D$14 -> 103.6699998 | AE30: ='Fixed Cost Input'!$I$17+'Fixed Cost Input'!$J$17 -> 105.9109238 | AF30: 209.5809236 | AG30: 726.1513659 | AH30: ='Op. Cost Input'!$D$9*'Op. Cost Input'!$D$5 -> 27 | AI30: 753.1513659 | AJ30: =(-CUMPRINC('Fixed Cost Input'!$H$13,'Fixed Cost Input'!$I$13,'Fixed Cost Input'!$I$5*'Fixed Cost Input'!$I$9,1,'Fixed Cost Input'!$I$13,0)/'Fixed Cost Input'!$I$13)+(-CUMPRINC('Fixed Cost Input'!$H$13,'Fixed Cost Input'!$I$13,'Fixed Cost Input'!$J$5*'Fixed Cost Input'!$I$9,1,'Fixed Cost Input'!$I$13,0)/'Fixed Cost Input'!$I$13) -> 45.42857143 | AK30: =(-CUMIPMT('Fixed Cost Input'!$H$13,'Fixed Cost Input'!$I$13,'Fixed Cost Input'!$I$5*'Fixed Cost Input'!$I$9,1,'Fixed Cost Input'!$I$13,0)/'Fixed Cost Input'!$I$13)+(-CUMIPMT('Fixed Cost Input'!$H$13,'Fixed Cost Input'!$I$13,'Fixed Cost Input'!$J$5*'Fixed Cost Input'!$I$9,1,'Fixed Cost Input'!$I$13,0)/'Fixed Cost Input'!$I$13) -> 13.57735241 | AL30: ='Fixed Cost Input'!$I$15+'Fixed Cost Input'!$J$15 -> 39.75 | AM30: ='Fixed Cost Input'!$I$16+'Fixed Cost Input'!$J$16 -> 7.155 | AN30: 105.9109238 | AO30: 683.7 | AP30: 0.05374798888 | AQ30: 697 | AR30: 180.4295578 | AS30: -56.15136585 | AT30: 0.7411340634 | AU30: 0.4430302152 | AV30: 1837 | AW30: 0.9254218835 | AX30: 1.323536819 | AY30: 0.9254447799 | AZ30: =SUM((AQ30-AC30-AH30-'Fixed Cost Input'!$I$15)/(('Fixed Cost Input'!$D$4)+'Fixed Cost Input'!$I$5+'Fixed Cost Input'!$J$5)) -> 0.02283844339 | BA30: -0.0745552201 | BB30: 0.4021764706 | BC30: 0.04085374462 | BD30: -0.03303021521 | BF30: 1.323536819 | BG30: 0.9077856471 | BH30: 0.9254218835 | BI30: 0.9254447799 | BJ30: 0.5 | BK30: 0.3492835498 | BL30: -0.1087003074 | CF30: =SUM(AQ30-(AC30+U30+AE30+#REF!+Z30)) ->  | CG30: 125.46 | CI30: =SUM(CH30/(AC30+U30+AE30+#REF!+Z30+CG30)) ->  | CJ30: 153.34 | CL30: =SUM(CK30/(AC30+U30+AE30+#REF!+Z30+CJ30)) -> 
B31: Beans - Black | C31: =HLOOKUP($B$13,$C$124:$G$141,17,FALSE) -> 1700 | D31: lb | E31: 0.4 | F31: 16 | G31: 16 | H31: =$C$82 -> 29704.2 | I31: 15 | J31: =$Q$82 -> 48185 | K31: 12 | L31: ='Seed, Fertilizer & Chemical'!J19 -> 115 | M31: ='Seed, Fertilizer & Chemical'!O53 -> 78.39760766 | N31: ='Seed, Fertilizer & Chemical'!D109 -> 83.5 | O31: ='Seed, Fertilizer & Chemical'!F109 -> 45 | P31: ='Seed, Fertilizer & Chemical'!G109 -> 0 | Q31: ='Op. Cost Input'!D28 -> 25.26247032 | R31: ='Op. Cost Input'!$D$6 -> 25 | S31: ='Fixed Cost Input'!$D$66 -> 0 | T31: ='Op. Cost Input'!N28 -> 25 | U31: ='Op. Cost Input'!$D$5*'Op. Cost Input'!$C28 -> 5.4 | V31: ='Op. Cost Input'!E28 -> 47.1625 | W31: ='Op. Cost Input'!F28 -> 18.9 | X31: ='Op. Cost Input'!$D$7 -> 17.75 | Y31: ='Op. Cost Input'!$D$4 -> 20 | Z31: ='Op. Cost Input'!H28 -> 6.942864245 | AA31: =IF('Op. Cost Input'!G28="-",0,'Op. Cost Input'!G28) -> 0 | AB31: =ROUND(SUM(L31:AA31)/2*('Op. Cost Input'!$D$3),2) -> 19.25 | AC31: 532.5654422 | AD31: ='Fixed Cost Input'!$D$14 -> 103.6699998 | AE31: ='Fixed Cost Input'!$I$17+'Fixed Cost Input'!$J$17 -> 105.9109238 | AF31: 209.5809236 | AG31: 742.1463659 | AH31: ='Op. Cost Input'!$D$9*'Op. Cost Input'!$D$5 -> 27 | AI31: 769.1463659 | AJ31: =(-CUMPRINC('Fixed Cost Input'!$H$13,'Fixed Cost Input'!$I$13,'Fixed Cost Input'!$I$5*'Fixed Cost Input'!$I$9,1,'Fixed Cost Input'!$I$13,0)/'Fixed Cost Input'!$I$13)+(-CUMPRINC('Fixed Cost Input'!$H$13,'Fixed Cost Input'!$I$13,'Fixed Cost Input'!$J$5*'Fixed Cost Input'!$I$9,1,'Fixed Cost Input'!$I$13,0)/'Fixed Cost Input'!$I$13) -> 45.42857143 | AK31: =(-CUMIPMT('Fixed Cost Input'!$H$13,'Fixed Cost Input'!$I$13,'Fixed Cost Input'!$I$5*'Fixed Cost Input'!$I$9,1,'Fixed Cost Input'!$I$13,0)/'Fixed Cost Input'!$I$13)+(-CUMIPMT('Fixed Cost Input'!$H$13,'Fixed Cost Input'!$I$13,'Fixed Cost Input'!$J$5*'Fixed Cost Input'!$I$9,1,'Fixed Cost Input'!$I$13,0)/'Fixed Cost Input'!$I$13) -> 13.57735241 | AL31: ='Fixed Cost Input'!$I$15+'Fixed Cost Input'!$J$15 -> 39.75 | AM31: ='Fixed Cost Input'!$I$16+'Fixed Cost Input'!$J$16 -> 7.155 | AN31: 105.9109238 | AO31: 697.268 | AP31: 0.0676389853 | AQ31: 680 | AR31: 147.4345578 | AS31: -89.14636585 | AT31: 0.7831844739 | AU31: 0.4524390387 | AV31: 1922.9 | AW31: 0.8840813355 | AX31: 1.309262571 | AY31: 0.884097007 | AZ31: =SUM((AQ31-AC31-AH31-'Fixed Cost Input'!$I$15)/(('Fixed Cost Input'!$D$4)+'Fixed Cost Input'!$I$5+'Fixed Cost Input'!$J$5)) -> 0.01660709306 | BA31: -0.115902993 | BB31: 0.4101576471 | BC31: 0.04228139168 | BD31: -0.05243903874 | BF31: 1.309262571 | BG31: 0.9065478704 | BH31: 0.8840813355 | BI31: 0.884097007 | BJ31: 0.53 | BK31: 0.2768383866 | BL31: -0.167390444 | CF31: =SUM(AQ31-(AC31+U31+AE31+#REF!+Z31)) ->  | CG31: 122.4 | CI31: =SUM(CH31/(AC31+U31+AE31+#REF!+Z31+CG31)) ->  | CJ31: 149.6 | CL31: =SUM(CK31/(AC31+U31+AE31+#REF!+Z31+CJ31)) -> 
B34: MASC Seeded Acreage SAR - Market Variety Share Report Data | H34: https://www.masc.mb.ca/masc.nsf/tools_and_data.html | M34: (**under Management Plus**) | P34: Regular and Pedigree seed added together
C35: **Change 5 year avg formula***
C36: 5yr | D36: 2012 | E36: 2013 | F36: 2014 | G36: 2015 | H36: 2016 | I36: 2017 | J36: 2018 | K36: 2019 | L36: 2020 | M36: 2021 | N36: 2022 | O36: 2023 | P36: 2024 | Q36: 2025
B37: Wheat - Hard Red Spring | C37: =AVERAGE(L37:P37) -> 2693718.2 | D37: 2271793 | E37: 2701101 | F37: 2232194 | G37: 2568571 | H37: 2254121 | I37: =2025021+59747 -> 2084768 | J37: =2515440+62947 -> 2578387 | K37: =2691388+66793 -> 2758181 | L37: =2660220+67221 -> 2727441 | M37: =2470659+74494 -> 2545153 | N37: =2512963+70176 -> 2583139 | O37: =2824397+77544 -> 2901941 | P37: 2710917 | Q37: 0
B38: Wheat - Prairie Spring | C38: =AVERAGE(L38:P38) -> 46246.6 | D38: 4527 | E38: 6415 | F38: 2482 | G38: 6747 | H38: 71364 | I38: =52807+7698 -> 60505 | J38: =48945+1954 -> 50899 | K38: =49646+1825 -> 51471 | L38: =40732+501 -> 41233 | M38: =41825+620 -> 42445 | N38: =43018+1218 -> 44236 | O38: =52548+913 -> 53461 | P38: 49858 | Q38: 0
B39: Wheat - Northern Hard Red | C39: 133158.8 | D39: 48320 | E39: 138881 | F39: 279169 | G39: 341402 | H39: 374131 | I39: 220255 | J39: 163539 | K39: =149977+3608 -> 153585 | L39: =135583+2465 -> 138048 | M39: =119850 -> 119850 | N39: =111165 -> 111165 | O39: 151000 | P39: 145731 | Q39: 0
B40: Wheat - Other Spring | C40: 4040.6 | D40: =D38*0.1 -> 452.7 | E40: 641.5 | F40: 248.2 | G40: 674.7 | H40: 7136.4 | I40: 6050.5 | J40: 6509 | K40: 5402 | L40: 3587 | M40: 3543 | N40: 3876 | O40: 5399 | P40: 3798 | Q40: 0
B41: Wheat - Winter | C41: 43117.8 | D41: 508916 | E41: 640523 | F41: 408796 | G41: 172534 | H41: 140355 | I41: =129778+3818 -> 133596 | J41: =66039+1446 -> 67485 | K41: =32846+456 -> 33302 | L41: =27453+1560 -> 29013 | M41: =35940+740 -> 36680 | N41: =51972 -> 51972 | O41: =59403+1206 -> 60609 | P41: 37315 | Q41: 0
B42: Barley | C42: 372559.6 | D42: 504626 | E42: 468209 | F42: 329036 | G42: 392393 | H42: 362057 | I42: =239898+6798 -> 246696 | J42: =257482+6990 -> 264472 | K42: =337775+11202 -> 348977 | L42: =371821+11321 -> 383142 | M42: =394491+13276 -> 407767 | N42: =365928+11774 -> 377702 | O42: =369773+10011 -> 379784 | P42: 314403 | Q42: 0
B43: Oats | C43: 545035.6 | D43: 467710 | E43: 382302 | F43: 352808 | G43: 466972 | H43: 350105 | I43: =437386+13641 -> 451027 | J43: =429294+13738 -> 443032 | K43: =515939+19292 -> 535231 | L43: =624199+22844 -> 647043 | M43: =616105+27796 -> 643901 | N43: =633712+28623 -> 662335 | O43: =309507+14747 -> 324254 | P43: 447645 | Q43: 0
B44: Fall Rye OP | C44: 51412 | D44: 96298 | E44: 85243 | F44: 58390 | G44: 68077 | H44: 112383 | I44: 73308 | J44: 41925 | K44: 40312 | L44: =39557 -> 39557 | M44: 46974 | N44: =67447 -> 67447 | O44: 52436 | P44: 50646 | Q44: 0
B45: Hybrid Fall Rye | C45: 46115.4 | K45: 53793 | L45: =60939 -> 60939 | M45: 53091 | N45: =49828 -> 49828 | O45: 32652 | P45: 34067 | Q45: 0
B46: Flaxseed | C46: 42754.4 | D46: 128901 | E46: 78363 | F46: 83237 | G46: 126840 | H46: 67161 | I46: =39294+3039 -> 42333 | J46: =32356+3316 -> 35672 | K46: =42008+3697 -> 45705 | L46: =45213+3179 -> 48392 | M46: =61707+5590 -> 67297 | N46: =44961+4539 -> 49500 | O46: =28046+2225 -> 30271 | P46: 18312 | Q46: 0
B47: Canola | C47: 3292975 | D47: 3611339 | E47: 3262419 | F47: 3040491 | G47: 3160998 | H47: 3173535 | I47: 3108464 | J47: 2351203 | K47: =3213617+1200 -> 3214817 | L47: =3372513+1430 -> 3373943 | M47: =3471110+1235 -> 3472345 | N47: =3208253+2909 -> 3211162 | O47: =3142868 -> 3142868 | P47: 3264557 | Q47: 0
B48: Sunflower Oil | C48: 57794.8 | D48: 44667 | E48: 33630 | F48: 26617 | G48: 38535 | H48: 36752 | I48: 33480 | J48: 32269 | K48: 45831 | L48: 65716 | M48: =64238 -> 64238 | N48: 70505 | O48: 68491 | P48: 20024 | Q48: 0
B49: Sunflower Confection | C49: 15092.4 | D49: 45914 | E49: 41212 | F49: 60104 | G49: 62304 | H49: 31170 | I49: 26325 | J49: 17098 | K49: 20032 | L49: 24625 | M49: =15652 -> 15652 | N49: 4492 | O49: 17276 | P49: 13417 | Q49: 0
B50: Buckwheat | C50: 4453.2 | D50: 11535 | E50: 5094 | F50: 2599 | G50: 8921 | H50: 11083 | I50: 5645 | J50: 4848 | K50: 6766 | L50: 5681 | M50: =4416 -> 4416 | N50: 2834 | O50: 7274 | P50: 2061 | Q50: 0
B51: Peas | C51: 182530.6 | D51: 53283 | E51: 49046 | F51: 55650 | G51: 67883 | H51: 170121 | I51: =63646+3401 -> 67047 | J51: =78440+5587 -> 84027 | K51: =104435+7740 -> 112175 | L51: =146487+9378 -> 155865 | M51: =212103+14274 -> 226377 | N51: =172294+15225 -> 187519 | O51: =154656+10119 -> 164775 | P51: 178117 | Q51: 0
B52: Corn | C52: 403556 | D52: 273257 | E52: 334620 | F52: 250401 | G52: 225197 | H52: 328087 | I52: 395526 | J52: 380823 | K52: 416259 | L52: 306544 | M52: 383647 | N52: =313516 -> 313516 | O52: 497522 | P52: 516551 | Q52: 0
B53: Soybeans | C53: 1225326.2 | D53: 844660 | E53: 1056652 | F53: 1298688 | G53: 1414338 | H53: 1646521 | I53: =2150632+111842 -> 2262474 | J53: =1778556+113835 -> 1892391 | K53: =1295148+93751 -> 1388899 | L53: =1025788+78186 -> 1103974 | M53: =1166807+83170 -> 1249977 | N53: =815354+77574 -> 892928 | O53: =1477397+94093 -> 1571490 | P53: 1308262 | Q53: 0
B54: Lentil | C54: 1368.6 | D54: 877 | E54: 533 | F54: 0 | G54: 1707 | H54: 9957 | I54: 2681 | J54: 1684 | K54: 1542 | L54: 2522 | M54: 1070 | N54: 1003 | O54: 1003 | P54: 1245 | Q54: 0
B55: Beans - White | C55: 26760.2 | D55: 55274 | E55: 28913 | F55: 50273 | G55: 37602 | H55: 24226 | I55: 27231 | J55: 20243 | K55: 43665 | L55: =42923 -> 42923 | M55: 40204 | N55: 20318 | O55: 19183 | P55: 11173 | Q55: 0
B56: Kidney Bean | C56: 6986.2 | D56: 9319 | E56: 8734 | F56: 17210 | G56: 16604 | H56: 11906 | I56: 8136 | J56: 10501 | K56: 12358 | L56: =12402 -> 12402 | M56: 9454 | N56: 4300 | O56: 4036 | P56: 4739 | Q56: 0
B57: Beans - Pinto | C57: 87786.4 | D57: 49746 | E57: 36404 | F57: 41620 | G57: 35572 | H57: 48292 | I57: 52048 | J57: 48368 | K57: 55924 | L57: =95417 -> 95417 | M57: 86179 | N57: 64411 | O57: 81814 | P57: 111111 | Q57: 0 | T57: not a typo…
B58: Black Bean | C58: 29704.2 | D58: 14498 | E58: 9535 | F58: 14921 | G58: 20302 | H58: 17512 | I58: 22409 | J58: 27610 | K58: 27308 | L58: 20940 | M58: 27846 | N58: 21053 | O58: 30497 | P58: 48185 | Q58: 0
B59: Hempseed | C59: 6815.8 | D59: 14403 | E59: 11297 | F59: 17453 | G59: 21220 | H59: 14491 | I59: 27296 | J59: 10126 | K59: 10009 | L59: 11308 | M59: 6131 | N59: 5604 | O59: 5325 | P59: 5711 | Q59: 0
B60: Canaryseed | C60: 4885.2 | D60: 12135 | E60: 6422 | F60: 2009 | G60: 9449 | H60: 7635 | I60: 4283 | J60: 1578 | K60: 3179 | L60: 5120 | M60: 6979 | N60: 4990 | O60: 3311 | P60: 4026 | Q60: 0
B61: Fababean | C61: 3302 | D61: 3463 | E61: 2377 | F61: 3468 | G61: 9040 | H61: 9596 | I61: 8379 | J61: 5826 | K61: 8052 | L61: 6679 | M61: 5206 | N61: 0 | O61: 3217 | P61: 1408 | Q61: 0
B64: MASC Seeded Acreage (for COP)
C65: **Change 5 year avg formula***
C66: 5yr | D66: Rank | E66: 2012 | F66: 2013 | G66: 2014 | H66: 2015 | I66: 2016 | J66: 2017 | K66: 2018 | L66: 2019 | M66: 2020 | N66: 2021 | O66: 2022 | P66: 2023 | Q66: 2024 | R66: 2025
B67: Canola | C67: =AVERAGE(M67:Q67) -> 3292975 | D67: =RANK(C67,$C$67:$C$90) -> 1 | E67: =D47 -> 3611339 | F67: 3262419 | G67: 3040491 | H67: 3160998 | I67: 3173535 | J67: 3108464 | K67: 2351203 | L67: 3214817 | M67: 3373943 | N67: 3472345 | O67: 3211162 | P67: 3142868 | Q67: 3264557 | R67: 0
B68: Wheat - Hard Red Spring | C68: 2693718.2 | D68: 2 | E68: =D37 -> 2271793 | F68: 2701101 | G68: 2232194 | H68: 2568571 | I68: 2254121 | J68: 2084768 | K68: 2578387 | L68: 2758181 | M68: 2727441 | N68: 2545153 | O68: 2583139 | P68: 2901941 | Q68: 2710917 | R68: 0
B69: Soybeans | C69: 1225326.2 | D69: 3 | E69: =D53 -> 844660 | F69: 1056652 | G69: 1298688 | H69: 1414338 | I69: 1646521 | J69: 2262474 | K69: 1892391 | L69: 1388899 | M69: 1103974 | N69: 1249977 | O69: 892928 | P69: 1571490 | Q69: 1308262 | R69: 0
B70: Oats | C70: 545035.6 | D70: 4 | E70: =D43 -> 467710 | F70: 382302 | G70: 352808 | H70: 466972 | I70: 350105 | J70: 451027 | K70: 443032 | L70: 535231 | M70: 647043 | N70: 643901 | O70: 662335 | P70: 324254 | Q70: 447645 | R70: 0
B71: Barley | C71: 372559.6 | D71: 6 | E71: =D42 -> 504626 | F71: 468209 | G71: 329036 | H71: 392393 | I71: 362057 | J71: 246696 | K71: 264472 | L71: 348977 | M71: 383142 | N71: 407767 | O71: 377702 | P71: 379784 | Q71: 314403 | R71: 0
B72: Corn | C72: 403556 | D72: 5 | E72: =D52 -> 273257 | F72: 334620 | G72: 250401 | H72: 225197 | I72: 328087 | J72: 395526 | K72: 380823 | L72: 416259 | M72: 306544 | N72: 383647 | O72: 313516 | P72: 497522 | Q72: 516551 | R72: 0
B73: Peas | C73: 182530.6 | D73: 7 | E73: =D51 -> 53283 | F73: 49046 | G73: 55650 | H73: 67883 | I73: 170121 | J73: 67047 | K73: 84027 | L73: 112175 | M73: 155865 | N73: 226377 | O73: 187519 | P73: 164775 | Q73: 178117 | R73: 0
B74: Wheat - Northern Hard Red | C74: 133158.8 | D74: 8 | E74: =D39*0.9 -> 43488 | F74: 124992.9 | G74: 251252.1 | H74: 307261.8 | I74: 336717.9 | J74: 198229.5 | K74: =J39 -> 163539 | L74: 153585 | M74: 138048 | N74: 119850 | O74: 111165 | P74: 151000 | Q74: 145731 | R74: 0
B75: Fall Rye | C75: 97527.4 | D75: 9 | E75: =D45+D44 -> 96298 | F75: 85243 | G75: 58390 | H75: 68077 | I75: 112383 | J75: 73308 | K75: 41925 | L75: 94105 | M75: 100496 | N75: 100065 | O75: 117275 | P75: 85088 | Q75: 84713 | R75: 0
B76: Sunflower | C76: 72887.2 | D76: 11 | E76: =D48+D49 -> 90581 | F76: 74842 | G76: 86721 | H76: 100839 | I76: 67922 | J76: 59805 | K76: 49367 | L76: 65863 | M76: 90341 | N76: 79890 | O76: 74997 | P76: 85767 | Q76: 33441 | R76: 0
B77: Beans - Pinto | C77: 87786.4 | D77: 10 | E77: =D57 -> 49746 | F77: 36404 | G77: 41620 | H77: 35572 | I77: 48292 | J77: 52048 | K77: 48368 | L77: 55924 | M77: 95417 | N77: 86179 | O77: 64411 | P77: 81814 | Q77: 111111 | R77: 0
B78: Flaxseed | C78: 42754.4 | D78: 14 | E78: =D46 -> 128901 | F78: 78363 | G78: 83237 | H78: 126840 | I78: 67161 | J78: 42333 | K78: 35672 | L78: 45705 | M78: 48392 | N78: 67297 | O78: 49500 | P78: 30271 | Q78: 18312 | R78: 0
B79: Wheat - Prairie Spring | C79: 46246.6 | D79: 12 | E79: =D38 -> 4527 | F79: 6415 | G79: 2482 | H79: 6747 | I79: 71364 | J79: 60505 | K79: 50899 | L79: 51471 | M79: 41233 | N79: 42445 | O79: 44236 | P79: 53461 | Q79: 49858 | R79: 0
B80: Wheat - Winter | C80: 43117.8 | D80: 13 | E80: =D41 -> 508916 | F80: 640523 | G80: 408796 | H80: 172534 | I80: 140355 | J80: 133596 | K80: 67485 | L80: 33302 | M80: 29013 | N80: 36680 | O80: 51972 | P80: 60609 | Q80: 37315 | R80: 0
B81: Beans - White | C81: 26760.2 | D81: 16 | E81: =D55 -> 55274 | F81: 28913 | G81: 50273 | H81: 37602 | I81: 24226 | J81: 27231 | K81: 20243 | L81: 43665 | M81: 42923 | N81: 40204 | O81: 20318 | P81: 19183 | Q81: 11173 | R81: 0
B82: Beans - Black | C82: 29704.2 | D82: 15 | E82: =D58 -> 14498 | F82: 9535 | G82: 14921 | H82: 20302 | I82: 17512 | J82: 22409 | K82: 27610 | L82: 27308 | M82: 20940 | N82: 27846 | O82: 21053 | P82: 30497 | Q82: 48185 | R82: 0
B83: Beans - Kidney | C83: 6986.2 | D83: 18 | E83: =D56 -> 9319 | F83: 8734 | G83: 17210 | H83: 16604 | I83: 11906 | J83: 8136 | K83: 10501 | L83: 12358 | M83: 12402 | N83: 9454 | O83: 4300 | P83: 4036 | Q83: 4739 | R83: 0
B84: Hempseed | C84: 10679.8 | D84: 17 | E84: =D59 -> 14403 | F84: 11297 | G84: 17453 | H84: 21220 | I84: 14491 | J84: 27296 | K84: 10126 | L84: 10009 | M84: 11308 | N84: 6131 | O84: 5604 | P84: =O55 -> 19183 | Q84: =P55 -> 11173 | R84: =Q55 -> 0
B85: Canaryseed | C85: 4885.2 | D85: 19 | E85: =D60 -> 12135 | F85: 6422 | G85: 2009 | H85: 9449 | I85: 7635 | J85: 4283 | K85: 1578 | L85: 3179 | M85: 5120 | N85: 6979 | O85: 4990 | P85: =O60 -> 3311 | Q85: 4026 | R85: 0
B86: Fababean | C86: 3302 | D86: 22 | E86: =D61 -> 3463 | F86: 2377 | G86: 3468 | H86: 9040 | I86: 9596 | J86: 8379 | K86: 5826 | L86: 8052 | M86: 6679 | N86: 5206 | O86: 0 | P86: 3217 | Q86: 1408 | R86: 0
B87: Buckwheat | C87: 4453.2 | D87: 20 | E87: =D50 -> 11535 | F87: 5094 | G87: 2599 | H87: 8921 | I87: 11083 | J87: 5645 | K87: 4848 | L87: 6766 | M87: 5681 | N87: 4416 | O87: 2834 | P87: 7274 | Q87: 2061 | R87: 0
B88: Wheat - Other Spring | C88: 4040.6 | D88: 21 | E88: =D40 -> 452.7 | F88: 641.5 | G88: 248.2 | H88: 674.7 | I88: 7136.4 | J88: 6050.5 | K88: 6509 | L88: 5402 | M88: 3587 | N88: 3543 | O88: 3876 | P88: 5399 | Q88: 3798 | R88: 0
B89: Lentil | C89: 1368.6 | D89: 23 | E89: =D54 -> 877 | F89: 533 | G89: 0 | H89: 1707 | I89: 9957 | J89: 2681 | K89: 1684 | L89: 1542 | M89: 2522 | N89: 1070 | O89: 1003 | P89: 1003 | Q89: 1245 | R89: 0
B92: MASC 2024 Crop & Hail Insurance Costs | G92: https://www.masc.mb.ca/masc.nsf/maps_risk_areas.html
C94: RA #2 | E94: RA #5 | G94: RA #6 | I94: RA #12 | L94: 80% Insured Value
C95: Expected | D95: 0.8 | E95: Expected | F95: 0.8 | G95: Expected | H95: 0.8 | I95: Expected | J95: 0.8 | L95: 70% Insured Value
B96: D' soil zone | C96: Yield | D96: Crop | E96: Yield | F96: Crop | G96: Yield | H96: Crop | I96: Yield | J96: Crop | L96: 50% Insured Value
B97: Wheat - Hard Red Spring | C97: 62.1 | D97: 7.83 | E97: 69.4 | F97: 6.41 | G97: 61.6 | H97: 7.33 | I97: 69.4 | J97: 13.29
B98: Wheat - Prairie Spring | C98: 62.8 | D98: 9.8 | E98: 70.2 | F98: 4.88 | G98: 62.3 | H98: 8.12 | I98: 70.2 | J98: 12.28
B99: Wheat - Northern Hard Red | C99: 68.1 | D99: 11.83 | E99: 76 | F99: 5.05 | G99: 67.5 | H99: 8.61 | I99: 76 | J99: 19.4
B100: Wheat - Winter | C100: 60 | D100: 9.06 | E100: 67 | F100: 9.56 | G100: 59.5 | H100: 8.51 | I100: 67 | J100: 7.66
B101: Hybrid Fall Rye | C101: 77.6 | D101: 15.28 | E101: 77.6 | F101: 11.36 | G101: 77.6 | H101: 11.74 | I101: 77.6 | J101: 14.88
B102: Barley | C102: 78.1 | D102: 11.67 | E102: 84.6 | F102: 9.17 | G102: 73.6 | H102: 10.94 | I102: 82.6 | J102: 19.42
B103: Oats | C103: 113.6 | D103: 20.09 | E103: 129 | F103: 13.23 | G103: 99.3 | H103: 13.82 | I103: 136.4 | J103: 19.63
B104: Flaxseed | C104: 23 | D104: 10.99 | E104: 28.2 | F104: 11.84 | G104: 23.1 | H104: 10.06 | I104: 27.4 | J104: 16.87
B105: Canola | C105: 43.6 | D105: 7.51 | E105: 47.2 | F105: 9.13 | G105: 43.9 | H105: 9.05 | I105: 49.2 | J105: 23.95
B106: Sunflowers Oil | C106: 2017 | D106: 15.37 | E106: 2017 | F106: 15.22 | G106: 2017 | H106: 15.51 | I106: 2017 | J106: 15.08
B107: Peas | C107: 49.5 | D107: 14.05 | E107: 49.5 | F107: 13.63 | G107: 49.5 | H107: 14.18 | I107: 49.5 | J107: 13.49
B108: Beans - White | C108: 1799 | D108: 34.93 | E108: 1799 | F108: 34.93 | G108: 1440 | H108: 36.26 | I108: 1799 | J108: 34.67
B109: Beans - Pinto | C109: 1940 | D109: 36.9 | E109: 1940 | F109: 36.58 | G109: 1552 | H109: 37.52 | I109: 1940 | J109: 36.58
B110: Beans - Black | C110: 1731 | D110: 45.67 | E110: 1731 | F110: 45.35 | G110: 1385 | H110: 46.37 | I110: 1731 | J110: 45.06
B111: Corn | C111: 116.4 | D111: 36.78 | E111: 135.6 | F111: 35.41 | G111: 103 | H111: 41.57 | I111: 156.2 | J111: 40.42
B112: Soybeans | C112: 35.6 | D112: 20.21 | E112: 35.6 | F112: 19.7 | G112: 35.6 | H112: 20.52 | I112: 39.2 | J112: 20.46
B113: Organic RS Wheat | C113: 29 | D113: 58.28 | E113: 29 | F113: 55.87 | G113: 29 | H113: 56.76 | I113: 29 | J113: 51.79
B114: Organic Winter Wheat | C114: 30.2 | D114: 54.31 | E114: 30.2 | F114: 52.16 | G114: 30.2 | H114: 52.55 | I114: 30.2 | J114: 46.54
B115: Organic OP Fall Rye | C115: 23 | D115: 10.02 | E115: 23 | F115: 8.54 | G115: 23 | H115: 8.88 | I115: 23 | J115: 9.7
B116: Organic Barley | C116: 37.2 | D116: 20.91 | E116: 37.2 | F116: 19.04 | G116: 37.2 | H116: 21.4 | I116: 37.2 | J116: 26.48
B117: Organic Oats | C117: 52.6 | D117: 41.66 | E117: 52.6 | F117: 39.17 | G117: 52.6 | H117: 43.22 | I117: 52.6 | J117: 39.49
B118: Organic Flax | C118: 12.4 | D118: 39.74 | E118: 12.4 | F118: 38.08 | G118: 12.4 | H118: 40.75 | I118: 12.4 | J118: 37.48
B119: Organic Peas | C119: 23 | D119: 21.46 | E119: 23 | F119: 21.46 | G119: 23 | H119: 22.08 | I119: 23 | J119: 21.34
B120: Organic Hemp | C120: 384 | D120: 39.59 | E120: 384 | F120: 38.76 | G120: 384 | H120: 40.42 | I120: 384 | J120: 38.28
B123: 2024 MASC data | C123: COP | I123: D and R will look at average (H) and update column C
B124: Expected Yield 'D' | C124: Manitoba | D124: RA#2 | E124: RA#5 | F124: RA#6 | G124: RA#12 | H124: Avg.
A125: 1 | B125: Wheat - Hard Red Spring | C125: 65 | D125: =C97 -> 62.1 | E125: =E97 -> 69.4 | F125: =G97 -> 61.6 | G125: =I97 -> 69.4 | H125: =AVERAGE(D125:G125) -> 65.625
A126: 2 | B126: Wheat - Northern Hard Red | C126: 70 | D126: =C99 -> 68.1 | E126: =E99 -> 76 | F126: =G99 -> 67.5 | G126: =I99 -> 76 | H126: 71.9
A127: 3 | B127: Wheat - Prairie Spring | C127: 70 | D127: =C98 -> 62.8 | E127: =E98 -> 70.2 | F127: =G98 -> 62.3 | G127: =I98 -> 70.2 | H127: 66.375
A128: 4 | B128: Wheat - Winter | C128: 65 | D128: =C100 -> 60 | E128: =E100 -> 67 | F128: =G100 -> 59.5 | G128: =I100 -> 67 | H128: 63.375
A129: 5 | B129: Oats | C129: 120 | D129: =C103 -> 113.6 | E129: =E103 -> 129 | F129: =G103 -> 99.3 | G129: =I103 -> 136.4 | H129: 119.575
A130: 6 | B130: Barley | C130: 80 | D130: =C102 -> 78.1 | E130: =E102 -> 84.6 | F130: =G102 -> 73.6 | G130: =I102 -> 82.6 | H130: 79.725
A131: 7 | B131: Hybrid Fall Rye | C131: 80 | D131: =C101 -> 77.6 | E131: =E101 -> 77.6 | F131: =G101 -> 77.6 | G131: =I101 -> 77.6 | H131: 77.6
A132: 8 | B132: Corn | C132: 140 | D132: =C111 -> 116.4 | E132: =E111 -> 135.6 | F132: =G111 -> 103 | G132: =I111 -> 156.2 | H132: 127.8
A133: 9 | B133: Canola | C133: 45 | D133: =C105 -> 43.6 | E133: =E105 -> 47.2 | F133: =G105 -> 43.9 | G133: =I105 -> 49.2 | H133: 45.975
A134: 10 | B134: Soybeans | C134: 40 | D134: =C112 -> 35.6 | E134: =E112 -> 35.6 | F134: =G112 -> 35.6 | G134: =I112 -> 39.2 | H134: 36.5
A135: 11 | B135: Sunflower Oil | C135: 2000 | D135: =C106 -> 2017 | E135: =E106 -> 2017 | F135: =G106 -> 2017 | G135: =I106 -> 2017 | H135: 2017
A136: 12 | B136: Flaxseed | C136: 25 | D136: =C104 -> 23 | E136: =E104 -> 28.2 | F136: =G104 -> 23.1 | G136: =I104 -> 27.4 | H136: 25.425
A137: 13 | B137: Peas | C137: 55 | D137: =C107 -> 49.5 | E137: =E107 -> 49.5 | F137: =G107 -> 49.5 | G137: =I107 -> 49.5 | H137: 49.5
A138: 14 | B138: Beans - Pinto | C138: 1900 | D138: =C109 -> 1940 | E138: =E109 -> 1940 | F138: =G109 -> 1552 | G138: =I109 -> 1940 | H138: 1843
A139: 15 | B139: Beans - White | C139: 1700 | D139: =C108 -> 1799 | E139: =E108 -> 1799 | F139: =G108 -> 1440 | G139: =I108 -> 1799 | H139: 1709.25
A140: 16 | B140: Beans - Black | C140: 1700 | D140: =C110 -> 1731 | E140: =E110 -> 1731 | F140: =G110 -> 1385 | G140: =I110 -> 1731 | H140: 1644.5
C143: **Mkt Prices are Changed E16 to E32 above***
B144: 80% Insured Value | C144: 2024 | D144: Avg 2,5,6,12
C145: $/bu | D145: Manitoba | E145: RA#2 | F145: RA#5 | G145: RA#6 | H145: RA#12
A146: 1 | B146: Wheat - Hard Red Spring | C146: 8.98 | D146: =AVERAGE(E146:H146) -> 471.45 | E146: =SUM($C$146*D125*0.8) -> 446.1264 | F146: =SUM($C$146*E125*0.8) -> 498.5696 | G146: 442.5344 | H146: 498.5696
A147: 2 | B147: Wheat - Northern Hard Red | C147: 7.89 | D147: 453.8328 | E147: =SUM($C$147*D126*0.8) -> 429.8472 | F147: =SUM($C$147*E126*0.8) -> 479.712 | G147: 426.06 | H147: 479.712
A148: 3 | B148: Wheat - Prairie Spring | C148: 8.57 | D148: 455.067 | E148: =SUM($C$148*D127*0.8) -> 430.5568 | F148: =SUM($C$148*E127*0.8) -> 481.2912 | G148: 427.1288 | H148: 481.2912
A149: 4 | B149: Wheat - Winter | C149: 7.76 | D149: 393.432 | E149: =SUM($C$149*D128*0.8) -> 372.48 | F149: =SUM($C$149*E128*0.8) -> 415.936 | G149: 369.376 | H149: 415.936
A150: 5 | B150: Oats | C150: 4.4 | D150: 420.904 | E150: =SUM($C$150*D129*0.8) -> 399.872 | F150: =SUM($C$150*E129*0.8) -> 454.08 | G150: 349.536 | H150: 480.128
A151: 6 | B151: Barley | C151: 5.77 | D151: 368.0106 | E151: =SUM($C$151*D130*0.8) -> 360.5096 | F151: =SUM($C$151*E130*0.8) -> 390.5136 | G151: 339.7376 | H151: 381.2816
A152: 7 | B152: Hybrid Fall Rye | C152: 5.72 | D152: 355.0976 | E152: =SUM($C$152*D131*0.8) -> 355.0976 | F152: =SUM($C$152*E131*0.8) -> 355.0976 | G152: 355.0976 | H152: 355.0976
A153: 8 | B153: Corn | C153: 6.86 | D153: 701.3664 | E153: =SUM($C$153*D132*0.8) -> 638.8032 | F153: =SUM($C$153*E132*0.8) -> 744.1728 | G153: 565.264 | H153: 857.2256
A154: 9 | B154: Canola | C154: 16.44 | D154: 604.6632 | E154: =SUM($C$154*D133*0.8) -> 573.4272 | F154: =SUM($C$154*E133*0.8) -> 620.7744 | G154: 577.3728 | H154: 647.0784
A155: 10 | B155: Soybeans | C155: 14.42 | D155: 421.064 | E155: =SUM($C$155*D134*0.8) -> 410.6816 | F155: =SUM($C$155*E134*0.8) -> 410.6816 | G155: 410.6816 | H155: 452.2112
A156: 11 | B156: Sunflower Oil | C156: 0.24 | D156: 387.264 | E156: =SUM($C$156*D135*0.8) -> 387.264 | F156: =SUM($C$156*E135*0.8) -> 387.264 | G156: 387.264 | H156: 387.264
A157: 12 | B157: Flaxseed | C157: 12.57 | D157: 255.6738 | E157: =SUM($C$157*D136*0.8) -> 231.288 | F157: =SUM($C$157*E136*0.8) -> 283.5792 | G157: 232.2936 | H157: 275.5344
A158: 13 | B158: Peas | C158: 9.39 | D158: 371.844 | E158: =SUM($C$158*D137*0.8) -> 371.844 | F158: =SUM($C$158*E137*0.8) -> 371.844 | G158: 371.844 | H158: 371.844
A159: 14 | B159: Beans - Pinto | C159: 0.5 | D159: 737.2 | E159: =SUM($C$159*D138*0.8) -> 776 | F159: =SUM($C$159*E138*0.8) -> 776 | G159: 620.8 | H159: 776
A160: 15 | B160: Beans - White | C160: 0.5 | D160: =AVERAGE(E160:H160) -> 683.7 | E160: =SUM($C$160*D139*0.8) -> 719.6 | F160: =SUM($C$160*E139*0.8) -> 719.6 | G160: 576 | H160: 719.6
A161: 16 | B161: Beans - Black | C161: 0.53 | D161: 697.268 | E161: =SUM($C$161*D140*0.8) -> 733.944 | F161: =SUM($C$161*E140*0.8) -> 733.944 | G161: 587.24 | H161: 733.944
B166: 2024 Premiums/Costs? | C166: Avg 2,5,6,12
B167: 80% Crop | C167: Manitoba | D167: RA#2 | E167: RA#5 | F167: RA#6 | G167: RA#12
A168: 1 | B168: Wheat - Hard Red Spring | C168: =AVERAGE(D168:G168) -> 8.715 | D168: =D97 -> 7.83 | E168: =F97 -> 6.41 | F168: =H97 -> 7.33 | G168: =J97 -> 13.29
A169: 2 | B169: Wheat - Northern Hard Red | C169: =AVERAGE(D169:G169) -> 11.2225 | D169: =D99 -> 11.83 | E169: =F99 -> 5.05 | F169: =H99 -> 8.61 | G169: =J99 -> 19.4
A170: 3 | B170: Wheat - Prairie Spring | C170: 8.77 | D170: =D98 -> 9.8 | E170: =F98 -> 4.88 | F170: =H98 -> 8.12 | G170: =J98 -> 12.28
A171: 4 | B171: Wheat - Winter | C171: 8.6975 | D171: =D100 -> 9.06 | E171: =F100 -> 9.56 | F171: =H100 -> 8.51 | G171: =J100 -> 7.66
A172: 5 | B172: Oats | C172: 16.6925 | D172: =D103 -> 20.09 | E172: =F103 -> 13.23 | F172: =H103 -> 13.82 | G172: =J103 -> 19.63
A173: 6 | B173: Barley | C173: 12.8 | D173: =D102 -> 11.67 | E173: =F102 -> 9.17 | F173: =H102 -> 10.94 | G173: =J102 -> 19.42
A174: 7 | B174: Hybrid Fall Rye | C174: 13.315 | D174: =D101 -> 15.28 | E174: =F101 -> 11.36 | F174: =H101 -> 11.74 | G174: =J101 -> 14.88
A175: 8 | B175: Corn | C175: 38.545 | D175: =D111 -> 36.78 | E175: =F111 -> 35.41 | F175: =H111 -> 41.57 | G175: =J111 -> 40.42
A176: 9 | B176: Canola | C176: 12.41 | D176: =D105 -> 7.51 | E176: =F105 -> 9.13 | F176: =H105 -> 9.05 | G176: =J105 -> 23.95
A177: 10 | B177: Soybeans | C177: 20.2225 | D177: =D112 -> 20.21 | E177: =F112 -> 19.7 | F177: =H112 -> 20.52 | G177: =J112 -> 20.46
A178: 11 | B178: Sunflower Oil | C178: 15.295 | D178: =D106 -> 15.37 | E178: =F106 -> 15.22 | F178: =H106 -> 15.51 | G178: =J106 -> 15.08
A179: 12 | B179: Flaxseed | C179: 12.44 | D179: =D104 -> 10.99 | E179: =F104 -> 11.84 | F179: =H104 -> 10.06 | G179: =J104 -> 16.87
A180: 13 | B180: Peas | C180: 13.8375 | D180: =D107 -> 14.05 | E180: =F107 -> 13.63 | F180: =H107 -> 14.18 | G180: =J107 -> 13.49
A181: 14 | B181: Beans - Pinto | C181: 36.895 | D181: =D109 -> 36.9 | E181: =F109 -> 36.58 | F181: =H109 -> 37.52 | G181: =J109 -> 36.58
A182: 15 | B182: Beans - White | C182: 35.1975 | D182: =D108 -> 34.93 | E182: =F108 -> 34.93 | F182: =H108 -> 36.26 | G182: =J108 -> 34.67
A183: 16 | B183: Beans - Black | C183: 45.6125 | D183: =D110 -> 45.67 | E183: =F110 -> 45.35 | F183: =H110 -> 46.37 | G183: =J110 -> 45.06
B186: EMI premium / acre ($100) | D186: 1.55 | E186: 2024 | J186: 200 | L186: https://www.masc.mb.ca/masc.nsf/fact_sheet_619_excess_moisture.html
J187: 300
B188: Hail Ins. coverage / acre | C188: =W13 -> 400 | D188: (selected in W13 above) | J188: 400
C190: Rate | D190: Avg 2,5,6,12 | E190: Cost per Acre
B191: 2024 HAIL Ins. Costs | C191: Factor | D191: Manitoba | E191: RA#2 | F191: RA#5 | G191: RA#6 | H191: RA#12
E192: 2.9 | F192: 3.2 | G192: 2.6 | H192: 2.1 | J192: https://www.masc.mb.ca/masc.nsf/maps_risk_areas.html
A193: 1 | B193: Wheat - Hard Red Spring | C193: 1 | D193: =AVERAGE(F193,G193,E193,H193) -> 10.8 | E193: =(($E$192*$C193)/100)*$W$13 -> 11.6 | F193: =(($F$192*$C193)/100)*$W$13 -> 12.8 | G193: =(($G$192*$C193)/100)*$W$13 -> 10.4 | H193: =(($H$192*$C193)/100)*$W$13 -> 8.4 | J193: https://www.masc.mb.ca/masc.nsf/program_hail.html
A194: 2 | B194: Wheat - Northern Hard Red | C194: 1 | D194: 10.8 | E194: 11.6 | F194: 12.8 | G194: 10.4 | H194: 8.4 | J194: https://www.masc.mb.ca/masc.nsf/fact_sheet_628_hail_insurance.html
A195: 3 | B195: Wheat - Prairie Spring | C195: 1 | D195: 10.8 | E195: 11.6 | F195: 12.8 | G195: 10.4 | H195: 8.4
A196: 4 | B196: Wheat - Winter | C196: 1 | D196: 10.8 | E196: 11.6 | F196: 12.8 | G196: 10.4 | H196: 8.4
A197: 5 | B197: Oats | C197: 1 | D197: 10.8 | E197: 11.6 | F197: 12.8 | G197: 10.4 | H197: 8.4
A198: 6 | B198: Barley | C198: 1 | D198: 10.8 | E198: 11.6 | F198: 12.8 | G198: 10.4 | H198: 8.4
A199: 7 | B199: Hybrid Fall Rye | C199: 1 | D199: 10.8 | E199: 11.6 | F199: 12.8 | G199: 10.4 | H199: 8.4
A200: 8 | B200: Corn | C200: 1 | D200: 10.8 | E200: 11.6 | F200: 12.8 | G200: 10.4 | H200: 8.4
A201: 9 | B201: Canola | C201: 1 | D201: 10.8 | E201: 11.6 | F201: 12.8 | G201: 10.4 | H201: 8.4
A202: 10 | B202: Soybeans | C202: 1.3 | D202: 14.04 | E202: 15.08 | F202: 16.64 | G202: 13.52 | H202: 10.92
A203: 11 | B203: Sunflower Oil | C203: 1 | D203: 10.8 | E203: 11.6 | F203: 12.8 | G203: 10.4 | H203: 8.4
A204: 12 | B204: Flaxseed | C204: 1 | D204: 10.8 | E204: 11.6 | F204: 12.8 | G204: 10.4 | H204: 8.4
A205: 13 | B205: Peas | C205: 2 | D205: 21.6 | E205: 23.2 | F205: 25.6 | G205: 20.8 | H205: 16.8
A206: 14 | B206: Beans - Pinto | C206: 1.75 | D206: 18.9 | E206: 20.3 | F206: 22.4 | G206: 18.2 | H206: 14.7
A207: 15 | B207: Beans - White | C207: 1.75 | D207: 18.9 | E207: 20.3 | F207: 22.4 | G207: 18.2 | H207: 14.7
A208: 16 | B208: Beans - Black Bean | C208: 1.75 | D208: 18.9 | E208: 20.3 | F208: 22.4 | G208: 18.2 | H208: 14.7
B211: Data Source – MASC Harvest Production Reports (2011-2020) | G211: (Used for Rotation Economic Analysis on Risk Analysis worksheet) | O211: https://www.masc.mb.ca/masc.nsf/mmpp_crop_rotations.html
D212: Crop planted
B213: Stubble | D213: Wheat - Hard Red Spring | E213: Wheat - Northern Hard Red | F213: Wheat - Special Purpose | G213: Wheat - Prairie Spring | H213: Wheat - Winter | I213: Oats | J213: Barley | K213: Canola | L213: Flaxseed | M213: Peas | N213: Soybeans | O213: Beans - White | P213: Sunflower - Oilseed | Q213: Corn
B214: Wheat - Hard Red Spring | C214: 2 | D214: 85 | E214: 85 | F214: 85 | G214: 85 | H214: 95 | I214: 93 | J214: 95 | K214: 101 | L214: 102 | M214: 101 | N214: 101 | O214: 111 | P214: 102 | Q214: 96
B215: Wheat - Northern Hard Red | C215: 3 | D215: 85 | E215: 85 | F215: 85 | G215: 85 | H215: 95 | I215: 93 | J215: 95 | K215: 101 | L215: 102 | M215: 101 | N215: 101 | O215: 111 | P215: 102 | Q215: 96
B216: Wheat - Special Purpose | C216: 4 | D216: 85 | E216: 85 | F216: 85 | G216: 85 | H216: 95 | I216: 93 | J216: 95 | K216: 101 | L216: 102 | M216: 101 | N216: 101 | O216: 111 | P216: 102 | Q216: 96
B217: Wheat - Prairie Spring | C217: 5 | D217: 85 | E217: 85 | F217: 85 | G217: 85 | H217: 95 | I217: 93 | J217: 95 | K217: 101 | L217: 102 | M217: 101 | N217: 101 | O217: 111 | P217: 102 | Q217: 96
B218: Wheat - Winter | C218: 6 | D218: 76 | E218: 76 | F218: 76 | G218: 76 | H218: 66 | I218: 90 | J218: 100 | K218: 94 | L218: 95 | M218: 99 | N218: 104 | O218: 4 | P218: 103 | Q218: 87
B219: Oats | C219: 7 | D219: 90 | E219: 90 | F219: 90 | G219: 90 | H219: 93 | I219: 77 | J219: 75 | K219: 98 | L219: 98 | M219: 91 | N219: 99 | O219: 86 | P219: 99 | Q219: 95
B220: Barley | C220: 8 | D220: 90 | E220: 90 | F220: 90 | G220: 90 | H220: 100 | I220: 90 | J220: 79 | K220: 99 | L220: 103 | M220: 87 | N220: 98 | O220: 103 | P220: 98 | Q220: 91
B221: Canola | C221: 9 | D221: 100 | E221: 100 | F221: 100 | G221: 100 | H221: 103 | I221: 100 | J221: 102 | K221: 93 | L221: 93 | M221: 104 | N221: 100 | O221: 89 | P221: 87 | Q221: 98
B222: Flaxseed | C222: 10 | D222: 95 | E222: 95 | F222: 95 | G222: 95 | H222: 107 | I222: 91 | J222: 102 | K222: 100 | L222: 81 | M222: 90 | N222: 100 | O222: NSD | P222: 89 | Q222: 97
... 22 more rows

Sheet Weekly Bushels (HIDE) (hidden)
A1: SOURCE | B1: Open Market (CAD/Bushels) | I1: Closing Futures Prices | M1: Cash Prices | R1: US Futures Prices | AA1: Additional Data from CWB MRS (FOB USD)
B2: CWRS Wheat | C2: Canola | D2: #2CW Oats | E2: Soybeans | F2: Peas | G2: Corn | I2: ICE Milling Wheat | J2: ICE Western Barley | K2: ICE Canola | M2: Feed Wheat Track Thunder Bay | N2: Feed Barley Lethbridge | O2: Canola Thunder Bay | P2: Canola Vancouver | R2: SRW Wheat | S2: Corn | T2: Oats | U2: Soybeans | V2: Soyoil (cents/lb) | W2: Soymeal | X2: HRW Wheat | Y2: HRS Wheat | AA2: 2 CWRS 13.5 TB | AB2: 2 CWRS 13.0 TB | AC2: 2 CWRS 13.5 SL | AD2: 2 CWRS 13.0 SL | AE2: 2 CWRS 13.5 Van | AF2: 2 CWRS 13.0 Van | AG2: Canola Van | AH2: CWRS WCEI (NTN) (CAD) | AI2: CWRW WCEI (NTN) (CAD) | AJ2: Feed Barley WCEI (NTN) (CAD) | AK2: Canola WCEI (NTN) (CAD) | AL2: Soybeans WCEI (NTN) (CAD) | AN2: CWB less ICE
A3: 2011-08-05 | C3: 12.2868094 | D3: 3.103953456 | E3: 11.32380608 | J3: 4.463352609 | K3: 12.68937676 | M3: 6.341223121 | N3: 4.310945447 | O3: 13.36977229 | P3: 12.91617527 | R3: 6.816813495 | S3: 6.937852444 | T3: 3.315 | U3: 13.39115141 | V3: 1216.719 | X3: 7.709223622 | Y3: 8.231671008
A4: 2011-08-12 | C4: 12.10419124 | D4: 3.299353351 | E4: 11.15717797 | J4: 4.463352609 | K4: 12.42629048 | M4: 6.341223121 | N4: 4.245628092 | O4: 12.53968974 | P4: 12.90256736 | R4: 7.011793859 | S4: 7.025356889 | T4: 3.44 | U4: 13.33615695 | V4: 1191.3615 | X4: 8.079186364 | Y4: 8.624131484
A5: 2011-08-19 | C5: 12.01029665 | D5: 3.25428025 | E5: 11.33180346 | J5: 4.332717899 | K5: 12.55329765 | M5: 6.341223121 | N5: 4.136765833 | O5: 12.78009616 | P5: 12.89349542 | R5: 7.076787313 | S5: 6.990355111 | T5: 3.425 | U5: 13.51863857 | V5: 1218.7035 | X5: 7.949199455 | Y5: 9.106582897
A6: 2011-08-26 | C6: 12.19178082 | D6: 3.533880664 | E6: 11.83844958 | J6: 4.376262802 | K6: 12.7438084 | M6: 6.341223121 | N6: 4.136765833 | O6: 12.97060691 | P6: 13.08400617 | R6: 7.571737468 | S6: 7.322872003 | T6: 3.68 | U6: 13.85860433 | V6: 1225.98 | X6: 8.476646337 | Y6: 9.34655873
A7: 2011-09-02 | C7: 12.34963259 | D7: 3.446382746 | E7: 12.23149148 | J7: 4.572214868 | K7: 13.04091445 | M7: 6.55894752 | N7: 4.136765833 | O7: 13.15431371 | P7: 13.38111222 | R7: 7.154279509 | S7: 7.287870225 | T7: 3.62 | U7: 14.24606531 | V7: 1272.5055 | X7: 8.479146085 | Y7: 9.706522479
A8: 2011-09-09 | C8: 12.29429375 | D8: 3.488903026 | E8: 12.01509084 | J8: 4.681077127 | K8: 12.91617527 | M8: 6.61337862 | N8: 4.310945447 | O8: 13.14297378 | P8: 13.25637304 | R8: 7.091785803 | S8: 7.23286743 | T8: 3.5325 | U8: 14.07108293 | V8: 1274.931 | X8: 8.239170252 | Y8: 9.494043877
A9: 2011-09-16 | C9: 12.17635852 | D9: 3.249241695 | E9: 11.78342228 | J9: 4.528669964 | K9: 12.50566996 | M9: 6.61337862 | N9: 4.35449035 | O9: 12.73246848 | P9: 12.84586773 | R9: 6.959299145 | S9: 7.010356127 | T9: 3.44 | U9: 13.58613177 | V9: 1239.651 | X9: 7.951699203 | Y9: 8.709122924
A10: 2011-09-23 | C10: 11.79120929 | D10: 3.1942437 | E10: 10.8783924 | J10: 4.528669964 | K10: 12.25845958 | M10: 6.749456369 | N10: 4.528669964 | O10: 12.5306178 | P10: 12.71205661 | R10: 6.336861829 | S10: 6.500330217 | T10: 3.37 | U10: 12.82870805 | V10: 1183.644 | X10: 7.209273971 | Y10: 8.19917428
A11: 2011-09-30 | C11: 11.75356074 | D11: 3.156183646 | E11: 10.79679183 | J11: 4.609228036 | K11: 12.15413227 | M11: 6.749456369 | N11: 4.572214868 | O11: 12.42629048 | P11: 12.60772929 | R11: 6.541841186 | S11: 6.325321327 | T11: 3.33 | U11: 12.29876142 | V11: 1138.4415 | X11: 7.399254838 | Y11: 8.954098254
A12: 2011-10-07 | C12: 11.48956727 | D12: 3.083381296 | E12: 10.36840783 | J12: 4.572214868 | K12: 11.85702622 | M12: 6.803887469 | N12: 4.572214868 | O12: 11.85702622 | P12: 12.21990384 | R12: 6.159379703 | S12: 6.05530761 | T12: 3.245 | U12: 11.63632813 | V12: 1078.686 | X12: 6.976797383 | Y12: 8.949098757
A13: 2011-10-14 | C13: 11.8968974 | D13: 3.323379291 | E13: 10.98839257 | J13: 4.572214868 | K13: 12.14052436 | M13: 6.803887469 | N13: 4.572214868 | O13: 12.43536242 | P13: 12.59412138 | R13: 6.179377689 | S13: 6.382824248 | T13: 3.4175 | U13: 12.56873423 | V13: 1151.01 | X13: 7.00929411 | Y13: 8.831610589
A14: 2011-10-21 | C14: 11.76127189 | D14: 3.175873199 | E14: 10.90342018 | J14: 4.681077127 | K14: 11.89558196 | M14: 6.749456369 | N14: 4.659304675 | O14: 12.19042003 | P14: 12.34917899 | R14: 6.30686485 | S14: 6.495329963 | T14: 3.37 | U14: 12.24876646 | V14: 1133.1495 | X14: 7.249269943 | Y14: 9.1740761
A15: 2011-10-28 | C15: 11.86015604 | D15: 3.237922643 | E15: 10.99338898 | J15: 4.702849578 | K15: 12.03166107 | M15: 6.749456369 | N15: 4.659304675 | O15: 12.59865735 | P15: 12.71205661 | R15: 6.439351508 | S15: 6.515330979 | T15: 3.335 | U15: 12.34875639 | V15: 1149.0255 | X15: 7.379256852 | Y15: 9.229070562
A16: 2011-11-04 | C16: 11.90646829 | D16: 3.13859227 | E16: 11.17678913 | J16: 4.702849578 | K16: 12.00444525 | M16: 6.749456369 | N16: 4.659304675 | O16: 12.50340198 | P16: 12.61680123 | R16: 6.359359564 | S16: 6.535331996 | T16: 3.32 | U16: 12.19127225 | V16: 1147.2615 | X16: 7.199274978 | Y16: 9.169076604
A17: 2011-11-11 | C17: 11.71414316 | D17: 3.257869899 | E17: 10.88678676 | J17: 4.72462203 | K17: 11.6461036 | M17: 6.749456369 | N17: 4.659304675 | O17: 12.21309988 | P17: 12.25845958 | R17: 6.199375675 | S17: 6.455327931 | T17: 3.2175 | U17: 11.57883392 | V17: 1113.966 | X17: 6.969298138 | Y17: 9.454047905
A18: 2011-11-18 | C18: 11.63108954 | D18: 3.04758567 | E18: 10.85509879 | J18: 4.72462203 | K18: 11.83434637 | M18: 6.749456369 | N18: 4.681077127 | O18: 12.40134265 | P18: 12.56010161 | R18: 6.199375675 | S18: 6.455327931 | T18: 3.2175 | U18: 11.57883392 | V18: 1113.966 | X18: 6.969298138 | Y18: 9.454047905
A19: 2011-11-25 | C19: 11.63108954 | D19: 3.04758567 | E19: 10.85509879 | J19: 4.72462203 | K19: 11.33538964 | M19: 6.749456369 | N19: 4.72462203 | O19: 12.03846503 | P19: 12.19722399 | R19: 6.199375675 | S19: 6.455327931 | T19: 3.2175 | U19: 11.57883392 | V19: 1113.966 | X19: 6.969298138 | Y19: 9.454047905
A20: 2011-12-02 | C20: 11.36573528 | D20: 3.217926652 | E20: 10.53173451 | J20: 4.72462203 | K20: 11.33765762 | M20: 6.749456369 | N20: 4.746394482 | O20: 11.90465391 | P20: 12.06341286 | R20: 6.019393801 | S20: 5.947802149 | T20: 3.22 | U20: 11.27886413 | V20: 1091.916 | X20: 6.629332375 | Y20: 8.54413954
A21: 2011-12-09 | C21: 11.52676222 | D21: 3.087926652 | E21: 10.41506689 | J21: 4.72462203 | K21: 11.58033203 | M21: 6.72224082 | N21: 4.746394482 | O21: 12.26072757 | P21: 12.30608727 | R21: 5.766919227 | S21: 5.900299736 | T21: 2.95 | U21: 11.3238596 | V21: 1106.91 | X21: 6.504344963 | Y21: 8.446649358
A22: 2011-12-16 | C22: 11.53179715 | D22: 3.225363807 | E22: 10.40337473 | K22: 11.56899211 | M22: 6.450085321 | N22: 4.72462203 | O22: 12.04526898 | P22: 12.20402794 | R22: 5.79191671 | S22: 5.790294148 | T22: 2.99 | U22: 11.1163805 | V22: 1080.009 | X22: 6.374358053 | Y22: 8.15667856
A23: 2011-12-23 | C23: 11.74090538 | D23: 3.269988433 | E23: 10.7467428 | J23: 4.72462203 | K23: 11.72548308 | M23: 6.450085321 | N23: 4.681077127 | O23: 12.40587862 | P23: 12.56463758 | R23: 6.216873913 | S23: 6.175313707 | T23: 3.1075 | U23: 11.62132964 | V23: 1112.4225 | X23: 6.724322809 | Y23: 8.436650365
A24: 2011-12-30 | C24: 11.82844961 | D24: 3.225002622 | E24: 10.95008868 | J24: 4.72462203 | K24: 11.86156219 | M24: 6.450085321 | N24: 4.637532223 | O24: 12.54195772 | P24: 12.70071668 | R24: 6.451850249 | S24: 6.380324121 | T24: 3.06 | U24: 11.87380422 | V24: 1127.637 | X24: 6.979297131 | Y24: 8.551638784
A25: 2012-01-06 | C25: 11.97949741 | D25: 2.962900126 | E25: 10.80632762 | J25: 4.72462203 | K25: 11.74816293 | M25: 6.72224082 | N25: 4.637532223 | O25: 12.55556564 | P25: 12.71432459 | R25: 6.291866361 | S25: 6.435326915 | T25: 2.9 | U25: 12.01129037 | V25: 1141.5285 | X25: 6.859309215 | Y25: 8.184175791
A26: 2012-01-13 | C26: 11.86779295 | D26: 2.937507387 | E26: 10.74383772 | J26: 4.637532223 | K26: 11.64156763 | M26: 6.72224082 | N26: 4.59398732 | O26: 12.48072213 | P26: 12.52608183 | R26: 6.04939078 | S26: 6.115310658 | T26: 2.8425 | U26: 11.78381328 | V26: 1127.8575 | X26: 6.729322306 | Y26: 8.074186867
A27: 2012-01-20 | C27: 11.86171339 | D27: 2.898507387 | E27: 10.65508699 | J27: 4.615759771 | K27: 11.92960174 | M27: 6.66780972 | N27: 4.572214868 | O27: 12.60999728 | P27: 12.65535698 | R27: 6.04939078 | S27: 6.115310658 | T27: 2.8425 | U27: 11.78381328 | V27: 1127.8575 | X27: 6.729322306 | Y27: 8.074186867
A28: 2012-01-27 | C28: 11.9354229 | D28: 2.989336973 | E28: 10.83883849 | J28: 4.615759771 | K28: 11.95908555 | M28: 6.72224082 | N28: 4.550442416 | O28: 12.63948109 | P28: 12.68484079 | R28: 6.534341942 | S28: 6.345322343 | T28: 3.0075 | U28: 12.22626872 | V28: 1145.277 | X28: 7.089286054 | Y28: 8.27166698
A29: 2012-02-03 | C29: 11.94600683 | D29: 2.947336973 | E29: 10.85508863 | J29: 4.615759771 | K29: 11.85475823 | M29: 6.72224082 | N29: 4.550442416 | O29: 12.64855303 | P29: 12.64855303 | R29: 6.534341942 | S29: 6.345322343 | T29: 3.0075 | U29: 12.22626872 | V29: 1145.277 | X29: 7.089286054 | Y29: 8.27166698
A30: 2012-02-10 | C30: 12.11028456 | D30: 3.058039912 | E30: 10.88133884 | J30: 4.615759771 | K30: 12.11557652 | M30: 6.72224082 | N30: 4.59398732 | O30: 12.90937131 | P30: 12.93205117 | R30: 6.459349494 | S30: 6.370323613 | T30: 3.18 | U30: 12.27376394 | V30: 1158.507 | X30: 6.919303173 | Y30: 8.316662448
A31: 2012-02-17 | C31: 12.42629048 | D31: 3.100039912 | E31: 11.17259122 | J31: 4.637532223 | K31: 12.45577429 | M31: 6.72224082 | N31: 4.572214868 | O31: 13.24956908 | P31: 13.27224893 | R31: 6.286866864 | S31: 6.362823232 | T31: 3.2375 | U31: 12.58123297 | V31: 1169.7525 | X31: 6.829312236 | Y31: 8.176676546
A32: 2012-02-24 | C32: 12.84208776 | D32: 3.004039912 | E32: 11.2063415 | J32: 4.659304675 | K32: 12.75288034 | M32: 6.72224082 | N32: 4.572214868 | O32: 13.54667513 | P32: 13.56935499 | R32: 6.416853774 | S32: 6.395324883 | T32: 3.205 | U32: 12.76621434 | V32: 1195.11 | X32: 6.799315257 | Y32: 8.009193413
A33: 2012-03-02 | C33: 13.03675648 | D33: 2.975573301 | E33: 11.49385745 | J33: 4.659304675 | K33: 13.12936587 | M33: 6.749456369 | N33: 4.681077127 | O33: 13.75306178 | P33: 13.77574163 | R33: 6.591836152 | S33: 6.537832123 | T33: 3.2725 | U33: 13.16617407 | V33: 1189.377 | X33: 6.969298138 | Y33: 8.139180322
A34: 2012-03-09 | C34: 13.22348725 | D34: 2.791617809 | E34: 11.94759755 | J34: 4.659304675 | K34: 13.36296834 | M34: 6.885534119 | N34: 4.789939385 | O34: 14.00707611 | P34: 13.98439626 | R34: 6.304365102 | S34: 6.450327677 | T34: 3.125 | U34: 13.32365821 | V34: 1169.091 | X34: 6.731822054 | Y34: 8.011693161
A35: 2012-03-16 | C35: 13.60375276 | D35: 3.041617809 | E35: 12.1138489 | J35: 4.877029193 | K35: 13.37884423 | M35: 6.885534119 | N35: 4.964119 | O35: 13.34709244 | P35: 14.42211739 | R35: 6.646830613 | S35: 6.69033987 | T35: 3.29 | U35: 13.68862145 | V35: 1223.334 | X35: 7.044290586 | Y35: 8.201674028
A36: 2012-03-23 | C36: 13.57729293 | D36: 3.026617809 | E36: 12.11634893 | J36: 4.877029193 | K36: 13.34936043 | M36: 6.885534119 | N36: 5.007663903 | O36: 14.18851492 | P36: 14.18851492 | R36: 6.461849242 | S36: 6.445327423 | T36: 3.2825 | U36: 13.49364109 | V36: 1189.818 | X36: 6.839311229 | Y36: 8.069187371
A37: 2012-03-30 | C37: 13.86532704 | D37: 3.073462015 | E37: 12.31510055 | J37: 4.985891451 | K37: 13.68275424 | M37: 6.885534119 | N37: 5.116526162 | O37: 14.54458859 | P37: 14.52190874 | R37: 6.124383228 | S37: 6.040306848 | T37: 3.355 | U37: 13.55363504 | V37: 1181.6595 | X37: 6.539341438 | Y37: 7.886705748
A38: 2012-04-06 | C38: 14.12879132 | D38: 3.115617655 | E38: 12.69636373 | J38: 5.007663903 | K38: 14.09779552 | M38: 6.858318569 | N38: 5.116526162 | O38: 14.95962986 | P38: 15.11838882 | R38: 6.384357046 | S38: 6.582834409 | T38: 3.37 | U38: 14.338556 | V38: 1248.912 | X38: 6.619333382 | Y38: 8.459148099
A39: 2012-04-13 | C39: 14.22631468 | D39: 3.128179513 | E39: 12.82283684 | J39: 5.116526162 | K39: 14.2837703 | M39: 6.858318569 | N39: 5.334250679 | O39: 15.07756509 | P39: 15.3043636 | R39: 6.391856291 | S39: 6.375323867 | T39: 3.34 | U39: 14.40854895 | V39: 1261.9215 | X39: 6.529342445 | Y39: 8.364157665
A40: 2012-04-20 | C40: 14.08305362 | D40: 3.077330434 | E40: 12.75978086 | I40: 7.021611868 | J40: 5.116526162 | K40: 13.94357253 | M40: 6.858318569 | N40: 5.443112938 | O40: 14.73736732 | P40: 14.85076658 | R40: 6.246870892 | S40: 6.210315485 | T40: 3.2275 | U40: 14.15607437 | V40: 1216.4985 | X40: 6.374358053 | Y40: 8.091685105
A41: 2012-04-27 | C41: 14.41244065 | D41: 3.075583542 | E41: 12.93318746 | I41: 6.858318569 | J41: 5.268933324 | K41: 14.62850404 | M41: 6.72224082 | N41: 5.399568035 | O41: 15.42229883 | P41: 15.53569809 | R41: 6.259369633 | S41: 6.240317009 | T41: 3.3775 | U41: 14.81100842 | V41: 1220.9085 | X41: 6.391856291 | Y41: 7.676726895
A42: 2012-05-04 | C42: 14.36503977 | D42: 3.204107831 | E42: 13.08067778 | I42: 6.749456369 | J42: 5.268933324 | K42: 14.27469836 | M42: 6.994396318 | N42: 5.660837456 | O42: 14.95509389 | P42: 15.06849315 | R42: 6.259369633 | S42: 6.240317009 | T42: 3.3775 | U42: 14.81100842 | V42: 1220.9085 | X42: 6.391856291 | Y42: 7.676726895
A43: 2012-05-11 | C43: 14.11253742 | D43: 3.131996623 | E43: 13.28440794 | I43: 6.61337862 | J43: 5.268933324 | K43: 14.25201851 | M43: 6.994396318 | N43: 5.530202745 | O43: 14.81901479 | P43: 15.15921256 | R43: 5.946901101 | S43: 6.255317771 | T43: 3.3325 | U43: 14.52103762 | V43: 1171.9575 | X43: 6.094386249 | Y43: 7.299264908
A44: 2012-05-18 | C44: 14.01274608 | D44: 3.071826748 | E44: 13.05761151 | I44: 6.66780972 | J44: 5.160071065 | K44: 13.86646104 | M44: 6.858318569 | N44: 5.486657842 | O44: 14.77365508 | P44: 14.88705434 | R44: 6.576837662 | S44: 6.250317517 | T44: 3.385 | U44: 14.37855197 | V44: 1118.376 | X44: 6.719323313 | Y44: 7.671727398
A45: 2012-05-25 | C45: 13.90615078 | D45: 3.113208671 | E45: 13.02519191 | I45: 7.149524953 | J45: 5.160071065 | K45: 13.63966252 | M45: 7.130474068 | N45: 5.421340486 | O45: 14.54685657 | P45: 14.66025583 | R45: 6.629332375 | S45: 5.785293894 | T45: 3.05 | U45: 13.7586144 | V45: 1089.711 | X45: 6.869308208 | Y45: 7.751719342
A46: 2012-06-01 | C46: 14.0550278 | D46: 2.738027791 | E46: 12.57762719 | I46: 7.013447203 | J46: 5.160071065 | K46: 13.89821283 | M46: 7.130474068 | N46: 5.399568035 | O46: 14.80540688 | P46: 14.98684569 | R46: 6.43685176 | S46: 5.552782082 | T46: 2.8075 | U46: 13.39865065 | V46: 1084.86 | X46: 6.649330361 | Y46: 7.526741999
A47: 2012-06-08 | C47: 14.03850391 | D47: 2.841040745 | E47: 12.95894948 | I47: 6.877369454 | J47: 5.160071065 | K47: 13.94584052 | M47: 7.130474068 | N47: 5.268933324 | O47: 14.5581965 | P47: 15.03447337 | R47: 6.416853774 | S47: 5.940301768 | T47: 3 | U47: 14.27856204 | V47: 1111.0995 | X47: 6.684326837 | Y47: 7.666727902
A48: 2012-06-15 | C48: 13.94422053 | D48: 2.907294038 | E48: 13.04618599 | I48: 6.877369454 | J48: 5.160071065 | K48: 13.5217273 | M48: 7.184905167 | N48: 5.268933324 | O48: 14.31552209 | P48: 14.5423206 | R48: 6.234372151 | S48: 6.015305578 | T48: 3.0575 | U48: 13.85860433 | V48: 1058.4 | X48: 6.459349494 | Y48: 7.94170021
A49: 2012-06-22 | C49: 14.09261155 | D49: 2.935054748 | E49: 13.24545106 | I49: 6.877369454 | J49: 5.160071065 | K49: 14.07738365 | M49: 7.184905167 | N49: 5.312478228 | O49: 14.87117845 | P49: 15.09797696 | R49: 6.616833634 | S49: 5.865297958 | T49: 3.1425 | U49: 14.38355147 | V49: 1098.3105 | X49: 6.829312236 | Y49: 8.436650365
A50: 2012-06-29 | C50: 14.38518163 | D50: 3.206045773 | E50: 13.41039079 | I50: 7.465225331 | J50: 5.160071065 | K50: 14.57407239 | M50: 7.184905167 | N50: 5.617292552 | O50: 15.36786719 | P50: 15.70806496 | R50: 7.259268936 | S50: 6.520331233 | T50: 3.34 | U50: 14.65852377 | V50: 1122.786 | X50: 7.349259873 | Y50: 8.676626197
A51: 2012-07-06 | C51: 14.43378131 | D51: 3.294888437 | E51: 14.16096539 | I51: 8.191880513 | J51: 5.160071065 | K51: 15.1365327 | M51: 7.320982917 | N51: 5.878561973 | O51: 15.02313345 | P51: 15.24993196 | R51: 8.224171763 | S51: 7.680390165 | T51: 3.56 | U51: 16.26336215 | V51: 1194.0075 | X51: 8.27166698 | Y51: 9.384054954
A52: 2012-07-13 | C52: 14.5724524 | D52: 3.368615219 | E52: 14.33170595 | I52: 8.232703838 | J52: 5.813244618 | K52: 15.45631861 | M52: 7.457060666 | N52: 6.205148749 | O52: 14.88932233 | P52: 15.11612084 | R52: 8.326661441 | S52: 7.712891816 | T52: 3.6775 | U52: 16.25586291 | V52: 1171.9575 | X52: 8.369157162 | Y52: 9.326560744
A53: 2012-07-20 | C53: 14.24003059 | D53: 3.425737577 | E53: 15.14111513 | I53: 8.913092585 | J53: 5.551975197 | K53: 14.44026127 | M53: 8.055802763 | N53: 6.205148749 | O53: 15.12065681 | P53: 15.34745532 | R53: 9.349058478 | S53: 8.077910359 | T53: 3.835 | U53: 17.33575416 | V53: 1199.52 | X53: 9.379055457 | Y53: 10.21897087
A54: 2012-07-27 | C54: 13.36426433 | D54: 3.377737577 | E54: 15.56237396 | I54: 8.953915909 | J54: 5.5955201 | K54: 13.64193051 | M54: 8.055802763 | N54: 6.052741587 | O54: 14.32232605 | P54: 14.54912456 | R54: 8.839109834 | S54: 7.812896896 | T54: 3.695 | U54: 16.5558327 | V54: 1139.544 | X54: 8.899103792 | Y54: 9.6765255
A55: 2012-08-03 | C55: 13.07525823 | D55: 3.341032479 | E55: 14.65506109 | I55: 8.096626088 | J55: 5.769699714 | K55: 13.90728477 | M55: 8.055802763 | N55: 5.83501707 | O55: 14.47428105 | P55: 14.81447882 | R55: 8.649128966 | S55: 7.940403373 | T55: 3.7175 | U55: 16.52833547 | V55: 1136.457 | X55: 8.689124938 | Y55: 9.264067037
A56: 2012-08-10 | C56: 13.109926 | D56: 3.379557416 | E56: 14.63281662 | I56: 8.268084053 | J56: 5.769699714 | K56: 13.81429738 | M56: 8.055802763 | N56: 5.551975197 | O56: 14.15449515 | P56: 14.72149143 | R56: 9.129080632 | S56: 8.182915693 | T56: 3.895 | U56: 16.94329368 | V56: 1155.1995 | X56: 9.149078618 | Y56: 9.589034311
A57: 2012-08-17 | C57: 13.08433017 | D57: 3.333737577 | E57: 14.57069724 | I57: 7.957826784 | J57: 5.758813488 | K57: 13.85285313 | M57: 8.055802763 | N57: 5.551975197 | O57: 14.07965164 | P57: 14.53324866 | R57: 8.616632239 | S57: 7.977905278 | T57: 3.835 | U57: 16.5608322 | V57: 1169.532 | X57: 8.724121414 | Y57: 9.214072072
A58: 2012-08-24 | C58: 13.54570314 | D58: 3.383135314 | E58: 15.16234043 | I58: 8.061245873 | J58: 5.758813488 | K58: 14.21573074 | M58: 8.191880513 | N58: 5.551975197 | O58: 14.44252926 | P58: 14.89612628 | R58: 8.7441194 | S58: 8.087910867 | T58: 3.875 | U58: 17.2707607 | V58: 1237.446 | X58: 8.829110841 | Y58: 9.204073079
A59: 2012-08-31 | C59: 13.67983826 | D59: 3.423148268 | E59: 15.41958768 | I59: 8.273527162 | J59: 5.758813488 | K59: 14.41758142 | M59: 8.191880513 | N59: 5.660837456 | O59: 14.64437993 | P59: 15.09797696 | R59: 8.834110337 | S59: 8.115412264 | T59: 3.875 | U59: 17.7007174 | V59: 1247.8095 | X59: 8.896604044 | Y59: 9.399053443
A60: 2012-09-07 | C60: 13.81915735 | D60: 3.447146726 | E60: 15.50286335 | I60: 8.001371664 | J60: 5.758813488 | K60: 14.51510478 | M60: 8.191880513 | N60: 5.769699714 | O60: 14.90066225 | P60: 15.19550032 | R60: 8.719121917 | S60: 7.972905024 | T60: 3.86 | U60: 17.44324333 | V60: 1251.999 | X60: 8.874106309 | Y60: 9.291564268
A61: 2012-09-14 | C61: 13.88201293 | D61: 3.382557416 | E61: 15.43816349 | I61: 8.153778743 | J61: 5.443112938 | K61: 14.65345187 | M61: 8.164664963 | N61: 5.769699714 | O61: 15.1070489 | P61: 15.33384741 | R61: 8.789114869 | S61: 7.76789461 | T61: 3.8475 | U61: 17.43324434 | V61: 1244.943 | X61: 9.036589946 | Y61: 9.394053947
A62: 2012-09-21 | C62: 13.83114527 | D62: 3.289141791 | E62: 15.17777491 | I62: 8.042194989 | J62: 5.449644674 | K62: 14.00254014 | M62: 7.756431715 | N62: 5.769699714 | O62: 14.56953642 | P62: 14.68293568 | R62: 8.794114365 | S62: 7.460378988 | T62: 3.7325 | U62: 16.18586996 | V62: 1204.5915 | X62: 9.094084156 | Y62: 9.40405294
A63: 2012-09-28 | C63: 13.20291339 | D63: 3.23782354 | E63: 14.60936814 | I63: 7.911560349 | J63: 5.449644674 | K63: 13.42420394 | M63: 8.164664963 | N63: 5.769699714 | O63: 13.87780096 | P63: 14.21799873 | R63: 8.554138533 | S63: 7.162863874 | T63: 3.6825 | U63: 15.70591829 | V63: 1149.0255 | X63: 8.781615624 | Y63: 9.141579373
A64: 2012-10-05 | C64: 13.30011275 | D64: 3.248719688 | E64: 14.17648979 | I64: 7.982320779 | J64: 5.334250679 | K64: 13.75532977 | M64: 8.164664963 | N64: 5.83501707 | O64: 14.32232605 | P64: 14.54912456 | R64: 8.691624687 | S64: 7.570384576 | T64: 3.7075 | U64: 15.51343768 | V64: 1124.55 | X64: 8.866607065 | Y64: 9.261567289
A65: 2012-10-12 | C65: 13.68790581 | D65: 3.356141791 | E65: 13.92774315 | I65: 8.104790753 | J65: 5.334250679 | K65: 14.08872358 | M65: 8.164664963 | N65: 6.009196684 | O65: 14.70107956 | P65: 14.88251837 | R65: 8.85910782 | S65: 7.732892832 | T65: 3.885 | U65: 15.4834407 | V65: 1121.904 | X65: 9.179075597 | Y65: 9.466546646
A66: 2012-10-19 | C66: 13.71868561 | D66: 3.608997409 | E66: 13.95472878 | I66: 8.216374508 | J66: 5.443112938 | K66: 13.86419305 | M66: 8.164664963 | N66: 6.096286491 | O66: 14.47654903 | P66: 14.65798784 | R66: 8.85910782 | S66: 7.732892832 | T66: 3.885 | U66: 15.4834407 | V66: 1121.904 | X66: 9.179075597 | Y66: 9.466546646
A67: 2012-10-26 | C67: 13.98306787 | D67: 3.624256809 | E67: 14.01126702 | I67: 8.395997137 | J67: 5.443112938 | K67: 13.9934682 | M67: 8.164664963 | N67: 6.139831394 | O67: 14.56046448 | P67: 14.787263 | R67: 8.726621162 | S67: 7.420376956 | T67: 3.8775 | U67: 15.63842509 | V67: 1134.4725 | X67: 9.141579373 | Y67: 9.451548157
A68: 2012-11-02 | C68: 14.06183175 | D68: 3.621419512 | E68: 14.11932974 | I68: 8.395997137 | J68: 5.443112938 | K68: 14.18397895 | M68: 8.164664963 | N68: 6.118058942 | O68: 14.75097523 | P68: 14.97777375 | R68: 8.684125442 | S68: 7.510381528 | T68: 3.8025 | U68: 15.58343063 | V68: 1111.9815 | X68: 9.084085163 | Y68: 9.431550171
A69: 2012-11-09 | C69: 13.66849833 | D69: 3.441989266 | E69: 13.64278502 | I69: 8.444985127 | J69: 5.443112938 | K69: 13.66914633 | M69: 8.164664963 | N69: 6.096286491 | O69: 14.16810306 | P69: 14.34954187 | R69: 9.024091205 | S69: 7.412876575 | T69: 3.6375 | U69: 14.99099029 | V69: 1075.3785 | X69: 9.369056464 | Y69: 9.586534562
A70: 2012-11-16 | C70: 13.29492879 | D70: 3.398583326 | E70: 13.02869771 | I70: 8.355173812 | J70: 5.443112938 | K70: 13.16565363 | M70: 8.164664963 | N70: 6.052741587 | O70: 13.66461036 | P70: 13.84604917 | R70: 8.454148602 | S70: 7.212866414 | T70: 3.645 | U70: 14.01858822 | V70: 1046.493 | X70: 8.864107316 | Y70: 9.024091205
A71: 2012-11-23 | C71: 13.28358886 | D71: 3.500583326 | E71: 12.88471831 | I71: 8.091182978 | J71: 5.443112938 | K71: 13.11802595 | M71: 8.164664963 | N71: 6.052741587 | O71: 13.61698267 | P71: 13.95718044 | R71: 8.416652379 | S71: 7.387875305 | T71: 3.775 | U71: 13.94609552 | V71: 1055.9745 | X71: 8.75911789 | Y71: 9.101583401
A72: 2012-11-30 | C72: 13.52334729 | D72: 3.584996607 | E72: 13.09736537 | I72: 8.382389362 | J72: 5.334250679 | K72: 13.54440715 | M72: 8.164664963 | N72: 6.030969135 | O72: 14.04336388 | P72: 14.38356164 | R72: 8.691624687 | S72: 7.515381782 | T72: 3.6075 | U72: 14.4785419 | V72: 1097.4285 | X72: 9.171576352 | Y72: 9.311562254
A73: 2012-12-07 | C73: 13.67497829 | D73: 3.754869683 | E73: 12.99058288 | I73: 8.055802763 | J73: 5.334250679 | K73: 13.6578064 | M73: 8.164664963 | N73: 6.030969135 | O73: 14.15676313 | P73: 14.4969609 | R73: 8.691624687 | S73: 7.515381782 | T73: 3.6075 | U73: 14.4785419 | V73: 1097.4285 | X73: 9.171576352 | Y73: 9.311562254
A74: 2012-12-14 | C74: 13.50163943 | D74: 3.699193116 | E74: 13.25397192 | I74: 7.367249352 | J74: 5.225388421 | K74: 13.38564819 | M74: 8.164664963 | N74: 6.096286491 | O74: 13.88006895 | P74: 14.22026672 | R74: 7.929201469 | S74: 7.122861842 | T74: 3.6975 | U74: 14.7635132 | V74: 1072.071 | X74: 8.506643316 | Y74: 8.846609079
A75: 2012-12-21 | C75: 13.34450046 | D75: 3.672264582 | E75: 13.03070339 | I75: 7.906117239 | J75: 5.399568035 | K75: 13.12709789 | M75: 8.164664963 | N75: 6.096286491 | O75: 13.72811394 | P75: 14.00027216 | R75: 8.05668863 | S75: 7.030357143 | T75: 3.7525 | U75: 14.36855298 | V75: 1067.4405 | X75: 8.579136015 | Y75: 8.954098254
A76: 2012-12-28 | C76: 13.59462682 | D76: 3.724283643 | E76: 13.05865441 | I76: 7.906117239 | J76: 5.377795583 | K76: 13.41059603 | M76: 8.164664963 | N76: 6.096286491 | O76: 13.96171641 | P76: 14.23387463 | R76: 7.721722363 | S76: 6.915351301 | T76: 3.53 | U76: 14.18607135 | V76: 1064.7945 | X76: 8.231671008 | Y76: 8.646629218
A77: 2013-01-04 | B77: 7.851141828 | C77: 13.64193051 | D77: 3.461028346 | E77: 12.83539763 | I77: 7.906117239 | J77: 5.377795583 | K77: 13.70543409 | M77: 8.164664963 | N77: 6.052741587 | O77: 13.95944843 | P77: 14.25428649 | R77: 7.554220179 | S77: 6.892907946 | T77: 3.377440548 | U77: 14.02852734 | V77: 1107.13 | X77: 8.111594641 | Y77: 8.464036012
A78: 2013-01-11 | B78: 7.705538637 | C78: 13.49814025 | D78: 3.218592887 | E78: 12.8117201 | I78: 7.906117239 | J78: 5.288528531 | K78: 13.70089812 | M78: 8.028587214 | N78: 5.987424232 | O78: 13.89821283 | P78: 14.19305089 | R78: 7.444269358 | S78: 6.987908962 | T78: 3.395021745 | U78: 14.17358622 | V78: 1089.05 | X78: 7.96408636 | Y78: 8.391642649
A79: 2013-01-18 | B79: 7.887610665 | C79: 13.62061145 | D79: 3.374510348 | E79: 13.20362402 | I79: 7.919725014 | J79: 5.288528531 | K79: 13.43781185 | M79: 8.028587214 | N79: 5.987424232 | O79: 14.11820738 | P79: 14.41304545 | R79: 7.811679281 | S79: 7.245478561 | T79: 3.55001388 | U79: 14.30095499 | V79: 1135.35 | X79: 8.369053743 | Y79: 8.689925076
A80: 2013-01-25 | B80: 7.92299088 | C80: 13.99596299 | D80: 3.482927732 | E80: 13.31983442 | I80: 7.919725014 | J80: 5.258047098 | K80: 13.81429738 | M80: 8.028587214 | N80: 6.030969135 | O80: 14.49469291 | P80: 14.94828994 | R80: 7.69 | S80: 7.245478561 | T80: 3.61 | U80: 14.35 | V80: 1135.35 | X80: 8.22 | Y80: 8.560106903
A81: 2013-02-01 | B81: 7.994023465 | C81: 14.18556654 | D81: 3.505598223 | E81: 13.42597507 | I81: 7.919725014 | J81: 5.258047098 | K81: 14.12727933 | M81: 8.028587214 | N81: 6.096286491 | O81: 14.80767486 | P81: 15.26127189 | R81: 7.811679281 | S81: 7.41 | T81: 3.6 | U81: 14.69 | V81: 1135.35 | X81: 8.369053743 | Y81: 8.649918217
A82: 2013-02-08 | B82: 7.845154407 | C82: 14.48811576 | D82: 3.609543197 | E82: 13.5933507 | I82: 7.919725014 | J82: 5.258047098 | K82: 14.68293568 | M82: 8.028587214 | N82: 6.205148749 | O82: 15.36333122 | P82: 15.81692824 | R82: 7.56 | S82: 7.11 | T82: 3.82 | U82: 14.87 | V82: 1135.35 | X82: 8.01 | Y82: 8.390009716
A83: 2013-02-15 | B83: 7.657367113 | C83: 14.22072031 | D83: 3.75821227 | E83: 13.34759428 | I83: 7.919725014 | J83: 5.258047098 | K83: 14.3450059 | M83: 8.028587214 | N83: 6.161603846 | O83: 15.02540143 | P83: 15.47899846 | R83: 7.319349984 | S83: 6.947774843 | T83: 3.800006169 | U83: 14.17848502 | V83: 1139.99 | X83: 7.749355672 | Y83: 8.191608357
A84: 2013-02-22 | B84: 7.810318504 | C84: 14.58745351 | D84: 3.709169982 | E84: 13.42080411 | I84: 7.919725014 | J84: 5.258047098 | K84: 14.59221628 | M84: 8.028587214 | N84: 6.096286491 | O84: 15.27261181 | P84: 15.61280958 | R84: 7.211848562 | S84: 6.907894737 | T84: 3.895006323 | U84: 14.87601956 | V84: 1131.39 | X84: 7.571638131 | Y84: 8.064239584
A85: 2013-03-01 | B85: 7.630695874 | C85: 14.298739 | D85: 3.907652447 | E85: 13.27683385 | I85: 7.919725014 | J85: 5.258047098 | K85: 14.25655448 | M85: 8.055802763 | N85: 6.161603846 | O85: 15.08210106 | P85: 15.30889957 | R85: 7.076859434 | S85: 7.195437919 | T85: 3.917522593 | U85: 14.74103044 | V85: 1076.48 | X85: 7.469307664 | Y85: 7.99674502
A86: 2013-03-08 | B86: 7.641582094 | C86: 14.40918988 | D86: 3.772554826 | E86: 13.5590591 | I86: 7.865293914 | J86: 5.268933324 | K86: 14.57634038 | M86: 8.055802763 | N86: 6.226921201 | O86: 15.26807584 | P86: 15.4268348 | R86: 6.866755389 | S86: 7.115423694 | T86: 3.950063231 | U86: 15.0335976 | V86: 1111.32 | X86: 7.3993637 | Y86: 8.061790184
A87: 2013-03-15 | B87: 7.665531778 | C87: 14.39762315 | D87: 3.859227044 | E87: 13.49102023 | I87: 7.865293914 | J87: 5.268933324 | K87: 14.47201306 | M87: 8.055802763 | N87: 6.205148749 | O87: 15.03900934 | P87: 15.1977683 | R87: 7.141904599 | S87: 7.327778907 | T87: 4.285031307 | U87: 14.57093325 | V87: 1082.43 | X87: 7.426851406 | Y87: 8.004093219
A88: 2013-03-22 | B88: 7.70472217 | C88: 14.42778735 | D88: 3.878350452 | E88: 13.26132099 | I88: 7.946940564 | J88: 5.290705776 | K88: 14.29737821 | M88: 8.055802763 | N88: 6.248693653 | O88: 15.20457226 | P88: 15.36333122 | R88: 7.29 | S88: 7.327778907 | T88: 3.95 | U88: 14.49 | V88: 1082.43 | X88: 7.61 | Y88: 8.004093219
A89: 2013-03-29 | B89: 7.723500899 | C89: 14.56522725 | D89: 3.932482033 | E89: 13.42434213 | I89: 7.946940564 | J89: 5.301592002 | K89: 14.18624694 | M89: 8.055802763 | N89: 6.33578346 | O89: 15.09344099 | P89: 15.3202395 | R89: 7.286691324 | S89: 6.952855111 | T89: 3.962555134 | U89: 14.04621745 | V89: 1104.93 | X89: 7.266823973 | Y89: 7.801609528
A90: 2013-04-05 | B90: 7.245595844 | C90: 14.33457317 | D90: 3.646710465 | E90: 12.85553714 | I90: 7.946940564 | J90: 5.301592002 | K90: 13.85285313 | M90: 7.756431715 | N90: 6.422873267 | O90: 14.71468747 | P90: 14.98684569 | R90: 6.939420908 | S90: 6.300294656 | T90: 3.589957127 | U90: 13.71854223 | V90: 1070.53 | X90: 7.216747361 | Y90: 7.864205292
A91: 2013-04-12 | B91: 7.461959465 | C91: 14.3901388 | D91: 3.678017334 | E91: 12.79049198 | I91: 7.946940564 | J91: 5.301592002 | K91: 14.18171097 | M91: 7.756431715 | N91: 6.314011008 | O91: 15.04354531 | P91: 15.31570353 | R91: 6.976706211 | S91: 6.512903881 | T91: 3.737546652 | U91: 14.01845759 | V91: 1097.43 | X91: 7.386844548 | Y91: 7.894142397
A92: 2013-04-19 | B92: 7.829369388 | C92: 14.53120748 | D92: 3.760062922 | E92: 12.87322725 | I92: 7.946940564 | J92: 5.301592002 | K92: 14.39943754 | M92: 7.838078364 | N92: 6.292238556 | O92: 15.26127189 | P92: 15.5334301 | R92: 7.026782823 | S92: 6.445336314 | T92: 3.884981956 | U92: 14.30367655 | V92: 1095 | X92: 7.436649004 | Y92: 7.176740502
A93: 2013-04-26 | B93: 7.872642113 | C93: 14.6491427 | D93: 3.93494957 | E93: 12.67156002 | I93: 7.946940564 | J93: 5.301592002 | K93: 14.43118933 | M93: 7.838078364 | N93: 6.314011008 | O93: 15.0458133 | P93: 15.43137077 | R93: 7.01181427 | S93: 6.452702703 | T93: 3.944973937 | U93: 14.23346043 | V93: 1097.43 | X93: 7.636683295 | Y93: 8.231615216
A94: 2013-05-03 | B94: 7.738197296 | C94: 14.25859566 | D94: 3.859998149 | E94: 12.68870582 | I94: 7.946940564 | J94: 5.301592002 | K94: 14.36088179 | M94: 7.838078364 | N94: 6.314011008 | O94: 14.61036016 | P94: 15.01859748 | R94: 7.186810256 | S94: 6.975462304 | T94: 4.162425588 | U94: 14.40845642 | V94: 1067.66 | X94: 8.021783326 | Y94: 8.44661806
A95: 2013-05-10 | B95: 7.647841671 | C95: 14.13589767 | D95: 3.853520866 | E95: 12.67264864 | I95: 7.946940564 | J95: 5.301592002 | K95: 14.44252926 | M95: 7.838078364 | N95: 6.357555912 | O95: 15.00952554 | P95: 15.2590039 | R95: 7.16177195 | S95: 6.945234708 | T95: 4.130039172 | U95: 14.91112762 | V95: 1081.99 | X95: 7.919180703 | Y95: 8.576708388
A96: 2013-05-17 | B96: 7.634778207 | C96: 14.725347 | D96: 3.89747386 | E96: 13.04985617 | I96: 8.001371664 | J96: 5.312478228 | K96: 14.19985485 | M96: 7.838078364 | N96: 6.422873267 | O96: 15.44724667 | P96: 15.69672503 | R96: 6.876825143 | S96: 6.415362731 | T96: 3.777489899 | U96: 14.27346729 | V96: 1091.92 | X96: 7.434199604 | Y96: 8.039201278
A97: 2013-05-24 | B97: 7.720507189 | C97: 14.98299011 | D97: 3.768853521 | E97: 13.64233869 | I97: 8.001371664 | J97: 5.312478228 | K97: 14.56273247 | M97: 7.838078364 | N97: 6.422873267 | O97: 15.19028395 | P97: 15.81692824 | R97: 7.031681622 | S97: 6.620351555 | T97: 3.702538478 | U97: 14.99359074 | V97: 1095 | X97: 7.544150426 | Y97: 8.131734148
A98: 2013-05-31 | B98: 7.763507758 | C98: 14.97255738 | D98: 3.755744733 | E98: 13.55334384 | I98: 8.001371664 | J98: 5.312478228 | K98: 14.63984396 | M98: 7.838078364 | N98: 6.488190622 | O98: 15.43363876 | P98: 15.54703801 | R98: 6.986775964 | S98: 6.542877464 | T98: 3.680022208 | U98: 14.95603328 | V98: 1071.19 | X98: 7.45923791 | Y98: 8.154050899
A99: 2013-06-07 | B99: 7.679139553 | C99: 14.72693459 | D99: 3.849202677 | E99: 14.16351647 | I99: 8.001371664 | J99: 5.312478228 | K99: 14.05923977 | M99: 7.838078364 | N99: 6.444645719 | O99: 14.73963531 | P99: 14.96643382 | R99: 6.976706211 | S99: 6.632798212 | T99: 3.985071404 | U99: 15.27091719 | V99: 1061.93 | X99: 7.384122993 | Y99: 8.201678111
A100: 2013-06-14 | B100: 7.580891418 | C100: 13.99641658 | D100: 4.140834644 | E100: 13.97708995 | I100: 8.001371664 | J100: 5.312478228 | K100: 13.52853125 | M100: 7.838078364 | N100: 6.379328363 | O100: 14.20892679 | P100: 14.4357253 | R100: 6.854236236 | S100: 6.435429791 | T100: 4.082539095 | U100: 15.10109216 | V100: 1054.87 | X100: 7.184360856 | Y100: 8.119214995
A101: 2013-06-21 | B101: 7.452978334 | C101: 13.92520185 | D101: 4.039974091 | E101: 13.75800477 | I101: 8.001371664 | J101: 5.312478228 | K101: 13.76213372 | M101: 7.565922866 | N101: 6.074514039 | O101: 14.20892679 | P101: 14.66252381 | R101: 7.004193916 | S101: 6.732879496 | T101: 3.947441473 | U101: 14.97345123 | V101: 1067.22 | X101: 7.36915444 | Y101: 8.139082346
A102: 2013-06-28 | B102: 7.604024636 | C102: 13.779824 | D102: 3.943894389 | E102: 13.93354507 | I102: 8.001371664 | J102: 5.312478228 | K102: 13.89594484 | M102: 7.565922866 | N102: 6.139831394 | O102: 13.64419849 | P102: 13.87099701 | R102: 6.634334593 | S102: 6.672932331 | T102: 3.855063076 | U102: 15.48347064 | V102: 1023.12 | X102: 6.86430599 | Y102: 7.864205292
A103: 2013-07-05 | B103: 7.435016071 | C103: 13.93404699 | D103: 3.772554826 | E103: 13.97246331 | I103: 8.001371664 | J103: 5.312478228 | K103: 13.72357797 | M103: 7.565922866 | N103: 6.030969135 | O103: 13.14524177 | P103: 13.48543954 | R103: 6.576909783 | S103: 6.782920138 | T103: 3.91999013 | U103: 15.83346261 | V103: 1041.2 | X103: 6.834368885 | Y103: 7.611644989
A104: 2013-07-12 | B104: 7.38004066 | C104: 13.68479543 | D104: 3.724900527 | E104: 13.77569488 | I104: 7.674785065 | J104: 5.312478228 | K104: 13.81429738 | M104: 7.565922866 | N104: 5.922106877 | O104: 13.2019414 | P104: 13.54213916 | R104: 6.791912627 | S104: 6.167699655 | T104: 3.932482033 | U104: 16.01090799 | V104: 1025.1 | X104: 7.114416893 | Y104: 7.96408636
A105: 2013-07-19 | B105: 7.305197898 | C105: 13.05474916 | D105: 3.683260849 | E105: 13.90088641 | I105: 7.212120717 | J105: 4.22385564 | K105: 11.79125465 | M105: 7.266551817 | N105: 5.878561973 | O105: 12.81184795 | P105: 13.15204572 | R105: 6.604397489 | S105: 5.41023166 | T105: 3.532432683 | U105: 14.69095382 | V105: 1003.72 | X105: 7.021884024 | Y105: 7.501694168
A106: 2013-07-26 | B106: 7.21075994 | C106: 11.82414043 | D106: 3.651645538 | E106: 12.71782646 | I106: 6.994396318 | J106: 4.22385564 | K106: 11.19704255 | M106: 7.266551817 | N106: 5.769699714 | O106: 12.1042366 | P106: 12.55783362 | R106: 6.491725112 | S106: 4.960373908 | T106: 3.380062305 | U106: 13.55116659 | V106: 966.01 | X106: 6.9217308 | Y106: 7.376774794
A107: 2013-08-02 | B107: 6.933705642 | C107: 11.07184977 | D107: 3.333333333 | E107: 11.89292314 | I107: 6.912749669 | J107: 4.114993381 | K107: 11.09951919 | M107: 6.994396318 | N107: 5.660837456 | O107: 11.77991472 | P107: 12.23351175 | R107: 6.579359183 | S107: 4.875279415 | T107: 3.397489282 | U107: 13.5762049 | V107: 936.9 | X107: 7.066789681 | Y107: 7.416781652
A108: 2013-08-09 | B108: 6.907578714 | C108: 10.69967341 | D108: 3.367570402 | E108: 11.42617646 | I108: 6.967180768 | J108: 4.114993381 | K108: 11.01106777 | M108: 6.994396318 | N108: 5.116526162 | O108: 11.46466479 | P108: 11.91826182 | R108: 6.411983551 | S108: 4.735318025 | T108: 3.620030227 | U108: 13.55606539 | V108: 918.38 | X108: 7.019162469 | Y108: 7.334318536
A109: 2013-08-16 | B109: 6.891249384 | C109: 10.99700626 | D109: 3.271644922 | E109: 11.74378193 | I109: 6.803887469 | J109: 4.114993381 | K109: 11.23559829 | M109: 6.994396318 | N109: 5.443112938 | O109: 11.68919532 | P109: 12.14279234 | R109: 6.281893223 | S109: 4.552936395 | T109: 3.607538324 | U109: 13.59607225 | V109: 938.89 | X109: 6.961737658 | Y109: 7.324248783
A110: 2013-08-23 | B110: 6.871654188 | C110: 11.26349451 | D110: 3.330865797 | E110: 12.62420497 | I110: 6.831103019 | J110: 4.114993381 | K110: 11.55765218 | M110: 6.994396318 | N110: 4.245628092 | O110: 12.01124921 | P110: 12.35144697 | R110: 6.304482129 | S110: 4.875279415 | T110: 3.824989976 | U110: 13.21859258 | V110: 935.58 | X110: 6.941870307 | Y110: 7.191709055
A111: 2013-08-30 | B111: 6.793817716 | C111: 11.45196408 | D111: 2.333981062 | E111: 13.62437642 | I111: 6.939965219 | J111: 4.114993381 | K111: 11.93186973 | M111: 6.994396318 | N111: 4.463352609 | O111: 12.2720675 | P111: 12.70298467 | R111: 6.411983551 | S111: 4.972820565 | T111: 3.947441473 | U111: 14.29850559 | V111: 965.35 | X111: 7.009364871 | Y111: 7.241785667
A112: 2013-09-06 | B112: 6.727139618 | C112: 11.22493876 | D112: 3.341661269 | E112: 13.2594159 | I112: 6.66780972 | J112: 4.114993381 | K112: 11.5395083 | M112: 6.994396318 | N112: 4.398035254 | O112: 11.87970607 | P112: 12.26526354 | R112: 6.271823469 | S112: 4.895346474 | T112: 3.744949261 | U112: 14.22856163 | V112: 952.34 | X112: 7.01181427 | Y112: 7.059169327
A113: 2013-09-13 | B113: 6.28869711 | C113: 10.64320058 | D113: 3.093365411 | E113: 13.21451024 | I113: 6.477300871 | J113: 3.897268864 | K113: 11.43064501 | M113: 6.72224082 | N113: 4.245628092 | O113: 11.65744353 | P113: 12.11104055 | R113: 6.41688235 | S113: 4.790184922 | T113: 3.669997841 | U113: 14.41852617 | V113: 947.31 | X113: 7.066789681 | Y113: 7.054270528
A114: 2013-09-20 | B114: 6.012459279 | C114: 10.41844326 | D114: 3.009931834 | E114: 12.90506944 | I114: 6.259576472 | J114: 3.446579112 | K114: 11.14714687 | M114: 6.72224082 | N114: 4.027903574 | O114: 10.64819015 | P114: 11.6914633 | R114: 6.569289429 | S114: 4.595356635 | T114: 3.120045649 | U114: 13.39358856 | V114: 941.76 | X114: 7.019162469 | Y114: 7.084207633
A115: 2013-09-27 | B115: 6.342583899 | C115: 10.20502586 | D115: 3.050029302 | E115: 12.33680876 | I115: 6.422869771 | J115: 3.446579112 | K115: 10.95890411 | M115: 6.69502527 | N115: 3.919041315 | O115: 10.95890411 | P115: 11.41250113 | R115: 6.781842874 | S115: 4.567669173 | T115: 3.184972703 | U115: 13.16606656 | V115: 921.47 | X115: 7.271722772 | Y115: 7.244235066
A116: 2013-10-04 | B116: 6.450085321 | C116: 10.18007802 | D116: 2.990037321 | E116: 11.97674703 | I116: 6.55894752 | J116: 3.244095311 | K116: 10.83416493 | M116: 6.69502527 | N116: 4.202083188 | O116: 10.87952463 | P116: 11.35580151 | R116: 6.859407191 | S116: 4.390113798 | T116: 3.137472626 | U116: 12.73633303 | V116: 862.6 | X116: 7.544150426 | Y116: 7.466858264
A117: 2013-10-11 | B117: 6.591878336 | C117: 10.17214007 | D117: 2.91493168 | E117: 11.69669903 | I117: 6.55894752 | J117: 3.244095311 | K117: 10.83416493 | M117: 6.69502527 | N117: 4.202083188 | O117: 10.87952463 | P117: 11.35580151 | R117: 6.859407191 | S117: 4.390113798 | T117: 3.137472626 | U117: 12.73633303 | V117: 862.6 | X117: 7.544150426 | Y117: 7.466858264
A118: 2013-10-18 | B118: 6.599226534 | C118: 10.23450966 | D118: 3.320070325 | E118: 11.84339084 | I118: 6.395654221 | J118: 3.309412666 | K118: 10.92488433 | M118: 6.69502527 | N118: 4.35449035 | O118: 10.94983217 | P118: 11.51682845 | R118: 6.859407191 | S118: 4.430247917 | T118: 3.317448567 | U118: 12.93119637 | V118: 906.7 | X118: 7.489175015 | Y118: 7.449168157
A119: 2013-10-25 | B119: 6.622087596 | C119: 10.35289848 | D119: 3.272570248 | E119: 12.02001976 | I119: 6.422869771 | J119: 3.309412666 | K119: 11.09271523 | M119: 6.450085321 | N119: 4.006131122 | O119: 11.22652635 | P119: 11.74816293 | R119: 6.965003524 | S119: 4.402560455 | T119: 3.442521822 | U119: 13.09748338 | V119: 906.92 | X119: 7.642670716 | Y119: 7.519928586
A120: 2013-11-01 | B120: 6.349932097 | C120: 10.40143337 | D120: 3.161068443 | E120: 11.63410326 | I120: 6.232360922 | J120: 3.309412666 | K120: 10.96797605 | M120: 6.450085321 | N120: 4.027903574 | O120: 11.09951919 | P120: 11.62115577 | R120: 6.675157918 | S120: 4.282412111 | T120: 3.302489127 | U120: 12.80273897 | V120: 911.33 | X120: 7.405078966 | Y120: 7.302476343
